{"text_format":"3","workbook":"xlsx","n_sheets":8,"sheets":["FINAL SUMMARY","PRELIMINARIES","BUILDING WORKS","ELECTRICAL INSTALLATION","ELECTRONIC INSTALLATION","MECHANICAL INSTALLATION ","EXTERNAL WORKS","PROVISIONAL SUMS AND ALLOWANCES"],"read":"whole","date_system":"1900"}

{"sheet":"FINAL SUMMARY","index":0,"n_rows":46,"n_cols":5,"rows_kept":46,"merged":[[1,1,1,4]]}
[]
[null,"THABOTONA PRIMARY SCHOOL"]
[]
["Section No.","FINAL SUMMARY",null,"RATE"]
[1,"PRELIMINARIES",44,null,{"$f":"PRELIMINARIES!F434","v":0}]
[]
[2,"BUILDING WORKS",150,null,{"$f":"'BUILDING WORKS'!L2020","v":0}]
[]
[3,"ELECTRICAL INSTALLATION",182,null,{"$f":"'ELECTRICAL INSTALLATION'!L556","v":0}]
[]
[4,"ELECTRONIC INSTALLATION",213,null,{"$f":"'ELECTRONIC INSTALLATION'!L466","v":0}]
[]
[5,"MECHANICAL INSTALLATION ",272,null,{"$f":"'MECHANICAL INSTALLATION '!L1456","v":0}]
[]
[6,"EXTERNAL WORKS",323,null,{"$f":"'EXTERNAL WORKS'!L1072","v":0}]
[]
[7,"PROVISIONAL SUMS AND ALLOWANCES",330,null,{"$f":"'PROVISIONAL SUMS AND ALLOWANCES'!K151","v":0}]
[]
[null,"TOTAL BUILDING WORKS",null,"Sub Total",{"$f":"SUM(E5:E17)","v":0}]
[]
[null,"CSDG CONSTRUCTION SKILLS DEVELOPMENT GOAL"]
[]
[null,"Provide a sum of 0.5% of the total for building works for the Construction Skills Development Goal as per CIDB B.U.I.L.D Programme requirements.",null,null,{"$f":"E19*0.5%","v":0}]
[]
[null,"TOTAL BUILDING COSTS",null,"Sub Total",{"$f":"E19+E23","v":0}]
[]
[null,"CIDB BEST PRACTICE PROJECT FEE"]
[]
[null,"Provide a sum of 0.2% (GB) of the total for building works for CIDB Best Practice Project Levy to be paid directly to the CIDB at the employer's discretion.",null,null,{"$f":"E25*0.2%","v":0}]
[]
[null,"ESCALATION"]
[]
[null,"Provide the sum of R 3 500,000.00 (Three Million, Five Hundred Thousand Rand) for statutory increases (CPAP), to be adjusted, used and paid as instructed by the Client for and based on contractually calculated escalation per item 3.2.4 of the contract data of the Preliminaries Bill and in terms of clauses 17, 31 and 32 of the Principal Building Agreement (refer JBCC).",null,{"v":3500000,"d":"R3,500,000.00"},{"v":3500000,"d":"R3,500,000.00"}]
[]
[null,"Sub Total",null,"Sub Total",{"$f":"E33+E29+E25","v":{"v":3500000,"d":"R3,500,000.00"}}]
[]
[null,"CONTINGENCIES"]
[]
[null,"Provide the Sum of R8 000 000.00 (Eight Million Rand) for contingencies be used at the Employer`s discretion in terms of Clause 17 of the Principal Building Agreement. ",null,{"v":8000000,"d":"R8,000,000.00"},{"v":8000000,"d":"R8,000,000.00"}]
[]
[null,"TOTAL CONSTRUCTION COSTS (Excluding VAT)",null,"Sub Total",{"$f":"E35+E39","v":{"v":11500000,"d":"R11,500,000.00"}}]
[]
[null,"VAT at the rate of 15%",{"v":0.15,"d":"15%"},null,{"$f":"E41*0.15","v":{"v":1725000,"d":"R1,725,000.00"}}]
[]
[]
[{"$nulls":4},{"$f":"E41+E43","v":{"v":13225000,"d":"R13,225,000.00"}}]

{"sheet":"PRELIMINARIES","index":1,"n_rows":434,"n_cols":7,"rows_kept":434}
["ITEM NO","DESCRIPTION","UNIT","QUANTITY","RATE","AMOUNT"]
[null,"BILL NO. 1  PRELIMINARIES"]
[]
[null,"MEANING OF TERMS \"TENDER / TENDERER\""]
[]
[null,"Any reference to the words \"Tender\" or \"Tenderer\" herein and / or in any other documentation shall be construed to have the same meaning as the words \"Bid\" or \"Bidder\"."]
[]
[null,"PRELIMINARIES"]
[]
[null,"The JBCC Preliminaries Code 2103, May 2005 edition for use with the JBCC Principal Building Agreement Edition 4.1 Code 2101, March 2005 is taken to be incorporated herein. The tenderer is deemed to have referred to these documents for the full intent and meaning of each clause. These clauses are referred to by number and heading only. Where standard clauses or options are not applicable to the contract such modifications or corrections as are necessary are given under each relevant clause. Where an item is not relevant to this specific contract such item is marked. \"N/A\" signifying \"Not Applicable\"."]
[]
[null,"PRICING OF PRELIMINARIES"]
[]
[null,"Should Option A, as set out in clause B10.3.1 hereinafter be used for the adjustment of preliminaries then each item priced is to be allocated to one or more of the three categories Fixed, Value Related or Time Related and the respective amounts entered in the spaces provided under each item"]
[]
[null,"Items not priced in these Preliminaries shall be deemed to be included elsewhere in these Bills of Quantities."]
[]
[null,"SECTION A: JBCC PRINCIPAL BUILDING AGREEMENT"]
[]
[null,"DEFINITIONS"]
[]
[null,"DEFINITIONS AND INTERPRETATION                                                                                                                                                                                                       Clause 1.0                                                                                                                                                                                                                                                               Clause 1.0 is amended by the addition of the following clauses:1.5.7 References to any party to this agreement include its successors or permitted assigns;1.5.8 References to the contractor include the obligations    of its personnel;1.5.9 References to “month” shall be to a calendar month;1.5.10"]
[null,"References to any amount shall mean that       amount exclusive of VAT, unless the amount expressly includes   VAT;1.5.11 References containing terms such as “best endeavours\" when used in connection with an obligation of either party, means taking in good faith and with due diligence all reasonable steps to achieve the objective and  to fulfil the obligation at the earliest possible time, including doing all that a reasonable and prudent owner or provider    of design and construction services in comparable circumstances would do."]
[null,"1.5.12 If a definition imposes substantive rights and obligations on a party, such rights and obligations shall be given effect to and shall be enforceable, notwithstanding  that they are contained in a definition; "]
[null,"1.5.13 Where any word is defined within the context of    any particular clause in this agreement, that word, unless it   is clear from the clause in question that word has limited application only to the relevant clause, shall bear the  meaning ascribed to it for all purposes in terms of this agreement, notwithstanding that word has not been  defined in clause 1.1; "]
[null,"1.5.14 Words defined in this agreement shall bear the   same meanings in any annexes or schedules to this agreement unless the annexes or schedules contain their own definitions of such words;"]
[null,"1.5.15 Where any number of days is prescribed, those  days shall be reckoned exclusively of the first and  inclusively of the last day unless the last day falls on a day that is not a working day, in which event the last day shall be the next succeeding working day;"]
[null,"1.5.16 Words and abbreviations that have well known technical or trade meanings are used in the agreement in accordance with such recognized meanings;"]
[null,"1.5.17 The rule of construction that if general words or terms are used in association with specific words or terms that are a species of a particular genus or class, the   meaning of the general words or terms shall be restricted    to that same class shall not apply, and whenever the word \"including\" is used followed by specific examples, such examples shall not be interpreted so as to limit the meaning of any word or term to the same genus or class as the examples given;"]
[null,"1.5.18 The rule of construction that the agreement shall be interpreted against or to the disadvantage of the party responsible for the drafting or preparation of this     agreement shall not apply.1.10 The copyright in all contract documents, contract drawings and records (irrespective of who prepared any of the aforesaid) related in any manner to the works   shall vest  in the employer and the contractor shall not furnish any information in connection with the works to  any person or organization without the prior written approval of the employer to this effect other than subcontractors appointed for purposes of this  agreement.1.11 Any provision in this agreement that is or may become illegal, invalid or unenforceable in any jurisdiction shall be ineffective to the extent of such prohibition or un enforceability in such jurisdiction and shall be treated as severed from the balance of this agreement in such jurisdiction, without invalidating the remaining provisions     of this agreement in such jurisdiction or affecting it in        any other jurisdictionFixed:________ Value related:_________ Time related:_________"]
[]
[]
[]
[null,"OBJECTIVE AND PREPARATION"]
[]
[1,"A2 OFFER, ACCEPTANCE AND PERFORMANCE                                                                                                                                                                                                            Clause 2.0                                                                                                                                                                                                                                                                   Fixed:____________ Value related:____________ Time related:____________","Item",1,null,{"$f":"D36*E36","v":0}]
[]
[2,"A3 DOCUMENTS "]
[null,"Clause 3.0Clause 3.5 is amended by replacing it with the following:No clause Clause 3.7 is amended by replacing the second sentence starting in line 2 with the following:The contractor shall keep a copy of all drawings, schedules, unpriced bills of quantities/lump sum document, contract instructions, minutes of site and other meetings, health and safety files as specified in the scope of work, risk register, claims and variation order register, labour records and subcontractors contracts on the site to which the employer, principal agent and agents shall have access at all times. The employer has the right to call for such further information from the contractor it deems necessary in the event it carries out any investigation or audit into potential fraud, corruption, fronting, health and safety incidents or verifying information the contractor has to supply to the employer in terms of this agreement. The Contractor shall ensure a similar right for the Employer with its subcontractors"]
[null,"Clause 3.10 is amended by replacing  “principal agent” with “employer” in the first line.Fixed:____________ Value related:____________ Time related:____________ ","Item",1,null,{"$f":"D40*E40","v":0}]
[]
[]
[3,"A4 DESIGN RESPONSIBILITY "]
[null,"Clause 4.0 "]
[null,"Fixed:____________ Value related:____________ Time related:____________ ","Item",1,null,{"$f":"D45*E45","v":0}]
[]
[4,"A5 EMPLOYER’S AGENTS                                                                                                                                                                                                                               Clause 5.0                                                                                                                                                                                                                                                                     Fixed:____________ Value related:____________ Time related:____________","Item",1,null,{"$f":"D47*E47","v":0}]
[]
[5,"SITE REPRESENTATIVE                                                                                                                                                                                                                                                Clause 6.0                                                                                                                                                                                                                                                                   Fixed:____________ Value related:____________ Time related:____________","Item",1,null,{"$f":"D49*E49","v":0}]
[]
[6,"A7 COMPLIANCE WITH REGULATIONS "]
[null,"Clause 7.0 Note: The provisions herein include inter alia, compliance with all the requirements set out in the Construction Regulations, 2014 issued under the Occupational Health and Safety Act, 1993 (Act No 85 of 1993), and in particular with Regulation 5(1) requiring the compilation of a health and safety plan, as well as Regulation 6(1) requiring the appointment of a construction supervisor Clause 7.0 is amended by the addition of the following:7.3 The Occupational Health and Safety Act No. 85 of 1993 and the Construction Regulations 2014 will in all respects be applicable to this contract. All obligations in respect of health and safety requirements of the Contractor are set out in the Scope of WorkContractor’s liability as mandatory7.3.1 Notwithstanding any actions which the employer may take, the contractor accepts sole liability for due compliance with the relevant duties, obligations, prohibitions, arrangements and procedures imposed by the Occupational Health and Safety Act, 1993 (Act 85 of 1993), and all its regulations, including the Construction Regulations, 2014, for which the contractor is liable as mandatory. By entering into this agreement it shall be deemed that the parties have agreed in writing to the above provisions in terms of Section 37 (2) of the Act and will enter into the mandatory agreement as set out in the Scope of Work. This clause will be sufficient to establish the mandatory obligations of the contractor in the event the parties fail to execute the aforesaid mandatory agreement.”Fixed:____________ Value related:____________ Time related:____________","Item",1,null,{"$f":"D52*E52","v":0}]
[]
[]
[7,"A8 WORKS RISK "]
[null,"Clause 8.0 Fixed:____________ Value related:____________ Time related:____________","Item",1,null,{"$f":"D56*E56","v":0}]
[]
[]
[]
[]
[8,"A9 INDEMNITIES Clause 9.0 Fixed:____________ Value related:____________ Time related:____________","Item",1,null,{"$f":"D61*E61","v":0}]
[]
[9,"A10 WORKS INSURANCES Clause 10.0 Fixed:____________ Value related:____________ Time related:____________"]
[]
[10,"A11 LIABILITY INSURANCES  Clause 11.0  Fixed:____________ Value related:____________ Time related:____________","Item",1,null,{"$f":"D65*E65","v":0}]
[]
[11,"A12 EFFECTING INSURANCES  Clause 12.0  Fixed:____________ Value related:____________ Time related:____________","Item",1,null,{"$f":"D67*E67","v":0}]
[]
[12,"A13.0 No clause"]
[]
[13,"A14 SECURITY"]
[null,"Clause 14.0Clauses 14.1 is amended by replacing it with the following:The employer shall have the right to choose the security to be provided in terms of 14.3 or 14.4 as stated in the schedule. The contractor shall provide the security required or chosen by the employer in the schedule substantially in the format prescribed in the tender documents that the contractor submitted a tender offer. The required security shall be provided in the time period prescribed by the employer in the conditional letter of acceptance of the contractor’s tender offer.Clauses 14.3 is amended by replacing the last line of sub-clause 14.3.1 “twelve point five (12.5%)” with “ten (10%)”.Clause 14.4 is amended by replacing the last line of sub-clause 14.4.1 replace “seven point five (7.5%)” with “ten (10%)”.Clause 14.7 is amended by the addition of the following:The construction guarantee provided by the contractor shall remain valid for the term of the agreement . In case of extensions, the security must also be extended or replaced by another construction guarantee of the same value, with an effective term equal to the term of extension. If the contractor fails to keep a valid security for the duration of the agreement, the principal agent shall deduct an amount of 10% from each interim payment certificate and withhold the amount until the contractor provides a valid construction guarantee. Once the contractor provides the valid construction guarantee, the principal agent will then release the amount held from each payment certificate in the next payment certificate.Clause 14.7.1 is amended by replacing the second and third line amend “two point five (2.5%)” to read “five (5%)Clause 14.0 is amended by the addition of the following: 14.9 A payment reduction of five (5%) of the value of each payment certificate up to a maximum of five (5%) of the contract sum will be applied until practical completion. At practical completion the amount withheld will be reduced to two point five (2.5%), which amount will reduce to nil (0%) when the final account is issued. The employer reserves the right to use retention money to correct defects where contractor fails to correct, fails or refuses to pay service provides or its subcontractors. Fixed:____________ Value related:____________ Time related:____________"]
[]
[]
[null,"EXECUTION"]
[]
[14,"A15 PREPARATION FOR AND EXECUTION OF THE WORKS  "]
[null,"Clause 15.0  Clause 15.1.1 is amended by replacing it with “principal agent” with “employer”:   Fixed:____________ Value related:____________ Time related:____________ "]
[15,"A16 ACCESS TO THE WORKS                                                                                                                                                                                                                                         Clause 16.0  Fixed:____________ Value related:____________ Time related:____________","Item",1,null,{"$f":"D79*E79","v":0}]
[]
[16,"A17 CONTRACT INSTRUCTIONS  Clause 17.0   Fixed:____________ Value related:____________ Time related:____________","Item",1,null,{"$f":"D81*E81","v":0}]
[]
[17,"A18 SETTING OUT OF THE WORKS  Clause 18.0  Fixed:____________ Value related:____________ Time related:____________","Item",1,null,{"$f":"D83*E83","v":0}]
[]
[18,"ASSIGNMENT ","Item",1,null,{"$f":"D85*E85","v":0}]
[null," Clause 19.0  Clauses 19 is amended by replacing them with the following:  19.1 The contractor does not cede, delegate or assign      any  of its rights or obligations to any person.  19.2 Notwithstanding the above, the employer may, on  written notice to the contractor, cede and delegate,  handover,  its rights and obligations under this contract       to a Related Party or a Client of the employer. On cession    the Client becomes the employer and takes full responsibility. For the purpose hereof the above clause: 19.2.1 a “Related Party” means any entity that directly or indirectly, through one or more intermediaries, controls or is controlled by, or is under common control with the    employer and includes any other “Organ of State”               as defined in section 239 of the Constitution of the   Republic of South Africa, 1996 and any entity or Organ of State for whom the Employer carries out the works or acts  as an implementing agent, (“control” means the beneficial ownership of the majority in number of the issued equity of any entity (or the whole or majority of the entity’s assets), and/or the right or ability to direct or otherwise control the entity or the votes attaching to the majority of the entity’s equity and “controlled” or “under common control” shall    have a similar meaning); and Client means the owner, funder and or sponsor of the   project and or programme managed in terms of the MOA between the Client and DBSA.      Fixed:____________ Value related:____________ Time related:____________"]
[19,"A20 NOMINATED SUB-CONTRACTORS  Clause 20.0   Fixed:____________ Value related:____________ Time related:____________  ","Item",1,null,{"$f":"D87*E87","v":0}]
[]
[20,"A21 SELECTED SUBCONTRACTORS  ","Item",1,null,{"$f":"D89*E89","v":0}]
[null,"Clause 21.0  Clause 21 is amended by replacing sub-clause 21.1.2 to 21.1.4 and 21.2 to 21.6 with the following:  The contractor and principal agent shall appoint a selected subcontractor in accordance with the provisions of the Scope of Work  Fixed:____________ Value related:____________ Time related:____________"]
[21,"A22 EMPLOYER’S DIRECT CONTRACTORS  Clause 22.0  Fixed:____________ Value related:____________ Time related:____________","Item",1,null,{"$f":"D91*E91","v":0}]
[]
[22,"A23 CONTRACTOR'S DOMESTIC SUBCONTRACTORS","Item",1,null,{"$f":"D93*E93","v":0}]
[null,"Clause 23.0Clause 23 is amended by adding sub-clause 23.3 - 23.6:23.3 The contractor may not subcontract the whole of the work without the written instruction or approval of the employer. In such event the employer may require the contractor to cede the contract to the subcontractor.23.4 The subcontractors appointed by the contractor to comply with the developmental and transformation requirements from the employer in terms of applicable legislation, including but not limited to the Preferential Procurement Policy Framework Act, 5 of 2000, and regulation thereto, will be domestic subcontractors for purposes of this agreement, and sub-clauses 23.1 and 23.2 will apply accordingly.23.5 The contractor shall submit the agreement for each subcontract to the Principal Agent and employer may redact all commercially sensitive information. 23.6 Contractors' failure to pay Subcontractors If the contractor fails to make payment of any amount due and payable to a subcontractor (“the Subcontractor debt”) and the Principal Agent considers that the subcontractor debt has an adverse impact(s) on the progress of the works or the obligations of the contractor under the agreement, the Principal Agent may request evidence of payment to the subcontractor. In the absence of such evidence, the employer may (at its own discretion) pay the subcontractor debt directly to the subcontractor concerned. Such payment is, for all purposes under the agreement, regarded as a payment made on behalf of the contractor and at the request of and with the approval and consent of the contractor, as a payment towards the contract sum. As such, payment to the contractor shall be less the payment to the subcontractor.All adverse effects as a result of or arising from the subcontractor debt does not entitle the contractor to any cost or time.Fixed:____________ Value related:____________ Time related:____________"]
[]
[]
[null,"COMPLETION"]
[]
[23,"A24 PRACTICAL COMPLETION  Clause 24.0  Fixed:____________ Value related:____________ Time related:____________","Item",1,null,{"$f":"D99*E99","v":0}]
[]
[24,"A25 WORK'S COMPLETION  Clause 25.0  Fixed:____________ Value related:____________ Time related:____________","Item",1,null,{"$f":"D101*E101","v":0}]
[]
[25,"A26 FINAL COMPLETION  Clause 26.0   Fixed:____________ Value related:____________ Time related:____________ ","Item",1,null,{"$f":"D103*E103","v":0}]
[]
[26,"A27 LATENT DEFECTS LIABILITY PERIOD  Clause 27.0  Fixed:____________ Value related:____________ Time related:____________","Item",1,null,{"$f":"D105*E105","v":0}]
[]
[27,"A28 SECTIONAL COMPLETION  Clause 28.0  Fixed:____________ Value related:____________ Time related:____________ ","Item",1,null,{"$f":"D107*E107","v":0}]
[]
[28,"A29 REVISION OF DATE FOR PRACTICAL COMPLETION  Clause 29.0   Fixed:____________ Value related:____________ Time related:____________","Item",1,null,{"$f":"D109*E109","v":0}]
[]
[29,"A30 PENALTY FOR NON-COMPLETION  ","Item",1,null,{"$f":"D111*E111","v":0}]
[null,"Clause 30.0  Clause 30.1 is amended replacing reference to “36.3” at end of sentence with “36.0”  Where the contractor fails to bring the works or sections thereof to practical completion on the date or dates stated in the schedule or revision thereof in terms of 29.0, the contractor shall be liable to the employer for the penalty per calender day for non completion of the works or each section thereof at the rate stated in the schedule. The principal agent shall calculate the penalty due from the date or revised date in terms of 29.0 up to and including the actual date of practical completion of the works or section thereof or cancellation in terms of 36.0.   Fixed:____________ Value related:____________ Time related:____________"]
[]
[null,"PAYMENT"]
[]
[30,"A31 INTERIM PAYMENT TO THE CONTRACTOR  "]
[null,"Clause 31.0  Clause 31.9 is amended by substitution of the words \"seven (7) calendar days\" in the first line by the words \"thirty (30) calendar days”  Clause 31.12 is amended by removing the words subject to the employer giving the contractor a tax invoice for the amount due   Fixed:____________ Value related:____________ Time related:____________ "]
[31,"A32 ADJUSTMENT TO THE CONTRACT VALUE  Clause 32.0   Fixed:____________ Value related:____________ Time related:____________   ","Item",1,null,{"$f":"D118*E118","v":0}]
[]
[32,"A33 RECOVERY OF EXPENSE AND LOSS  Clause 33.0  Fixed:____________ Value related:____________ Time related:____________ ","Item",1,null,{"$f":"D120*E120","v":0}]
[]
[33,"A34 FINAL ACCOUNT AND FINAL PAYMENT  Clause 34.0  Clause 34.13 is amended by removing subject to the employer giving the contractor a tax invoice for the amount due.   Fixed:____________ Value related:____________ Time related:____________ ","Item",1,null,{"$f":"D122*E122","v":0}]
[]
[34,"A35 PAYMENT TO OTHER PARTIES  Clause 35.0  Fixed:____________ Value related:____________ Time related:____________","Item",1,null,{"$f":"D124*E124","v":0}]
[]
[null,"CANCELLATION"]
[]
[null,"A36 CANCELLATION BY EMPLOYER - CONTRACTOR’S DEFAULT "]
[null,"  Clause 36.0    Fixed:____________ Value related:____________ Time related:____________ "]
[35,"A37 CANCELLATION BY EMPLOYER – LOSS AND DAMAGE  Clause 37.0   Fixed:____________ Value related:____________ Time related:____________ "]
[]
[36,"A38 CANCELLATION BY CONTRACTOR - EMPLOYER’S DEFAULT  Clause 38.0   Fixed:____________ Value related:____________ Time related:____________ "]
[]
[37,"A39 CANCELLATION  - CESSATION OF THE WORKSClause 39.0Clause 39.2 is amended by replacing the third sentence with the following:The employer shall pay the contractor all amounts due in terms of the contract for work completed at the date of termination or cancellation in terms of this clause 39.2, including retention money after deducting any amounts due to the employer. The employer will also return any guarantees still valid to the contractor after such cancellation.Clause 39.2.1 and 39.2.3 are amended by replacing with the following:No Clause Fixed:____________ Value related:____________ Time related:____________","Item",1,null,{"$f":"D134*E134","v":0}]
[]
[38,"A40 DISPUTE SETTLEMENT Clause 40.0 "]
[null,"Clause 40 is amended by retaining clause 40 in respect of dispute settlement to be retained in its original form not applying the state clause amendments. Fixed:____________ Value related:____________ Time related:____________ ","Item",1,null,{"$f":"D137*E137","v":0}]
[null,"SUBSTITUTE PROVISIONS"]
[]
[39,"A41 STATE CLAUSESClause 41.0Clause 41.1.3 is amended by replacing the definition for CONSTRUCTION PERIOD with the following:CONSTRUCTION PERIOD means a duration of 18 months commencing from the period the contractor takes possession of the sites to the date the certificate of practical completion is issued.Clause 41.1 is amended by the addition of the following: Notwithstanding any clause to the contrary, on cancellation of this agreement either by the employer or the contractor, or for any reason whatsoever, the contractor shall on written instruction, discontinue with the works on a stated date and withdraw himself from the site. The contractor shall not be entitled to refuse to withdraw from the works on the grounds of any lien or right of retention or on the grounds of any other right whatsoever.Fixed:____________ Value related:____________ Time related:____________","Item",1,null,{"$f":"D140*E140","v":0}]
[]
[null,"CONTRACT VARIABLES"]
[]
[40,"A42 PRE-TENDER INFORMATION  Clause 42.0  Tenderers are referred to the document C1.2 Contract Data for variables pertaining to this contract  Fixed:____________ Value related:____________ Time related:____________","Item",1,null,{"$f":"D144*E144","v":0}]
[]
[null,"THE SCHEDULE "]
[]
[null,"SECTION B: JBCC PRELIMINARIES"]
[]
[null,"B1.0  DEFINITIONS AND INTERPRETATION"]
[]
[41,"B1.1  Definitions and interpretation  See also clause A1.0 of Section A for additional and/or amended definitions which shall apply equally to this Section  Fixed:____________ Value related:____________ Time related:____________","Item",1,null,{"$f":"D152*E152","v":0}]
[]
[null,"B2.0  DOCUMENTS"]
[]
[42,"B2.1  Checking of documents  Fixed:____________ Value related:____________ Time related:____________ ","Item",1,null,{"$f":"D156*E156","v":0}]
[]
[43,"B2.2  Provisional bills of quantities  Fixed:____________ Value related:____________ Time related:____________","Item",1,null,{"$f":"D158*E158","v":0}]
[]
[44,"B2.3  Availability of construction documentation  Fixed:____________ Value related:____________ Time related:____________","Item",1,null,{"$f":"D160*E160","v":0}]
[]
[45,"B2.4  Interests of agents  Fixed:____________ Value related:____________ Time related:____________","Item",1,null,{"$f":"D162*E162","v":0}]
[]
[46,"B2.5  Priced documents  Fixed:____________ Value related:____________ Time related:____________","Item",1,null,{"$f":"D164*E164","v":0}]
[]
[47,"B2.6  Tender submission  Clause 2.6 is amended by replacing “JBCC Form of Tender” with “Form of Offer and Acceptance (C1.1)”.  Fixed:____________ Value related:____________ Time related:____________","Item",1,null,{"$f":"D166*E166","v":0}]
[]
[null,"B3.0  THE SITE"]
[]
[48,"B3.1  Defined works area  Fixed:____________ Value related:____________ Time related:____________","Item",1,null,{"$f":"D170*E170","v":0}]
[]
[49,"B3.2  Geotechnical investigation  Fixed:____________ Value related:____________ Time related:____________","Item",1,null,{"$f":"D172*E172","v":0}]
[]
[50,"B3.3  Inspection of the site  Fixed:____________ Value related:____________ Time related:____________","Item",1,null,{"$f":"D174*E174","v":0}]
[]
[51,"B3.4  Existing premises occupied  Fixed:____________ Value related:____________ Time related:____________","Item",1,null,{"$f":"D176*E176","v":0}]
[]
[52,"B3.5  Previous work - dimensional accuracy  Fixed:____________ Value related:____________ Time related:____________","Item",1,null,{"$f":"D178*E178","v":0}]
[]
[53,"B3.6  Previous work - defects  Fixed:____________ Value related:____________ Time related:____________","Item",1,null,{"$f":"D180*E180","v":0}]
[]
[54,"B3.7  Services - known  Fixed:____________ Value related:____________ Time related:____________","Item",1,null,{"$f":"D182*E182","v":0}]
[]
[55,"B3.8  Services - unknown  Fixed:____________ Value related:____________ Time related:____________","Item",1,null,{"$f":"D184*E184","v":0}]
[]
[56,"B3.9  Protection of trees  Fixed:____________ Value related:____________ Time related:____________","Item",1,null,{"$f":"D186*E186","v":0}]
[]
[57,"B3.10  Articles of value  Fixed:____________ Value related:____________ Time related:___________","Item",1,null,{"$f":"D188*E188","v":0}]
[]
[58,"B3.11  Inspection of adjoining properties  Fixed:____________ Value related:____________ Time related:____________","Item",1,null,{"$f":"D190*E190","v":0}]
[]
[null,"B4.0  MANAGEMENT OF CONTRACT"]
[]
[59,"B4.1  Management of the works  Fixed:____________ Value related:____________ Time related:____________","Item",1,null,{"$f":"D194*E194","v":0}]
[]
[60,"B4.2  Programme for the works  Fixed:____________ Value related:____________ Time related:____________","Item",1,null,{"$f":"D196*E196","v":0}]
[]
[61,"B4.3  Progress meetings  Fixed:____________ Value related:____________ Time related:____________","Item",1,null,{"$f":"D198*E198","v":0}]
[]
[62,"B4.4  Technical meetings  Fixed:____________ Value related:____________ Time related:____________","Item",1,null,{"$f":"D200*E200","v":0}]
[]
[63,"B4.5  Labour and plant records  Fixed:____________ Value related:____________ Time related:____________","Item",1,null,{"$f":"D202*E202","v":0}]
[]
[null,"B5.0  SAMPLES, SHOP DRAWINGS AND MANUFACTURERS' INSTRUCTIONS"]
[]
[64,"B5.1  Samples of materials  Fixed:____________ Value related:____________ Time related:____________","Item",1,null,{"$f":"D206*E206","v":0}]
[]
[65,"B5.2  Workmanship samples  Fixed:____________ Value related:____________ Time related:____________","Item",1,null,{"$f":"D208*E208","v":0}]
[]
[66,"B5.3  Shop drawings  Fixed:____________ Value related:____________ Time related:____________","Item",1,null,{"$f":"D210*E210","v":0}]
[{"$nulls":5},{"$f":"D211*E211","v":0}]
[67,"B5.4  Compliance with manufacturers instruction  Fixed:____________ Value related:____________ Time related:____________","Item",1,null,{"$f":"D212*E212","v":0}]
[]
[null,"B6.0  TEMPORARY WORKS AND PLANT"]
[]
[68,"B6.1  Deposits and fees  Fixed:____________ Value related:____________ Time related:____________","Item",1,null,{"$f":"D216*E216","v":0}]
[]
[69,"B6.2  Enclosure of the works  Fixed:____________ Value related:____________ Time related:____________","Item",1,null,{"$f":"D218*E218","v":0}]
[]
[70,"B6.3  Advertising  Fixed:____________ Value related:____________ Time related:____________","Item",1,null,{"$f":"D220*E220","v":0}]
[]
[71,"B6.4  Plant, equipment, sheds and offices  Fixed:____________ Value related:____________ Time related:____________","Item",1,null,{"$f":"D222*E222","v":0}]
[]
[72,"B6.5  Main notice board  Fixed:____________ Value related:____________ Time related:____________","Item",1,null,{"$f":"D224*E224","v":0}]
[]
[73,"B6.6  Subcontractors’ notice board  Fixed:____________ Value related:____________ Time related:____________","Item",1,null,{"$f":"D226*E226","v":0}]
[]
[null,"B7.0  TEMPORARY SERVICES"]
[]
[74,"B7.1  Location  Fixed:____________ Value related:____________ Time related:____________ ","Item",1,null,{"$f":"D230*E230","v":0}]
[]
[75,"B7.2  Water  Fixed:____________ Value related:____________ Time related:____________ ","Item",1,null,{"$f":"D232*E232","v":0}]
[]
[76,"B7.3  Electricity  Fixed:____________ Value related:____________ Time related:____________ ","Item",1,null,{"$f":"D234*E234","v":0}]
[]
[77,"B7.4  Telecommunication facilities  Fixed:____________ Value related:____________ Time related:____________","Item",1,null,{"$f":"D236*E236","v":0}]
[]
[78,"B7.5  Ablution facilities  Fixed:____________ Value related:____________ Time related:____________","Item",1,null,{"$f":"D238*E238","v":0}]
[]
[null,"B8.0  PRIME COST AMOUNTS"]
[]
[79,"B8.1  Responsibility for prime cost amounts  Fixed:____________ Value related:____________ Time related:____________","Item",1,null,{"$f":"D242*E242","v":0}]
[]
[null,"9.0  ATTENDANCE ON N/S SUBCONTRACTORS"]
[]
[80,"B9.1  General attendance  Fixed:____________ Value related:____________ Time related:____________","Item",1,null,{"$f":"D246*E246","v":0}]
[]
[81,"B9.2  Special attendance  Fixed:____________ Value related:____________ Time related:____________","Item",1,null,{"$f":"D248*E248","v":0}]
[]
[82,"B9.3  Commissioning - fuel, water and electricity  Fixed:____________ Value related:____________ Time related:____________","Item",1,null,{"$f":"D250*E250","v":0}]
[]
[null,"B10.  FINANCIAL ASPECTS"]
[]
[83,"B10.1  Statutory taxes, duties and levies  Fixed:____________ Value related:____________ Time related:____________","Item",1,null,{"$f":"D254*E254","v":0}]
[]
[84,"B10.2  Payment for preliminaries   Fixed:____________ Value related:____________ Time related:____________","Item",1,null,{"$f":"D256*E256","v":0}]
[]
[85,"B10.3  Adjustment of preliminaries    Fixed:____________ Value related:____________ Time related:____________","Item",1,null,{"$f":"D258*E258","v":0}]
[]
[86,"B10.4  Payment certificate cash flow  Fixed:____________ Value related:____________ Time related:____________","Item",1,null,{"$f":"D260*E260","v":0}]
[]
[null,"B11.  GENERAL"]
[]
[87,"B11.1  Protection of the works  Fixed:____________ Value related:____________ Time related:____________","Item",1,null,{"$f":"D264*E264","v":0}]
[]
[88,"B11.2  Protection / isolation of existing / sectionally occupied works  Fixed:____________ Value related:____________ Time related:____________","Item",1,null,{"$f":"D266*E266","v":0}]
[]
[89,"B11.3  Security of the works  Fixed:____________ Value related:____________ Time related:____________","Item",1,null,{"$f":"D268*E268","v":0}]
[]
[90,"B11.4  Notice before covering work  Fixed:____________ Value related:____________ Time related:____________ ","Item",1,null,{"$f":"D270*E270","v":0}]
[]
[91,"B11.5  Disturbance  Fixed:____________ Value related:____________ Time related:____________ ","Item",1,null,{"$f":"D272*E272","v":0}]
[]
[92,"B11.6  Environmental disturbance  Fixed:____________ Value related:____________ Time related:____________","Item",1,null,{"$f":"D274*E274","v":0}]
[]
[93,"B11.7  Works cleaning and clearing  Fixed:____________ Value related:____________ Time related:____________","Item",1,null,{"$f":"D276*E276","v":0}]
[]
[94,"B11.8  Vermin  Fixed:____________ Value related:____________ Time related:____________","Item",1,null,{"$f":"D278*E278","v":0}]
[]
[95,"B11.9  Overhand work  Fixed:____________ Value related:____________ Time related:____________","Item",1,null,{"$f":"D280*E280","v":0}]
[]
[96,"B11.10  Instruction manuals and guarantees  Fixed:____________ Value related:____________ Time related:____________","Item",1,null,{"$f":"D282*E282","v":0}]
[]
[97,"B11.11  As built information  Fixed:____________ Value related:____________ Time related:____________","Item",1,null,{"$f":"D284*E284","v":0}]
[]
[98,"B11.12  Tenant installations  Fixed:____________ Value related:____________ Time related:____________ ","Item",1,null,{"$f":"D286*E286","v":0}]
[]
[null,"B12.  SCHEDULE OF VARIABLES"]
[]
[99,"B12.1  Pre-tender information  Fixed:____________ Value related:____________ Time related:____________","Item",1,null,{"$f":"D290*E290","v":0}]
[]
[null,"This schedule contains all variables referred to in this document and is divided into pretender and post-tender categories. The pre-tender category must be completed in full and included in the tender documents. Both the pre-tender and post-tender categories form part of these Preliminaries."]
[]
[null,"Spaces requiring information must be filled in, shown as “not applicable” or deleted and not left blank. Where choices are offered, the non-applicable items are to be deleted. Where insufficient space is provided the information should be annexed hereto and cross-referenced to the applicable clause of the schedule. Key cross reference clauses are italicized in [ ] brackets"]
[]
["12.1","PRE TENDER INFORMATION 12.1.1"]
[null,"Provisional Bills of Quantities [2.2]"]
[null,"The quantities are provisional: YES "]
[]
["12.1.2","Availability of construction documentation [2.3]"]
[null,"Construction of documentation is complete: NO"]
["12.1.3","Interest of agents [2.4]"]
[null,"Details: See Contract Data Part C/1 of Tender"]
["12.1.4","Defined works area [3.1]"]
[null,"Details:  As per Tender Data"]
["12.1.5","Geotechnical investigation [3.2]"]
[null,"Details: NONE"]
["12.1.6","Existing premises occupied [3.4]"]
[null,"Specific requirements: N/A"]
["12.1.7","Previous work - dimensional accuracy [3.5]"]
[null,"Details: To be checked on site by contractor prior to building operations."]
["12.1.8","Previous work - defects [3.6}"]
[null,"Details: To be checked on site by contractor prior to building operations."]
["12.1.9","Services - known [3.7]"]
[null,"Details: Should the contractor encounter any existing services such as underground cables, pipes or sewer during the execution of the works he shall notify the  principal agent immediately and suspend all affected work in the immediate vicinity until instruction to proceed has been given by the principal agent. "]
["12.1.10","Protection of trees [3.9]"]
[null,"Specific requirements: All trees on the site outside of the position of the proposed structure must be protected."]
["12.1.11","Inspection of adjoining properties [3.11]"]
[null,"Specific requirements: The contractor must inspect adjoining properties and immediately bring to the notice of the Principal Agent of any consequences that may arise from the building works."]
["12.1.12","Enclosure of the works [6.2}"]
[null,"Specific requirements: The contractor shall enclose the works as required by the Occupational Health and Safety Act."]
["12.1.13","Offices [6.4.3]"]
[null,"Specific requirements: The contractor shall provide, maintain and remove on completion of the works an office for the exclusive use of the principal agent, minimum size 4 x 3 x 3m high internally, suitably insulated and ventilated, provided with electric lighting and fitted with boarded floor, desk, chairs, drawing stool, drawing board and lock-up drawers for drawings. The office shall be kept clean and fit for use at all times."]
["12.1.14","Main notice board[6.5]"]
[null,"Specific requirements:The contractor shall provide, erect where directed, maintain and remove on completion of the works an DRPW compliant notice board as detailed by the Principal Agent.The board shall be securely fixed to hoarding where hoarding is provided, or fixed to and including a suitable supporting structure of timber or tubular posts and braces. Sub-contractor's individual boards will be allowed on the site subject to the written approval of the Representative/Agent."]
["12.1.15","Subcontractors' notice board [6.6]"]
[null,"Specific requirements: NO"]
["12.1.16","Water [7.2}"]
[null,"Option A (by contractor) (YES)"]
[null,"Option B (by employer - free of charge when available ) (NO)"]
[null,"Option C (By employer - metered) (NO)"]
["12.1.17","Electricity [7.3]"]
[null,"Option A (by contractor) (YES)"]
[null,"Option B (by employer - free of charge when available ) (NO)"]
[null,"Option C (By employer - metered) (NO)"]
["12.1.18","Telecommunications [7.4]"]
[null,"Telephone (YES)"]
[null,"Fascimile (NO)"]
[null,"E-mail (YES)"]
["12.1.19","Ablution facilities [7.5}"]
[null,"Option A (by contractor) (YES)"]
[null,"Option B (by employer) (NO)"]
["12.1.20","Protection of existing/sectionally occupied works [11.2]"]
[null,"Protection is required (Only when existing buildings) (YES)"]
["12.1.21","Special attendance  [9.2]"]
[null,"Electrical sub-contractor  (1) details: Site Meetings"]
["12.1.22","Protection of works [11.1]",null,null,"  "]
[null,"Specific requirements:"]
["12.1.23","Disturbance [11.5]"]
[null,"The contractor shall keep the site, structures, etc well watered during operations to prevent dust and shall provide and erect and remove on completion of the works all necessary temporary dust screens all to the satisfaction of the principal agent "]
[null,"The contractor shall protect the works for the duration of the contract."]
["12.1.24","Environmental disturbance  [11.6]"]
[null,"Specific requirements:  "]
["12.2","POST-TENDER INFORMATION"]
[null,"Specific requirements: None"]
["12.2.1","Payment of preliminaries [10.2]"]
[null,"Option A (prorated)(YES)  Option B (calculates) )(NO)"]
["12.2.2","Adjustment of preliminaries [10.3]"]
[null,"Option A (three categories) (YES) Option B (detailed breakdown) (NO)"]
["12.2.3","Additional agreed preliminaries items "]
[null,"Details:N/A"]
[null,"SCHEDULE OF SUPPLEMENTARY INFORMATION"]
[]
[null,"NOTE:"]
[]
[null,"The information listed below is in respect of certain clauses in the Preliminaries, requiring the supplementary information"]
[]
[null,"Amount of insurance against injury to person or property in respect of any single occurrence RAmount of insurance against removal of support to adjoining properties in respect of any single accurance Not specifically prescribed"]
[]
[null,"Contract period  -        24 (Twenty four) months"]
[]
[null,"The date for site handover :-  TBA"]
[]
[null,"Amount of penalty per day on which the completion of the works may be in arrears:  R1.25 per R100 of contract value per day (Excluding VAT)"]
[]
[null,"Specification of Materials and Methods to be used - PW 371, Edition 2.1 July 2014"]
[]
[null,"Edition of Standard System of measuring building work: Seventh Edition including the latest amendments"]
[]
[null,"Section C contains specific preliminary items which apply to this contract except where N/A (Not Applicable) appears against an item"]
[]
[null,"SECTION C: SPECIFIC PRELIMINARIES"]
[]
[100,"C1 CONTRACT DRAWINGS  The drawings issued with the tender documents do not comprise the complete set but serve as a guide only for tendering purposes and for indicating the scope of the work to enable the tenderer to acquaint himself with the nature and extent of the works and the manner in which they are to be executed  Should any part of the drawings not be clearly intelligible to the tenderer he shall, before submitting his tender, obtain clarification in writing from the principal agent  Fixed: ____________ Value related:____________ Time related:____________","Item",1,null,{"$f":"D384*E384","v":0}]
[]
[101,"C2 GENERAL PREAMBLES  The document “Specification of Materials and Methods to be used (PW371)” is obtainable on request from the head office and all regional offices of the Department, and shall be read in conjunction with the bills of quantities and be referred to for the full descriptions of work to be done and materials to be used  Fixed: ____________ Value related:____________ Time related:____________","Item",1,null,{"$f":"D386*E386","v":0}]
[]
[102,"C3 TRADE NAMES  Wherever a trade name for any product has been described in the bills of quantities, the tenderer’s attention is drawn to the fact that any other product of equal quality may be used subject to the written approval of the principal agent being obtained prior to the closing date for submission of tenders  If prior written approval for an alternative product is not obtained, the product described shall be deemed to have been tendered for  Fixed: ____________ Value related:____________ Time related:____________","Item",1,null,{"$f":"D388*E388","v":0}]
[]
[103,"C4 IMPORTED MATERIALS AND EQUIPMENT  Where imported items are listed in the tender documents, the tenderer shall provide all the information called for, failing which the price of any such item, materials or equipment shall be excluded from currency fluctuations. (refer to Schedule of Imported Materials and Equipment (DPW23EC) to be completed by tenderer)  Notwithstanding any provisions elsewhere regarding the adjustment of contract prices, the price of any item, material or equipment listed in terms of this clause shall be excluded from the Contract Price Adjustment Provisions (if applicable)  Fixed: ____________ Value related:____________ Time related:____________","Item",1,null,{"$f":"D390*E390","v":0}]
[]
[104,"C5 VIEWING  THE SITE IN SECURITY AREAS  The site is situated in a security area and the tenderer must arrange with the unit commander or other responsible officer to obtain permission to enter the site for tendering purposes  Fixed: ____________ Value related:____________ Time related:____________ ","Item",1,null,{"$f":"D392*E392","v":0}]
[]
[105,"C6 COMMENCEMENT OF WORKS IN SECURITY AREAS  As the works falls within a security area the contractor must give the unit commander or other responsible officer notice before commencement of the works. Should the contractor fail to make such arrangements, admission to the site may be refused and any additional costs will be for the contractor's account  Fixed: ____________ Value related:____________ Time related:____________ ","Item",1,null,{"$f":"D394*E394","v":0}]
[]
[106,"C7 ENTRANCE PERMITS TO SECURITY AREAS  As the works falls within a security area the contractor shall obtain entrance permits for his personnel and workmen entering the area and shall comply with all regulations and instructions which may be issued from time to time regarding the protection of persons and property under the control of the Defence Force, Police or chief security officer  Fixed: ____________ Value related:____________ Time related:____________ ","Item",1,null,{"$f":"D396*E396","v":0}]
[]
[107,"C8 SECURITY CHECK OF PERSONNEL  The principal agent may require the contractor to have his personnel and workmen, or a certain number of them, security classified  In the event of the principal agent requesting the removal of a person or persons from the works for security reasons, the contractor shall do so forthwith and shall thereafter ensure that such person or persons are denied access to the works and the site and/or to any document or information relating to the works  Fixed: ____________ Value related:____________ Time related:____________ ","Item",1,null,{"$f":"D398*E398","v":0}]
[]
[108,"C9 PROHIBITION ON TAKING OF PHOTOGRAPHS  In terms of article 119 of the defence Act, 44 of 1957, it is prohibited to sketch or to take photographs of any military site or installation or any building or civil works thereon or to be in possession of a camera or other apparatus used for taking of photographs except when authorized thereto by or on behalf of the Minister  The same prohibition is also applicable to all correctional institutions in terms of article 44.1(e) of the Correctional Services Act 8 of 1959  Fixed: ____________ Value related:____________ Time related:____________ ","Item",1,null,{"$f":"D400*E400","v":0}]
[]
[null,"C10 HIV/AIDS AWARENESS  It is required of the contractor to thoroughly study the HIV/AIDS Specification (PW 1544) of the Department that must be read together with and is deemed to be incorporated under this Section of the Bills of Quantities. Provision for pricing of HIV/AIDS awareness is made under items C10.1 to C10.5 hereafter and it is explicitly pointed out that all requirements of the aforementioned specification are deemed to be priced hereunder, as the said items represent the only method of measurement and no additional items or extras to the contract in this regard shall be entertained. Also see Part C3.6 Social and Economic Deliverables F1  The contractor must take note that compliance with the HIV/AIDS Specification is compulsory. In the event of partial or total non-compliance, the principal agent, notwithstanding the provisions of Clause A 31 of “Section 1: Preliminaries (Section A)” or any other clause to the contrary, reserves the right to delay issuing any progress payment certificate until the contractor provides satisfactory proof of compliance. The contractor shall not be entitled to any compensation of whatsoever nature, including interest, due to such delay of payment. "]
[]
[109,"C10.1 AWARENESS CHAMPION  Selection, appointment, briefing and making available of an Awareness Champion including provision of all relevant services, all in accordance with the HIV/AIDS Specification  Fixed:_____________ Value related:____________ Time related:______________","Item",1,null,{"$f":"D404*E404","v":0}]
[]
[110,"C10.2 AWARENESS WORKSHOPS  Selection and appointment of a competent Service Provider approved by the principal agent, provision of a Service Provider Workshop Plan and a suitable venue, conducting of awareness workshops by means of traditional and/or modern multi-media techniques, including follow-up courses, making available all tuition material and performing assessment procedures, all in accordance with the HIV/AIDS Specification  Fixed:_____________ Value related:____________ Time related:______________","Item",1,null,{"$f":"D406*E406","v":0}]
[]
[111,"C10.3 POSTERS, BOOKLETS, VIDEOS, ETC.  Provision, displaying, maintaining and replacing when necessary of four plastic laminated posters, booklets and educational videos, etc. for the duration of the construction period, all in accordance with the HIV/AIDS Specification  Fixed:_____________ Value related:____________ Time related:______________","Item",1,null,{"$f":"D408*E408","v":0}]
[]
[112,"C10.4 ACCESS TO CONDOMS  Provision and maintenance of condom dispensers fixed in position, including male and female condoms, replenishing male and female condoms on a daily basis as required for the duration of the construction period, all in accordance with the HIV/AIDS Specification  Fixed:_____________ Value related:____________ Time related:______________","Item",1,null,{"$f":"D410*E410","v":0}]
[]
[113,"C10.5 MONITORING  Monitoring HIV/AIDS awareness of workers, providing the principal agent with access to information including making available all reports, thoroughly completed and reflecting the correct information, for the duration of the construction period and close out, all in accordance with the HIV/AIDS Specification  Fixed:_____________ Value related:____________ Time related:______________","Item",1,null,{"$f":"D412*E412","v":0}]
[]
[114,"C11 OCCUPATIONAL HEALTH AND SAFETY ACT  The contractor shall comply with the requirements set out in the Construction Regulations, 2014 issued under the Occupational Health and Safety Act, 1993 (Act No. 85 of 1993).  It is required of the contractor to thoroughly study the Health and Safety Specification that must be read together with and is deemed to be incorporated under this Section of the bills of quantities/lump sum document.  The contractor must take note that compliance with the Occupational Health and Safety Act, Construction Regulations and Health and Safety Specification is compulsory.  In the event of partial or total non-compliance, the principal agent, notwithstanding the provisions of clause A3.10 of Section A or any other clause to the contrary, reserves the right to delay issuing any progress payment certificate until the contractor provides satisfactory proof of compliance.  The contractor shall not be entitled to any compensation of whatsoever nature, including interest, due to such delay of payment.  Provision for pricing of the Occupational Health and Safety Act, Construction Regulations, Health and Safety Specification and Project Specific Plan is made under this clause and it is explicitly pointed out that all requirements of the aforementioned are deemed to be priced hereunder and no additional claims in this regard shall be entertained.  Note: The pricing of this Clause shall include but not limited to items in \"Annexure B - Health & Safety Bill of Quantities\" within Book 2 of the Tender Document.   Fixed:_____________ Value related:____________ Time related:______________","Item",1,null,{"$f":"D414*E414","v":0}]
[]
[null,"C11.1  COVID-19 SPECIFIC REQUIREMENTS"]
[]
[115,"All legislative requirements relating to Covid-19 is to be priced under this clause - refer to the attached Health and Safety COVID related Specifications.  Based on a 24 months Covid-19 restriction period (Provisional)  Note: This clause will be excluded from the Fixed, Value and Time-related adjustments.","Item",1,null,{"$f":"D418*E418","v":0}]
[]
[116,"C12 SOCIAL AND ECONOMIC DELIVERABLES IN CONSTRUCTION WORKS CONTRACTS  The contractor shall thoroughly study and comply with the requirements and specification data set out in the CIDB B.U.I.L.D Programme for Standard for Indirect Targeting for Enterprise Development through construction works and Standard for Skills Development though infrastructure projects.  Fixed:_____________ Value related:____________ Time related:______________  ","Item",1,null,{"$f":"D420*E420","v":0}]
[]
[117,"C13 LOCAL BUILDING MATERIALS  Preference shall be given to the supply of materials produced or manufactured in the Gauteng Province provided that:  (a) Such materials comply in all respects with the specific requirements of the \"Model Preambles For Trades\".  (b) The availability of such materials shall not adversely affect the desired progress of the specific works.  (c) The use of such materials shall not constitute grounds for any claim for increased cost in respect thereof.  Fixed:_____________ Value related:____________ Time related:______________  ","Item",1,null,{"$f":"D422*E422","v":0}]
[]
[118,"C14 LOCAL EMPLOYMENT GENERATION  It is an explicit condition of this tender that the Contractors labour force must comprise of persons normally resident in the locality of the works (local labour) and hence must be employed on this contract.  The contractor will not be allowed to import skilled personnel if the required skills exist within the local community. The contractor will however be allowed to make use of his own permanently employed machine operators and drivers.  Provided, however, that should adequate and appropriate labour not be available within the locality, other labour may be employed subject to satisfactory proof that every reasonable endeavour has been made to employ labour from the immediate locality. The contractor shall identify the local community leaders with the purpose of negotiating with them regarding the utilisation of local labour in the construction process.  The specific employment goals, which are to be met for this project, are as follows:  (a) A minimum of 70% local labour employment  Target Area 1: Ekurhuleni Metropolitan Municipality Target Area 2: Ekurhuleni South District  (b) The Contractor, inclusive of subcontractors and service providers, is allowed to deploy a maximum of 30% seconded (local & non-local labour) on the Project.  Fixed:_____________ Value related:____________ Time related:______________  ","Item",1,null,{"$f":"D424*E424","v":0}]
[]
[null,"C15.1 SMME SPECIFICATIONS  The Tenderer is encouraged to target works that can be performed by local enterprises as prime contractors, sub-contractors or suppliers. This target must be based on the value of work to be performed. The Local Enterprise Participation goal must be calculated in relation to every entity involved in the project.  Management staff from other areas for the duration of the project will not qualify as local. Plant and equipment brought from other areas will not qualify as local.  Material and plant sourced from local suppliers or agencies will qualify as local. A supplier that has been established locally by a Tenderer solely for the purpose of servicing the project will not qualify.  The contractor shall ensure full achievement of the deliverables through the construction period of this construction contract. "]
[]
[119,"C15.2 SMME CONSTRUCTION MENTOR  Provision for pricing for the employment, on a full-time basis for the duration of the contract, a SMME Construction Mentor. All costs associated with the execution of the SMME Construction Mentor duties, provision of office facilities and tools of trade are deemed to be priced hereunder. No additional claims in this regard shall be entertained. The above is in strict accordance with Section D 11.1 of the Specification for the Employment of SMME Sub Contractors (SES 006) and all costs should be included in this item.  Fixed:_____________ Value related:____________ Time related:______________","Item",1,null,{"$f":"D428*E428","v":0}]
[]
[null,"WAIVER OF LIEN"]
[]
[120,"The tenderers are notified that he/she shall sign \"Waiver of Lien\" together with the JBCC Principal Building Agreement Edition 4.1 Code 2101 March 2005. ","Item",1,null,{"$f":"D432*E432","v":0}]
[]
[null,"Bill Total",{"$nulls":3},{"$f":"SUM(F36:F432)","v":0},{"$f":"SUM(F2:F432)","v":0}]

{"sheet":"BUILDING WORKS","index":2,"n_rows":2020,"n_cols":12,"rows_kept":2020}
["COUNTER","ISC","SECTION","BILL","PAGE NO","ITEM NO","DESCRIPTION","UNIT","QUANTITY","RATE","AMOUNT"]
[200,6392,2,1,45,null,"BILL NO. 1  EARTHWORKS (PROVISIONAL)"]
[]
[201,14929,2,1,45,null,"PREAMBLES"]
[]
[202,6393,2,1,45,null,"The Tenderer is referred to the relevant Clauses in the separate document Model Preambles for Trades (2008 Edition), the Department of Public Works document No. PW 371 Specification of Materials and Methods to be used and to the Supplementary Preambles which are incorporated hereunder. "]
[]
[203,6394,2,1,45,null,"SUPPLEMENTARY PREAMBLES"]
[]
[204,11482,2,1,45,null,"Proprietary products in descriptions:"]
[]
[205,11483,2,1,45,null,"Proprietary products shall be used as specified. Substitute products of similar quality and specification may only be used with prior approval by the Principal Agent."]
[]
[206,11484,2,1,45,null,"Nature of material to be excavated:"]
[]
[207,11485,2,1,45,null,"The material to be excavated is assumed to be predominantly of a composition that will allow excavation in \"earth\" as specified, but including a percentage of excavation in \"soft rock\" and \"hard rock\"."]
[]
[208,6397,2,1,45,null,"A soils investigation has been carried out on site by the Engineer and the report is available from them. Descriptions of excavations shall be deemed to include all ground conditions classifiable as earth described in the above report and where conditions of a more difficult character are indicated these are separately measured."]
[]
[209,11486,2,1,45,null,"Carting away of excavated material:"]
[]
[210,11487,2,1,45,null,"Descriptions of carting away of excavated material shall be deemed to include loading excavated material onto trucks directly from the excavations, or alternatively, from stock piles situated on the building site."]
[]
[211,11488,2,1,46,null,"Dewatering of excavations:"]
[]
[212,11489,2,1,46,null,"The Contractor shall allow for removing seepage and other water from subterranean sources from the excavations by pumping, baling or otherwise. Accurate records of all such dewatering shall be kept to determine the total volume of water so removed and a clear distinction shall be made between water from subterranean sources and other water."]
[]
[213,11490,2,1,46,null,"Density testing on filling:"]
[]
[214,11491,2,1,46,null,"Rates for filling, etc. shall include for all density and soil type testing to prove that the specified compaction is achieved. When additional testing is done on instruction of the  Principal Agent and these tests are successful, they will be paid for additionally."]
[]
[215,11492,2,1,46,null,"Imported fill:"]
[]
[216,11493,2,1,46,null,"Filling and bedding to trenches etc. to be in compliance with SABS 1200 DB and LB respectively"]
[]
[217,10409,2,1,46,null,"EXCAVATION, FILLING, ETC. OTHER THAN BULK"]
[]
[218,10410,2,1,46,null,"Excavation in earth not exceeding 2m deep:"]
[]
[219,10414,2,1,46,1,"Trenches and holes.","m3",3455,null,{"$f":"J40*I40","v":0}]
[]
[220,10416,2,1,46,null,"Extra over trench and hole excavations in earth for excavation in:"]
[]
[221,10417,2,1,46,2,"Soft rock.","m3",199,null,{"$f":"J44*I44","v":0}]
[]
[222,10418,2,1,46,3,"Hard rock.","m3",103,null,0]
[]
[223,10419,2,1,46,null,"Extra over all excavations for carting away:"]
[]
[224,10420,2,1,46,4,"Surplus material from excavations, stock piles e.t.c to a dumping site to be located by the Contractor.","m3",2056,null,0]
[]
[225,10422,2,1,46,null,"Risk of collapse of excavations:"]
[]
[226,10423,2,1,46,5,"Sides of trenches and holes excavation not exceeding 1500mm deep.","m2",9118,null,0]
[]
[227,10424,2,1,47,null,"Keeping excavations free of water:"]
[]
[228,10425,2,1,47,6,"Keeping excavations free of all water other than subterranean water.","Item",1,null,{"$f":"J58*I58","v":0}]
[]
[229,13329,2,1,47,null,"EARTH FILLING, ETC."]
[]
[230,13330,2,1,47,null,"Earth filling obtained from the excavations and / or prescribed stock piles on site compacted to 95% Mod. AASHTO density:"]
[]
[231,13331,2,1,47,7,"Backfilling to trenches, holes, etc.","m3",1399,null,0]
[]
[232,10428,2,1,47,null,"Earth Filling Selected And Supplied By The Contractor, Deposited In Layers Not Exceeding 150mm Thick, Watered And Consolidated In:"]
[]
[233,13333,2,1,47,8,"G5 material to 93% modified AASHTO density under footings, etc. ","m3",371,null,0]
[]
[234,15319,2,1,47,9,"G7 material to 90% modified AASHTO density under footings, etc. ","m3",601,null,0]
[]
[235,13412,2,1,47,null,"Sand filling supplied by the contractor:"]
[]
[236,13413,2,1,47,10,"Under surface beds.","m3",579,null,0]
[]
[237,10432,2,1,47,11,"Under aprons, V-channels, e.t.c.","m3",65,null,0]
[]
[238,13335,2,1,47,null,"Compaction of surfaces:"]
[]
[239,13336,2,1,47,12,"Compaction of ground surface under floors etc. including scarifying for a depth of 150mm, breaking down oversize material, adding suitable material where necessary and compacting to 93% Mod AASHTO density.","m2",11580,null,0]
[]
[240,10438,2,1,47,null,"Prescribed Density Tests As Check On Contractors Tests Included In Filling Above:"]
[]
[241,10439,2,1,47,13,"Modified AASHTO density test and deliver the results to the Principal Agent within 24 hours of the tests being completed.","No",48,null,0]
[]
[242,10440,2,1,48,null,"SOIL POISONING"]
[]
[243,10442,2,1,48,null,"SABS Approved brand of anti-termite soil poison in accordance with SANS 5859, with 50mm sand over poison applied by a Registered Pest Control Company and guaranteed against termite infestation for ten years:"]
[]
[244,15318,2,1,48,14,"Under floors etc.","m2",11580,null,0]
[]
[245,10444,2,1,48,15,"To bottoms and sides of trenches etc","m2",11377,null,0]
[{"$nulls":11},{"$f":"SUM(K40:K92)","v":0}]
[246,0,2,1]
[]
[247,1401,2,2,50,null,"BILL NO. 2  CONCRETE, FORMWORK AND REINFORCEMENT"]
[]
[248,14930,2,2,50,null,"PREAMBLES"]
[]
[249,6440,2,2,50,null,"The Tenderer is referred to the relevant Clauses in the separate document Model Preambles for Trades (2008 Edition), the Department of Public Works document No. PW 371 Specification of Materials and Methods to be used and to the Supplementary Preambles which are incorporated hereunder. "]
[]
[250,11470,2,2,50,null,"SUPPLEMENTARY PREAMBLES"]
[]
[251,11471,2,2,50,null,"Proprietary products in descriptions:"]
[]
[252,11472,2,2,50,null,"Proprietary products shall be used as specified. Substitute products of similar quality and specification may only be used with prior approval by the Principal Agent."]
[]
[253,11473,2,2,50,null,"Cost of tests:"]
[]
[254,11474,2,2,50,null,"The costs of making, storing and testing of concrete test cubes as required under clause 7 'Tests' of SABS 1200 G shall include the cost of providing cube moulds necessary for the purpose, for testing costs and for submitting reports on the tests to the Architect. The testing shall be undertaken by an independent firm or institution nominated by the Contractor to the approval of the Architect. (Test cubes are measured separately)."]
[]
[255,11475,2,2,50,null,"Formwork:"]
[]
[256,11476,2,2,50,null,"Descriptions of formwork shall be deemed to include use and waste only (except where described as left in or permanent), for fitting together in the required forms, wedging, plumbing and fixing to true angles and surfaces as necessary to ensure easy release during stripping and for reconditioning as necessary before re-use."]
[]
[257,11477,2,2,51,null,"The vertical strutting shall be carried down to such construction as is sufficiently strong to afford the required support without damage and shall remain in position until the newly constructed work is able to support itself."]
[]
[258,11478,2,2,51,null,"Formwork to soffits of solid slabs etc., shall be deemed to be to slabs not exceeding 250mm thick unless otherwise described."]
[]
[259,11479,2,2,51,null,"Formwork to sides of bases, pile caps, ground beams, etc., will only be measured where it is prescribed by the Engineer for design reasons.  Formwork necessitated by irregularity or collapse of excavated faces will not be measured and the cost thereof shall be deemed to be included in the allowance for taking the risk of collapse of the sides of the excavations, provision for which is made in Earthworks."]
[]
[260,16593,2,2,51,null,"PRECAST CONCRETE"]
[]
[261,16594,2,2,51,1,"220mm Diameter precast concrete bollards installed to manufacturer's detail at max 1.5mm centers. Finish to Architect's specification.","No",9,null,{"$f":"I124*J124","v":0}]
[]
[262,6450,2,2,51,null,"REINFORCED CONCRETE"]
[]
[263,15703,2,2,51,null,"25 Mpa/13mm. concrete:"]
[]
[264,15704,2,2,51,2,"Infill to cavity walls","m3",254,null,{"$f":"I130*J130","v":0}]
[]
[265,16613,2,2,51,3,"Infill to brick columns.","m3",4,null,0]
[]
[266,16086,2,2,51,null,"REINFORCED CONCRETE CAST AGAINST EXCAVATED SURFACES"]
[]
[267,6451,2,2,51,null,"25 MPa/19mm. Concrete:"]
[]
[268,15943,2,2,51,4,"Bases.","m3",6,null,0]
[]
[269,13228,2,2,51,5,"Strip footings.","m3",595,null,0]
[]
[270,6453,2,2,51,6,"Surface beds on waterproofing.","m3",1158,null,0]
[]
[271,6452,2,2,51,7,"Aprons / V-Channels.","m3",130,null,0]
[]
[272,9937,2,2,52,null,"REINFORCED CONCRETE CAST ON FORMWORK"]
[]
[273,9938,2,2,52,null,"25MPa/20mm concrete:"]
[]
[274,9939,2,2,52,8,"Slabs, including beams and inverted beams.","m3",664,null,0]
[]
[275,18613,2,2,52,9,"Stairs including landings, beams and inverted beams.","m3",17,null,0]
[]
[276,18631,2,2,52,null,"30 MPa/19mm. Concrete: "]
[]
[277,18632,2,2,52,10,"Columns in foundations.","m3",4,null,0]
[]
[278,18633,2,2,52,11,"Columns","m3",6,null,0]
[]
[279,6454,2,2,52,null,"TEST BLOCKS."]
[]
[280,6455,2,2,52,null,"Test blocks:"]
[]
[281,6456,2,2,52,12,"Making and testing set of three 150mm x 150mm x 150mm concrete strength test cubes (Provisional).","Sets",85,null,0]
[]
[282,9812,2,2,52,null,"CONCRETE SUNDRIES"]
[]
[283,6458,2,2,52,null,"Finishing top surfaces of concrete smooth with a wood float:"]
[]
[284,6459,2,2,52,13,"Apron / V-Channels.","m2",1296,null,0]
[]
[285,6461,2,2,52,14,"Surface beds, slabs, etc.","m2",13971,null,0]
[]
[286,19081,2,2,52,null,"40mm Thick Non-combustible lightweight insulation board fitted on underside of concrete surfaces to satisfy manufacturers requirements"]
[]
[287,19082,2,2,52,15,"Surface beds on waterproofing","m2",11580,null,0]
[]
[288,6462,2,2,52,null,"ROUGH FORMWORK (DEGREE OF ACCURACY II)"]
[]
[289,6463,2,2,52,null,"Rough formwork to sides:"]
[]
[290,6464,2,2,52,16,"Edges, risers, ends and reveals not exceeding 300mm high or wide.","m",1977,null,{"$f":"I182*J182","v":0}]
[]
[291,13383,2,2,53,null,"Rough Formwork to Sides and Soffits:"]
[]
[292,9942,2,2,53,17,"Soffits of slabs propped up exceeding 1500mm but not exceeding 3500mm high.","m2",4096,null,0]
[]
[293,9948,2,2,53,18,"Beams propped up exceeding 1500mm and not exceeding 3500mm high.","m2",122,null,0]
[]
[294,16605,2,2,53,19,"Beams propped up exceeding 5000mm and not exceeding 6500mm high. ","m2",232,null,{"$f":"I190*J190","v":0}]
[]
[295,18634,2,2,53,20,"Landings. ","m2",27,null,0]
[]
[296,18635,2,2,53,21,"Stairs with sloping soffits. ","m2",35,null,0]
[]
[297,18636,2,2,53,null,"SMOOTH FORMWORK (DEGREE OF ACCURACY II)"]
[]
[298,18637,2,2,53,null,"Smooth formwork to sides:"]
[]
[299,18638,2,2,53,22,"Steps","m2",14,null,0]
[]
[300,18639,2,2,53,23,"Rectangular columns in foundations","m2",2,null,0]
[]
[301,18640,2,2,53,24,"Rectangular columns","m2",5,null,0]
[]
[302,18641,2,2,53,25,"Edges, risers, ends and reveals not exceeding 300mm high or wide. ","m",74,null,0]
[]
[303,13232,2,2,53,null,"MOVEMENT JOINTS ETC."]
[]
[304,13236,2,2,53,null,"Isolation joint with closed cell foam or compressible softboard between vertical concrete and brick surfaces sealed with 10mm x 10mm Sikaflex-pro 2HP or similar approved: "]
[]
[305,13237,2,2,53,26,"10mm Joint not exceeding 300mm high.","m",1850,null,0]
[]
[306,15532,2,2,54,null,"Expansion joints with closed cell foam or compressible softboard between vertical concrete surfaces filled with 10mm x 10mm Sikaflex-pro 2HP or similar approved:  "]
[]
[307,15533,2,2,54,27,"10mm Joint not exceeding 300mm high. ","m",1453,null,0]
[]
[308,15534,2,2,54,null,"Saw cut joints ream out to 6 x 20mm and sealed with 15 x 6 sikaflex-pro 2HP sealant on polychord backing strip;"]
[]
[309,15535,2,2,54,28,"3.5 x 30mm Saw cut joints on top of concrete.","m",541,null,0]
[]
[310,6470,2,2,54,null,"REINFORCEMENT (PROVISIONAL) "]
[]
[311,6471,2,2,54,null,"Fabric reinforcement:"]
[]
[312,6473,2,2,54,29,"Type 193 fabric reinforcement in concrete apron channels, etc.","m2",1296,null,0]
[]
[313,13238,2,2,54,30,"Type 193 fabric reinforcement in surface beds, slabs etc.","m2",13971,null,0]
[]
[314,15524,2,2,54,null,"Mild steel reinforcement to structural concrete work"]
[]
[315,15525,2,2,54,31,"10mm. diameter bar","t",1.8,null,0]
[]
[316,6474,2,2,54,null,"High tensile steel reinforcement to structural concrete work:"]
[]
[317,6475,2,2,54,32,"10mm. diameter bar","t",15.64,null,0]
[]
[318,15527,2,2,54,33,"12mm. diameter bar","t",61.21,null,0]
[]
[319,15528,2,2,54,34,"16mm. diameter bar","t",7.62,null,0]
[{"$nulls":11},{"$f":"SUM(K124:K240)","v":0}]
[320,0,2,2]
[]
[321,1387,2,3,56,null,"BILL NO. 3  MASONRY"]
[]
[322,14931,2,3,56,null,"PREAMBLES"]
[]
[323,1237,2,3,56,null,"The Tenderer is referred to the relevant Clauses in the separate document Model Preambles for Trades (2008 Edition), the Department of Public Works document No. PW 371 Specification of Materials and Methods to be used and to the Supplementary Preambles which are incorporated hereunder. "]
[]
[324,11459,2,3,56,null,"SUPPLEMENTARY PREAMBLES"]
[]
[325,11460,2,3,56,null,"Proprietary products in descriptions:"]
[]
[326,11461,2,3,56,null,"Proprietary products shall be used as specified. Substitute products of similar quality and specification may only be used with prior approval by the Principal Agent."]
[]
[327,11462,2,3,56,null,"Sizes in descriptions:"]
[]
[328,11463,2,3,56,null,"Where sizes in descriptions are given in brick units, 'one brick' shall represent the length and 'half brick' the width of a brick."]
[]
[329,11464,2,3,56,null,"Face bricks:"]
[]
[330,11465,2,3,56,null,"Bricks shall be ordered timeously to obtain uniformity in size and colour."]
[]
[331,11466,2,3,56,null,"Pointing:"]
[]
[332,11467,2,3,56,null,"Descriptions of recessed pointing to fair face brickwork and face brickwork shall be deemed to include square recessed, hollow recessed, weathered pointing, etc."]
[]
[333,11468,2,3,56,null,"Samples, etc:"]
[]
[334,11469,2,3,56,null,"Rates for brickwork, faced brickwork, etc shall include for all required samples."]
[]
[335,13197,2,3,57,null,"BRICKWORK IN FOUNDATIONS "]
[]
[336,13198,2,3,57,null,"Brickwork of NFP bricks (14 MPa nominal compressive strength) in Class I mortar:"]
[]
[337,15942,2,3,57,1,"Brick columns.","m3",31,null,{"$f":"J276*I276","v":0}]
[]
[338,13200,2,3,57,2,"One brick walls.","m2",338,null,{"$f":"J278*I278","v":0}]
[]
[339,13202,2,3,57,3,"330mm Hollow walls of two half brick skins including wire ties, filled with concrete (concrete elsewhere measured).","m2",2307,null,0]
[]
[340,13395,2,3,57,null,"Allow The Prime Cost of R8800.00 Per Thousand Face Bricks Delivered to site in stretcher bond pointed with 6mm square deep recessed horizontal and vertical joints including labour, profit, wastage etc: "]
[]
[341,13212,2,3,57,4,"Extra over ordinary brickwork for face brickwork.","m2",354,null,0]
[]
[342,15944,2,3,57,5,"Extra over brickwork for internal face brickwork. ","m2",1464,null,0]
[]
[343,13213,2,3,57,6,"Extra over brickwork for facing 340mm x 340mm piers.","m2",34,null,0]
[]
[344,13204,2,3,57,null,"BRICKWORK SUNDRIES"]
[]
[345,13205,2,3,57,null,"Brickwork reinforcement:"]
[]
[346,13206,2,3,57,7,"75mm Wide reinforcement built in horizontally.","m",3178,null,0]
[]
[347,13241,2,3,57,8,"230mm Wide reinforcement built in horizontally.","m",10499,null,0]
[]
[348,313,2,3,57,null,"BRICKWORK IN SUPERSTRUCTURE"]
[]
[349,314,2,3,57,null,"Brickwork of NFP bricks (14 MPa nominal compressive strength) in Class I mortar:"]
[]
[350,315,2,3,57,9,"Half brick walls.","m2",666,null,0]
[]
[351,316,2,3,57,10,"Ditto, but in beamfilling.","m2",84,null,0]
[]
[352,318,2,3,57,11,"One brick walls.","m2",3765,null,0]
[]
[353,13242,2,3,57,12,"Ditto, but in gable walls ","m2",227,null,0]
[]
[354,13052,2,3,58,13,"Ditto, but in firewall.","m2",557,null,0]
[]
[355,320,2,3,58,14,"270mm Cavity walls including 32mm x 1.2mm thick 'eCo' wall ties built into brickwork","m2",7538,null,0]
[]
[356,1506,2,3,58,15,"Ditto, but in gable walls.","m2",235,null,0]
[]
[357,324,2,3,58,16,"Brick columns.","m3",34,null,0]
[]
[358,325,2,3,58,null,"BRICKWORK SUNDRIES"]
[]
[359,1297,2,3,58,17,"Bag down outer face of inner skin of brick wall with 4:1 cement slurry and apply two coats bituminous emulsion including working around ties.","m2",8321,null,0]
[]
[360,12988,2,3,58,null,"Approved polysulphide sealing compound including backing cord, bond breaker, primer etc.:"]
[]
[361,12989,2,3,58,18,"10mm x 12mm In expansion joints in walls including raking out expansion joint filler as necessary ","m",601,null,0]
[]
[362,12990,2,3,58,null,"Joint forming material in movement joints:"]
[]
[363,12991,2,3,58,19,"10mm Cell foam or compressible softboard built in vertically or horizontally between brick skins, concrete, etc.","m2",402,null,0]
[]
[364,327,2,3,58,null,"Brickwork reinforcement:"]
[]
[365,328,2,3,58,20,"75mm Wide reinforcement built in horizontally.","m",2402,null,0]
[]
[366,329,2,3,58,21,"150mm Wide reinforcement built in horizontally.","m",27323,null,0]
[]
[367,330,2,3,58,null,"Prestressed fabricated precast lintels including necessary temporary supports:"]
[]
[368,331,2,3,58,22,"110mm x 75mm Lintels in lengths not exceeding 3000mm.","m",1276,null,0]
[]
[369,15835,2,3,58,23,"110mm x 75mm. lintels in lengths exceeding 3000mm and not exceeding 4500mm","m",17,null,0]
[]
[370,337,2,3,58,null,"Galvanised wire ties etc."]
[]
[371,6498,2,3,58,24,"32mm x 1.2mm thick hoop iron strap 1600mm length with one end fixed to truss and other end built into brickwork.","No",890,null,{"$f":"J344*I344","v":0}]
[]
[372,13362,2,3,59,25,"35mm x 1.2mm thick hoop iron strap 700mm Length fixed to column and brickwork.","No",869,null,0]
[]
[373,341,2,3,60,null,"FACE BRICKWORK"]
[]
[374,13399,2,3,60,null,"Allow The Prime Cost of R8800.00 per thousand Face Bricks delivered to site in stretcher bond pointed with 6mm square deep recessed horizontal and vertical joints including labour, profit, wastage etc: "]
[]
[375,343,2,3,60,26,"Extra over brickwork for face brickwork.","m2",8661,null,0]
[]
[376,9933,2,3,60,27,"Ditto, but half brick walls pointed on both sides.","m2",2290,null,0]
[]
[377,15836,2,3,60,28,"Ditto, but in internal walls to dado level.","m2",1816,null,0]
[]
[378,345,2,3,60,29,"Extra over brickwork for facing brick piers.","m2",515,null,0]
[]
[379,350,2,3,60,30,"Extra over brickwork for facing brick columns.","m2",1110,null,0]
[]
[380,15953,2,3,60,31,"Extra over brickwork for brick-on-edge window cill built in soldier course flush with dado wall. ","m",847,null,0]
[{"$nulls":11},{"$f":"SUM(K276:K362)","v":0}]
[381,0,2,3]
[]
[382,1388,2,4,62,null,"BILL NO. 4  WATERPROOFING"]
[]
[383,14932,2,4,62,null,"PREAMBLES"]
[]
[384,356,2,4,62,null,"The Tenderer is referred to the relevant Clauses in the separate document Model Preambles for Trades (2008 Edition), the Department of Public Works document No. PW 371 Specification of Materials and Methods to be used and to the Supplementary Preambles which are incorporated hereunder. "]
[]
[385,11454,2,4,62,null,"SUPPLEMENTARY PREAMBLES"]
[]
[386,11455,2,4,62,null,"Proprietary products in descriptions:"]
[]
[387,11456,2,4,62,null,"Proprietary products shall be used as specified. Substitute products of similar quality and specification may only be used with prior approval by the Principal Agent."]
[]
[388,11457,2,4,62,null,"Waterproofing:"]
[]
[389,11458,2,4,62,null,"Waterproofing of roofs, basements, etc shall be laid under a ten year guarantee. Waterproofing to roofs shall be laid to even falls to outlets etc with necessary ridges, hips and valleys. Descriptions of sheet or membrane waterproofing shall be deemed to include additional labour to turn-ups and turn-downs."]
[]
[390,357,2,4,62,null,"DAMPPROOFING OF WALLS AND FLOORS"]
[]
[391,358,2,4,62,null,"One layer of 375 micron embossed polyethylene dampproof course or similar approved:"]
[]
[392,359,2,4,62,1,"In walls, under cills, etc.","m2",966,null,{"$f":"J386*I386","v":0}]
[]
[393,13400,2,4,62,null,"One layer of 250 micron green polyethylene damp proof membrane (as per clause 7.2 of specification SABS-0400), all side overlaps sealed with approved contact adhesive: "]
[]
[394,13341,2,4,62,2,"Under surface beds.","m2",11580,null,{"$f":"J390*I390","v":0}]
[]
[395,362,2,4,63,null,"JOINT SEALANTS, ETC."]
[]
[396,13343,2,4,63,null,"10mm SIKASIL-728NS:"]
[]
[397,13344,2,4,63,3,"In joint sealing and pointing all round external window and door frames.","m",547,null,0]
[]
[398,15945,2,4,63,null,"15 x 6mm SIKAFLEX-PRO 2HP:"]
[]
[399,15946,2,4,63,4,"In saw-cut joint filling.","m",353,null,0]
[]
[400,363,2,4,63,null,"Two-part grey polysulphide sealing compound including backing cord, bond breaker, primer, etc."]
[]
[401,1300,2,4,63,5,"Between timber or metal door or window frames and face brick / plaster reveal.","m",1191,null,0]
[{"$nulls":11},{"$f":"SUM(K386:K404)","v":0}]
[402,0,2,4]
[]
[403,367,2,5,65,null,"BILL NO. 5  ROOF COVERINGS, ETC."]
[]
[404,14933,2,5,65,null,"PREAMBLES"]
[]
[405,9815,2,5,65,null,"The Tenderer is referred to the relevant Clauses in the separate document Model Preambles for Trades (2008 Edition), the Department of Public Works document No. PW 371 Specification of Materials and Methods to be used and to the Supplementary Preambles which are incorporated hereunder. "]
[]
[406,9817,2,5,65,null,"SUPPLEMENTARY PREAMBLES"]
[]
[407,9818,2,5,65,null,"Proprietary products in descriptions:"]
[]
[408,9819,2,5,65,null,"Proprietary products shall be used as specified. Substitute products of similar quality and specification may only be used with prior approval by the Principal Agent."]
[]
[409,9820,2,5,65,null,"Fixing:"]
[]
[410,9821,2,5,65,null,"Fixing shall be done according to SABS 1200HB with minimum 225mm end laps."]
[]
[411,9822,2,5,65,null,"Guarantee:"]
[]
[412,9823,2,5,65,null,"The contractor will be required to provide a written guarantee, stating that:1. The roof sheeting is of the specified thickness. 2. The client is indemnified against any defects, including colour deterioration for a minimum period of 15 years."]
[]
[413,9824,2,5,65,null,"Pricing:"]
[]
[414,9825,2,5,65,null,"Prices for roof covering and cladding are to include for all necessary drive screws, hook bolts, sheet bolts, nuts, washers, etc., for drilling holes for screws and bolts including removing all swarf from the sheeting and all right angle cutting and waste (Measured net)."]
[]
[415,9827,2,5,66,null,"CORRUGATED METAL SHEETING AND ACCESSORIES"]
[]
[416,15708,2,5,66,null,"0.8mm Chromadek Klip-Tite roof sheeting coated outside and galvanized inside in single lengths, fixed to 38 x 38mm battens (elsewhere):"]
[]
[417,9829,2,5,66,1,"Roof covering with pitch not exceeding 25 degrees.","m2",13735,null,{"$f":"J436*I436","v":0}]
[]
[418,9830,2,5,66,null,"0,8mm Nominal thickness ditto, but flashings:"]
[]
[419,9831,2,5,66,2,"Ridge capping (CODE FS3) 462mm girth to be brown built supa-clad, three times bent along girth and notched on site to suit roof profile.","m",782,null,{"$f":"J440*I440","v":0}]
[]
[420,15977,2,5,66,3,"Hip capping 550mm girth.","m",262,null,0]
[]
[421,9832,2,5,66,4,"Barge flashing 580mm girth.","m",156,null,0]
[]
[422,9836,2,5,66,5,"Valley flashing 550mm girth.","m",249,null,0]
[]
[423,9833,2,5,67,null,"ROOF INSULATION"]
[]
[424,9834,2,5,67,null,"25mm Thick heavy industrial grade reinforced aluminium foil insulation double sided, heavy grammage reflective foil laminate incorporating eight layers of aluminium foil, reinforcing scrim, Kraft paper and polyethylene, tested for conformance with SABS 1381: Part IV-1985, with Class 1 fire rating in accordance with SABS 0177: Part III-1981 and BS 476 part 5, 6 and 7, secured to each truss/rafter with 38 x 3.2 x 1 100mm hardboard counter batten strips positioned flush with the bottom edge of the material thus leaving 150mm overlap exposed at the top for the next layer and 150mm overlap thereafter on each 1250mm width roll. All to be fixed in accordance with manufacturers specification:"]
[]
[425,9835,2,5,67,6,"Insulation laid taut under battens and fixed concurrent with roof covering including galvanised steel straining wires, laps, etc.","m2",10258,null,0]
[{"$nulls":11},{"$f":"SUM(K436:K452)","v":0}]
[426,0,2,5]
[]
[427,1389,2,6,69,null,"BILL NO. 6  CARPENTRY & JOINERY"]
[]
[428,14934,2,6,69,null,"PREAMBLES"]
[]
[429,11004,2,6,69,null,"The Tenderer is referred to the relevant Clauses in the separate document Model Preambles for Trades (2008 Edition), the Department of Public Works document No. PW 371 Specification of Materials and Methods to be used and to the Supplementary Preambles which are incorporated hereunder. "]
[]
[430,11005,2,6,69,null,"SUPPLEMENTARY PREAMBLES"]
[]
[431,11006,2,6,69,null,"Proprietary products in descriptions:"]
[]
[432,11007,2,6,69,null,"Proprietary products shall be used as specified. Substitute products of similar quality and specification may only be used with prior approval by the Principal Agent."]
[]
[433,11008,2,6,69,null,"Prefabricated roof trusses:"]
[]
[434,11009,2,6,69,null,"Prefabricated timber roof trusses shall be constructed of South African pine by a firm of specialist designer manufacturer's as approved by the Architect."]
[]
[435,11010,2,6,69,null,"Prices must include for all cross and windbracing according to the manufacturer's instruction."]
[]
[436,11011,2,6,69,null,"Prices must include for the design, plans and approval of all timber trusses and no claim shall be considered."]
[]
[437,11013,2,6,69,null,"Trusses shall be assembled in truss fabricating jigs with the truss having the proper camber, all tightly clamped together with joints secured using approved connector plates of galvanised steel sheet. Connector plates shall be pressed into the timber simultaneously from both sides of the truss with a hydraulic press capable of exerting such pressure as will ensure complete penetration of the teeth into the timber."]
[]
[438,11014,2,6,69,null,"The connector plates shall be of such size as will ensure that the joints so made will adequately withstand the forces exerted on the joints."]
[]
[439,11016,2,6,70,null,"Approval of pre-fabricated roofing systems, whether measured as an alternative or not, shall be subject to the following requirements:  (a) The Manufacturer of the pre-fabricated trusses shall hold a certificate of competence issued by the Insitute for Timber Construction.  (b) A polyester print, size A1 having a minimum thickness of 0,5mm, shall be submitted by the Contractor to the Regional Representative at an early stage for approval by the Directorate: Structural Engineering Services.  (c) The drawings shall be signed by a Registered Professional Engineer whose name appears on the Departmental panel for structural work.  (d) In the case of systems buildings, approval shall be given with submission of the contract drawings on acceptance of the tender."]
[]
[440,11017,2,6,70,null,"The following minimum information shall be shown on the drawings:"]
[]
[441,11018,2,6,70,null,"(a) Details of the roof system with the position of the rafters and purlins indicated thereon as well as typical elevations."]
[]
[442,11019,2,6,70,null,"(b) Bracing as recommended by the Institute for Timber Construction."]
[]
[443,11020,2,6,70,null,"(c) Sizes and grading of the timber components."]
[]
[444,11021,2,6,70,null,"(d) Truss sizes, e.g. height of ridge or angle of pitch."]
[]
[445,11022,2,6,70,null,"(e) Plate sizes for every construction point. (Code numbers only are deemed insufficient)."]
[]
[446,11023,2,6,70,null,"(f) Seperate connection details for hip, valley and jack rafters."]
[]
[447,11024,2,6,70,null,"(g) Maximum spacing for purlins and brandering to ceilings shall be according to Subclauses 7.6.1 and 7.6.2 and Clauses 7.8, 7.9 and 9.5."]
[]
[448,11025,2,6,71,null,"(h) The type of roof covering as well as the design load. Over and above the supervision undertaken by the Representative / Agent, the Truss Fabricator or his Design Engineer shall inspect the completed roof structure and issue a certificate of confirmation to the Department that:"]
[]
[449,11026,2,6,71,null,"The roof structure(s) has (have) been erected in accordance with the Design Engineer's drawings, as accepted by the Department, and the relevant details given in the manual THE ERECTION AND BRACING OF TIMBER ROOF TRUSSES\" issued by the National Timber Research Institute and the Institute for Timber Construction\"."]
[]
[450,11027,2,6,71,null,"Joinery:"]
[]
[451,11028,2,6,71,null,"Descriptions of frames shall be deemed to include frames, transomes, mullions, rails, etc."]
[]
[452,11029,2,6,71,null,"Descriptions of hardwood joinery shall be deemed to include pelleting of bolt holes."]
[]
[453,11030,2,6,71,null,"Fixing:"]
[]
[454,11031,2,6,71,null,"All nailing of timber roof trusses, purlins, etc. shall be done with galvanised nails. In coastal areas, copper, aluminium or stainless steel nails shall be used."]
[]
[455,11032,2,6,71,null,"Items described as \"nailed\" shall be deemed to be fixed with hardened steel nails or shot pins to brickwork or concrete."]
[]
[456,11033,2,6,71,null,"Where items are described as \"bolted\" the bolts have been measured elsewhere."]
[]
[457,13401,2,6,71,null,"ROOFS ETC. "]
[]
[458,13338,2,6,71,null,"Wrought S.A. Pine."]
[]
[459,13340,2,6,71,1,"38 x 114mm Wall plate.","m",10932,null,{"$f":"J520*I520","v":0}]
[]
[460,391,2,6,72,null,"PREFABRICATED TIMBER ROOF TRUSSES, ETC."]
[]
[461,9837,2,6,72,null,"The following is applicable in respect of roof trusses, trusses not exceeding 25 degree pitch, maximum 1200mm centers. Roof covering Chromadek Klip-Tite roof sheeting coated outside and galvanized inside including 50 x 76mm timber purlins at maximum 700mm centers. runners, bracing, cleats, brackets, bolts, etc., supplied and fixed complete, The contractor is to confirm dimensions from the Architect and confirm actual dimensions on site before fabrication (wall plates elsewhere measured): "]
[]
[462,16533,2,6,72,2,"Roof construction to double pitched roof with four gable ends, 46.01 x 22.37m overall on plan x 2500mm high overall, including trusses, jack rafters, permanent bracing and 50 x 76mm purlins at 700mm centres maximum for roof covering (wall plates elsewhere) - Block A.","No",1,null,{"$f":"J526*I526","v":0}]
[]
[463,17049,2,6,72,3,"Trusses for rectangular shaped building, size overall 9 880 x 4 690mm on plan (Admin - Podium). ","No",1,null,0]
[]
[464,16534,2,6,72,4,"Roof construction to double pitched roof with five hipped ends, 45.80 x 41.00m overall on plan x 2669mm high overall, with 21.00 x 16.20m opening in the centre,  including trusses, jack rafters, permanent bracing and 50 x 76mm purlins at 700mm centres maximum for roof covering (wall plates elsewhere) - Block B.  ","No",1,null,0]
[]
[465,16535,2,6,72,5,"Roof construction to double pitched roof, size 52.63 x 38.53m overall on plan x 1900mm high overall, with 32.20 x 15.82m opening in the centre,  including trusses, jack rafters, permanent bracing and 50 x 76mm purlins at 700mm centres maximum for roof covering (wall plates elsewhere) - Block C. ","No",1,null,0]
[]
[466,16536,2,6,73,6,"Roof construction to double pitched roof, size 61.33 x 38.46m overall on plan x 1894mm high overall, with 41.20 x 15.70m opening in the centre,  including trusses, jack rafters, permanent bracing and 50 x 76mm purlins at 700mm centres maximum for roof covering (wall plates elsewhere) - Block D.  ","No",1,null,0]
[]
[467,16540,2,6,73,7,"Roof construction to double pitched roof with two  gable ends, 21.61 x 7.94m overall on plan x 1320mm high overall, including trusses, jack rafters, permanent bracing and 50 x 76mm purlins at 700mm centres maximum for roof covering (wall plates elsewhere) - Sports facility ","No",1,null,0]
[]
[468,16538,2,6,73,8,"Roof construction to double pitched roof with two gable ends, 47.46 x 29.70m overall on plan x 1720mm high overall, with 36.00 x 5.75m opening in the centre including trusses, jack rafters, permanent bracing and 50 x 76mm purlins at 700mm centres maximum for roof covering (wall plates elsewhere) - Block EP.  ","No",1,null,0]
[]
[470,19014,2,6,74,null,"The following is applicable in respect of roof trusses, trusses not exceeding 25 degree pitch, maximum 950mm centers. Roof covering Chromadek Klip-Tite roof sheeting coated outside and galvanized inside including 50 x 76mm timber purlins at maximum 800mm centers,runners, bracing, cleats, brackets, bolts, etc., supplied and fixed complete, The contractor is to confirm dimensions from the Architect and confirm actual dimensions on site before fabrication (wall plates elsewhere measured): "]
[]
[471,16541,2,6,74,10,"Roof construction to double pitched roof with two gable ends, 5.58 x 8.12m overall on plan x 1900mm high overall, including trusses, jack rafters, permanent bracing and 50 x 76mm purlins at 800mm centres maximum for roof covering (wall plates elsewhere) - Block J.","No",1,null,0]
[]
[472,16544,2,6,74,11,"Roof construction to double pitched roof with two gable ends, 8.56 x 5.35m overall on plan x 1200mm high overall, including trusses, jack rafters, permanent bracing and 50 x 76mm purlins at 800mm centres maximum for roof covering (wall plates elsewhere) - Block O. ","No",1,null,0]
[]
[473,417,2,6,74,null,"SKIRTINGS"]
[]
[474,418,2,6,74,null,"Wrought meranti:"]
[]
[475,419,2,6,74,12,"19 x 76mm Skirtings including 19mm quadrant bead, nailed to walls including all nails to be punched and filled","m",2915,null,0]
[]
[476,9838,2,6,74,13,"16 x 150mm dado rail, nailed to walls including all nails to be punched and filled.","m",2384,null,0]
[]
[477,9839,2,6,75,null,"CORNICES"]
[]
[478,9840,2,6,75,null,"SA Pine:"]
[]
[479,9841,2,6,75,14,"Purpose made 76 x 50mm SA Pine cornice fixed to walls, as per Architect's detail (Drawing No. 1613.3 - AR - DES - 600).","m",2915,null,0]
[]
[480,9842,2,6,75,null,"Wrought meranti:"]
[]
[481,9843,2,6,75,15,"19mm Quadrant trims fixed to eaves closures and veranda ceilings complete.","m",2694,null,0]
[]
[482,9844,2,6,75,null,"DOORS ETC. "]
[]
[483,15800,2,6,75,null,"Standard approved semi solid meranti doors with 15 horizontal panels in projection:"]
[]
[484,15928,2,6,75,16,"44mm Thick single semi solid meranti door (D5), size 1050 x 2100mm high, all as indicated on Architect's door schedule attached to these bills of quantities. ","No",13,null,0]
[]
[485,16049,2,6,75,17,"44mm Thick single semi solid meranti door (D8), size 900 x 2100mm high, all as indicated on Architect's door schedule attached to these bills of quantities. ","No",2,null,0]
[]
[486,16050,2,6,75,18,"44mm Thick single semi solid meranti door (D9), size 850 x 2125mm high, all as indicated on Architect's door schedule attached to these bills of quantities. ","No",33,null,0]
[]
[487,15804,2,6,75,19,"44mm Thick, double semi solid meranti door (D10), size 2100 x 2125mm high, all as indicated on Architect's door schedule attached to these bills of quantities. ","No",1,null,0]
[]
[488,15801,2,6,75,20,"44mm Thick, single semi solid meranti door (D11), size 867 x 2125mm high, all as indicated on Architect's door schedule attached to these bills of quantities. ","No",2,null,0]
[]
[489,15802,2,6,75,21,"44mm Thick, single semi solid meranti door (D12), size 1050 x 2125mm high, all as indicated on Architect's door schedule attached to these bills of quantities. ","No",2,null,0]
[]
[490,15803,2,6,76,22,"44mm Thick, single semi solid meranti door (D13), size 967 x 2125mm high, all as indicated on Architect's door schedule attached to these bills of quantities. ","No",1,null,0]
[]
[491,16078,2,6,76,null,"Heavy duty door with horizontal slats on both sides:"]
[]
[492,16079,2,6,76,23,"40mm Thick heavy duty slat horizontal door (D-5) size 914 x 2032mm high with horizontal slats on both sides, all as indicated on Architect's door schedule attached to these bills of quantities.     ","No",108,null,{"$f":"J584*I584","v":0}]
[]
[493,16080,2,6,76,24,"50mm Thick heavy duty slat horizontal door (D-12) size 914 x 2032mm high with horizontal slats on both sides, all as indicated on Architect's door schedule attached to these bills of quantities. ","No",23,null,0]
[]
[494,16081,2,6,76,25,"40mm Thick heavy duty slat horizontal door (D-34), size 700 x 2032mm high with horizontal slats on both sides, all as indicated on Architect's door schedule attached to these bills of quantities. ","No",5,null,0]
[]
[495,16085,2,6,76,26,"40mm Thick heavy duty slat horizontal double door size 1609 x 2032mm high each side with horizontal slats on both sides, all as indicated on Architect's door schedule attached to these bills of quantities. ","No",1,null,0]
[]
[496,16617,2,6,76,null,"Meranti hollow core leaf or similar approved:"]
[]
[497,16618,2,6,76,27,"44mm Thick meranti hollow core door (D-15) size 864 x 1000mm high.","No",20,null,0]
[]
[498,9850,2,6,76,null,"FRAMES ETC."]
[]
[499,9851,2,6,76,null,"Wrought meranti:"]
[]
[500,9852,2,6,76,28,"Half frame for door (D15) opening size 864 x 1200mm.","No",20,null,0]
[]
[501,9853,2,6,76,null,"Sundries:"]
[]
[502,9854,2,6,76,29,"32 x 70mm Shaped meranti hardwood timber weather bar fixed on door.","m",321,null,0]
[]
[503,18555,2,6,77,null,"FITTINGS"]
[]
[504,18556,2,6,77,null,"The references given in the descriptions are to the respective types of fittings detailed on the architect's drawings annexed to these bills of quantities for tender purposes:"]
[]
[505,18557,2,6,77,null,"The following cupboard fittings have been measured as complete units i.e. the components of the units have not been separately measured. The descriptions, therefore, of such units shall be deemed to include all components, assembling, housing, notching, glueing, blocking, planting on and screwing with countersunk screws, edge strips, decorative plastic finish, glass, ironmongery, metalwork, paint or varnish finishes, etc.  All joinery must be completed after the Architect's approval of samples."]
[]
[506,18597,2,6,77,null,"Note: All dimensions to be confirmed on site."]
[]
[507,18559,2,6,77,30,"Tuck shop cupboard unit, size approximately 1860mm long x 600mm wide x 902mm high, including hole for drop-in sink (sink elsewhere measured) including all finishes, all as indicated on Elevation 1 on Architect's drawing No. GC2202_Thabotona PS_JL_02, annexed to these bills of quantities. ","No",1,null,0]
[]
[508,18560,2,6,77,31,"Admin Kitchen L-Shaped cupboard unit, size approximately 4576mm long x 600mm wide x 902mm high, including hole for double drop-in sink (sink elsewhere measured) including all finishes, all as indicated on Elevation 1 on Architect's drawing No. GC2202_Thabotona PS_JA_02, annexed to these bills of quantities.","No",1,null,0]
[]
[509,18561,2,6,77,32,"Admin office cupboard unit, size approximately 4548mm long x 600mm wide x 900mm high, including all finishes, all as indicated on Elevation 1 on Architect's drawing No. GC2202_Thabotona PS_JA_04, annexed to these bills of quantities.","No",1,null,0]
[]
[510,18562,2,6,77,33,"Admin security office cupboard unit, size 3721mm long x 600mm wide x 900mm high, including all finishes and worktops, all as indicated  on Architect's drawing No. GC2202_Thabotona PS_JA_04, annexed to these bills of quantities.","No",1,null,0]
[]
[511,18563,2,6,78,34,"Resource room L-Shaped cupboard unit, size approximately 2760mm long x 600mm wide x 900mm high, including hole for drop-in sink (sink elsewhere measured) including all finishes, all as indicated on Architect's drawing No. GC2202_Thabotona PS_JEP_04, annexed to these bills of quantities. ","No",1,null,0]
[]
[512,18564,2,6,78,35,"Admin Accounting office cupboard unit, overall size approximately 4090mm long x 600mm wide x 900mm high, including all finishes and worktops to wall openings, all as indicated on Elevation 1 on Architect's drawing No. GC2202_Thabotona PS_JA_03, annexed to these bills of quantities.","No",1,null,0]
[]
[513,18565,2,6,78,36,"Computer room cupboard unit, size approximately 3805mm long x 461mm wide x 900mm high, including all finishes, all as indicated on Elevation 1 & 2 on Architect's drawing No. GC2202_Thabotona PS_JA_05, annexed to these bills of quantities.","No",1,null,0]
[]
[514,18604,2,6,78,37,"Guard house kitchenette L-Shaped cupboard unit, size approximately 1254mm long x 1294mm long x 600mm wide x 902mm high, including hole for drop-in sink (sink elsewhere measured) including all finishes, all as indicated on Elevation 1 on Architect's drawing No. GC2202_Thabotona PS_JJ_02, annexed to these bills of quantities. ","No",1,null,0]
[]
[515,18605,2,6,78,38,"Guard house cupboard unit, size approximately 2420mm long x 600mm wide x 902mm high, including all finishes, worktops, all as indicated on Elevation 1 on Architect's drawing No. GC2202_Thabotona PS_JJ_03, annexed to these bills of quantities. ","No",1,null,0]
[]
[516,18615,2,6,78,39,"Pigeon hole unit, size 2700 x 472 x 1500mm high, including all finishes, all as indicated on Architect's drawing No. GC2202_Thabotona PS_JB_02 annexed to these bills of quantities.","No",94,null,0]
[]
[517,18566,2,6,78,40,"Tuck shop unit, size 3148mm long x 450mm wide x 902mm high, including all screws/bolts, brackets, angle irons, gusset plates, finishes, etc. all as indicated on Architect's drawing No. GC2202_Thabotona PS_JL_03, annexed to these bills of quantities. ","No",1,null,0]
[]
[518,18567,2,6,79,41,"Resource room acid storage cupboard unit, with shelves size 2450mm long x 300mm wide including all finishes, all as indicated on Architect's drawing No. GC2202_Thabotona PS_JEP_05, annexed to these bills of quantities.","No",1,null,0]
[]
[519,18568,2,6,79,42,"Laminated saligna worktop fixed to wall at 1000mm high, size approximately 1800mm long x 750mm wide, including all screws/bolts, brackets, angle irons, gusset plates, finishes, etc. all as indicated on worktop Section on Architect's drawing No. GC2202_Thabotona PS_JL_04, annexed to these bills of quantities. ","No",1,null,0]
[]
[520,18575,2,6,79,43,"Science lab unit, size 3000mm long x 600mm wide x 1100mm high, including holes for lab sinks (sinks e/m), including all finishes, all as indicated on Architect's drawing No. GC2202_Thabotona PS_JEP_02, annexed to these bills of quantities.","No",11,null,0]
[]
[521,18576,2,6,79,44,"Teacher's podium - 32mm Thick blackboard with hardwood veneer floor panels fixed onto pine bearers, size 4500 x 1900mm including all finishes, all as indicated on Architect's drawing No. GC2202_Thabotona PS_JEP_06, annexed to these bills of quantities. ","No",1,null,0]
[]
[522,18577,2,6,79,45,"Science lab unit, size 2350mm long x 820mm wide x 900mm high, including hole for lab sink (sink elsewhere measured), including all finishes, all as indicated on Architect's drawing No. GC2202_Thabotona PS_JEP_03, annexed to these bills of quantities.","No",1,null,0]
[]
[523,18588,2,6,79,46,"Kitchen cupboard unit, size 1830mm long x 762mm wide x 902mm high, including all finishes, all as indicated on Elevation 1 on Architect's drawing No. GC2202_Thabotona PS_JB_03, annexed to these bills of quantities.","No",1,null,0]
[]
[524,18598,2,6,80,null,"HARDWOOD TIMBER BENCH ETC"]
[]
[525,18599,2,6,80,null,"The following cupboard fittings have been measured as complete units i.e.  the components of the units have not been separately measured.  The descriptions, therefore, of such units shall be deemed to include all components, assembling, housing, notching, glueing, blocking, planting on and screwing with countersunk screws, edge strips, decorative plastic finish, glass, ironmongery, metalwork, paint or varnish finishes, etc.  All joinery must be completed after the Architect's approval of samples."]
[]
[526,18600,2,6,80,null,"The references given in the descriptions are to the respective types of fittings detailed on the architect's drawings annexed to these bills of quantities for tender purposes:"]
[]
[527,18601,2,6,80,null,"Note: All dimensions to be confirmed on site."]
[]
[528,18602,2,6,80,47,"Timber bench on galvanised angle iron brackets, size 3300mm long x 450mm wide x 568mm high, including all screws/bolts, brackets, angle irons, gusset plates, finishes, etc. all as indicated on Seat Section 1 on Architect's drawing No. GC2202_Thabotona PS_JA_07, annexed to these bills of quantities.","No",1,null,{"$f":"J656*I656","v":0}]
[]
[529,18618,2,6,80,48,"Timber bench on galvanised angle iron brackets, size 3000mm long x 450mm wide x 560mm high, including all screws/bolts, brackets, angle irons, gusset plates, finishes, etc. all as indicated on Seat Section 1 on Architect's drawing No. GC2202_Thabotona PS_JB_03, annexed to these bills of quantities. ","No",1,null,0]
[]
[530,18603,2,6,80,49,"Timber bench on galvanised angle iron brackets, size 1920mm long x 450mm wide x 568mm high, including all screws/bolts, brackets, angle irons, gusset plates, finishes, etc. all as indicated on Seat Section 1 on Architect's drawing No. GC2202_Thabotona PS_JA_06, annexed to these bills of quantities. ","No",1,null,0]
[]
[531,18608,2,6,81,50,"Timber bench on galvanised angle iron brackets, size 1800mm long x 429mm wide x 718mm high, including all screws/bolts, brackets, angle irons, gusset plates, finishes, etc. all as indicated on Architect's drawing No. GC2202_Thabotona PS_JL_04, annexed to these bills of quantities.  ","No",10,null,0]
[]
[532,19106,2,6,81,null,"SCHOOL FURNITURE"]
[]
[533,19107,2,6,81,null,"All furniture units to comply with SABS standards. Sizes and specifications to be in strict compliance to drawings and specifications"]
[]
[534,19108,2,6,81,null,"DESKS, TABLES, ETC"]
[]
[535,19109,2,6,81,51,"Lower primary table size 1000 x 450 x 575mm high complete as per Figure 2.2 of the School and Office Furniture Specifications, attached to the back of these Bills of Quantities. All in compliance with SANS 660:2009","No",60,null,0]
[]
[536,19110,2,6,81,52,"Office desk with 3 drawer's-saligna size 1500 x 850 x 750 mm high complete as per Figure 5.2 of the School and Office Furniture Specifications, attached to the back of these Bills of Quantities. All in compliance with SANS 660:2009","No",4,null,0]
[]
[537,19111,2,6,81,53,"Teacher's desk with 2 drawer's size 1200 x 700 x 750mm high, complete as per Figure 4.2 of the School and Office Furniture Specifications, attached to the back of these Bills of Quantities. All in compliance with SANS 1528-2:2008.","No",50,null,0]
[]
[538,19112,2,6,81,54,"Office desk with two drawer's size 1500 x 850 x 750mm high, complete as per Figure 4.3 of the School and Office Furniture Specifications, attached to the back of these Bills of Quantities. All in compliance with SANS 1528-2:2008. ","No",13,null,0]
[]
[539,19113,2,6,81,55,"Primary double combination desk size 1065 x 400 x 650mm high, complete as per Figure 3.1 of the School and Office Furniture Specifications, attached to the back of these Bills of Quantities. All in compliance with SANS 660:2009. ","No",840,null,0]
[]
[540,19114,2,6,82,56,"Computer table size 1200 x 700 x 750mm high, complete as per Figure 5.7 of the School and Office Furniture Specifications, attached to the back of these Bills of Quantities. All in compliance with SANS 1528-2:2008. ","No",80,null,0]
[]
[541,19115,2,6,82,57,"Reading table size 1496 x 846 x 750mm high, complete as per Figure 8.2 of the School and Office Furniture Specifications, attached to the back of these Bills of Quantities. All in compliance with SANS 1528-2:2008. ","No",16,null,0]
[]
[542,19116,2,6,82,58,"Study carrel double table size 1500 x 850 x 1150mm high, complete as per Figure 8.11 of the School and Office Furniture Specifications, attached to the back of these Bills of Quantities. All in compliance with SANS 1528-2:2008. ","No",8,null,0]
[]
[543,19117,2,6,82,59,"Meeting table - oak melamine, complete as per Figure 6.18 attached to the back of these Bills of Quantities. All in compliance with SANS 1528-2:2008. ","No",3,null,0]
[]
[544,19118,2,6,82,60,"1200 x 600 x 600 x 550mm high Reboni or similar approved tripezuim and rectangular 600 x 1200 x 550mm combination Grade R classroom tables","No",200,null,0]
[]
[545,19119,2,6,82,null,"CHAIRS, ETC"]
[]
[546,19120,2,6,82,61,"Upholstered teacher's chair without arms complete as per Figure 7.1 of the School and Office Furniture Specifications, attached to the back of these Bills of Quantities. All in compliance with SANS 1528-1:2008. ","No",188,null,0]
[]
[547,19121,2,6,82,62,"Upholstered teacher's chair with arms complete as per Figure 7.2 of the School and Office Furniture Specifications, attached to the back of these Bills of Quantities. All in compliance with SANS 1528-1:2008. ","No",57,null,0]
[]
[548,19122,2,6,82,63,"Upholstered side chair without arms complete as per Figure 7.4 of the School and Office Furniture Specifications, attached to the back of these Bills of Quantities. All in compliance with SANS 1528-1:2008.  ","No",35,null,0]
[]
[549,19123,2,6,83,64,"Upholstered side chair with arms complete as per Figure 7.5 of the School and Office Furniture Specifications, attached to the back of these Bills of Quantities. All in compliance with SANS 1528-1:2008. ","No",8,null,0]
[]
[550,19124,2,6,83,65,"Side chair with arms and sleigh base complete as per Figure 7.6 of the School and Office Furniture Specifications, attached to the back of these Bills of Quantities. All in compliance with SANS 1528-1:2008","No",55,null,0]
[]
[551,19125,2,6,83,66,"Low back swivel & tilt chair complete as per Figure 7.7 of the School and Office Furniture Specifications, attached to the back of these Bills of Quantities. All in compliance with SANS 1528-1:2008 ","No",8,null,0]
[]
[552,19126,2,6,83,67,"High back swivel & tilt chair complete as per Figure 7.8 of the School and Office Furniture Specifications, attached to the back of these Bills of Quantities. All in compliance with SANS 1528-1:2008 ","No",2,null,0]
[]
[553,19127,2,6,83,68,"Laboratory stool, complete as per Figure 9.4 of the School and Office Furniture Specifications, attached to the back of these Bills of Quantities. All in compliance with SANS 660: 2009. ","No",40,null,0]
[]
[554,19128,2,6,83,69,"Laboratory stool, complete as per Figure 9.5 of the School and Office Furniture Specifications, attached to the back of these Bills of Quantities. All in compliance with SANS 660: 2009. ","No",1,null,0]
[]
[555,19129,2,6,83,70,"Grade 'R' chair - Polypropylene, complete as per Figure 1.1 of the School and Office Furniture Specifications, attached to the back of these Bills of Quantities. All in compliance with SANS 660:2009. ","No",120,null,0]
[]
[556,19130,2,6,83,71,"Lower primary chair - Polypropylene, complete as per Figure 1.2 of the School and Office Furniture Specifications, attached to the back of these Bills of Quantities. All in compliance with SANS 660: 2009.","No",200,null,{"$f":"J712*I712","v":0}]
[]
[557,19131,2,6,84,null,"FILING CABINETS, ETC"]
[]
[558,19132,2,6,84,72,"Stationary cupboard steel size 900 x 450 x 1800mm high complete as per Figure 5.9 of the School and Office Furniture Specifications, attached to the back of these Bills of Quantities. All in compliance with SANS 660:2009","No",67,null,0]
[]
[559,19133,2,6,84,73,"Stationary cupboard steel size 900 x 360 x 1500mm high complete as per Figure 5.9 of the School and Office Furniture Specifications, attached to the back of these Bills of Quantities. All in compliance with SANS 660:2009 ","No",8,null,0]
[]
[560,19134,2,6,84,74,"Computer table size 1200 x 700 x 750 mm high complete as per Figure 5.7 of the School and Office Furniture Specifications, attached to the back of these Bills of Quantities. All in compliance with SANS 660:2009 ","No",20,null,0]
[]
[561,19135,2,6,84,75,"Glazed door bookcase size 900 x 360 x 1500mm high complete as per Figure 5.6 of the School and Office Furniture Specifications, attached to the back of these Bills of Quantities. All in compliance with SANS 660:2009 ","No",3,null,0]
[]
[562,19136,2,6,84,76,"Filing cabinet steel size 465x 625 x 1300mm high complete as per Figure 5.8 of the School and Office Furniture Specifications, attached to the back of these Bills of Quantities. All in compliance with SANS 660:2009","No",14,null,0]
[]
[563,19137,2,6,84,77,"Filing cabinet oak melamine size 487x 550 x 1350mm high complete as per Figure 6.11 of the School and Office Furniture Specifications, attached to the back of these Bills of Quantities. All in compliance with SANS 660:2009 ","No",12,null,0]
[]
[564,19138,2,6,84,78,"Shelving unit 4 tier oak melamine size 900 x 300 x 1500mm, complete as per Figure 6.16 of the School and Office Furniture Specifications, attached to the back of these Bills of Quantities. All in compliance with SANS 1528-3:2009. ","No",3,null,0]
[]
[565,19139,2,6,85,79,"Bookshelf double - saligna, complete as per Figure 8.8 of the School and Office Furniture Specifications, attached to the back of these Bills of Quantities. All in compliance with SANS 1528-3:2009. ","No",4,null,0]
[]
[566,19140,2,6,85,80,"Catalogue cabinet, complete as per Figure 8.9 of the School and Office Furniture Specifications, attached to the back of these Bills of Quantities. All in compliance with SANS 1528-3:2009. ","No",3,null,0]
[]
[567,19141,2,6,85,81,"Book Trolley, complete as per Figure 8.12 of the School and Office Furniture Specifications, attached to the back of these Bills of Quantities. All in compliance with SANS 1528-3:2009. ","No",4,null,0]
[]
[568,19142,2,6,85,null,"PINNING BOARDS, WRITING BOARDS, ETC"]
[]
[569,19143,2,6,85,82,"Notice board/Pin board, complete as per Figure 8.15 of the School and Office Furniture Specifications, attached to the back of these Bills of Quantities. All in compliance with SANS 660: 2009. ","No",107,null,0]
[]
[570,19144,2,6,85,null,"HANGERS, ETC"]
[]
[571,19145,2,6,85,83,"Coat and hat stand, complete as per Figure 5.11 of the School and Office Furniture Specifications, attached to the back of these Bills of Quantities. All in compliance with SANS 1528-2:2008.  ","No",20,null,0]
[]
[572,19146,2,6,85,null,"BEDS, ETC"]
[]
[573,19147,2,6,85,84,"Steel frame single bed - size 1910 x 910 x 430mm high including plastic foam mattress or similar approved suitable for bed size 1910 x 910 x 150mm thick. As per Drawing No: TGR-A6001 Rev 1.0 ","No",7,null,0]
[{"$nulls":11},{"$f":"SUM(K520:K746)","v":0}]
[574,0,2,6]
[]
[575,1390,2,7,87,null,"BILL NO. 7  CEILINGS, PARTITIONS AND ACCESS FLOORING"]
[]
[576,14935,2,7,87,null,"PREAMBLES"]
[]
[577,430,2,7,87,null,"The Tenderer is referred to the relevant Clauses in the separate document Model Preambles for Trades (2008 Edition), the Department of Public Works document No. PW 371 Specification of Materials and Methods to be used and to the Supplementary Preambles which are incorporated hereunder. "]
[]
[578,11448,2,7,87,null,"SUPPLEMENTARY PREAMBLES"]
[]
[579,11449,2,7,87,null,"Proprietary products in descriptions:"]
[]
[580,11450,2,7,87,null,"Proprietary products shall be used as specified. Substitute products of similar quality and specification may only be used with prior approval by the Principal Agent."]
[]
[581,11451,2,7,87,null,"Descriptions:"]
[]
[582,11452,2,7,87,null,"Items described as nailed shall be deemed to be fixed with hardened steel nails or pins or shot pinned to brickwork or concrete."]
[]
[583,11453,2,7,87,null,"Items described as plugged shall be deemed to include screwing to fibre, plastic or metal plugs at not exceeding 600mm centres, and where described as bolted the bolts have been given."]
[]
[584,15334,2,7,87,null,"SUSPENDED CEILINGS"]
[]
[585,15760,2,7,87,null,"Acoustic ceiling tiles size 1200 x 600mm x 6mm thick laid on and including aluminium main tees, cross tees, hold-down clips, wedges, etc., all suspended with aluminium hangers at hanger centres not exceeding 1200mm:"]
[]
[586,15761,2,7,87,1,"Ceiling suspended not exceeding 1m. below timber/steel purlins at ± 1,4m centres (trusses at ± 1,0m centres).","m2",5278,null,{"$f":"J772*I772","v":0}]
[]
[587,17036,2,7,88,null,"10mm Thick Rhino Gypsum suspended ceiling panels with vinyl coating/sheeting on 1200 x 600mm grid:"]
[]
[588,17038,2,7,88,2,"Ceiling suspended not exceeding 1m. below timber/steel purlins at ± 1,4m centres (trusses at ± 1,0m centres). ","m2",673,null,{"$f":"J776*I776","v":0}]
[]
[589,17037,2,7,88,null,"8mm Thick fibre cement suspended ceiling on 1200 x 600mm grid:"]
[]
[590,17039,2,7,88,3,"Ceiling suspended not exceeding 1m. below timber/steel purlins at ± 1,4m centres (trusses at ± 1,0m centres). ","m2",838,null,0]
[]
[591,431,2,7,88,null,"NAILED UP AND SCREW UP CEILINGS"]
[]
[592,13277,2,7,88,null,"9mm Gypsum plasterboard knock up ceiling boards with skimmed joints:"]
[]
[593,9856,2,7,88,4,"Ceilings including 38 x 50mm sawn softwood brandering at 400mm centres with cross brandering at 400mm centres and at joints, ends of sheets and at light fittings, etc.","m2",1080,null,0]
[]
[594,9858,2,7,88,5,"Extra over ceiling for 600 x 600mm hinged trap door of wrought softwood rebated framing with one sawn softwood cross brander covered with ceiling board and fitted flush in opening, including necessary trimmers all around.","No",84,null,0]
[]
[595,13365,2,7,88,null,"1200 x 600mm Fibre-cement ceiling boards with H type joint strips:"]
[]
[596,13366,2,7,88,6,"Ceilings including 38 x 50mm sawn softwood brandering at 400mm centres with cross brandering at joints, ends of sheets and at light fittings, etc.","m2",1785,null,0]
[]
[597,13367,2,7,88,7,"Extra over ceiling for 600 x 600mm hinged trap door of wrought softwood rebated framing with one sawn softwood cross brander covered with ceiling board and fitted flush in opening, including necessary trimmers all around.","No",77,null,0]
[]
[598,9860,2,7,88,null,"INSULATION"]
[]
[599,9861,2,7,88,null,"125mm thick aerolite ceiling insulation laid according to manufacturers specification with combination of 25mm sisalation membrane:"]
[]
[600,9862,2,7,88,8,"Above ceiling boards. ","m2",7869,null,0]
[{"$nulls":11},{"$f":"SUM(K772:K800)","v":0}]
[601,0,2,7]
[]
[602,1391,2,8,90,null,"BILL NO. 8  FLOOR COVERINGS, WALL LININGS, ETC"]
[]
[603,14936,2,8,90,null,"PREAMBLES"]
[]
[604,442,2,8,90,null,"The Tenderer is referred to the relevant Clauses in the separate document Model Preambles for Trades (2008 Edition), the Department of Public Works document No. PW 371 Specification of Materials and Methods to be used and to the Supplementary Preambles which are incorporated hereunder. "]
[]
[605,11443,2,8,90,null,"SUPPLEMENTARY PREAMBLES"]
[]
[606,11444,2,8,90,null,"Proprietary products in descriptions:"]
[]
[607,11445,2,8,90,null,"Proprietary products shall be used as specified. Substitute products of similar quality and specification may only be used with prior approval by the Principal Agent."]
[]
[608,11446,2,8,90,null,"Cleaning:"]
[]
[609,11447,2,8,90,null,"Rates for floor covering shall include for proper cleaning on completion."]
[]
[610,16251,2,8,90,null,"Fixing:"]
[]
[611,16253,2,8,90,null,"Floor coverings, wall linings, etc. shall, where applicable, be fixed with adhesive as recommended by the manufacturers of the flooring, linings, etc."]
[]
[612,16255,2,8,90,null,"Sizes:"]
[]
[613,16257,2,8,90,null,"Sizes and patterns of vinyl sheeting described hereunder may vary from the final specification."]
[]
[614,16258,2,8,90,null,"No claim for extras in respect of additional labour or wastage will be entertained should final sizes vary from those described hereunder."]
[]
[615,16259,2,8,91,null,"Rates:"]
[]
[616,16260,2,8,91,null,"Rates for vinyl sheeting are deemed to include for laying in patterns in differing contracting colour and in one or alternating tones of colours as any be specified by the Architect."]
[]
[617,443,2,8,91,null,"FLOOR COVERINGS"]
[]
[618,15325,2,8,91,null,"2mm Pur vinyl floor sheeting. Directional or non-directional sheeting of cement screed, that is free from bumps and dents. (Welding strips to match colour):"]
[]
[619,9864,2,8,91,1,"On floors.","m2",4468,null,{"$f":"J838*I838","v":0}]
[]
[620,17029,2,8,91,null,"2mm SD vinyl floor sheeting. Directional or non-directional sheeting of cement screed, that is free from bumps and dents. (Welding strips to match colour): "]
[]
[621,17030,2,8,91,2,"On floors.","m2",29,null,{"$f":"J842*I842","v":0}]
[]
[622,15326,2,8,91,null,"2mm Acoustic vinyl floor sheeting. Directional or non-directional sheeting of cement screed, that is free from bumps and dents. (Welding strips to match colour): "]
[]
[623,15327,2,8,91,3,"On floors.","m2",614,null,0]
[]
[624,15764,2,8,91,null," Timber flooring planks including 50mm plywood boards, sound shock sponge and treating with epoxy resin"]
[]
[625,15765,2,8,91,4,"On floors.","m2",384,null,0]
[]
[626,15959,2,8,92,null,"POLISH, SEALERS, ETC"]
[]
[627,15960,2,8,92,null,"Scrub with neutral detergent and seal with three coats water based polymer emulsion or equally approved sealer:"]
[]
[628,9866,2,8,92,5,"On vinyl flooring.","m2",5111,null,0]
[{"$nulls":11},{"$f":"SUM(K838:K856)","v":0}]
[629,0,2,8]
[]
[630,1392,2,9,94,null,"BILL NO. 9  IRONMONGERY"]
[]
[631,14937,2,9,94,null,"PREAMBLES"]
[]
[632,10091,2,9,94,null,"The Tenderer is referred to the relevant Clauses in the separate document Model Preambles for Trades (2008 Edition), the Department of Public Works document No. PW 371 Specification of Materials and Methods to be used and to the Supplementary Preambles which are incorporated hereunder. "]
[]
[633,10092,2,9,94,null,"SUPPLEMENTARY PREAMBLES"]
[]
[634,10093,2,9,94,null,"Proprietary products in descriptions:"]
[]
[635,10094,2,9,94,null,"Proprietary products shall be used as specified. Substitute products of similar quality and specification may only be used with prior approval by the Principal Agent:"]
[]
[636,10095,2,9,94,null,"Finishes to ironmongery:"]
[]
[637,10096,2,9,94,null,"Where applicable finishes to ironmongery are indicated by suffixes in accordance with the following list:  BS Satin bronze lacquered CP Chromium plated SC Satin chromium plated SE Silver enamelled GE Grey enamelled AS Anodised silver AB Anodised bronze AG Anodised gold ABL Anodised black PB Polished brass PL Polished and lacquered PT Epoxy coated SD Sanded  Fixing"]
[]
[638,10097,2,9,95,null,"Descriptions of wall mounted and floor standing ironmongery items shall be deemed to include for fixing in position and all fixing accessories.  Descriptions of proprietary items shall be deemed to include fixing in position and all fixing accessories."]
[]
[639,17099,2,9,95,null,"HINGES, BOLTS, ETC."]
[]
[640,17100,2,9,95,null,"Manufactured by \"Geze\" or similar approved:"]
[]
[641,17101,2,9,95,1,"Hinges supplied by frame","No",579,null,{"$f":"J882*I882","v":0}]
[]
[642,17103,2,9,95,2,"Aluminium flush bolt by other.or similar approved ","No",38,null,{"$f":"J884*I884","v":0}]
[]
[643,17168,2,9,95,3,"150 x 20mm Satin chrome  flush bolt, or similar approved(Code: 120/150)","No",30,null,0]
[]
[644,17108,2,9,95,null,"CATCHES, CABIN HOOK, ETC."]
[]
[645,17109,2,9,95,null,"Manufactured by \"Geze\" or similar approved: "]
[]
[646,17235,2,9,95,4,"Stainless steel hat & coat hook rubber buffer (Code: 154/69)","No",106,null,0]
[]
[647,17243,2,9,95,5,"250mm Cabin hook (Code106-250/76)","No",2,null,0]
[]
[648,17112,2,9,95,null,"LOCKS"]
[]
[649,17113,2,9,95,null,"Manufactured by \"Geze\" or similar approved: "]
[]
[650,17224,2,9,95,6,"76mm commercial cylinder sashlock (code: 325/51) or similar approved.","No",146,null,0]
[]
[651,17231,2,9,95,7,"Mortice W/C indicator ,disabled ( CODE: 195/01).","No",117,null,0]
[]
[652,17117,2,9,95,8,"76mm Profile cylinder deadlocks (code:342/51).","No",60,null,0]
[]
[653,17118,2,9,95,9,"Profile cylinder deadlocks (code:642/35).","No",5,null,0]
[]
[654,17245,2,9,95,10,"43mm nickel plated single cylinder master keyed.","No",42,null,0]
[]
[655,17247,2,9,95,11,"Geze 50mm brass padlock master keyed.","No",32,null,0]
[]
[656,17123,2,9,95,12,"66mm nickel plated double cylinder master keyed.","No",163,null,0]
[]
[657,17259,2,9,96,13,"66mm Five pin nickel plated k/cylinder 3K N. ","No",3,null,0]
[]
[658,17163,2,9,96,14,"66mm Nickel plated Knob cylinder master keyed. ","No",16,null,0]
[]
[659,17169,2,9,96,15,"Nickel plated rebate conversion kit for 76mm locks (Code: 130/81). ","No",15,null,0]
[]
[660,17129,2,9,96,16,"Stainless Steel narrow style cylinder escutcheon.","Pairs",19,null,0]
[]
[661,17165,2,9,96,17,"Stainless steel Prof cylinder escutcheon(code:ED908/CYL)","Pairs",192.5,null,0]
[]
[662,17173,2,9,96,18,"Profile cylinder deadlock with roller bolt latch ","No",3,null,0]
[]
[663,17250,2,9,96,19,"Stainless steel adjustable roller latch(Code: 661/32)","No",18,null,0]
[]
[664,17130,2,9,96,null,"HANDLES "]
[]
[665,17131,2,9,96,null,"Manufactured by \"Geze\" or similar approved: "]
[]
[666,17257,2,9,96,20,"330 x 305 x 25  stainless steel bolt through pull handle (Code:JD213/305)","No",20,null,0]
[]
[667,17232,2,9,96,21,"130 x 111 x 19 back to back S.S pull handle (code: JD213/111)","Pairs",106,null,0]
[]
[668,17161,2,9,96,22,"375 x 350 x 2mm Stainless Steel straight tubular pull handle BTB (BTB fixing sets included)- (Code: JDC215/350-BTB).or similar approved ","No",38,null,0]
[]
[669,17238,2,9,96,23,"19mm daytona lever  on rose com(code:EDD/101C) or similar approved.","Pairs",133,null,0]
[]
[670,17244,2,9,96,24,"Profile cylinder door lock R/bolt latch(Code:622/35)","No",11,null,0]
[]
[671,17225,2,9,96,25,"19 mm daytona lever on rose (code:EDD/101)","Pairs",12,null,0]
[]
[672,17142,2,9,96,null,"DOOR CLOSERS"]
[]
[673,17143,2,9,96,null,"Manufactured by \"Geze\" or similar approved: "]
[]
[674,17144,2,9,96,26,"Door closer with Parallel arm bracket Sr (Code: TS2000VP) or similar approved.","Sets",33,null,{"$f":"J948*I948","v":0}]
[]
[675,17258,2,9,97,27,"Door closer complete with standard and  Parallel arm bracket (Code: TS4000P) or similar approved. ","No",10,null,0]
[]
[676,17228,2,9,97,28,"Door closer with G/rail & arm Sr (code:TS2000) or similar approved","No",31,null,0]
[]
[677,17160,2,9,97,29,"Door closer (Code: TS3000).complete with ISM guide rail, or similar approved. ","No",5,null,0]
[]
[678,17146,2,9,97,null,"PUSH PLATES AND KICK PLATES"]
[]
[679,17147,2,9,97,null,"Manufactured by \"Geze\" or similar approved: "]
[]
[680,17148,2,9,97,30,"160 x 300 x 1.6mm thick Stainless Steel push plate (Code: 075/300). or similar approved","No",67,null,0]
[]
[681,17248,2,9,97,31,"65 x 50 ring flush pull (Code: 056/76)","No",24,null,0]
[]
[682,17246,2,9,97,32,"160 x 160 x 1.2 stainless steel push plate (Code:079/160E)","No",51,null,0]
[]
[683,17170,2,9,97,33,"300 x 0,9mm thick Stainless steel kick plate formed over the top of the door, bent twice extending 50mm down top edge of door on both sides (Code:080/300). ","No",428,null,0]
[]
[684,17249,2,9,97,34,"160 x 160 x 2mm Aluminium push plate (Code: 069/160E)","No",32,null,0]
[]
[685,17152,2,9,97,null,"SUNDRIES"]
[]
[686,17153,2,9,97,null,"Manufactured by \"Geze\" or similar approved: "]
[]
[687,17226,2,9,97,35,"stainless steel front mounted doorstop ( code: 140/69)  or similar approved","No",39,null,0]
[]
[688,17241,2,9,97,36,"ALI/SAT anod front mounted door stops(code:140/01) or similar approved","No",133,null,0]
[]
[689,17164,2,9,97,37,"160 x 300 x 1.6mm Stainless steel C/W JD213 (code:075/160) or similar approved.","No",49,null,0]
[]
[690,17251,2,9,97,38,"Stainless steel double action floor spring (Code: TS500) ","No",2,null,0]
[]
[691,17162,2,9,97,39,"Dust keep ","No",34,null,0]
[]
[692,17166,2,9,98,40,"5.4mm PAT F/Screw NP40 (code:963/03). or similar approved.","No",385,null,0]
[]
[693,17167,2,9,98,41,"M5 Patent fixing screws or similar approved.","No",207,null,0]
[]
[694,17171,2,9,98,42,"Adaptor bracket or similar approved.","No",28,null,0]
[]
[695,17172,2,9,98,43,"Door selector for 1066mm -1878mm opening or similar approved","No",14,null,0]
[]
[696,15947,2,9,98,null,"PELMETS AND CURTAIN TRACKS"]
[]
[697,15948,2,9,98,null,"Manufactured by Windovert or equally approved:"]
[]
[698,17045,2,9,98,44,"Horizontal Venetian blinds, size 900 x 900mm high. ","No",2,null,0]
[]
[699,15949,2,9,98,45," Horizontal Venetian blinds, size 1200 x 900mm high.","No",16,null,0]
[]
[700,15963,2,9,98,46," Horizontal Venetian blinds, size 1800 x 2200mm high. ","No",15,null,0]
[]
[701,15966,2,9,98,47,"Double Roller textured blinds, for windows size 1022 x 654mm high enclosed in one neat cassette system with a minimal footprint in your window reveal, controlled separately, screen fabric to allow daytime views and privacy and a full blockout for full night control and privacy. ","No",1,null,0]
[]
[702,15964,2,9,98,48,"Double Roller textured blinds, for windows size 1143 x 854mm high enclosed in one neat cassette system with a minimal footprint in your window reveal, controlled separately, screen fabric to allow daytime views and privacy and a full blockout for full night control and privacy. ","No",241,null,0]
[]
[703,15965,2,9,98,49,"Double Roller textured blinds, for windows size 2667 x 1641mm high enclosed in one neat cassette system with a minimal footprint in your window reveal, controlled separately, screen fabric to allow daytime views and privacy and a full blockout for full night control and privacy. ","No",99,null,0]
[]
[704,17174,2,9,99,null,"LETTERS, NAMEPLATES, ETC."]
[]
[705,17175,2,9,99,null,"Sign plates:"]
[]
[706,17177,2,9,99,50,"365 x 80 x 2mm Thick Anodised silver engraved nameplate with the letters \"ENTRANCE\" fixed above door frame, all as indicated in the Architect's drawings.","No",5,null,{"$f":"J1012*I1012","v":0}]
[]
[707,17178,2,9,99,51,"375 x 80 x 2mm Thick Anodised silver engraved nameplate with the letters \"RECEPTION\" fixed above door frame, all as indicated in the Architect's drawings. ","No",2,null,0]
[]
[708,17179,2,9,99,52,"382 x 50 x 2mm Thick Anodised silver engraved nameplate with the letters \"ADMINISTRATION\" fixed above counter frame, all as indicated in the Architect's drawings. ","No",2,null,0]
[]
[709,17233,2,9,99,53,"315 x 50 x 2mm Thick Anodised silver engraved nameplate with the letters \"HOD'S OFFICE\" fixed above door frame, all as indicated in the Architect's drawings. ","No",15,null,0]
[]
[710,17180,2,9,99,54,"325 x 50 x 2mm Thick Anodised silver engraved nameplate with the letters \"ACCOUNTING\" fixed above counter frame, all as indicated in the Architect's drawings. ","No",2,null,0]
[]
[711,17181,2,9,99,55,"369 x 50 x 2mm Thick Anodised silver engraved nameplate with the letters \"SECURITY ROOM\" fixed above door frame, all as indicated in the Architect's drawings. ","No",1,null,0]
[]
[712,17254,2,9,99,56,"369 x 50 x 2mm Thick Anodised silver engraved nameplate with the letters \"CARETAKER ROOM\"  fixed above door frame, all as indicated in the Architect's drawings.  ","No",1,null,0]
[]
[713,17182,2,9,99,57,"365 x 50 x 2mm Thick Anodised silver engraved nameplate with the letters \"PASTORAL CARE\" fixed above door frame, all as indicated in the Architect's drawings. ","No",1,null,0]
[]
[714,17234,2,9,100,58,"205 x 50 x 2mm Thick Anodised silver engraved nameplate with the letters \"KITCHEN\" fixed above counter frame, all as indicated in the Architect's drawings. ","No",2,null,0]
[]
[715,17183,2,9,100,59,"433 x 50 x 2mm Thick Anodised silver engraved nameplate with the letters \"PRINCIPAL'S OFFICE\" fixed above door frame, all as indicated in the Architect's drawings. ","No",1,null,0]
[]
[716,17184,2,9,100,60,"393 x 100 x 2mm Thick Anodised silver engraved nameplate with the letters \"VICE - PRINCIPAL'S OFFICE\" fixed above door frame, all as indicated in the Architect's drawings. ","No",1,null,0]
[]
[717,17185,2,9,100,61,"340 x 50 x 2mm Thick Anodised silver engraved nameplate with the letters \"SICK - ROOM\" fixed above door frame, all as indicated in the Architect's drawings. ","No",6,null,0]
[]
[718,17186,2,9,100,62,"370 x 50 x 2mm Thick Anodised silver engraved nameplate with the letters \"PRINTING ROOM\" fixed above door frame, all as indicated in the Architect's drawings. ","No",1,null,0]
[]
[719,17187,2,9,100,63,"295 x 50 x 2mm Thick Anodised silver engraved nameplate with the letters \"STAFF ROOM\" fixed above door frame, all as indicated in the Architect's drawings. ","No",1,null,0]
[]
[720,17188,2,9,100,64,"445 x 50 x 2mm Thick Anodised silver engraved nameplate with the letters \"PROCESSING ROOM\" fixed above door frame, all as indicated in the Architect's drawings. ","No",1,null,0]
[]
[721,17189,2,9,100,65,"365 x 100 x 2mm Thick Anodised silver engraved nameplate with the letters \"MULTI - PURPOSE ROOM\" fixed above door frame, all as indicated in the Architect's drawings. ","No",1,null,0]
[]
[722,17190,2,9,101,66,"365 x 50 x 2mm Thick Anodised silver engraved nameplate with the letters \"ARCHIVE ROOM\" fixed above door frame, all as indicated in the Architect's drawings. ","No",1,null,0]
[]
[723,17237,2,9,101,67,"365 x 50 x 2mm Thick Anodised silver engraved nameplate with the letters \"DB ROOM\" fixed above door frame, all as indicated in the Architect's drawings. ","No",9,null,0]
[]
[724,17191,2,9,101,68,"293 x 50 x 2mm Thick Anodised silver engraved nameplate with the letters \"STOREROOM\" fixed above door frame, all as indicated in the Architect's drawings. ","No",60,null,0]
[]
[725,17192,2,9,101,69,"335 x 50 x 2mm Thick Anodised silver engraved nameplate with the letters \"FIRE HOSE RAIL\" fixed above door frame, all as indicated in the Architect's drawings. ","No",13,null,0]
[]
[726,17193,2,9,101,70,"365 x 50 x 2mm Thick Anodised silver engraved nameplate with the letters \"CLASSROOM\" fixed above door frame, all as indicated in the Architect's drawings. ","No",47,null,0]
[]
[727,17194,2,9,101,71,"325 x 50 x 2mm Thick Anodised silver engraved nameplate with the letters \"SERVICE DUCT\" fixed above door frame, all as indicated in the Architect's drawings. ","No",12,null,0]
[]
[728,17195,2,9,101,72,"365 x 100 x 2mm Thick Anodised silver engraved nameplate with the letters \"MULTI - PURPOSE CLASSROOM\" fixed above door frame, all as indicated in the Architect's drawings. ","No",3,null,0]
[]
[729,17240,2,9,101,73,"197 x 50 x 2mm Thick Anodised silver engraved nameplate with the letters \"LIBRARY\" fixed above door frame, all as indicated in the Architect's drawings. ","No",1,null,0]
[]
[730,17196,2,9,101,74,"365 x 100 x 2mm Thick Anodised silver engraved nameplate with the letters \"COMPUTER LAB\" fixed above door frame, all as indicated in the Architect's drawings. ","No",1,null,0]
[]
[731,17197,2,9,102,75,"300 x 50 x 2mm Thick Anodised silver engraved nameplate with the letters \"SCIENCE LAB\" fixed above door frame, all as indicated in the Architect's drawings. ","No",1,null,0]
[]
[732,17198,2,9,102,76,"393 x 50 x 2mm Thick Anodised silver engraved nameplate with the letters \"RESOURCE ROOM\" fixed above door frame, all as indicated in the Architect's drawings. ","No",1,null,0]
[]
[733,17199,2,9,102,77,"390 x 80 x 2mm Thick Anodised silver engraved nameplate with the letters \"TUCK SHOP\" fixed above door frame, all as indicated in the Architect's drawings. ","No",2,null,0]
[]
[734,17200,2,9,102,78,"320 x 50 x 2mm Thick Anodised silver engraved nameplate with the letters \"SCHOOL HALL\" fixed above door frame, all as indicated in the Architect's drawings. ","No",6,null,0]
[]
[735,17201,2,9,102,79,"382 x 50 x 2mm Thick Anodised silver engraved nameplate with the letters \"ADMINISTRATION\" fixed above door frame, all as indicated in the Architect's drawings. ","No",1,null,0]
[]
[736,17202,2,9,102,80,"375 x 50 x 2mm Thick Anodised silver engraved nameplate with the letters \"CLEANERS STORE\" fixed above door frame, all as indicated in the Architect's drawings. ","No",1,null,0]
[]
[737,17203,2,9,102,81,"422 x 50 x 2mm Thick Anodised silver engraved nameplate with the letters \"DELIVERY PASSAGE\" fixed above door frame, all as indicated in the Architect's drawings. ","No",2,null,0]
[]
[738,17204,2,9,102,82,"375 x 50 x 2mm Thick Anodised silver engraved nameplate with the letters \"GROCERY STORE\" fixed above door frame, all as indicated in the Architect's drawings. ","No",1,null,{"$f":"J1076*I1076","v":0}]
[]
[739,17205,2,9,102,83,"360 x 50 x 2mm Thick Anodised silver engraved nameplate with the letters \"WASHING AREA\" fixed above door frame, all as indicated in the Architect's drawings. ","No",2,null,0]
[]
[740,17206,2,9,103,84,"380 x 100 x 2mm Thick Anodised silver engraved nameplate with the letters \"CLEAN UTENSILS/SERVING AREA\" fixed above door frame, all as indicated in the Architect's drawings. ","No",2,null,0]
[]
[741,17207,2,9,103,85,"370 x 50 x 2mm Thick Anodised silver engraved nameplate with the letters \"COOKING AREA\" fixed above door frame, all as indicated in the Architect's drawings. ","No",1,null,0]
[]
[742,17208,2,9,103,86,"320 x 100 x 2mm Thick Anodised silver engraved nameplate with the letters \"PREPARATION AREA\" fixed above door frame, all as indicated in the Architect's drawings. ","No",1,null,0]
[]
[743,17253,2,9,103,87,"430 x 50 x 2mm Thick Anodised silver engraved nameplate with the letters \"REFUSE YARD\" above door frame, all as indicated in the Architect's drawings.  ","No",1,null,0]
[]
[744,17209,2,9,103,88,"305 x 50 x 2mm Thick Anodised silver engraved nameplate with the letters \"PLANT ROOM\" fixed above door frame, all as indicated in the Architect's drawings. ","No",1,null,0]
[]
[745,17210,2,9,103,89,"300 x 50 x 2mm Thick Anodised silver engraved nameplate with the letters \"COLD ROOM\" fixed above door frame, all as indicated in the Architect's drawings. ","No",2,null,0]
[]
[746,17211,2,9,103,90,"430 x 50 x 2mm Thick Anodised silver engraved nameplate with the letters \"GENERATOR ROOM\" above door frame, all as indicated in the Architect's drawings. ","No",1,null,0]
[]
[747,17255,2,9,103,91,"430 x 100 x 2mm Thick Anodised silver engraved nameplate with the letters \"GIRLS CHANGE ROOM\" above door frame, all as indicated in the Architect's drawings.   ","No",1,null,0]
[]
[748,17256,2,9,104,92,"430 x 100 x 2mm Thick Anodised silver engraved nameplate with the letters \"BOYS CHANGE ROOM\" above door frame, all as indicated in the Architect's drawings. ","No",1,null,0]
[]
[749,17236,2,9,104,93,"300 x 300 x 2mm Thick Silver Anodised silver engraved sign with male/female Pictogram fixed to door, all as indicated on the Architect's drawings. ","No",9,null,0]
[]
[750,17217,2,9,104,94,"300 x 300 x 2mm Thick Silver Anodised silver engraved sign with male pictograms fixed to door, all as indicated on the Architect's drawings.","No",14,null,0]
[]
[751,17218,2,9,104,95,"300 x 300 x 2mm Thick Silver Anodised silver engraved sign with female pictograms fixed to door, all as indicated on the Architect's drawings. ","No",14,null,0]
[]
[752,17227,2,9,104,96,"300 x 300 x 2mm Thick Silver Anodised silver engraved sign with paraplegic pictograms fixed to door, all as indicated on the Architect's drawings. ","No",10,null,0]
[]
[753,17220,2,9,104,97,"600 x 300 x 4mm Thick Anodised Silver engraved Photoluminescent sign with  Red Reverse and Fire Extinguisher Pictograms, fixed to wall as per Fire Consultant Specification or similar approved","No",73,null,0]
[]
[754,17229,2,9,104,98,"900 x 300 x 4mm Thick Anodised Silver engraved Photoluminescent sign with Red Reverse, Fire Extinguisher, and Hose Rail Pictograms, fixed to wall as per Fire Consultant Specification or similar approved. ","No",19,null,0]
[]
[755,17230,2,9,104,99,"900 x 300 x 4mm Anodised silver engraved Photoluminescent sign with Fire Extinguisher, Hose Rail and Red Reverse Pictograms, fixed to wall as per Fire Consultant Specification or similar approved. ","No",39,null,0]
[]
[756,17221,2,9,104,100,"600 x 300 x 2mm Anodised silver engraved sign with Directional and Fire Escape Pictograms, fixed to wall or door as per Fire Consultant Specialist or similar approved.","No",96,null,0]
[]
[757,17239,2,9,105,101,"900 x 300 x 2mm Thick Anodised silver engraved sign with Directional, Stairs and Fire Escape Pictograms, fixed to wall or door as per Fire Consultant Specialist or similar approved.","No",2,null,0]
[]
[758,478,2,9,105,null,"SUNDRIES"]
[]
[759,482,2,9,105,102,"19mm Stainless steel chromium plated towel rail, 600mm long, with end brackets plugged to plastered or tiled wall.","No",34,null,0]
[]
[760,17035,2,9,105,103,"Wall safe approximately 280 x 310 x 230mm deep, bolted to wall with expansion bolts to inside of safe with integrated security lock. ","No",5,null,0]
[]
[761,15998,2,9,105,null,"Cabinets:"]
[]
[762,16002,2,9,105,104,"380 x 610mm Built in standard white lockable medicine cabinet complete with mirrors on doors, shelves, etc. as approved.","No",20,null,0]
[]
[763,487,2,9,105,null,"BATHROOM FITTINGS"]
[]
[764,17511,2,9,105,105,"Automatic hands free hand dryer, size 284 x 202 x 248mm deep Grade 304 1,2/1,5mm thick 18/10 stainless steel  with 2 vandal proof lock screws and key wrench, plugged and screwed to the wall with stainless steel screws, 200W motor connected to 230/240 volt power supply with 5 year warranty.","No",37,null,0]
[]
[765,17510,2,9,105,106,"Chrome plated toilet brush set ( code AC-0913-100)  size 155 x 120x 375mm high.","No",107,null,0]
[]
[766,13354,2,9,105,null,"Stainless steel 32mm diameter grab rails grade 304 stainless steel:"]
[]
[767,17512,2,9,105,107,"Franke CNTX PAR Grade 304 32mm diameter 18/10 stainless steel paraplegic grab rails with franke fine grip (Code 359885) size 640 x 640 x 96mm deep, plugged and screwed to the wall with stainless steel screws.","No",8,null,0]
[]
[768,17513,2,9,105,108,"Franke CNTBR Grade 304 18/10 stainless steel 32mm diameter cistern & ramp flush valve back rail with franke fine grip (Code 2510014) size 750 x 260mm, plugged and screwed to the wall with stainless steel screws.","No",8,null,0]
[]
[769,14950,2,9,106,null,"Assisted bathroom shower seat:"]
[]
[770,14951,2,9,106,109,"Hi-Tech or Equally Approved Stainless Products 32mm diameter grade 304 stainless steel foldaway shower seat (code: 32), plugged and screwed to walls with stainless steel screws.","No",7,null,{"$f":"J1140*I1140","v":0}]
[]
[771,6494,2,9,106,null,"Soap rack:"]
[]
[772,17506,2,9,106,110,"Chrome plated soap holder size 136mm long, plugged and screwed to wall.","No",1,null,0]
[]
[773,17507,2,9,106,111,"Hands free soap dispenser, colour white, overall size 184 x 110 x 264mm high installed by an installation team.","No",102,null,0]
[]
[774,1312,2,9,106,112,"Standard 150 x 150mm white stainless steel soap holder with a dip tray.","No",49,null,0]
[]
[775,13405,2,9,106,null,"Toilet roll holder:"]
[]
[776,17499,2,9,106,113,"Grade 304 1,2/1,5mm thick 18/10 satin stainless steel toilet roll holders with spindle system, size 304 x 156 x 140,7mm deep for 2 rolls maximum 108mm diameter, cylinder lock with standard Franke key, plugged and screwed to the wall with stainless steel screws.","No",106,null,0]
[]
[777,13406,2,9,106,114,"Franke or Equally Approved toilet roll holder for 4 rolls for wall mounting, stainless steel, surface satin finished, material thickness 0.8 mm, with spindle system, cylinder lock with Franke or Equally Approved standard key, including stainless steel screws and dowels. Product Name: RODX674B or Equally Approved fixed to wall","No",80,null,0]
[]
[778,17046,2,9,106,null,"Towel Rail"]
[]
[779,17047,2,9,106,115,"19 x 600mm Stainless steel chromium plated towel rail complete with chromium plated end brackets plugged and screwed to wall","No",10,null,0]
[]
[780,17503,2,9,106,116,"Chrome plated double towel rail size 590 x 130mm wide, plugged and screwed to wall.","No",45,null,0]
[]
[781,14952,2,9,106,null,"Waste bin:"]
[]
[782,17505,2,9,106,117,"Disposer plus stainless steel wall mounted waste bin, overall size 300 x 250 x 500mm high installed by an installation item.","No",77,null,0]
[]
[783,14953,2,9,107,118,"Franke Rodan RODX605 or Equally Approved, 8mm thick satin finished stainless steel waste bin (Code: 2120097), size 355mm x 168mm x 460mm high with capacity of 23 litres and cylinder lock and standard Franke or Equally Approved key, plugged and screwed to the wall with stainless steel screws.","No",71,null,0]
[]
[784,15950,2,9,107,null,"SHELVES ETC"]
[]
[785,17508,2,9,107,119,"Chrome plated glass shelf size 600 x 120mm wide, plugged and screwed to wall.","No",6,null,0]
[]
[786,15951,2,9,107,null,"Wildberry or equally approved free standing proprietary type steel shelving units with standard powder coated finish, including heavy duty uprights, open base foot pieces, shelf brackets, shelves, spacers, top rails, top finishing plates and adjustable book clips:"]
[]
[787,15952,2,9,107,120,"2200 x 600 x 1925mm 6 Tier Heavy Duty Shelves (Colour: Black).","No",21,null,0]
[]
[788,492,2,9,107,null,"PINNING BOARDS, WRITING BOARDS, PROJECTION SCREENS, ETC."]
[]
[789,13375,2,9,107,null,"Meranti veneered 9mm plywood panel in frame for Honours Board plugged to wall with 5 x 90mm brass screws."]
[]
[790,13376,2,9,107,121,"Honours board size 1200 x 1500mm overall. ","No",6,null,0]
[{"$nulls":11},{"$f":"SUM(K881:K1180)","v":0}]
[]
[]
[792,1393,2,10,109,null,"BILL NO. 10  STRUCTURAL STEELWORK "]
[]
[793,16303,2,10,109,null,"PREAMBLES"]
[]
[794,9881,2,10,109,null,"The Tenderer is referred to the relevant Clauses in the separate document Model Preambles for Trades (2008 Edition), the Department of Public Works document No. PW 371 Specification of Materials and Methods to be used and to the Supplementary Preambles which are incorporated hereunder. "]
[]
[795,9883,2,10,109,null,"SUPPLEMENTARY PREAMBLES "]
[]
[796,9884,2,10,109,null,"Descriptions of bolts shall be deemed to include nuts and washers.  Descriptions of L-shaped and U-shaped anchor bolts shall be deemed to include bending, threading, nuts and washers and embedding in concrete  Descriptions of expansion anchors and bolts and chemical anchors and bolts shall be deemed to include nuts, washers and mortices in brickwork or concrete. "]
[]
[797,9885,2,10,109,null,"NOTE: All steel will be painted unless otherwise stated."]
[]
[798,16261,2,10,109,null,"Reference to drawings and details:"]
[]
[799,16267,2,10,109,null,"Where drawings and/ or details have been referred to Tenderers should price for complete detail and specification on such details and/ or drawing. No claims relating to the omissions on the part of tenders will be entertained."]
[]
[800,16264,2,10,109,null,"Descriptions of bolts, anchors, etc.:"]
[]
[801,16268,2,10,109,null,"Unless otherwise described, descriptions of items shall be deemed to include for fixing to brickwork or concrete."]
[]
[802,16269,2,10,109,null,"Where item are described as \"bolted\", the bolts are measured elsewhere."]
[]
[803,16270,2,10,110,null,"Descriptions of bolts shall be deemed to include nuts and washers."]
[]
[804,16271,2,10,110,null,"Descriptions of expansion anchors and bolts and chemical anchors and bolts shall be deemed to include nuts, washers and mortices in brickwork or concrete."]
[]
[805,16272,2,10,110,null,"Items described as 'holed for bolt(s)' shall be deemed to exclude the bolts unless otherwise described."]
[]
[806,16266,2,10,110,null,"STEEL TRUSSES"]
[]
[807,16273,2,10,110,null,"Welded double pitched symmetrical steel roof trusses 21755 mm wide x 3560mm high overall, formed of angle rafters, tie beams, rails, struts, braces, cleats, etc and flat bearer, gusset and connection plates, bolted to steel"]
[]
[808,16274,2,10,110,1,"80 x 80 x 6mm L - section","t",7.77,null,{"$f":"J1216*I1216","v":0}]
[]
[809,16275,2,10,110,2,"60 x 60 x 4mm L - section knee bracing","t",0.99,null,{"$f":"J1218*I1218","v":0}]
[]
[810,16276,2,10,110,null,"STEEL PURLINS, GIRTS, BRACING, ETC"]
[]
[811,16277,2,10,110,null,"Purlins and girts, bolted to steel "]
[]
[812,16279,2,10,110,3,"175 x 50 x 20 x 2.5mm Thick cold- formed lipped channel purlins on single lengths exceeding 44mm and not exceeding 45 mm long, including holes and bolting to cleats","t",4.59,null,0]
[]
[813,16280,2,10,111,null,"Welded bracing, anti-sag rails, etc with flat connection plates, bolted to steel"]
[]
[814,16281,2,10,111,4,"60 x 60 x 6mm Angle bracing ","t",0.21,null,{"$f":"J1228*I1228","v":0}]
[]
[815,13170,2,10,111,null,"CONCRETE"]
[]
[816,13171,2,10,111,null,"30MPa non shrink grout"]
[]
[817,16048,2,10,111,5,"Bedding 50mm thick  under 270 x 270mm base plate","m2",22,null,0]
[]
[818,15907,2,10,111,null,"BOLTS, FASTENERS, ETC"]
[]
[819,15908,2,10,111,6,"16mm Diameter chemical anchor ","No",88,null,{"$f":"J1238*I1238","v":0}]
[]
[820,13173,2,10,111,null,"PAINTING"]
[]
[821,16039,2,10,111,null,"One coat Epiwash Strontium Chromate Primer (AW 255), two coats Plascothane 9000 Polyutherane Acrylic (PRU 9000) Base & PRH 9 curing agent  "]
[]
[822,16040,2,10,111,7,"On structural steel lattice columns, beams, trusses, etc","m2",353,null,{"$f":"J1244*I1244","v":0}]
[]
[823,15906,2,10,111,8,"On steel purlins, girts, etc","m2",451,null,{"$f":"J1246*I1246","v":0}]
[]
[824,16053,2,10,111,null,"Intumescent paint:"]
[]
[825,16083,2,10,111,9,"Apply FR120 intumescent paint to structural steel work.","m2",804,null,{"$f":"J1250*I1250","v":0}]
[{"$nulls":11},{"$f":"SUM(K1216:K1250)","v":0}]
[]
[]
[792,1393,2,10,109,null,"BILL NO. 11  METALWORK"]
[]
[793,16303,2,10,109,null,"PREAMBLES"]
[]
[794,9881,2,10,109,null,"The Tenderer is referred to the relevant Clauses in the separate document Model Preambles for Trades (2008 Edition), the Department of Public Works document No. PW 371 Specification of Materials and Methods to be used and to the Supplementary Preambles which are incorporated hereunder. "]
[]
[795,9883,2,10,109,null,"SUPPLEMENTARY PREAMBLES"]
[]
[796,9884,2,10,109,null,"Descriptions Descriptions of bolts shall be deemed to include nuts and washers.Descriptions of expansion anchors and bolts and chemical anchors and bolts shall be deemed to include nuts, washers and mortices in brickwork or concrete.Metalwork described as \"holed for bolt(s)\" shall be deemed to exclude the bolts unless otherwise described."]
[]
[797,9885,2,10,109,null,"NOTE: All steel will be galvanised unless otherwise stated."]
[]
[798,16261,2,10,109,null,"Reference to drawings and details:"]
[]
[799,16267,2,10,109,null,"Where drawings and/ or details have been referred to Tenderers should price for complete detail and specification on such details and/ or drawing. No claims relating to the omissions on the part of tenders will be entertained."]
[]
[800,16264,2,10,109,null,"Descriptions of bolts, anchors, etc.:"]
[]
[801,16268,2,10,109,null,"Unless otherwise described, descriptions of items shall be deemed to include for fixing to brickwork or concrete."]
[]
[802,16269,2,10,109,null,"Where item are described as \"bolted\", the bolts are measured elsewhere."]
[]
[803,16270,2,10,110,null,"Descriptions of bolts shall be deemed to include nuts and washers."]
[]
[804,16271,2,10,110,null,"Descriptions of expansion anchors and bolts and chemical anchors and bolts shall be deemed to include nuts, washers and mortices in brickwork or concrete."]
[]
[805,16272,2,10,110,null,"Items described as 'holed for bolt(s)' shall be deemed to exclude the bolts unless otherwise described."]
[]
[806,16266,2,10,110,null,"Fixing:"]
[]
[807,16273,2,10,110,null,"Items described as 'plugged' shall be deemed to include screwing to fibre, plastic or metal plugs at not exceeding 600mm centres."]
[]
[808,16274,2,10,110,null,"Doors and windows shall comply with AAAMSA design criteria  Glazing shall comply with SAGGA regulations.  Glass shall be laminated performance glass as shown on the window schedules appended to these bills of quantities (as described in the headings to window descriptions).  Glass thickness shall comply with SAGGA regulations irrespective of thickness shown on the schedules. Doors and windows shall be supplied with protective tape and plastic and shall be removed only once surrounding trades have been completed. For purpose made windows and doors, refer to drawings annexed to these bills of quantities."]
[]
[809,16275,2,10,110,null,"The following certificates shall be provided prior to commencement of site work:"]
[]
[810,16276,2,10,110,null,"1. A copy of the relevant AAAMSA Performance  Test Certificate from the manufacturer/contractor  supplying the architectural aluminium product."]
[]
[811,16277,2,10,110,null,"2. A Certificate of Conformance confirming that  anodising or powder coating has been processed in  accordance with SANS 999 and SANS 1796  respectively."]
[]
[812,16279,2,10,110,null,"3. A powder guarantee of not less than 15 years  issued by the powder manufacturer. The specific conditions contained in this guarantee shall form part of the powder coating process."]
[]
[813,16280,2,10,111,null,"4. A Certificate of Conformance confirming that  glazing has been installed in accordance with  SANS 0137, ensuring that safety glazing materials have been installed in the mandatory areas and that each individual pane of safety glazing materials has been permanently marked."]
[]
[814,16281,2,10,111,null,"5. A warranty from the manufacturer of the  laminated safety glass and/or hermetically sealed glazing units guaranteeing the products against delamination and colour degradation for a period of not less than five years."]
[]
[815,13170,2,10,111,null,"STEEL DOOR FRAMES"]
[]
[816,13171,2,10,111,null,"1,6mm Rebated frames suitable for one brick walls with two 100 x 75mm ball bearing stainless steel butt hinges per door leaf:"]
[]
[817,16048,2,10,111,1,"Frame for door (D5) 914 x 2125mm high. ","No",33,null,{"$f":"J1304*I1304","v":0}]
[]
[818,15907,2,10,111,2,"Frame for door (D8) 900 x 2100mm high. ","No",2,null,{"$f":"J1306*I1306","v":0}]
[]
[819,15908,2,10,111,3,"Frame for door (D9) 850 x 2125mm high. ","No",8,null,0]
[]
[820,13173,2,10,111,4,"Frame for door (D10) 1910 x 2100mm high.","No",1,null,0]
[]
[821,16039,2,10,111,5,"Frame for door (D11) 867 x 2125mm high. ","No",5,null,0]
[]
[822,16040,2,10,111,6,"Frame for door (D12) 1050 x 2125mm high. ","No",6,null,0]
[]
[823,15906,2,10,111,7,"Frame for door (D13) 967 x 2125mm high. ","No",1,null,0]
[]
[824,16053,2,10,111,null,"1,6mm Mild steel plate frame to manufacturer's detail:"]
[]
[825,16083,2,10,111,8,"Frame for door (D4) 1609 x 2125mm high. ","No",1,null,0]
[]
[826,16072,2,10,111,9,"Frame for door (D5) 914 x 2125mm high. ","No",85,null,0]
[]
[827,16073,2,10,112,10,"Frame for door (D9) 850 x 2125mm high. ","No",34,null,0]
[]
[828,16084,2,10,112,11,"Frame for door (D10) 914 x 2125mm high. ","No",1,null,0]
[]
[829,16074,2,10,112,12,"Frame for door (D11) 685 x 2125mm high. ","No",6,null,0]
[]
[830,16075,2,10,112,13,"Frame for door (D12) 1050 x 2125mm high. ","No",3,null,0]
[]
[831,16054,2,10,112,14,"Frame for door (D34) 700 x 2125mm high. ","No",5,null,0]
[]
[832,16008,2,10,113,null,"STEEL WINDOWS, DOORS, ETC."]
[]
[833,16009,2,10,113,null,"Cottage section standard steel windows with 20 x 4mm mild steel flat bars welded to frame:"]
[]
[834,16010,2,10,113,15,"Window type W-1 (Top hung) size 533 x 654mm high.","No",70,null,0]
[]
[835,16011,2,10,113,16,"Window type W-1 LH (Low hung) size 533 x 654mm high. ","No",2,null,0]
[]
[836,16012,2,10,113,17,"Window type W-2 LH (Low hung) size 1143 x 854mm high. ","No",176,null,0]
[]
[837,16013,2,10,113,18,"Window type W-2 (Top hung) size 1143 x 854mm high. ","No",24,null,0]
[]
[838,16014,2,10,113,19,"Window type W-3 (Top and low hung) size 2642 x 1641mm high. ","No",73,null,0]
[]
[839,16015,2,10,113,20,"Window type W-6 (Top hung) size 889 x 854mm high. ","No",2,null,0]
[]
[840,16016,2,10,113,21,"Window type W-7 (Top hung) size 1022 x 654mm high. ","No",48,null,0]
[]
[841,16017,2,10,113,22,"Window type W-7 LH (Low hung) size 1022 x 654mm high. ","No",18,null,0]
[]
[842,16602,2,10,113,23,"Window type W-8 (Top hung) size 1143 x 457mm high. ","No",1,null,0]
[]
[843,16018,2,10,113,24,"Window type W-9 (Low hung) size 1143 x 457mm high. ","No",6,null,0]
[]
[844,16019,2,10,113,25,"Window type W-10 (Top and low hung) size 1616 x 1911mm high. ","No",17,null,0]
[]
[845,16021,2,10,113,26,"Window type W-11 (Top hung) size 889 x 457mm high.","No",25,null,0]
[]
[846,16030,2,10,114,null,"Cottage section mild steel windows with 20 x 4mm mild steel flat bar welded to frame: "]
[]
[847,16034,2,10,114,27,"Window type W-1 size 533 x 654mm high. ","No",43,null,0]
[]
[848,16032,2,10,114,28,"Window type W-2 size 1143 x 854mm high. ","No",42,null,0]
[]
[849,16031,2,10,114,29,"Window type W-3 size 2667 x 1645mm high. ","No",10,null,0]
[]
[850,16028,2,10,114,30,"Window type W-4 size 1022 x 648mm high. ","No",4,null,{"$f":"J1370*I1370","v":0}]
[]
[851,16029,2,10,114,31,"Window type W-5 size 1302 x 2378mm high. ","No",15,null,0]
[]
[852,16035,2,10,114,32,"Window type W-7 size 1022 x 654mm high","No",1,null,0]
[]
[853,16024,2,10,114,33,"Window type W-8 (Top hung) size 1143 x 457mm high. ","No",1,null,0]
[]
[854,16025,2,10,114,null,"Mild steel windows with plate profile welded on all 4 corners with mild steel flat mesh welded to the inside frame as per manufacturers design:"]
[]
[855,16033,2,10,114,34,"Window type W-1 size 533 x 654mm high. ","No",10,null,0]
[]
[856,16026,2,10,114,35,"Window type W-3, size 2591 x 2591mm high.","No",1,null,0]
[]
[857,16027,2,10,114,36,"Window type W4-L, size 648 x 648mm high. ","No",46,null,0]
[]
[858,16037,2,10,114,null,"Mild steel windows with fixed bulletproof glazing to specialist detail. All to comply with standards:"]
[]
[859,16038,2,10,114,37,"Window type W23 size 915 x 1000mm high. ","No",1,null,0]
[]
[860,16614,2,10,114,null,"Steel door with hardboard both sides and 475 x 500mm georgian glass panel with signage in basic colour signal red \"FIRE\" (CODE A11):"]
[]
[861,16615,2,10,114,38,"Door type D-9, size 850 x 2125mm high. ","No",3,null,0]
[]
[862,16616,2,10,114,39,"Door type D-11, size 705 x 2125mm high. ","No",7,null,0]
[]
[863,16625,2,10,115,null,"Chrome finish door stopper bolted to floor:"]
[]
[864,16626,2,10,115,40,"Door stoppers.","No",403,null,0]
[]
[865,16436,2,10,115,null,"SCREENING TO WELDED STEEL "]
[]
[866,16437,2,10,115,null,"Mild steel flat mesh:"]
[]
[867,16438,2,10,115,41,"8 x 0.5mm mild steel flat mesh welded to the inside of window frame.","m2",26,null,0]
[]
[868,9889,2,10,115,null,"ALUMINIUM DOORS"]
[]
[869,9890,2,10,115,null,"All doors to be approved by the Architect prior to installation."]
[]
[870,9893,2,10,115,null,"Note: Tenderers are referred to architect's drawings indicating the general door layout as annexed to these bills of quantities for tender purposes."]
[]
[871,9892,2,10,115,null,"All aluminium units to comply with AAAMSA standards and to Architects approval:"]
[]
[872,9891,2,10,115,null,"Natural anodized aluminium doors, factory glazed with 6mm toughened clear float safety glass on 3 reflex hinges with bush on either LHS or RHS with fixed side panels in accordance with manufacturers instructions:"]
[]
[873,16020,2,10,115,42,"Purpose made aluminium single swing door (D1) or similar approved fixed to polyster powder coated frame size 3200 x 2125mm high overall to manufacturers specification, all as indicated on Architect's door schedule attached to these bills of quantities. ","No",3,null,0]
[]
[874,16041,2,10,115,43,"Purpose made aluminium single swing door (D2) or similar approved fixed to polyster powder coated frame size 1800 x 2125mm high overall to manufacturers specification, all as indicated on Architect's door schedule attached to these bills of quantities. ","No",2,null,0]
[]
[875,16042,2,10,115,44,"Purpose made aluminium single swing door (D3) or similar approved fixed to polyster powder coated frame size 1800 x 2125mm high overall to manufacturers specification, all as indicated on Architect's door schedule attached to these bills of quantities. ","No",10,null,0]
[]
[876,16043,2,10,116,45,"Purpose made aluminium single swing door (D6) or similar approved fixed to polyster powder coated frame size 831 x 2125mm high overall to manufacturers specification, all as indicated on Architect's door schedule attached to these bills of quantities. ","No",6,null,0]
[]
[877,16044,2,10,116,46,"Purpose made aluminium single swing door (D13) or similar approved fixed to polyster powder coated frame size 900 x 2125mm high overall to manufacturers specification, all as indicated on Architect's door schedule attached to these bills of quantities. ","No",5,null,0]
[]
[878,534,2,10,116,null,"STEEL STRONGROOM DOORS, VENTILATORS, ETC."]
[]
[879,535,2,10,116,null,"Strongroom doors etc. suitable for 230mm walls fixed to brickwork:",{"$nulls":3},0]
[]
[880,1381,2,10,116,47,"DS1 Right hand record room door and frame (D7) with 7-lever security keylock to suit opening size 760 x 1883mm high including setting up, building in and caulking all around, as per Architect's door schedule attached to these Bills of Quantities","No",4,null,0]
[]
[881,1316,2,10,116,48,"Double ended strongroom ventilator size 255 x 255mm with telescopic sleeve, gauze and baffle plates, drop shutter, etc including setting up, building in and caulking all around in 1.1 cement mortar (Provisional).","No",8,null,0]
[]
[882,16045,2,10,116,null,"STEEL ROLLER SHUTTERS ETC."]
[]
[883,16046,2,10,116,null,"Galvanized chain operated industrial roller shutter door with 75mm slats as per Architect's drawing:"]
[]
[884,16047,2,10,116,49,"Roll-up galvanised steel chain operated 75 x 0.8mm endlocked slatted curtain roller shutter to fit opening size (1830 x 2125mm) with overhead box 457mm high including canopy cover, standard bottom rail, 75mm wide guides, extruded aluminium T-bar with rubber seal, hot dip galvanised ancillary components including 4,5mm thick end plates, guide rails, cetre lock, fixed to brick jambs and concrete lintel. Colour to Architect's approval.","No",9,null,{"$f":"J1438*I1438","v":0}]
[]
[885,16082,2,10,117,50,"Roll-up galvanised steel chain operated 75 x 0.8mm endlocked slatted curtain roller shutter to fit opening size (2049 x 2125mm) with overhead box 457mm high including canopy cover, standard bottom rail, 75mm wide guides, extruded aluminium T-bar with rubber seal, hot dip galvanised ancillary components including 4,5mm thick end plates, guide rails, cetre lock, fixed to brick jambs and concrete lintel. Colour to Architect's approval. ","No",1,null,0]
[]
[886,9899,2,10,117,null,"SECURITY GATES"]
[]
[887,9900,2,10,117,null,"Galvanised steel security gates:"]
[]
[888,11495,2,10,117,null,"Note: The contractor is to check on site measurements before placing of order."]
[]
[889,9901,2,10,117,51,"Entrance single gate (G1) size 914 x 2125mm high overall formed of 50 x 50mm angle steel framing to detail, with NO.1 12mm heavy duty barrel bolt self lock set (to take padlock) with master keyed cylinder lock and hook, including finishing with epoxy coating in standard colours to Architect's specification, all as indicated on Architect's gate schedule, attached to these bills of quantities. ","No",64,null,0]
[]
[890,16055,2,10,117,52,"Entrance single gate (G2) size 813 x 2125mm high overall formed of 50 x 50mm angle steel framing to detail, with NO.1 12mm heavy duty barrel bolt self lock set (to take padlock) with master keyed cylinder lock and hook, including finishing with epoxy coating in standard colours to Architect's specification all as indicated on Architect's gate schedule, attached to these bills of quantities.  ","No",10,null,0]
[]
[891,18662,2,10,117,null,"SHELVING"]
[]
[892,18667,2,10,117,null,"Cold rolled sheet shelving:"]
[]
[893,18668,2,10,117,53,"300mm Wide x 1.6mm thick cold rolled sheet shelving all as indicated on Architect's drawing No. GC2202_Thabotona PS_JB_02, annexed to these bills of quantities.  ","m",1303,null,0]
[]
[894,18663,2,10,118,null,"Approved standard white powder coated finish shelving, etc. fixed in position strictly in accordance with the manufacturer's specification:"]
[]
[895,18665,2,10,118,54,"1500mm High double slot wall band fixed to wall with 8 x 80mm 'Hilti' drive anchors.","No",539,null,0]
[]
[896,18666,2,10,118,55,"381mm Wide or equally approved by manufacturer sloping shelf bracket, colour - white.","No",2156,null,0]
[]
[897,16447,2,10,118,null,"STEEL BALUSTRADING  "]
[]
[898,16448,2,10,118,null,"Welded balustrading to walkways and stairs:"]
[]
[899,16452,2,10,118,56,"Raking balustrading to staircase or ramp 1000mm high, 50.8mm external diameter x 1.5mm thick continuous steel tubing handrail, 12.7 x 1.5mm steel filler tubes at approximately 96mm centres and 38.1mm steel vertical balusters at 910mm centres with 65 x 90mm base plate welded top and bottom. (Drawing No GC2202_Thabotona PS_A_PD01).","m",250,null,0]
[]
[900,16453,2,10,118,57,"Extra over for junction of end of horizontal with end of raking balustrades.","No",32,null,0]
[]
[901,16455,2,10,118,58,"35mm Expansion anchor with loose bolt.","No",48,null,0]
[]
[902,16454,2,10,118,59,"M10 x 100mm Chemical anchor with loose bolt.","No",48,null,0]
[]
[903,16610,2,10,118,null,"STEEL SPIKES"]
[]
[904,16611,2,10,118,null,"Wall spikes to Architect's Drawing No: GC2202_Thabotona PS_BK3:"]
[]
[905,16612,2,10,118,60,"On walls.","m",43,null,0]
[]
[906,16216,2,10,118,null,"GALVANISED STEEL MINOR WORK"]
[]
[907,16465,2,10,118,null,"Columns, comprising channels welded to form box sections:"]
[]
[908,16609,2,10,118,61,"100 x 100 x 3mm Mild steel square tube columns in 2410mm lengths. ","No",8,null,0]
[]
[909,16478,2,10,119,62,"127 x 127 x 12.7mm thick Mild steel HSS column 5 720mm high, bolted to strip footing at 2700mm centres around court yard area.","No",42,null,0]
[]
[910,16595,2,10,119,63,"102 x 102mm SHS column to support windows in accordance with Engineer's detail and specification.","No",6,null,0]
[]
[911,16875,2,10,119,null,"Mild steel beams:"]
[]
[912,16876,2,10,119,64,"50 x 200mm Mild steel lipped channel beam.","m",36,null,0]
[]
[913,16223,2,10,119,null,"Galvanised Mild Steel:"]
[]
[914,16224,2,10,119,65,"9000mm High flagpole formed of 87mm (87mm for 5000mm, then reduces to 80mm for 4000mm) diameter steel pole, with pole cap and rope ring, eye, pulley, cleat and hinge stand, bolted with 3 x 12 mm diameter stainless steel threaded rod and bolts to and including 2 steel support channels 125 x 75 x 20 x 3 x 2000mm long welded to 80 x 80 x 6mm angle fixing cleats, each securely fixed to concrete base with 2 x 16mm diameter steel rods 600mm long embedded 600mm deep in ground, or equal approved, in and including 800 x 800 x 800mm deep cement concrete (25 MPa/19 mm stone) base including all excavation in earth, backfilling and ramming etc. complete.","No",2,null,{"$f":"J1498*I1498","v":0}]
[]
[915,16877,2,10,119,66,"19 x 235 x 4200mm Long galvanised steel fascia boards.","m",1353,null,0]
[]
[916,18642,2,10,119,67,"80 x 275 x 6mm Galvanised steel barge boards, including 12 x 40mm countersunk brass screws with galvanised steel H-profile barge board joiners.","m",129,null,0]
[]
[917,16225,2,10,119,null,"Sundries:"]
[]
[918,16226,2,10,119,68,"1800 x 1200mm Corporate digitally printed flag onto Ultra sheen including rope and toggle and including all branding, courier to client, artwork, redrawing etc. with School Logo.","No",2,null,0]
[]
[919,16227,2,10,119,69,"1800 x 1200mm Corporate digitally printed flag onto Ultra sheen including rope and toggle and including all branding, courier to client, artwork, redrawing etc. South African national flag.","No",2,null,0]
[]
[920,17050,2,10,119,null,"EXPANDED METAL SHEET"]
[]
[921,17051,2,10,119,70,"VEM320G or Equally Approved expanded metal sheet fixed to top of rafter to form under roof sheeting ","m2",6738,null,0]
[{"$nulls":11},{"$f":"SUM(K1304:K1512)","v":0}]
[922,0,2,10]
[]
[923,1394,2,11,121,null,"BILL NO. 12  PLASTERING"]
[]
[924,16304,2,11,121,null,"PREAMBLES"]
[]
[925,544,2,11,121,null,"The Tenderer is referred to the relevant Clauses in the separate document Model Preambles for Trades (2008 Edition), the Department of Public Works document No. PW 371 Specification of Materials and Methods to be used and to the Supplementary Preambles which are incorporated hereunder. "]
[]
[926,16305,2,11,121,null,"SUPPLEMENTARY PREAMBLES"]
[]
[927,16282,2,11,121,null,"Moisture tests:"]
[]
[928,16290,2,11,121,null,"Before any finishes, coverings, etc. are applied to screeds, plastering, etc. or any other in-situ finish moisture tests are to be carried out to the complete satisfaction of the Principal Agent to ensure that these surfaces have the correct moisture content for the finish to be applied."]
[]
[929,16283,2,11,121,null,"Labours, etc.:"]
[]
[930,16291,2,11,121,null,"Labours such as fair, rounded and chamfered edges, trowel cuts, throats, V-joints, angles, etc. shall be deemed to be included in the descriptions."]
[]
[931,16284,2,11,121,null,"Granolithic:"]
[]
[932,16292,2,11,121,null,"Coloured granolithic shall be tinted with an approved colouring pigment mixed into a true and even colour."]
[]
[933,16293,2,11,121,null,"Granolithic shall be covered with clean hessian with waterproof building foil over and kept wet for at least seven days after laying."]
[]
[934,16294,2,11,121,null,"Granolithic shall be laid in panels not exceeding 14m\\'b2 for monolithic finishes, not exceeding 9,5m\\'b2 for bonded finishes and not exceeding 6m\\'b2 for all external granolithic. Wherever possible, panels shall be square but at no time should the length of the panel exceed 1,5 times its width."]
[]
[935,16295,2,11,122,null,"Unless otherwise described, granolithic shall attain a compressive strength of at least 41MPa. The coarse aggregate shall comply with SANS 1083 and shall generally be capable of passing a 10mm mesh sieve. Where the thickness of the granolithic exceeds 25mm, the size of the coarse aggregate shall be increased to the maximum size compatible with the thickness of the granolithic."]
[]
[936,16297,2,11,122,null,"For granolithic applied monolithically, the concrete floor shall be swept clean after bleeding of the concrete has ceased and the slab has begun to stiffen; any remaining bleed water shall be removed and the granolithic applied immediately thereafter. For granolithic to be bonded to the floor slab after it has hardened, the slab surface shall be hacked (preferably by mechanical means) until all dirt, oil, etc. is dislodged and swept clean of all loose matter. The slab shall then be wetted and kept damp for at least six hours before applying the granolithic."]
[]
[937,16298,2,11,122,null,"Where possible joints between panels shall be positioned over joints in the floor slab and shall be at least 3mm wide through the full thickness of the finish, separated by strips of wood or fibreboard and finished with V-joints."]
[]
[938,16285,2,11,122,null,"Cement plaster:"]
[]
[939,16289,2,11,122,null,"Unless otherwise described, cement plaster shall be taken to mean Class 1 cement plaster."]
[]
[940,16286,2,11,122,null,"Self - levelling screed:"]
[]
[941,16287,2,11,122,null,"To Contractor's expense should Class 1 variance in F1 above not be achieved. Grind & prime existing surface with self-levelling Tal-Screed Master or equal & approved - thickness between 4 to 5mm."]
[]
[942,545,2,11,122,null,"SCREEDS"]
[]
[943,2586,2,11,122,null,"3:1 Cement screed on concrete:"]
[]
[944,547,2,11,122,1,"30mm Thick screed on floors and landings power floated on concrete.","m2",13698,null,0]
[]
[945,13220,2,11,122,2,"35mm Thick screed on floors and landings power floated on concrete.","m2",273,null,0]
[]
[946,15328,2,11,122,null,"GRANOLITHIC"]
[]
[947,15329,2,11,123,null,"Smooth granolite on screed free of dents and bumps."]
[]
[948,15330,2,11,123,3,"20mm Thick on floors and landings.","m2",1208,null,{"$f":"J1566*I1566","v":0}]
[]
[949,549,2,11,123,null,"INTERNAL PLASTER"]
[]
[950,550,2,11,123,null,"12mm Thick 4:1 One coat cement plaster steel trowelled on brickwork:"]
[]
[951,551,2,11,123,4,"On walls (Provisional). ","m2",6878,null,0]
[]
[952,552,2,11,123,5,"On narrow widths.","m2",237,null,0]
[]
[953,17052,2,11,123,null,"12mm Thick 4:1 One coat skimming plaster steel trowelled on concrete:"]
[]
[954,17053,2,11,123,6,"On ceilings including sides and soffits of beams.","m2",1510,null,0]
[{"$nulls":11},{"$f":"SUM(K1558:K1578)","v":0}]
[955,0,2,11]
[]
[956,1395,2,12,125,null,"BILL NO. 13  TILING"]
[]
[957,16306,2,12,125,null,"PREAMBLES"]
[]
[958,553,2,12,125,null,"The Tenderer is referred to the relevant Clauses in the separate document Model Preambles for Trades (2008 Edition), the Department of Public Works document No. PW 371 Specification of Materials and Methods to be used and to the Supplementary Preambles which are incorporated hereunder. "]
[]
[959,16307,2,12,125,null,"SUPPLEMENTARY PREAMBLES"]
[]
[960,16299,2,12,125,null,"Fixing:"]
[]
[961,16300,2,12,125,null,"Unless described as 'fixed with adhesive to plaster (plaster elsewhere)' descriptions of tiling on brick or concrete walls, columns, etc. shall be deemed to include 1:4 cement plaster backing and descriptions of tiling on concrete floors etc. shall be deemed to include 1:3 plaster bedding."]
[]
[962,16301,2,12,125,null,"Tiling described as \"fixed with adhesive on power floated concrete\" shall be deemed to include for approved tiling key - coat."]
[]
[963,16302,2,12,125,null,"Ceramic, tiles are to be fixed and grouted with suitable adhesives and grouts from the Professional range of products as recommended by the manufacturer of the tiles."]
[]
[964,554,2,12,125,null,"WALL TILING"]
[]
[965,555,2,12,125,null,"152 x 152 x 5mm Thick white glazed ceramic tiles fixed to plaster (elsewhere measured) with and approved tile adhesive to and pointed with white cement to:"]
[]
[966,556,2,12,125,1,"Walls in splashbacks.","m2",29,null,0]
[]
[967,13407,2,12,125,2,"Walls","m2",1745,null,0]
[]
[968,16036,2,12,125,3,"On narrow widths.","m2",123,null,0]
[]
[969,15320,2,12,126,null,"FLOOR TILING"]
[]
[970,15321,2,12,126,null,"Allow The Prime Cost of R450/M2 for 500 x 500mm anti-slip porcelain tiles delivered to site including waste, labour, adhesive, grouting with continuous joints in both directions and profit, etc. "]
[]
[971,15322,2,12,126,4,"On floors","m2",1094,null,0]
[]
[972,15961,2,12,126,5,"Skirting 150mm high.","m",1075,null,0]
[]
[973,15323,2,12,126,null,"Allow The Prime Cost of R700/M2 for 500 x 500mm heavy traffic porcelain tiles delivered to site including waste, labour, adhesive, grouting with continuous joints in both directions and profit, etc. "]
[]
[974,15324,2,12,126,6,"On floors","m2",342,null,0]
[]
[975,15974,2,12,126,7,"Skirting 150mm high.","m",372,null,0]
[]
[976,17031,2,12,126,null,"120 x 330mm Glossy ceramic tiles with aluminium coping:"]
[]
[977,17032,2,12,126,8,"On floors.","m2",67,null,0]
[]
[978,15956,2,12,126,null,"SUNDRIES"]
[]
[979,15957,2,12,126,null,"Aluminium dividing strips, etc.:"]
[]
[980,15958,2,12,126,9,"40mm Aluminium transition strip embedded into screed between vinyl sheeting and porcelain floor tiles.","m",204,null,{"$f":"J1630*I1630","v":0}]
[{"$nulls":11},{"$f":"SUM(K1601:K1630)","v":0}]
[981,0,2,12]
[]
[982,1396,2,13,128,null,"BILL NO. 14  PLUMBING AND DRAINAGE (PROVISIONAL)"]
[]
[983,14940,2,13,128,null,"PREAMBLES"]
[]
[984,11441,2,13,128,null,"Proprietary products shall be used as specified. Substitute products of similar quality and specification may only be used with prior approval by the Principal Agent."]
[]
[985,557,2,13,128,null,"The Tenderer is referred to the relevant Clauses in the separate document Model Preambles for Trades (2008 Edition), the Department of Public Works document No. PW 371 Specification of Materials and Methods to be used and to the Supplementary Preambles which are incorporated hereunder. "]
[]
[986,16308,2,13,128,null,"SUPPLEMENTARY PREAMBLES"]
[]
[987,16309,2,13,128,null,"References to details and drawings:"]
[]
[988,16310,2,13,128,null,"Where drawings and/ or details have been referred to Tenderers should price for complete detail and specification on such details and/ or drawing. No claims relating to the omissions on the part of tenders will be entertained."]
[]
[989,16311,2,13,128,null,"Wire gratings:"]
[]
[990,16320,2,13,128,null,"Descriptions of gutter outlets etc. shall be deemed to include wire balloon gratings."]
[]
[991,16313,2,13,128,null,"Stormwater channels:"]
[]
[992,16321,2,13,128,null,"Descriptions of channels shall be deemed to include necessary excavation, surface preparation, compaction, etc., and disposal of surplus material on site."]
[]
[993,16315,2,13,129,null,"French drains:"]
[]
[994,16323,2,13,129,null,"Descriptions of French drains shall be deemed to include excavation, stone filling graded from 300mm diameter at bottom to 75mm diameter at top, approved geo-fabric filter blanket over stone, 300mm earth filling over and disposal of surplus material on site."]
[]
[995,16316,2,13,129,null,"Stainless steel basins, sinks, wash troughs, urinals, etc.:"]
[]
[996,16324,2,13,129,null,"Stainless steel for economy basins, domestic sinks and worktops shall be Type 430 (17/0)  Stainless steel for urinals, basins, quality sinks, wash troughs, institutional equipment, etc. shall be Type 304 (18/8)  Stainless steel for laboratory sinks, photographic equipment, etc. shall be Type 316 (18/8)  Units shall have standard aprons on all exposed edges and tiling keys against walls where applicable."]
[]
[997,16318,2,13,129,null,"Sealing of edges:"]
[]
[998,16331,2,13,129,null,"Outer edges of sinks, basins, baths, urinals, etc. are to be sealed against adjacent surfaces with approved silicone."]
[]
[999,16325,2,13,129,null,"uPVC pipes and fittings:"]
[]
[1000,16332,2,13,129,null,"Sewer and drainage pipes and fittings shall be jointed and sealed with butyl rubber rings  Soil, waste and vent pipes and fittings shall be solvent weld jointed or sealed with butyl rubber rings."]
[]
[1001,16326,2,13,129,null,"uPVC pressure pipes and fittings:"]
[]
[1002,16334,2,13,129,null,"Pipes of 50mm diameter and smaller shall be plain ended with solvent welded uPVC loose sockets and fittings  Pipes of 63mm diameter and greater shall have sockets and spigots with push-in type integral rubber ring joints.  Bends shall be uPVC and all other fittings shall be cast iron, all with similar push-in type joints."]
[]
[1003,16327,2,13,129,null,"High density polyethylene (HDPe) pipes and fittings:"]
[]
[1004,16329,2,13,129,null,"Pipes shall be type IV and of the class specified with Plasson or Alprene compression fittings."]
[]
[1005,16336,2,13,130,null,"Polycop polypropylene pipes:"]
[]
[1006,16337,2,13,130,null,"Polypropylene pipes 54mm diameter and smaller shall be seamless copper coloured Class 16 pipes jointed with Fast-fuse heat welded thermoplastic or where so described Polylock compression fittings  Pipes shall be firmly fixed to walls, etc. with coloured nylon snap-in pipe clips with provision for accommodating thermal movement and jointed and fixed strictly in accordance with the manufacturer's instructions."]
[]
[1007,16338,2,13,130,null,"Copper pipes:"]
[]
[1008,16339,2,13,130,null,"Pipes shall be hard drawn and half-hard Maksal pipes of the class described.  Class 0 (thin walled hard drawn) pipes shall not be bent.  Class 1 (thin walled half-hard), Class 2 (half-hard) and Class 3 (heavy walled half-hard) pipes shall only be bent with benders with inner and outer formers.  Fittings to copper waste, vent and anti-syphon pipes, capillary solder fittings and compression fittings shall be Cobra Watertech type.  Capillary solder fittings shall comply with ISO 2016."]
[]
[1009,16341,2,13,130,null,"Copper pipes are to be installed in accordance with the latest revision of the Code of Practice for Copper Plumbing soldering techniques. Flux, solder, etc. to be strictly in accordance with the manufacturer's requirements with special attention to copper flux composition."]
[]
[1010,16342,2,13,130,null,"Reducing fittings:"]
[]
[1011,16345,2,13,130,null,"Where fittings have reducing ends or branches they are described as 'reducing' and only the largest end or branch size is given. Should the contractor wish to use other fittings and bushes or reducers he may do so on the understanding that no claim in this regard will be entertained."]
[]
[1012,16353,2,13,130,null,"Fixing of pipes:"]
[]
[1013,16354,2,13,130,null,"Unless specifically otherwise stated, descriptions of pipes shall be deemed to include fixing to walls, etc., casting in, building in or suspending not exceeding 1m below suspension level."]
[]
[1014,16355,2,13,131,null,"Paper wrapping to pipes:"]
[]
[1015,16356,2,13,131,null,"Pipes chased into brickwork must be wrapped with two layers of stout brown paper tied with wire.  Rates are to include for wrapping around joints and fittings."]
[]
[1016,16357,2,13,131,null,"Disinfection of water pipework:"]
[]
[1017,16358,2,13,131,null,"Water pipework is to be disinfected at completion in accordance with SABS 1200L (provision for disinfection elsewhere)."]
[]
[1018,16365,2,13,131,null,"Laying, backfilling, bedding, etc. of pipes:"]
[]
[1019,16367,2,13,131,null,"Pipes shall be laid and bedded in accordance with manufacturers' instructions and trenches shall be carefully backfilled."]
[]
[1020,16368,2,13,131,null,"Where no manufacturers' instructions exist, pipes shall be laid in accordance with Clauses 5.1 and 5.2 of each of the following:  SABS 1200L : Medium-pressure pipelines  SABS 1200LD : Sewers  SABS 1200LE : Stormwater drainage   Pipe trenches, etc. shall be backfilled in accordance with Clauses 3, 5.5, 5.6, 5.7 and 7 of SABS 1200DB : Earthworks (Pipe trenches)  Pipes shall be bedded in accordance with Clauses 3.1 to 3.4.1, 5.1 to 5.3 and 7 of SABS 1200LB : Bedding (Pipes)  Unless otherwise described bedding of rigid pipes shall be Class B bedding."]
[]
[1021,16369,2,13,131,null,"General:"]
[]
[1022,16370,2,13,131,null,"Descriptions of cast iron roof outlets shall be deemed to include joints to pipes and casting into concrete (adaptors for joints to PVC pipes, etc. are given separately)  Descriptions of overflow pipes where measured in number, shall be deemed to include joints to cisterns and splay cut ends."]
[]
[1023,16372,2,13,131,null,"Descriptions of pipes laid in and including trenches and of inspection chambers, catchpits, etc. shall be deemed to include excavation, bedding, backfilling, compaction to a minimum of 93% Mod AASHTO density and disposal of surplus material on site."]
[]
[1024,16373,2,13,131,null,"Descriptions of service pipes and flexible connecting pipes shall be deemed to include connections to taps, cisterns, etc. and to steel pipes (adaptors for connections to copper pipes, etc. are given separately)."]
[]
[1025,16374,2,13,132,null,"Descriptions of WC pans, slop hoppers, etc. shall be deemed to include for joints to soil pipes (pan connectors are separately measured)."]
[]
[1026,16375,2,13,132,null,"As-built drawings:"]
[]
[1027,16377,2,13,132,null,"Where required, the contractor shall prepare an updated set of as-built drawings. At completion of the contract the contractor shall hand these drawings to the principal agent for reproducing onto the originals for handing over to the employer (provision for allowance of as-built drawings elsewhere)."]
[]
[1028,16097,2,13,133,null,"RAINWATER DISPOSAL"]
[]
[1029,16099,2,13,133,null,"Watertite seamless aluminium guttering (or similar approved) 150mm x 125mm industrial OGEE x 0,8mm - ColourTech G4 in colour Charcoal including cut and mitred angles covered with a mitre strip externally, stop ends riveted and all sealed on the inside with Dow Corning 813 silicone sealer, secured to fibre cement fascia with 20 x 3mm dual-purpose brackets at 600mm centres using aluminium peeled rivets, with 75 x 50mm aluminium downpipe connected to water tanks to detail, to include all necessary bends, elbows, shoes etc."]
[]
[1030,16100,2,13,133,1,"125 x 125mm eaves gutter","m",1353,null,{"$f":"J1730*I1730","v":0}]
[]
[1031,16101,2,13,133,2,"125 x 125mm eaves gutter stopped end","No",40,null,{"$f":"J1732*I1732","v":0}]
[]
[1032,16102,2,13,133,3,"125 x 125mm eaves gutter mitre corner","No",56,null,0]
[]
[1033,16103,2,13,133,4,"100 x 75mm eaves gutter outlet  ","No",122,null,0]
[]
[1034,16104,2,13,133,5,"100 x 75mm fluted rainwater pipe","m",494,null,0]
[]
[1035,16105,2,13,133,6,"100 x 75mm crimped rainwater pipe bend","No",122,null,0]
[]
[1036,16106,2,13,133,7,"100 x 75mm crimped rainwater pipe shoe","No",122,null,0]
[]
[1037,596,2,13,133,null,"SANITARY FITTINGS AND GEYSERS"]
[]
[1038,597,2,13,133,null,"Supply and fix the following sanitary fittings, geysers and equipment together with loose ancillary fittings supplied therewith, including unloading, storing, unpacking, hoisting or lowering as required, fixing and building into position, cutting all mortices and chases as required for fixing and building in position, cutting, brackets, clamps, etc., and connecting up pipework and handing over in perfect working order at completion:"]
[]
[1039,17509,2,13,133,8,"15mm brushed chrome plated power vandal-resistant shower head with self-cleaning spray nozzle ","No",23,null,0]
[]
[1040,14941,2,13,134,null,"Wash Hand Basins:"]
[]
[1041,14942,2,13,134,9,"510mm x 430mm Vaal sanitary ware or Equally Approved hibiscus vitreous enamel wash hand basin including securely fixing to wall with bolts and fixing to floor with a pedestal. ","No",92,null,0]
[]
[1042,17033,2,13,134,10,"Approved white C.I Porcelain wall hung enamelled basin, 31mm chromium plated outlet, with plug, chain, anchor and 32mm back nut.","No",3,null,0]
[]
[1043,17034,2,13,134,11,"Acrylic WHB integrated into double/triple acrylic vanity.","No",5,null,0]
[]
[1044,17530,2,13,134,12,"Drop in epoxy single lab sink.","No",{"$f":"19+11","v":30},null,0]
[]
[1045,17043,2,13,134,null,"Precast Concrete Basin"]
[]
[1046,17044,2,13,134,13,"Precast concrete basin size 605 x 410 x 130mm high.","No",2,null,0]
[]
[1047,14944,2,13,134,null,"Water Closet:"]
[]
[1048,17522,2,13,134,14,"Junior vitreous china low level suite colour white with junior double flap wooden seat, comprising 104 degree outlet washdown pan with matching 6 litre front single flush cistern including lid, figments and flushpipe","No",22,null,0]
[]
[1049,17515,2,13,134,15,"Paraplegic vitreous china floor mounted paraplegic wash down suite colour white comprising semi close couple 90 degree outlet open rim wash down pan and matching 9 litre cistern, including lid, fitments and purpose-made chromium plated side flush lever.","No",8,null,0]
[]
[1050,17497,2,13,134,16,"Hibiscus vitreous china closet close coupled wash down suite colour white, comprising 90 degree outlet open rim panand matching 6/3 litre top dual flush cistern including lid and fitments, without seat","No",79,null,0]
[]
[1051,14945,2,13,134,17,"Standard white Porcelain WC, with low pressure flush master valve, complete with lid fitments, flushing system and white timber gloss coated single flap seat.","No",81,null,0]
[]
[1052,14946,2,13,134,18,"Vitreous china floor mounted paraplegic washdown suite colour white (code 7300SC) including semi close couple 90° outlet open rim washdown pan and matching 9 litre cistern complete with lid, fitments and purpose-made chromium plated side flush lever. ","No",10,null,0]
[]
[1053,9915,2,13,135,null,"Grade 304 (18/10) stainless steel fittings:"]
[]
[1054,17519,2,13,135,19,"Grade 304 0.7mm thick stainless steel type E single bowl wash trough size 540 x 455 x 285mm deep with lugs built into wall cobra watertech ledimo 15mm chrome plated wall mounted sink mixer with overarm swivel outlet, adjustable wall flanges and concealed connections, manufactured in accordance with SANS 226:2004","No",1,null,0]
[]
[1055,17516,2,13,135,20,"Grade 304 18/10 polished stainless steel centre double bowl drop on sink size 1200 x 535mm wide with two 343 x 410 x 169mm deep bowls, fitted onto cupboard.","No",4,null,0]
[]
[1056,15954,2,13,135,21,"''Franke Rondo 360 - Inset'' or equally approved vanity basins, size 360mm diameter x 340mm deep x 158mm deep with 12.5mm gauge. Unit is Grade 304 (18/10) stainless steel with a 40mm waste outlet and overflow hole. Basin to be fitted as an inset or undermount to vanity counter (e/m) and sealed with polysulphide sealant (e/m).","No",33,null,0]
[]
[1057,15955,2,13,135,22,"White vitreous china wall urinal size 610 x 385mm with wall hangers, strainer waste, top inlet spreader and chrome, fixed to wall and connect up to waste and water piping. ","No",19,null,0]
[]
[1058,17525,2,13,135,23,"Franke SS slop hopper with SS grid & 100mm Splash back 2630035 Franke CH slophopper 540 x 540 manufactured from grade 304 (18/10) stainless steel 1,2mm thick with a 100mm high integral splash to the rear and both sides.","No",1,null,0]
[]
[1059,10445,2,13,135,null,"Vitreous china:"]
[]
[1060,17523,2,13,135,24,"Vitreous china wall mounted basin colour white, size 455 x 290mm with two tapholes, including integrated overflow and chainstay hole bolted to wall with two 10mm bolts and sealed with silicone sealant where basin meets wall with 15mm chrome plated pillar tap with aerator outlet and flanged backnut, manufactured in accordance with SANS 226;2004 TYPE 1.","No",105,null,0]
[]
[1061,17502,2,13,136,25,"Lavatera white vitreous china wall mounted top inlet urinal, size 600 x 385 X 380mm, including 38mm chromium plated domical grating and chromium plated top inlet spreader, flush valve, fixed on and including two hanger brackets and urinal division fixed with and including fixing screws and hanger bracket. ","No",34,null,0]
[]
[1062,13126,2,13,136,26,"Laboratory sink (Code 234500) or similar approved, size 435mm x 335mm x 180mm with acid resistant waste code 8790Z0, two underslung brackets code 8109ZO and fitted into opening in joinery fitting with silicone sealant (joinery fitting elsewhere measured). ","No",12,null,0]
[]
[1063,612,2,13,136,null,"ELECTRIC WATER HEATERS"]
[]
[1064,613,2,13,136,null,"'Kwikot' or other equal approved:"]
[]
[1065,11821,2,13,136,27,"250 Litre horizontal floor mounted type electric hot water copper cylinder complete with vacuum breakers, pressure reducing valve and relief valve including all joints to copper pipes and hoisting into position in roof space and placing on platform (elsewhere measured) and connect up.","No",1,null,{"$f":"J1800*I1800","v":0}]
[]
[1066,615,2,13,136,null,"TAPS, VALVES, ETC."]
[]
[1067,10447,2,13,136,null,"Pillar taps:"]
[]
[1068,17524,2,13,136,28,"Medical mixer tap with elbow action for easy use with temperature Red/Blue indice for hot/cold water application chrome plated pure shine protects the product from scratches and leaves them  resistant to dirt and easy to maintain. 63mm high x 41mm diameter.","No",12,null,0]
[]
[1069,17526,2,13,136,29,"15mm chrome plated pillar tap with aerator outlet and flanged back nut manufactured in accordance with SANS 226:2004 type. ","No",65,null,0]
[]
[1070,17518,2,13,136,30,"15mm chrome plated wall mounted sink mixer Tap with overarm swivel outlet, adjustable wall flangers and concealed connections manufactured in accordance with SANS 226:2004","No",4,null,0]
[]
[1071,17500,2,13,136,31,"15mm chrome plated FI X FI  under tile stop tap, manufactured in accordance with SANS 1480:2005 ( BS 5412)","No",17,null,0]
[]
[1072,1421,2,13,137,32,"Cobra Capstan: CS-294CP or Equally Approved one hole basin mixer with cast fixed outlet.½” BSP female inlets. SANS 226 TYPE 2.","No",94,null,0]
[]
[1073,13196,2,13,137,33,"Cobra or Equally Approved wall type sink mixer with aerated swivel outlet. ½” BSP male inlet. SANS 226 TYPE 2. Ledimo: LO- 266/041/10","No",18,null,0]
[]
[1074,17527,2,13,137,null,"Lab Taps"]
[]
[1075,17528,2,13,137,34,"Bench mounted cold water lab tap single outlet.","No",19,null,0]
[]
[1076,17529,2,13,137,35,"Dry service lab gas mounted on bench single outlet","No",41,null,0]
[]
[1077,629,2,13,137,null,"WASTE UNIONS, TRAPS, ETC."]
[]
[1078,10448,2,13,137,null,"Traps etc."]
[]
[1079,17517,2,13,137,36,"38mm waste fitting and PVC trap.","No",3,null,0]
[]
[1080,632,2,13,137,37,"40mm Chrome plated deep seal bottle trap with outlet for 50mm PVC (code 365/50), or similar approved.","No",112,null,0]
[]
[1081,13426,2,13,137,38,"40 x 40mm rubber deep seal 'P' or 'S' trap jointed to waste outlet fitting and to PVC pipe including coupling clamps, etc.","No",112,null,0]
[]
[1082,10449,2,13,137,null,"Waste unions etc."]
[]
[1083,635,2,13,137,39,"40mm Chromium plated '316CP' sink waste union complete with plug and chain, or similar approved.","No",42,null,0]
[]
[1084,13156,2,13,137,null,"Floor drains, etc."]
[]
[1085,13157,2,13,137,40,"HB 200 V (H) NW 100' or other equal approved stainless steel grade 304 or other equal approved floor drain with vertical bottom outlet size 240mm x 240mm x 210mm deep fitted and connected complete.","No",2,null,0]
[]
[1086,13451,2,13,137,null,"COVERS, ETC."]
[]
[1087,13452,2,13,137,null,"Gratings, covers, etc."]
[]
[1088,16608,2,13,137,41,"450 x 450mm Cast iron rain drain grate and housing with spigot to fit 110mm drain pipe. ","No",2,null,0]
[{"$nulls":11},{"$f":"SUM(K1730:K1846)","v":0}]
[1089,0,2,13]
[]
[1090,1397,2,14,139,null,"BILL NO. 15  GLAZING"]
[]
[1091,14939,2,14,139,null,"PREAMBLES"]
[]
[1092,785,2,14,139,null,"The Tenderer is referred to the relevant Clauses in the separate document Model Preambles for Trades (2008 Edition), the Department of Public Works document No. PW 371 Specification of Materials and Methods to be used and to the Supplementary Preambles which are incorporated hereunder. "]
[]
[1093,16380,2,14,139,null,"SUPPLEMENTARY PREAMBLES"]
[]
[1094,16381,2,14,139,null,"Float glass:"]
[]
[1095,16382,2,14,139,null,"The term 'float glass' is used for monolithic annealed glass."]
[]
[1096,15895,2,14,139,null,"GLAZING TO STEEL WITH PUTTY"]
[]
[1097,15897,2,14,139,null,"6mm Frosted/obscured glass: "]
[]
[1098,15898,2,14,139,1,"Panes exceeding 0,1m2 and not exceeding 0,5m2. ","m2",611,null,{"$f":"J1866*I1866","v":0}]
[]
[1099,16000,2,14,139,null,"6mm Clear float safety glass:"]
[]
[1100,16001,2,14,139,2,"Panes exceeding 0,1m2 and not exceeding 0,5m2. ","m2",2,null,{"$f":"J1870*I1870","v":0}]
[]
[1101,16003,2,14,139,null,"4mm toughened safety glass:"]
[]
[1102,16004,2,14,139,3,"Panes exceeding 0,1m2 and not exceeding 0,5m2. ","m2",249,null,0]
[]
[1103,786,2,14,139,null,"GLAZING TO ALUMINIUM WITH CLIP ON BEADS"]
[]
[1104,16006,2,14,139,null,"6mm toughened safety glass:"]
[]
[1105,16007,2,14,139,4,"Panes exceeding 2m2 and not exceeding 4m2. ","m2",639,null,0]
[]
[1106,15995,2,14,140,null,"FIXED BULLETPROOF GLAZING"]
[]
[1107,15996,2,14,140,null,"42mm Fixed bulletproof glazing for protection against 357 and 44 magnum big hand guns and small calibre rifles to specialist detail. All to comply with standards  "]
[]
[1108,15997,2,14,140,5,"Panes exceeding 0,5m² and not exceeding 2m² ","m2",6,null,0]
[]
[1109,791,2,14,140,null,"TOPS, SHELVES, DOORS, MIRRORS, ETC."]
[]
[1110,792,2,14,140,null,"6mm 'GG' quality polished glass mirrors with polished edges holed for and fixed with round nose chromium plated mirrror screws with rubber buffers to plugs in brickwork or concrete:"]
[]
[1111,14947,2,14,140,6,"Mirror 450 x 600 x 6mm thick fixed at 800mm  above finished floor level. ","No",6,null,0]
[]
[1112,18630,2,14,140,null,"Grade 304 1mm 18/10 stainless steel mirrors:"]
[]
[1113,14948,2,14,140,7,"Mirrors, size 500 x 600 x 1mm deep plugged and screwed to the wall with stainless steel screws. ","No",107,null,0]
[{"$nulls":11},{"$f":"SUM(K1866:K1896)","v":0}]
[1114,0,2,14]
[]
[1115,1398,2,15,142,null,"BILL NO. 16  PAINTWORK"]
[]
[1116,14938,2,15,142,null,"PREAMBLES"]
[]
[1117,794,2,15,142,null,"The Tenderer is referred to the relevant Clauses in the separate document Model Preambles for Trades (2008 Edition), the Department of Public Works document No. PW 371 Specification of Materials and Methods to be used and to the Supplementary Preambles which are incorporated hereunder. "]
[]
[1118,16383,2,15,142,null,"SUPPLEMENTARY PREAMBLES"]
[]
[1119,16384,2,15,142,null,"Painting specification:"]
[]
[1120,16385,2,15,142,null,"All painting shall be done in accordance with SABS specifications unless otherwise described."]
[]
[1121,16386,2,15,142,null,"Colours:"]
[]
[1122,16387,2,15,142,null,"Unless otherwise described, all paintwork shall be deemed to have a colour value in excess of 7 on the Munsell system in accordance with SABS 1091."]
[]
[1123,16388,2,15,142,null,"When staining timber, the resultant colour or shade must be to the complete satisfaction of the Principal Agent before any overcoating or preservative is applied."]
[]
[1124,798,2,15,142,null,"ON FLOATED PLASTER SURFACES"]
[]
[1125,799,2,15,142,null,"Prepare surfaces and remove all loose material, apply one coat alkaline resistant primer, one universal undercoat two coats eggshell enamel paint on:"]
[]
[1126,800,2,15,142,1,"On walls.","m2",6466,null,{"$f":"J1922*I1922","v":0}]
[]
[1127,15962,2,15,142,2,"In narrow widths.","m2",343,null,{"$f":"J1924*I1924","v":0}]
[]
[1128,2555,2,15,143,null,"ON BRICK SURFACES"]
[]
[1129,2556,2,15,143,null,"Clean down with spirits of salts solution and apply two coats silicone-based brick dressing on: "]
[]
[1130,2558,2,15,143,3,"Facings (Internally).","m2",2255,null,0]
[]
[1131,9922,2,15,143,4,"Facings (Externally).","m2",672,null,0]
[]
[1132,803,2,15,143,null,"ON METAL"]
[]
[1133,9923,2,15,143,null,"Prepare, clean standard steel surfaces and apply one coat approved primer and two finishing coats of enamel paint on:"]
[]
[1134,9924,2,15,143,5,"Burglar gates and frame (measured flat on both sides).","m2",535,null,0]
[]
[1135,16022,2,15,143,null,"Prepare, clean standard steel surfaces and apply two coats approved primer and two finishing coats of enamel paint on: "]
[]
[1136,16023,2,15,143,6,"Burglar gates and frame (measured flat on both sides). ","m2",414,null,0]
[]
[1137,16606,2,15,143,null,"Prepare, clean mild steel surfaces and apply two coats anti-corrosive paint and two finishing coats of enamel paint to Architect's choice on: "]
[]
[1138,16607,2,15,143,7,"100 x 100mm Mild steel square tube columns.","m2",8,null,0]
[]
[1139,16051,2,15,143,null,"Sand down and apply one coat zinc chromate primer, one coat universal undercoat and two finishing coats approved gloss enamel paint in approved colour on:"]
[]
[1140,16052,2,15,143,8,"Mild steel door frames.","m2",309,null,0]
[]
[1141,16619,2,15,143,null,"Epoxy coating in standard colours to Architect's specification: "]
[]
[1142,16620,2,15,143,9,"Security gates (measured flat on both sides).","m2",137,null,0]
[]
[1143,16623,2,15,144,null,"Prepare and apply one coat universal undercoat and two finishing coats enamel paint to approval and manufacturer's detail: "]
[]
[1144,16624,2,15,144,10,"Mild steel door frames.","m2",354,null,0]
[]
[1145,19077,2,15,144,null,"Prepare and apply one coat primer coat and two finishing coats enamel paint to approval and manufacturer's detail: "]
[]
[1146,19078,2,15,144,11,"Windows (measured flat on both sides)","m2",1510,null,0]
[]
[1147,812,2,15,144,null,"ON WOOD"]
[]
[1148,816,2,15,144,null,"Sand down, prepare and apply two coats clear eggshell polyurethane varnish on:"]
[]
[1149,818,2,15,144,12,"Skirtings and quadrant bead, rails, etc., not exceeding 300 mm girth.","m",4165,null,0]
[]
[1150,9926,2,15,144,null,"Prepare and apply one coat spik and span all based wood primer UC2, two finishing coats of velvaglo polyurethane enamel VLO on:"]
[]
[1151,9927,2,15,144,13,"Doors (all surfaces measured).","m2",854,null,0]
[]
[1152,9930,2,15,144,null,"Three coats approved varnish on:"]
[]
[1153,9931,2,15,144,14,"Doors (all surfaces measured).","m2",192,null,0]
[]
[1154,13279,2,15,144,null,"ON FIBRE-CEMENT, PLASTERBOARD, ETC."]
[]
[1155,822,2,15,144,null,"Prepare and apply one coat zinc chromate to nail heads and H-spline strips, one universal undercoat and apply two finishing coats of eggshell enamel on:"]
[]
[1156,823,2,15,144,15,"General surfaces of skimmed ceilings.","m2",1456,null,0]
[]
[1157,13280,2,15,144,16,"General surfaces of fibre cement ceilings.","m2",2056,null,0]
[{"$nulls":11},{"$f":"SUM(K1921:K1984)","v":0}]
[1158,0,2,15]
[]
[1159,6391,2,16,146,1,"EARTHWORKS (PROVISIONAL)",{"$nulls":4},{"$f":"'BUILDING WORKS'!L93","v":0}]
[]
[1160,1400,2,16,146,2,"CONCRETE, FORMWORK & REINFORCEMENT",{"$nulls":4},{"$f":"L241","v":0}]
[]
[1161,10,2,16,146,3,"MASONRY",{"$nulls":4},{"$f":"L363","v":0}]
[]
[1162,11,2,16,146,4,"WATERPROOFING",{"$nulls":4},{"$f":"L405","v":0}]
[]
[1163,12,2,16,146,5,"ROOF COVERINGS",{"$nulls":4},{"$f":"L453","v":0}]
[]
[1164,13,2,16,146,6,"CARPENTRY AND JOINERY",{"$nulls":4},{"$f":"L747","v":0}]
[]
[1165,14,2,16,146,7,"CEILINGS PARTITIONS AND ACCESS FLOORING",{"$nulls":4},{"$f":"L801","v":0}]
[]
[1166,15,2,16,146,8,"FLOOR COVERINGS",{"$nulls":4},{"$f":"L857","v":0}]
[]
[1167,17252,2,16,146,9,"IRONMONGERY",{"$nulls":4},{"$f":"L1181","v":0}]
[]
[{"$nulls":5},10,"STRUCTURAL STEELWORK ",{"$nulls":4},{"$f":"L1251","v":0}]
[]
[1168,17,2,16,146,11,"METALWORK",{"$nulls":4},{"$f":"L1513","v":0}]
[]
[1169,18,2,16,146,12,"PLASTERING",{"$nulls":4},{"$f":"L1579","v":0}]
[]
[1170,19,2,16,146,13,"TILING",{"$nulls":4},{"$f":"L1631","v":0}]
[]
[1171,20,2,16,146,14,"PLUMBING AND DRAINAGE (PROVISIONAL)",{"$nulls":4},{"$f":"L1847","v":0}]
[]
[1172,21,2,16,146,15,"GLAZING",{"$nulls":4},{"$f":"L1897","v":0}]
[]
[1173,22,2,16,146,16,"PAINTWORK",{"$nulls":4},{"$f":"L1985","v":0}]
[]
[{"$nulls":6},"Bill Total",{"$nulls":4},{"$f":"SUM(L1988:L2018)","v":0}]

{"sheet":"ELECTRICAL INSTALLATION","index":3,"n_rows":556,"n_cols":12,"rows_kept":556}
["COUNTER","ISC","SECTION","BILL","PAGE NO","ITEM NO","DESCRIPTION","UNIT","QUANTITY","RATE","AMOUNT"]
[1174,17556,3,1,147,null,"BILL NO. 1  BULK SUPPLY & RETICULATION"]
[]
[1175,19054,3,1,147,null,"NOTE: Tenderes are advised to study the latest version of the *Guidelines for Electrical Installation requirements for new prototype schools*. The requirements of the Guidelines for Electrical Installation requirements for New Prototype Schools will however take precedence over Standard Quality Specification for General Electrical Installations ( GP/E6/1 Revision 1) and Standard Quality Specification for General Electrical Material and Equipment (GP/E6/2 Revision 1)."]
[]
[1176,17557,3,1,147,null,"The complete installation must comply SANS 0142 specifications and the Quality specification in this document.  Therefore Tenders are advised to study the specification and drawings before the Bill is to be price."]
[]
[1177,17558,3,1,147,null,"BULK SUPPLY "]
[]
[1178,17559,3,1,147,1,"Allow a Provisional Sum for Service Connection based on Tariff Plan and bulk Engineering Contributions to City of Ekurhuleni Metropolitan Municipality (150kVA). ","SUM",1,null,{"$f":"J10*I10","v":0}]
[]
[1179,17560,3,1,147,2,"Supply and install municipal distribution kiosk (metering kiosk) as per schematic diagram. The distribution kiosk shall comply with the municipality requirements. The rate shall include meter and plinth.","SUM",1,null,{"$f":"J12*I12","v":0}]
[]
[1180,17561,3,1,147,null,"CABLES, CONDUCTORS & SLEEVES"]
[]
[1181,17562,3,1,147,null,"Supply and install PVC insulated amoured copper cables"]
[]
[1182,17563,3,1,147,3,"120mm2 4 Core PVC insulated copper cable (For incoming municipal supply, supply cable from the boundary kiosk to generator changeover panel and from the generator to the main distribution board )","m",100,null,0]
[]
[1183,17564,3,1,147,4,"35mm2  4 Core PVC insulated copper cable ( From DB-MAIN to DB-L1)","m",160,null,0]
[]
[1184,17565,3,1,148,5,"25mm2  4 Core PVC insulated copper cable ( From DB-MAIN to DB-EP,DB-D1 & 2, DB-C1 & 2)","m",900,null,0]
[]
[1185,17566,3,1,148,6,"16mm2  4 Core PVC insulated copper cable (Supply cables to DB-L2, C3, C4, D3, D4, I, B and DB-L3)","m",700,null,0]
[]
[1186,17567,3,1,148,7,"16mm2  3 Core PVC insulated copper cable  (Supply cables to DB-J,  L4, K & O)","m",250,null,0]
[]
[1187,17568,3,1,148,null,"Supply and install bare copper earth conductor"]
[]
[1188,17569,3,1,148,8,"35mm2 Bare copper earth cable","m",100,null,0]
[]
[1189,17570,3,1,148,9,"16mm2 Bare copper earth cable","m",1060,null,0]
[]
[1190,17571,3,1,148,10,"10mm2 Bare copper earth cable","m",950,null,0]
[]
[1191,17572,3,1,148,11,"6mm2 Bare copper earth cable","m",250,null,0]
[]
[1192,17573,3,1,148,null,"GLANDS AND SHROUDS"]
[]
[1193,17574,3,1,148,12,"70mm2 4 x Core PVC insulated copper cable","m",4,null,0]
[]
[1194,17575,3,1,148,13,"35mm2  4 Core PVC insulated copper cable","No",2,null,0]
[]
[1195,17576,3,1,148,14,"25mm2  4 Core PVC insulated copper cable","No",10,null,0]
[]
[1196,17577,3,1,148,15,"16mm2  4 Core PVC insulated copper cable","No",16,null,0]
[]
[1197,17578,3,1,148,16,"16mm2  3 Core PVC insulated copper cable","No",8,null,0]
[]
[1198,17579,3,1,148,null,"GLANDS AND SHROUDS (Earth bare)"]
[]
[1199,17580,3,1,148,17,"35mm2 Bare copper earth cable","No",4,null,0]
[]
[1200,17581,3,1,148,18,"16mm2 Bare copper earth cable","No",12,null,0]
[]
[1201,17582,3,1,148,19,"10mm2 Bare copper earth cable","No",16,null,0]
[]
[1202,17583,3,1,148,20,"6mm2 Bare copper earth cable","No",8,null,0]
[]
[1203,17584,3,1,148,null,"CABLE MARKERS & WARNING TAPES"]
[]
[1204,17585,3,1,148,21,"Cable markers for cable routes indication","No",20,null,0]
[]
[1205,17586,3,1,148,22,"Cable warning tape","m",1000,null,0]
[]
[1206,17587,3,1,149,null,"SUPPLY & INSTALL PVC SLEEVES"]
[]
[1207,17588,3,1,149,23,"110mm Diameter","m",500,null,0]
[]
[1208,17589,3,1,149,24,"50mm Diameter","m",500,null,0]
[]
[1209,17590,3,1,149,null,"TRENCHING AND EXCAVATIONS (600mm wide & 800mm deep). Rate to include bedding and backfilling"]
[]
[1210,17591,3,1,149,25,"Pickable soil ","m3",480,null,0]
[]
[1211,17592,3,1,149,26,"Soft rock","m3",120,null,{"$f":"J76*I76","v":0}]
[]
[1212,17593,3,1,149,27,"Hard rock","m3",120,null,0]
[]
[1213,17594,3,1,149,28,"Install 600x600x800mm manhole (provision)","No",20,null,0]
[{"$nulls":11},{"$f":"SUM(K10:K80)","v":0}]
[1214,0,3,1]
[]
[1215,17595,3,2,151,null,"BILL NO. 2  ELECTRICAL INSTALLATION"]
[]
[1216,19055,3,2,151,null,"NOTE: Tenderers are advised to study the latest version of the *Guidelines for Electrical Installation requirements for new prototype schools*. The requirements of the Guidelines for Electrical Installation requirements for New Prototype Schools will however take precedence over Standard Quality Specification for General Electrical Installations ( GP/E6/1 Revision 1) and Standard Quality Specification for General Electrical Material and Equipment (GP/E6/2 Revision 1). "]
[]
[1217,17596,3,2,151,null,"The complete installation must comply to GDID electrical installation specifications.  Therefore Tenders are advised to study the specifications and drawings before the Bill is to be price."]
[]
[1218,17597,3,2,151,null,"CONDUITS"]
[]
[1219,17598,3,2,151,null,"Supply and install  pipes including short lengths jointing, sweeping bends, buses, locknuts,  roundboxes etc.:"]
[]
[1220,17599,3,2,151,1,"20mm diameter PVC pipe cast into concrete, brick work or suspended in ceiling voids","m",13480,null,0]
[]
[1221,17600,3,2,151,2,"20mm diameter copex conduit","m",1150,null,0]
[]
[1222,17601,3,2,151,null,"Supply and install steel galvanised walls boxes complete with all accessories "]
[]
[1223,17602,3,2,151,3,"100mm x 50mm x 50mm deep ","No",855,null,0]
[]
[1224,17603,3,2,151,4,"100mm x 100mm x 50mm deep ","No",1760,null,0]
[]
[1225,17604,3,2,151,5,"Supply and install 1,6mm diameter steel galvanised draw wires drawn into conduit/sleeves:","m",14780,null,0]
[]
[1226,17605,3,2,151,6,"Supply and install 100mm x 100mm blank cover plates","No",75,null,0]
[]
[1227,17606,3,2,151,7,"Supply and install 4 way PVC round boxes","No",3270,null,0]
[]
[1228,17607,3,2,151,8,"Supply and install 100mm X 50 blank plates","No",75,null,0]
[]
[1229,17608,3,2,152,null,"ELECTRICAL CABLE MANAGEMENT & TRUNKING"]
[]
[1230,17609,3,2,152,null,"Supply, Install, Test and Commission"]
[]
[1231,17610,3,2,152,null,"Galvanised unistrut suspended from structure in the roof. Fixings not to exceed 4m including galvanized steel cover (Rates to include: Tees, Bends, 4 ways, ends and all other accessories)."]
[]
[1232,17611,3,2,152,9,"P9000 Unistrut","m",2280,null,0]
[]
[1233,17612,3,2,152,10,"P8000 Unistrut  ","m",730,null,0]
[]
[1234,18955,3,2,152,11,"P2000 Unistrut","m",825,null,0]
[]
[1235,17614,3,2,152,null,"Power Skirting Aluminium:(To include All: elbows, corners sections, T-sections & end caps)"]
[]
[1236,17615,3,2,152,12,"Cabstrut N8/P803,  2-way with 2 cover plates & divider","m",535,null,0]
[]
[1237,17616,3,2,152,null,"DISTRIBUTION BOARDS (Refer to schematic diagrams)"]
[]
[1238,18956,3,2,152,null,"Supply and install main distribution board as per the schematic diagram and GDID specifications. The distribution board will be surface mounted in the duct provided. The distribution board doors must have a neat and professionally manufactured cut-out, with reinforced and properly finished edges, so that the main isolator of the distribution board can be switched without opening the door in case of emergency. . Distribution boards must lockable and padlocks must be supplied with the distribution board "]
[]
[1239,17617,3,2,152,13,"DB-A","No",1,null,0]
[]
[1240,18957,3,2,152,14,"DB-B1 ","No",2,null,0]
[]
[1241,18961,3,2,152,15,"DB-EP","No",1,null,0]
[]
[1242,18974,3,2,152,16,"DB-C1 & C2","No",2,null,0]
[]
[1243,18975,3,2,152,17,"DB-C3 & C4","No",2,null,{"$f":"J140*I140","v":0}]
[]
[1244,18977,3,2,152,18,"DB-D1 & D2","No",2,null,0]
[]
[1245,18978,3,2,153,19,"DB-D3 & D4","No",2,null,0]
[]
[1246,18979,3,2,153,20,"DB-I","No",1,null,0]
[]
[1247,18980,3,2,153,21,"DB-J","No",1,null,0]
[]
[1248,18981,3,2,153,22,"DB-K","No",1,null,0]
[]
[1249,18982,3,2,153,23,"DB-O","No",1,null,0]
[]
[1250,18984,3,2,153,24,"DB-L1","No",1,null,0]
[]
[1251,18985,3,2,153,25,"DB-L2","No",1,null,0]
[]
[1252,18986,3,2,153,26,"DB-L3 ","No",1,null,0]
[]
[1253,18987,3,2,153,27,"DB-L4","No",1,null,0]
[]
[1254,18988,3,2,153,28,"Supply and install master common box as per details indicated in the drawing. The common box supplied to be able to accommodate all required outlets. ","No",1,null,0]
[]
[1255,18989,3,2,153,29,"Supply and install slave common box as per details indicated in the drawing. The common box supplied to be able to accommodate all required outlets. ","No",1,null,0]
[]
[1256,18990,3,2,153,30,"Supply and install vandal proof, lockable and ventilated enclosure above stage common box. The enclosure to be able to accommodate: Rackable UPS, DMX, Amplifier, 1 x Isolator, 2 x switched socket outlets. ","No",1,null,0]
[]
[1257,17618,3,2,153,null,"CONDUCTORS"]
[]
[1258,17619,3,2,153,null,"Supply and install 600/1000Volt PVC insulated stranded copper conductors drawn into conduits, etc. (Wiring for lighting circuits is to be carried out with 2,5mm² conductors and 2,5mm² earth conductors.  For socket outlet circuits the wiring shall comprise of 4 mm² conductors with 2, 5mm² earth conductors)"]
[]
[1259,17620,3,2,153,31,"2.5mm2","m",30700,null,0]
[]
[1260,17621,3,2,153,32,"4mm2","m",25770,null,0]
[]
[1261,17622,3,2,154,33,"6mm2","m",670,null,0]
[]
[1262,17623,3,2,154,null,"Earth Wire"]
[]
[1263,17624,3,2,154,34,"2.5mm2","m",28235,null,0]
[]
[1264,17625,3,2,154,35,"4mm2","m",385,null,0]
[]
[1265,17626,3,2,155,null,"SOCKETS OUTLETS"]
[]
[1266,17627,3,2,155,null,"Supply, install and connect socket outlets in flush wall mounted boxes, power skirting, trunking or surface if required complete with cover plates and all necessary accessories:"]
[]
[1267,17628,3,2,155,36,"Supply and install 230V, 16A combination switched socket outlets (with 1 x standard  16A round 3 pin socket + 1 x 3 pin ZA  plug socket combined) flush mounted on the wall c/w steel cover plate (white) suitable to accommodate SANS 164-1 & SANS 164-2 socket outlets.","No",974,null,0]
[]
[1268,17629,3,2,155,37,"Supply and install 230V, 16A combination switched socket outlets (with 1 x standard  16A round 3 pin socket + 1 x 3 pin ZA  plug socket combined) with weatherproof (IP44) box flush mounted on the wall c/w steel cover plate (white) suitable to accommodate SANS 164-1 & SANS 164-2 socket outlets.","No",27,null,0]
[]
[1269,17630,3,2,155,38,"Supply and install 230V, 16A standard  round 3-pin switched socket outlets flush mounted on the power skirting c/w steel cover plate (white) suitable to accommodate SANS 164-1 socket outlets.","No",101,null,0]
[]
[1270,17631,3,2,155,39,"Supply and install 230V, 16A  3-pin ZA plug switched socket outlets flush mounted on the power skirting c/w steel cover plate (white) suitable to accommodate SANS 164-2 socket outlets.","No",101,null,0]
[]
[1271,18958,3,2,155,40,"supply and install cluster unit to accommodate 1 x 16A standard round 3-oin switched socket outlet, 16A 3-pin ZA plug switched socket outlet + 1 x RJ11 telephone outlet and RJ45 data outlet complete with covers, blank plates and all necessary accessories ( to be installed in 1 tier wall box). Rates to include blank covers for RJ11 and RJ45 only as these outlets are measured under ICT","No",4,null,0]
[]
[1272,17633,3,2,155,41,"Supply and install  5 Amp single  un-switched Socket outlet (complete with 60mm pvc round box for light fittings). The socket to be mounted on the trunking or somewhere else in the ceiling void.","No",1375,null,0]
[]
[1273,18959,3,2,155]
[]
[1274,17634,3,2,155,null,"SWITCHES"]
[]
[1275,17635,3,2,156,null,"Supply, install and connect light switches  in flush wall mounted boxes, complete with cover plates and all necessary accessories:"]
[]
[1276,17636,3,2,156,42,"Supply and install 16A one lever one way light switch flush mounted on the wall ","No",260,null,{"$f":"J206*I206","v":0}]
[]
[1277,17637,3,2,156,43,"Supply and install 16A two lever one way light switch flush mounted on the wall","No",17,null,0]
[]
[1278,17638,3,2,156,44,"Supply and install 16A one lever two way light switch flush mounted on the wall ","No",32,null,0]
[]
[1279,17639,3,2,156,45,"Supply and install Day light switch/photocell","No",17,null,0]
[]
[1280,18992,3,2,156,46,"Supply and install 32A master switch","No",2,null,0]
[]
[1281,18993,3,2,156,47,"Supply and install 16A rotary dimmable switch unit","No",2,null,0]
[]
[1282,18996,3,2,156,48,"Supply and install 16A intermediate light switch","No",3,null,0]
[]
[1283,18997,3,2,156,49,"Supply and install 3 pole 30A contactor","No",2,null,0]
[]
[1284,17640,3,2,156,null,"ISOLATORS "]
[]
[1285,17641,3,2,156,null,"Supply, install and connect isolators in flush wall mounted boxes or surface, complete with cover plates and all necessary accessories (Isolators to be mounted within  one meter of the equipment to be controlled). "]
[]
[1286,17642,3,2,156,50,"Supply and install 230V, 30A double pole isolator surface mounted in the ceiling void for geyser connection. Rates to include  4 inch x 4 inch extension box","No",19,null,0]
[]
[1287,17643,3,2,156,51,"Supply and install 230V, 60A double pole isolator flush mounted in the wall for stove or extractor fan connection","No",3,null,0]
[]
[1288,17644,3,2,156,52,"Supply and install 230V, 30A double pole isolator mounted in the ceiling void for HVAC .Rates to include  4 inch x 4 inch extension box","No",2,null,0]
[]
[1289,17645,3,2,156,53,"Supply and install 230V, 30A double pole isolator flush mounted in the wall for intercom control panel","No",2,null,0]
[]
[1290,17646,3,2,156,54,"Supply and install 230V, 30A double pole isolator mounted in the wall for UPS connection","No",4,null,0]
[]
[1291,17647,3,2,157,55,"Supply and install 230V, 30A double pole isolator mounted in the ceiling void for siren. Rates to include  4 inch x 4 inch extension box","No",1,null,0]
[]
[1292,18960,3,2,157,56,"Supply and install 230V, 30A double pole isolator mounted in the ceiling void for extractor canopy. Rates to include 4 inch x 4 inch extension box ","No",5,null,0]
[]
[1293,18971,3,2,157,57,"Supply and install 230V, 30A double pole isolator flush mounted in the wall for air-conditioner. ","No",1,null,0]
[]
[1294,18976,3,2,157,58,"Supply and install 230V, 30A double pole isolator flush mounted in the wall for stove connection.","No",3,null,0]
[]
[1295,18998,3,2,157,59,"Supply and install 230V, 30A double pole isolator surface mounted in the ceiling void for compactor connection. Rates to include  4 inch x 4 inch extension box ","No",5,null,0]
[]
[1296,19001,3,2,157,60,"Supply and install 230V, 30A double pole isolator mounted for coldroom. Rates to include  4 inch x 4 inch extension box","No",1,null,0]
[]
[1297,19003,3,2,157,61,"Supply and install 230V, 30A double pole isolator mounted in the for fire alarm panel.","No",1,null,0]
[]
[1298,19004,3,2,157,62,"Supply and install 230V, 30A double pole isolator mounted in the wall for extractor canopy","No",2,null,0]
[]
[1299,19005,3,2,157,63,"Supply and install 400V, 40A double pole isolator surface mounted for fresh air supply unit. Rates to include 4 inch x 4 inch extension box.","No",2,null,0]
[]
[1300,17648,3,2,158,null,"LUMINAIRES"]
[]
[1301,17649,3,2,158,null,"Supply, install and connect luminaries complete with lamps, fixings, brass screws, washers, etc. All recessed light fittings should be supplied with 3m connection lead"]
[]
[1302,17650,3,2,158,64,"Type A1 (1150mm long surface mounted light fitting c/w 33W LED, 5609 lumens, IP54, 4 000K, UV stabilised polycarbonate diffuser, electronic control gear)","No",179,null,0]
[]
[1303,17651,3,2,158,65,"Type C (Ceiling mounted 15W LED round bulkhead IP65 light fitting with prismatic acrylic diffuser)","No",464,null,0]
[]
[1304,17652,3,2,158,66,"Type D (Surface mounted 30W LED flood light fitting)","No",39,null,0]
[]
[1305,17653,3,2,158,67,"Type A6 (Recessed LED panel light fitting c/w 50W LED, 5907 lumens, IP40, UV polycarbonate diffuser, 2m x 0.75mm 2flex cable, 5A unswitched socket outlet, 5A plug top, electronic control gear and 5 year warranty)","No",467,null,0]
[]
[1306,17654,3,2,158,68,"Type R (Wall mounted round bulkhead IP65 c/w E27 20W red LED lmap, and electronic control gear and prismatic acrylic diffuser)","No",6,null,0]
[]
[1307,19006,3,2,158,69,"Type T (1200 X 600 recessed DALI dimmable T-Bay luminaire c/w 119W LED clear plastic diiffuser and MIRO4 aluminium) ","No",42,null,{"$f":"J268*I268","v":0}]
[]
[1308,19007,3,2,158,70,"EXIT (Non-maintained emergency exit light c/w 4W LED, battery pack and electronic control gear) ","No",14,null,0]
[]
[1309,19008,3,2,158,71,"Type T2 (Non-maintained emergency directional exit light c/w 4W LED, battery pack and electronic control gear) ","No",5,null,0]
[]
[1310,19009,3,2,158,72,"Type G ( recessed downlight c/w 10w cool LED E27 lamp holders) ","No",25,null,0]
[]
[1311,19010,3,2,158,73,"Type H (Recessed ceiling mounted high beam 35W LED downlight titled to 35 degrees to normal and with electronic control gear) ","No",6,null,0]
[]
[1312,19011,3,2,159,74,"Type F (track mountable high beam professional cylindrical LED par CAN 16 Channel DMX & sound activated stage lighting 0-100% dimmable c/w 18 x 10W 4-in-1 LED and with electronic control gear) ","No",10,null,0]
[]
[1313,19012,3,2,159,null,"AUDITORIUM LIGHTING CONTROL "]
[]
[1314,19013,3,2,159,75,"Supply and install a complete DALI lighting control system in the auditorium, the system to be able to control and dim 42 x 116W light fittings. The lights to be controlled from two different places (common boxes). The contractor to quote for a complete working system that will include 2 x DALI dimmer switches, wiring cables, sufficient channel relay units to accommodate 42 lights and all other required accessories. ","No",1,null,0]
[]
[1315,17655,3,2,159,null,"TELECOMMUNICATION AND DATA"]
[]
[1316,17656,3,2,159,76,"RJ11 cover plate on the wall or  Power skirting","No",31,null,0]
[]
[1317,17657,3,2,159,77,"RJ45  cover plate on wall or  Power skirting","No",272,null,0]
[]
[1318,17658,3,2,159,78,"450mm x 300mm x 125mmdeep telephone wall box","No",14,null,0]
[]
[1319,17659,3,2,159,null,"TESTING AND COMMISSIONING"]
[]
[1320,17660,3,2,159,79,"Inspections, testing and handing over of the complete installation in the presence of the Engineer and certify the results on the Certificate of compliances by an accredited person.","Item",1,null,0]
[{"$nulls":11},{"$f":"SUM(K94:K294)","v":0}]
[1321,0,3,2]
[]
[1322,18133,3,3,161,null,"BILL NO. 3  EARTHING AND LIGHTING PROTECTION"]
[]
[1323,19056,3,3,161,null,"NOTE: Tenderers are advised to study the latest version of the *Guidelines for Electrical Installation requirements for new prototype schools*. The requirements of the Guidelines for Electrical Installation requirements for New Prototype Schools will however take precedence over Standard Quality Specification for General Electrical Installations ( GP/E6/1 Revision 1) and Standard Quality Specification for General Electrical Material and Equipment (GP/E6/2 Revision 1). "]
[]
[1324,18134,3,3,161,null,"(a) The earthing & lightning protection installation shall be strictly as per the latest SANS Specifications, these are available from the SABS, and the onus is on the contractor to acquire his /her own copy:(b) Install SABS Approved earthrods (1,5m in length, 16mm Dia copper plated) in pre-drilled holes (55mm Dia)   as per drawing. (c) Connect the earthrod via 70mm2 Insulated Copper wire & wire rope clamps/u-bolts to the rebar of the column or testing points. (d) The 70mm2 Insulated Copper wire must be laid in a trench 500mm in depth & the copper must be connected to the earthrod via electrothermic welding. (e) All pre-drilled holes must be backfilled with conductive cement, as per supplier’s specification. (f) The roof should be bonded every 20m to the column via 35mm2 Insulated Copper wire (connected to the rebar & connected to the zinc roof. "]
[]
[1325,18135,3,3,161,null,"LIGHTNING PROTECTION"]
[]
[1326,18136,3,3,161,1,"Install 1,5m SABS Approved earthrods at a depth off 500mm below ground level","No",120,null,0]
[]
[1327,18137,3,3,161,2,"70mm² Insulated Copper wire ","m",250,null,0]
[]
[1328,18138,3,3,162,3,"Bond to test point as per drawing. ","No",120,null,0]
[]
[1329,18139,3,3,162,4,"Electrothemical /Exothermic connection","No",120,null,0]
[]
[1330,18140,3,3,162,5,"Trenching in soft rock","m3",30,null,0]
[]
[1331,18141,3,3,162,6," PVC conduit 25mm diametre (flush mounted in the wall from the roof to the flush galvanised conduit box and from conduit box to the earth peg outside the building)","m",620,null,0]
[]
[1332,18142,3,3,162,7,"105mm x 105 mm galvanized conduit box located 300 mm above finished floor level and fitted with blank PVC cover plates labelled “Earth Test Point”.","No",120,null,0]
[]
[1333,18143,3,3,162,8,"Conductive Cement","No",120,null,0]
[]
[1334,18144,3,3,162,9,"Continuous 35 square mm round solid zinc coated copper strip secured to roof of building, including all clamps, joints and fixing accessories","m",850,null,0]
[]
[1335,18145,3,3,162,10,"10mm2 bare copper earth wire for interconnection of earth pegs","m",1300,null,0]
[]
[1336,18146,3,3,163,null,"BONDING OF WALKWAYS BETWEEN BLOCKS"]
[]
[1337,18147,3,3,163,null,"Bonding of pillars next of covered walkways between school blocks (The pillars to be bonded to earh pegs and have a galvanized 105mm x 105mm test box with PVC cover), Rate "]
[]
[1338,18148,3,3,163,11,"Install 1,5m SABS Approved earthrods at a depth off 500mm below ground level","No",28,null,0]
[]
[1339,18149,3,3,163,12,"70mm² Insulated Copper wire ","m",90,null,{"$f":"J332*I332","v":0}]
[]
[1340,18150,3,3,163,13,"Bond to test point as per drawing. ","No",28,null,0]
[]
[1341,18151,3,3,163,14,"Electrothemical /Exothermic connection","No",28,null,0]
[]
[1342,18152,3,3,163,15,"Trenching in soft rock","m3",24,null,0]
[]
[1343,18153,3,3,163,16," PVC conduit 25mm diametre ( from conduit box to the earth peg outside the building)","m",150,null,0]
[]
[1344,18154,3,3,163,17,"105mm x 105 mm galvanized conduit box located 300 mm above finished floor level and fitted with blank PVC cover plates labelled “Earth Test Point”.","m",28,null,0]
[]
[1345,18155,3,3,163,18,"Conductive Cement","No",28,null,0]
[]
[1346,18156,3,3,163,null,"BONDING OF PILLARS INSIDE SCHOOL BLOCKS AND RAIN GUTTERS"]
[]
[1347,18157,3,3,163,null,"The steel pillars next to the covered walkways inside school blocks must be bonded to the roof and to earth pegs in lieu of the earthing conductor with a test box"]
[]
[1348,18158,3,3,163,19,"Install 1,5m SABS Approved earthrods at a depth off 500mm below ground level","No",90,null,0]
[]
[1349,18159,3,3,163,20,"70mm² Insulated Copper wire ","m",400,null,0]
[]
[1350,18160,3,3,163,21,"Bond to test point as per drawing.","No",90,null,0]
[]
[1351,18161,3,3,163,22,"Electrothemical /Exothermic connection","No",90,null,0]
[]
[1352,18162,3,3,163,23,"Trenching in soft rock","m3",42,null,0]
[]
[1353,18163,3,3,163,24," PVC conduit 25mm diametre ( from conduit box to the earth peg outside the building)","m",500,null,0]
[]
[1354,18164,3,3,164,25,"105mm x 105 mm galvanized conduit box located 300 mm above finished floor level and fitted with blank PVC cover plates labelled “Earth Test Point”.","No",90,null,0]
[]
[1355,18165,3,3,164,26,"Conductive Cement","No",90,null,0]
[]
[1356,18166,3,3,164,null,"TESTING AND COMMISSIONING"]
[]
[1357,18167,3,3,164,27,"Testing and commissioning and issuing of COC for the complete earthing and lightning protection installation","Item",1,null,0]
[{"$nulls":11},{"$f":"SUM(K306:K368)","v":0}]
[1358,0,3,3]
[]
[1359,18168,3,4,166,null,"BILL NO. 4  EMERGENCY POWER SYSTEM"]
[]
[1360,19057,3,4,166,null,"NOTE: Tenderers are advised to study the latest version of the *Guidelines for Electrical Installation requirements for new prototype schools*. The requirements of the Guidelines for Electrical Installation requirements for New Prototype Schools will however take precedence over Standard Quality Specification for General Electrical Installations ( GP/E6/1 Revision 1) and Standard Quality Specification for General Electrical Material and Equipment (GP/E6/2 Revision 1). "]
[]
[1361,18169,3,4,166,null,"STANDBY GENERATOR"]
[]
[1362,18170,3,4,166,null,"Supply and install a stand-by diesel Generators as specified having prime rating output at site conditions. Work to include construction of concrete foundation & steel cage, delivery, off-loading, placing of genset,termination of cables, installation of power cable & earthing , supply & erection of bulk fuel tank & piping and any other works as required :- NB: Distribution cables are measured elsewhere."]
[]
[1363,18171,3,4,166,1,"150 kVA, 1500 r.p.m, 415 V/230 V, 50 Hz, diesel, watercooled engine, sound attenuated indoor generating set. Sound attenuation to 70 dBA at 7meters in accordance with specification.","No",1,null,0]
[]
[1364,18176,3,4,166,2,"Testing, Commissioning of the above as specified at site conditions with one year maintenance.","No",1,null,0]
[]
[1365,18177,3,4,166,3,"2250 litres cylindrical, horizontal steel fuel bulk storage tank below the generator compliant to SANS 10131 complete with automatic fuel pump and pipework supplied and installed. Work to include construction of concrete foundation, placing of fuel tank & piping connections.","No",1,null,0]
[]
[1366,18178,3,4,166,4,"Maintenance contract after handover.","Months",12,null,0]
[]
[1367,18179,3,4,167,null,"UNINTERRUBLE POWER SUPPLY "]
[]
[1368,18180,3,4,167,null,"Supply and install an uninteruptible power supply system. Work to include  placing UPS, wiring of UPS, termination of cables, installation of power cable & earthing where required :-"]
[]
[1369,18181,3,4,167,5,"Supply, Installation, testing and commissioning of rack mountable Uninteruble Power Supply (UPS) system of - 3 kVA for > 0.99 pf. n+1 type with individual 15-30 mins battery back up and as per specification of tender . The work shall include tapping power from nearby SSO equipped with MCB. All wiring from battery to UPS shall be part of Tenderer's scope and all batteries shall be SMF type.","No",2,null,0]
[]
[1370,18182,3,4,167,6,"Supply, Installation, testing and commissioning of rack mountable Uninteruble Power Supply (UPS) system of - 1,5 kVA for > 0.99 pf. n+1 type with individual 15-30 mins battery back up and as per specification of tender . The work shall include tapping power from nearby SSO equipped with MCB. All wiring from battery to UPS shall be part of Tenderer's scope and all batteries shall be SMF type.","No",14,null,0]
[{"$nulls":11},{"$f":"SUM(K380:K394)","v":0}]
[1371,0,3,4]
[]
[1372,18183,3,5,169,null,"BILL NO. 5  AREA AN SECURITY LIGHTING "]
[]
[1373,19058,3,5,169,null,"NOTE: Tenderers are advised to study the latest version of the *Guidelines for Electrical Installation requirements for new prototype schools*. The requirements of the Guidelines for Electrical Installation requirements for New Prototype Schools will however take precedence over Standard Quality Specification for General Electrical Installations ( GP/E6/1 Revision 1) and Standard Quality Specification for General Electrical Material and Equipment (GP/E6/2 Revision 1). "]
[]
[1374,18184,3,5,169,null,"Supply and install area and security lights as indicated in drawings"]
[]
[1375,18185,3,5,169,1,"Type S (Post top type luminaire with 55W LED lamp mounted on a 4.6m high pole)","No",70,null,{"$f":"J404*I404","v":0}]
[]
[1376,18186,3,5,169,2,"Supply & install 76 mm top diameter hot dipped galvanised steel mast of mineral grey paint finish with overall length of 4.6 m for direct embedment in ground and complete with accessories including 2,5 mm² internal wiring, BCEW, pole earthing and access cover as per specifications ","No",70,null,0]
[]
[1377,18187,3,5,169,3,"Supply, install and connect up die cast aluminium body with tempered glass LED floodlight Luminaire equipped with motion sensor. Total power rating of LEDs to be 30W with builtin driver. Adjustable sensor for Lux, time and sensitivity of 25 metre range throughput. IP rating of IP65. Luminaire is describe as Type D in technical specification.","No",10,null,0]
[]
[1378,18188,3,5,169,4,"Type C (Ceiling mounted 18W LED round bulkhead IP65 light fitting with prismatic acrylic diffuser) for walkways","No",95,null,0]
[]
[1379,18189,3,5,169,null,"CABLES, CONDUCTORS & SLEEVES"]
[]
[1380,18190,3,5,169,5,"6mm2 x 3 core PVC/SWA/PVC Alu cable (underground cables for post tops)","No",2000,null,0]
[]
[1381,18191,3,5,170,6,"6mm2 x 3 core PVC/SWA/PVC Alu cable (running on the walkways for walkway bulkhead lights)","No",1400,null,0]
[]
[1382,18192,3,5,170,null,"GLANDS AND SHROUDS"]
[]
[1383,18193,3,5,170,7,"6mm2 x 3 core PVC/SWA/PVC Alu cable","No",350,null,0]
[]
[1384,18194,3,5,170,null,"LIGHTING CONTROL"]
[]
[1385,18195,3,5,170,8,"Photocell","No",18,null,0]
[]
[1386,18196,3,5,170,9,"32 A contactor switch with 240 V AC coil, enclosed in distribution enclosure and coupled to photocell.","No",18,null,0]
[]
[1387,18197,3,5,170,null,"CABLE MARKERS & WARNING TAPES"]
[]
[1388,18198,3,5,170,10,"Cable warning tape","m",1800,null,0]
[]
[1389,18199,3,5,170,null,"SUPPLY & INSTALL UPVC SLEEVES (Rate to include 2,5mm2 draw wire)"]
[]
[1390,18200,3,5,170,11,"50mm Diameter","m",300,null,0]
[]
[1391,18201,3,5,170,12,"25mm Diameter","m",2500,null,0]
[]
[1392,18202,3,5,170,null,"TRENCHING AND EXCAVATIONS (450mm wide & 800mm deep), Rate to include backfilling, compacting and other necessary materials required for aroud the cables"]
[]
[1393,18203,3,5,170,13,"Pickable soil ","m3",650,null,0]
[]
[1394,18204,3,5,170,null,"TESTING AND COMMISSIONING"]
[]
[1395,18205,3,5,170,14,"Testing and commissioning and issuing of COC for the complete lighting installation","Item",1,null,0]
[{"$nulls":11},{"$f":"SUM(K403:K444)","v":0}]
[1396,0,3,5]
[]
[1397,18206,3,6,172,null,"BILL NO. 6  FIRE DETECTION"]
[]
[1398,19059,3,6,172,null,"NOTE: Tenderers are advised to study the latest version of the *Guidelines for Electrical Installation requirements for new prototype schools*. The requirements of the Guidelines for Electrical Installation requirements for New Prototype Schools will however take precedence over Standard Quality Specification for General Electrical Installations ( GP/E6/1 Revision 1) and Standard Quality Specification for General Electrical Material and Equipment (GP/E6/2 Revision 1). "]
[]
[1399,18207,3,6,172,null,"CABLES"]
[]
[1400,18208,3,6,172,null,"Fire retardant insulated twin copper conductors drawn into conduit/trunking complete with all required fittings and acessories, terminations, lugs etc:"]
[]
[1401,18209,3,6,172,1,"1.5 sq. mm 2-Core PH30 fire alarm cable","m",150,null,0]
[]
[1402,18210,3,6,172,null,"Communication LINK cable between the panels 2 wire"]
[]
[1403,18211,3,6,172,null,"FIELD DEVICES AND ACCESSORIES"]
[]
[1404,18212,3,6,172,null,"Addressable break-glass type fire alarm contact c/w resettable element, hinged cover and breakable seal as specified fixed to draw box provided in block work:"]
[]
[1405,18213,3,6,172,2,"Surface or recessed mounted type.","No",11,null,{"$f":"J464*I464","v":0}]
[]
[1406,18214,3,6,172,3,"Supply and install remote LED indicating unit on the underside of false ceiling for the respective optical smoke detector installed above false ceiling including the interconnecting cable.","No",4,null,0]
[]
[1407,18215,3,6,172,null,"Alarm sounder/flasher combo:"]
[]
[1408,18216,3,6,172,4,"24 V DC, 100 dB, weatherproof to IP65 with synchronized alarm tones combined with 4 W flasher with orange strobe","No",12,null,0]
[]
[1409,18217,3,6,173,null,"Intelligent fire alarm control panel complete with power supply, battery charger, standby battery, switching/mini switching monitor units, sounder control loop, loop power sounder, software, panels,printer etc as specified"]
[]
[1410,18218,3,6,173,5,"Addressable 2 Loop Fire Panel c/w network car","No",1,null,0]
[]
[1411,18219,3,6,173,null,"Fire shutdown relays complete with contacts as specified for AC units and extractor fans."]
[]
[1412,18220,3,6,173,6,"230 V relay","No",3,null,0]
[]
[1413,18221,3,6,173,null,"Lightning and surge protecting installation for the complete system in all zones"]
[]
[1414,18222,3,6,173,7,"Single phase","No",1,null,0]
[]
[1415,18223,3,6,173,null,"Supply, install and connect short circuit isolators."]
[]
[1416,18224,3,6,173,8,"Double pole","m",2,null,0]
[]
[1417,18225,3,6,173,null,"LOOP INTERFACE MODULE"]
[]
[1418,18226,3,6,173,null,"Supply, install and connect input/output loop interface units for the interface with other systems (HVAC Systems)."]
[]
[1419,18227,3,6,173,9,"230 V relay","No",3,null,0]
[]
[1420,18228,3,6,173,null,"DIAGRAMS AND MIMICS"]
[]
[1421,18229,3,6,173,10,"Supply A3 size, aluminium framed, colour coded, laminated zone diagram next to the fire panel.","No",3,null,0]
[]
[1422,18230,3,6,173,null,"COMMISSIONING AND TESTING"]
[]
[1423,18231,3,6,173,11,"Programming, device/cable lableling, commissioning and testing of the fire detection system installation","SUM",1,null,0]
[]
[1424,18232,3,6,173,12,"Allow for the training of the clinic's personnel after Engineer's final approval.","No",1,null,0]
[{"$nulls":11},{"$f":"SUM(K454:K502)","v":0}]
[1425,0,3,6]
[]
[1426,18233,3,7,175,null,"BILL NO. 7  ICT & ELECTRONIC INSTALLATION"]
[]
[1427,19060,3,7,175,null,"NOTE: Tenderers are advised to study the latest version of the *Guidelines for Electrical Installation requirements for new prototype schools*. The requirements of the Guidelines for Electrical Installation requirements for New Prototype Schools will however take precedence over Standard Quality Specification for General Electrical Installations ( GP/E6/1 Revision 1) and Standard Quality Specification for General Electrical Material and Equipment (GP/E6/2 Revision 1). "]
[]
[1428,18234,3,7,175,null,"The complete installation must comply to GDID electrical installation specifications.  Therefore Tenders are advised to study the specifications and drawings before the Bill is to be price."]
[]
[1429,18235,3,7,175,null,"CONDUITS (Installation of conduits for ICT and Electronic installation)"]
[]
[1430,18236,3,7,175,null,"Supply and Install pipes including short lengths jointing, sweeping bends, buses, locknuts, roundboxes et"]
[]
[1431,18237,3,7,175,1,"25mm diameter PVC pipe cast into concrete, brick work or suspended in ceiling voids","m",10000,null,0]
[]
[1432,18238,3,7,175,2,"32mm diameter PVC pipe cast into concrete, brick work or suspended in ceiling voids","m",2000,null,0]
[]
[1433,18239,3,7,175,3,"25mm diameter copex conduit","m",300,null,0]
[]
[1434,18240,3,7,175,null,"Supply and install steel galvanised walls boxes complete with all accessories "]
[]
[1435,18241,3,7,175,4,"100mm x 50mm x 50mm deep ","No",400,null,{"$f":"J524*I524","v":0}]
[]
[1436,18242,3,7,175,5,"100mm x 100mm x 50mm deep","No",400,null,0]
[]
[1437,18243,3,7,175,6,"Supply and install 1,6mm diameter steel galvanised draw wires drawn into conduit/sleeves:","m",4000,null,0]
[]
[1438,18244,3,7,175,7,"Supply and install 100mm x 100mm blank cover plates","No",50,null,0]
[]
[1439,18245,3,7,176,8,"Supply and install 25mm diameter 4 way PVC round boxes","No",2500,null,0]
[]
[1440,18246,3,7,176,9,"Supply and install 32mm diameter 4 way PVC round boxes","No",500,null,0]
[]
[1441,18247,3,7,176,10,"Supply and install 100mm x 50 blank plates","No",50,null,0]
[]
[1442,18248,3,7,176,11,"Supply and Install 450mm x 350mm x 125mm deep box","No",35,null,0]
[{"$nulls":11},{"$f":"SUM(K516:K538)","v":0}]
[1443,0,3,7]
[]
[1444,17531,3,8,178,1,"BULK SUPPLY AND RETICULATION",{"$nulls":4},{"$f":"L81","v":0}]
[]
[1445,17532,3,8,178,2,"ELECTRICAL INSTALLATION",{"$nulls":4},{"$f":"L295","v":0}]
[]
[1446,17540,3,8,178,3,"EARTHING AND LIGHTNING PROTECTION",{"$nulls":4},{"$f":"L369","v":0}]
[]
[1447,17541,3,8,178,4,"EMERGENCY POWER SYSTEM",{"$nulls":4},{"$f":"L395","v":0}]
[]
[1448,17542,3,8,178,5,"AREA AND SECURITY LIGHTING",{"$nulls":4},{"$f":"L445","v":0}]
[]
[1449,17543,3,8,178,6,"FIRE DETECTION",{"$nulls":4},{"$f":"L503","v":0}]
[]
[1450,17544,3,8,178,7,"ICT & ELECTRONIC INSTALLATION CONDUITS",{"$nulls":4},{"$f":"L539","v":0}]
[]
[{"$nulls":6},"Bill Total",{"$nulls":4},{"$f":"SUM(L542:L554)","v":0}]

{"sheet":"ELECTRONIC INSTALLATION","index":4,"n_rows":466,"n_cols":12,"rows_kept":466}
["COUNTER","ISC","SECTION","BILL","PAGE NO","ITEM NO","DESCRIPTION","UNIT","QUANTITY","RATE","AMOUNT"]
[1451,18288,4,1,179,null,"BILL NO. 1  10G FIBRE OPTIC BACKBONE NETWORK"]
[]
[1452,19067,4,1,179,null,"NOTE: Tenderes are advised to study the latest version of the *Guidelines for Electrical Installation requirements for new prototype schools*. The requirements of the Guidelines for Electrical Installation requirements for New Prototype Schools will however take precedence over Standard Quality Specification for General Electrical Installations ( GP/E6/1 Revision 1) and Standard Quality Specification for General Electrical Material and Equipment (GP/E6/2 Revision 1). "]
[]
[1453,18289,4,1,179,null,"The complete installation must comply to GDID electrical installation specifications.  Therefore Tenders are advised to study the specifications and drawings before pricing the Bill."]
[]
[1454,18290,4,1,179,null,"Installation of a modular hierarchical 10G Fibre Optic Backbone Network (For CCTV, Data and IP Telephony) with redundancy as per the drawings."]
[]
[1455,18291,4,1,179,1,"Multimode fibre,  4 core, OM4  ","m",1000,null,{"$f":"J10*I10","v":0}]
[]
[1456,18292,4,1,179,2,"XFP, SFP+ Modules, 10G Transceivers ","No",44,null,{"$f":"J12*I12","v":0}]
[]
[1457,18293,4,1,179,3,"1U Rack Mount, Fibre Optic Sliding Patch Panel / splice box","No",17,null,0]
[]
[1458,18294,4,1,179,4," Fiber Optic Patch Cables, Multimode OM4, Duplex, 50/125","No",50,null,0]
[]
[1459,18295,4,1,179,5,"Fibre splicing ","No",50,null,0]
[]
[1460,18296,4,1,180,6,"Core Switch -Multilayer (L2, L3, L4) - Managed - 24 x 10G SFP+; 4 x  10GbE; GigE port aggregation,  IEEE 802.1q; VLANs - Port-based; Voice VLAN;  Spanning Tree Protocols: 802.1d/w/s (RSTP, MSTP and Rapid PVST+); DHCP & DHCP Relay; Layer 3 Routing; IGMP v1/v2/v3; Protocol Independent Multicast (PIM); SNMP v1/v2/v3; Syslog; SMTP alert; ACLs; MAC filtering; DoS Control; Quality of service (QoS); IP ARP / RARP; Super-netting (CIDR), Port security; SSL/HTTP; SSH/Secure Shell ; RADIUS/ TACACS+ Client; IPv4 & IPv6; PoE - IEEE 802.3af; [2NO instlled, 1NO spare]","No",3,null,0]
[]
[1461,18297,4,1,180,7,"Server Access Switch. Layer 2, Managed, GigE - 48 x 10/100/1000 + 4 x 10 Gigabit SFP+; Spanning Tree Protocols: 802.1d/w/s (RSTP, MSTP and Rapid PVST+); IGMP Snooping: v1/v2/v3 ; PIM;  VLANs: 4K IEEE 802.11Q VLANs: Port-based; Port Security; SSL/HTTP; SSH/Secure Shell ; RADIUS/ TACACS+ Client; - rack-mountable, PoE - IEEE 802.3af; . [2NO instlled, 1NO spare]","No",3,null,0]
[]
[1462,18298,4,1,180,8,"Field Access Switch. Layer 2, Managed, GigE - 48 x 10/100/1000 + 2 x 10 Gigabit SFP+, Spanning Tree Protocols: 802.1d/w/s (RSTP, MSTP & Rapid PVST+); IGMP Snooping: v1/v2/v3; PIM; VLANs - Port-based; Port Security; SSL/HTTP; SSH/Secure Shell ; RADIUS/ TACACS+ Client; - rack-mountable, PoE - IEEE 802.3af; [13NO instlled plus 2NO spare] (2  for admin block, 4 for block C, 4 for block D, 1 for block B and 1 for block EP)","No",14,null,0]
[]
[1463,18299,4,1,180,9,"Field Access Switch. Layer 2, Managed, GigE - 24 x 10/100/1000 + 2 x 10 Gigabit SFP+, Spanning Tree Protocols: 802.1d/w/s (RSTP, MSTP & Rapid PVST+); IGMP Snooping: v1/v2/v3; PIM; VLANs - Port-based; Port Security; SSL/HTTP; SSH/Secure Shell ; RADIUS/ TACACS+ Client; - rack-mountable, PoE - IEEE 802.3af; [1NO instlled plus 1NO spare] (1 for L)","No",2,null,0]
[]
[1464,18300,4,1,180,10,"Field Access Switch. Layer 2, Managed, GigE - 8 x 10/100/1000 + 2 x 10 Gigabit SFP+, Spanning Tree Protocols: 802.1d/w/s (RSTP, MSTP and Rapid PVST+); IGMP Snooping: v1/v2/v3; PIM; VLANs - Port-based; Port Security; SSL/HTTP; SSH/Secure Shell ; RADIUS/ TACACS+ Client; - rack-mountable, PoE - IEEE 802.3af; [2NO installed plus 1NO spare] (1 for guard house and 1 for sport facility)","No",3,null,0]
[]
[1465,18301,4,1,180,11,"25mm PVC conduiting and accessories","m",1000,null,0]
[]
[1466,18302,4,1,181,12,"43U 19inch cabinet, integrated rack, incl cooling fans, rack shelves, rack rails. Rack must also come with a 230V, 16A, 3pin round (X 10 socket) outlets adapter, white in colour, suitable for mounting on the 19\" rack","No",2,null,0]
[]
[1467,18303,4,1,181,13,"12U fixed swing out cabinet, wall mount, lockable, incl cooling fans, rack shelves, rack rails. Rack must also come with a 230V, 16A, 3pin round (X 10 socket) outlets adapter, suitable for mounting on the 19\" rack","No",13,null,0]
[]
[1468,18304,4,1,181,14,"4U fixed swing out cabinet, wall mount, lockable, incl cooling fans, rack shelves, rack rails. Rack must also come with a 230V, 16A, 3pin round (X 10 socket) outlets adapter, suitable for mounting on the 19\" rack","No",2,null,0]
[]
[1469,18305,4,1,181,15,"3kVA 3phase UPS system with 30 minutes autonomy:  ","No",2,null,0]
[]
[1470,18306,4,1,181,16,"1.5kVA inline, rack mount, UPS system with 30 minutes autonomy:  ","No",13,null,0]
[]
[1471,18307,4,1,181,17,"800VA inline, rack mount, UPS system with 30 minutes autonomy: ","No",2,null,0]
[]
[1472,18308,4,1,181,null,"Civil Works "]
[]
[1473,18309,4,1,181,null,"Prices to include excavation, refilling,  levelling,  compacting  and reparation of all surfaces to the original finish "]
[]
[1474,18310,4,1,181,18,"110mm kableflex Sleeve","m",1600,null,0]
[]
[1475,18311,4,1,181,19,"50mm kableflex sleeve","m",600,null,0]
[]
[1476,18312,4,1,181,20,"Excavating in Earth","m3",480,null,0]
[]
[1477,18313,4,1,181,null,"Manholes"]
[]
[1478,18314,4,1,181,21,"600mm (l) x 600mm (w) x 1000mm (depth)","No",25,null,0]
[]
[1479,18315,4,1,181,22,"800mm (l) x 800mm (w) x 1000mm (depth)","No",2,null,0]
[]
[1480,18316,4,1,181,null,"Testing and Commissioning"]
[]
[1481,18317,4,1,181,23,"Testing, Commissioning of Installation and supply of OTDR results","No",1,null,0]
[]
[1482,18318,4,1,181,24,"Manuals, Documentation, AS Builts","No",3,null,0]
[{"$nulls":11},{"$f":"SUM(K10:K64)","v":0}]
[1483,0,4,1]
[]
[1484,18319,4,2,183,null,"BILL NO. 2  CCTV SURVEILLANCE"]
[]
[1485,19068,4,2,183,null,"NOTE: Tenderes are advised to study the latest version of the *Guidelines for Electrical Installation requirements for new prototype schools*. The requirements of the Guidelines for Electrical Installation requirements for New Prototype Schools will however take precedence over Standard Quality Specification for General Electrical Installations ( GP/E6/1 Revision 1) and Standard Quality Specification for General Electrical Material and Equipment (GP/E6/2 Revision 1). "]
[]
[1486,18320,4,2,183,null,"The complete installation must comply to GDID electrical installation specifications.  Therefore Tenders are advised to study the specifications and drawings before pricing the Bill."]
[]
[1487,18321,4,2,183,null,"Installation of an IP CCTV Surveillance and Recording System, with 7 days recording (on motion detection), no archieving. System must be configured in its own single VLAN  "]
[]
[1488,18322,4,2,183,1,"Fixed Outdoor Bullet Network Camera. IP66, Full HD 1080p (1920 x 1080), Built-in IR illumination. Image sensor: 1/3.0\" progressive scan RGB CMOS, Varifocal lens (3 - 75mm) , H.264 High - high quality, 30 fps; HTTPSa encryption, IEEE 802.1Xa, Digest authentication. Protocols: IPv4/v6, HTTP, HTTPSa, SSL/TLSa, QoS Layer 3 DiffServ. Video Motion Detection, Active tampering alarm. Event actions Notification: Power over Ethernet (PoE) IEEE 802.3at, 8G Class 10 SD card. Inclusive of all mounting brackets","No",50,null,{"$f":"I76*J76","v":0}]
[]
[1489,18323,4,2,184,2,"Fixed Indoor Dome Camera. Full HD 1080p (1920 x 1080), Built-in IR illumination. Image sensor: 1/3.0\" progressive scan RGB CMOS, Varifocal lens (3 - 75mm), Wide Dynamic range (WDR), Horizontal angle of view 100° - 35°: H.264 High, 25/30 fps; HTTPSa encryption, IEEE 802.1Xa, Digest authentication. Protocols: IPv4/v6, HTTP, HTTPSa, SSL/TLSa, QoS Layer 3 DiffServ. Video Motion Detection, Active tampering alarm. Event actions Notification: Power over Ethernet (PoE) IEEE 802.3at, 64G Class 10 SD card, ONVIF; Corridor Format; Multi-view streaming, complete with ceiling/wall mounting brackets.","No",10,null,{"$f":"I78*J78","v":0}]
[]
[1490,18324,4,2,184,3,"Operators Workstation, 1 x Xeon E5-1620V4 / 3.5 GHz - RAM 16 GB, HDD 1T, AMD Firepro 2GB Graphics with 4 (Display ports) Outputs, Serial port adaptor; Win 7 Pro 64-bit (includes Win 10 Pro 64-bit Licence) - vPro -  ","No",2,null,0]
[]
[1491,18325,4,2,184,4,"Operators Work Station Biometric Fingerprint Log ON reader","No",2,null,0]
[]
[1492,18326,4,2,184,5,"Video Wall Server - tower - 5U - 2-way - 1 x Xeon E5-2609V3 / 1.9 GHz - RAM 16 GB - SATA - hot-swap 3.5\" - HDD 2 x 1 TB - 2 x 10GigE - MS Windows Server 2008 R2, AMD Firepro 2GB Graphics with 2 (Display ports) Outputs.","No",2,null,0]
[]
[1493,18327,4,2,184,6,"55-inch Full LED Display, 1080p","No",2,null,0]
[]
[1494,18328,4,2,184,7,"32 Channels Embedded Network Video Recorder, 48TB. ONVIF/PSIA, eSATA, HDMI/VGA/BNC, H.264 High - high quality, Rack mount. NAS server -  RAID 5, 10GbE - iSCSI. 2U. ","No",2,null,0]
[]
[1495,18329,4,2,184,8,"24 Port Patch Panel: CAT 6a ","No",15,null,0]
[]
[1496,18330,4,2,184,9,"24 Port Patch Panel Lead: CAT 6a ","No",240,null,0]
[]
[1497,18331,4,2,184,10,"19\" rack mount, 1U Brush Panels","No",15,null,0]
[]
[1498,18332,4,2,184,11,"CAT 6a UTP Cable (Colour: Blue)","m",3500,null,0]
[]
[1499,18333,4,2,184,12,"RJ45 Connectors complete with boots","No",92,null,0]
[]
[1500,18334,4,2,184,13,"CAT 6a UTP Fly Leads, 2m (blue)","No",6,null,0]
[]
[1501,18335,4,2,184,14,"25mm pvc conduiting and accessories","m",1000,null,0]
[]
[1502,18337,4,2,185,null,"Testing and Commissioning"]
[]
[1503,18338,4,2,185,15,"Testing and Commissioning of Installation","No",1,null,0]
[]
[1504,18339,4,2,185,16,"Manuals, Documentation, AS Builts","No",3,null,0]
[]
[1505,18340,4,2,185,17,"Training of Personnel","No",2,null,0]
[{"$nulls":11},{"$f":"SUM(K76:K110)","v":0}]
[1506,0,4,2]
[]
[1507,18341,4,3,187,null,"BILL NO. 3  DATA NETWORK"]
[]
[1508,19069,4,3,187,null,"NOTE: Tenderes are advised to study the latest version of the *Guidelines for Electrical Installation requirements for new prototype schools*. The requirements of the Guidelines for Electrical Installation requirements for New Prototype Schools will however take precedence over Standard Quality Specification for General Electrical Installations ( GP/E6/1 Revision 1) and Standard Quality Specification for General Electrical Material and Equipment (GP/E6/2 Revision 1). "]
[]
[1509,18342,4,3,187,null,"The complete installation must comply to GDID electrical installation specifications.  Therefore Tenders are advised to study the specifications and drawings before pricing the Bill."]
[]
[1510,18343,4,3,187,null,"Installation of wired data points, wireless access points as specified and as indicated on drawings. Wired data and wireless data must not be configured in the same VLAN. Separate Vlans to be configured"]
[]
[1511,18344,4,3,187,1,"CAT6a UTP Cable  (Colour: Grey)","m",8000,null,{"$f":"J122*I122","v":0}]
[]
[1512,18345,4,3,187,2,"CAT 6a UTP Fly Leads, 2m (Grey) . Includes 10 spare","No",128,null,{"$f":"J124*I124","v":0}]
[]
[1513,18346,4,3,187,3,"Wired data points (incl wifi points) on power skirting or wall mounted as specified and as indicated on drawings. (Inclusive of boxes, RJ45 faceplates & Cat 6  termination)","No",195,null,0]
[]
[1514,18347,4,3,187,4,"Indoor Wireless Access Point Device. Features: 802.11ac  MU‑MIMO technology, 802.11i,  WPA2, WPA,  802.1X , AES, PoE","No",70,null,0]
[]
[1515,18348,4,3,187,5,"Wireless LAN Controller with  50 AP License. Wireless intrusion prevention system (IPS) capabilities, RF management, QoS, and Layer 3 fast secure roaming. 2 x 10 GigE support, PoE","No",1,null,0]
[]
[1516,18349,4,3,187,6,"Authentication Server, hardware, operational software & server licence","No",1,null,0]
[]
[1517,18351,4,3,188,7,"25mm PVC conduiting and accessories","m",1500,null,0]
[]
[1518,18352,4,3,188,null,"Testing and Commissioning"]
[]
[1519,18353,4,3,188,8,"Testing and Commissioning of Installation","No",1,null,0]
[]
[1520,18354,4,3,188,9,"Manuals, Documentation, AS Builts","No",3,null,0]
[{"$nulls":11},{"$f":"SUM(K122:K140)","v":0}]
[1521,0,4,3]
[]
[1522,18355,4,4,190,null,"BILL NO. 4  IP TELEPHONE SYSTEM"]
[]
[1523,19070,4,4,190,null,"NOTE: Tenderes are advised to study the latest version of the *Guidelines for Electrical Installation requirements for new prototype schools*. The requirements of the Guidelines for Electrical Installation requirements for New Prototype Schools will however take precedence over Standard Quality Specification for General Electrical Installations ( GP/E6/1 Revision 1) and Standard Quality Specification for General Electrical Material and Equipment (GP/E6/2 Revision 1). "]
[]
[1524,18356,4,4,190,null,"The complete installation must comply to GDID electrical installation specifications.  Therefore Tenders are advised to study the specifications and drawings before pricing the Bill."]
[]
[1525,18357,4,4,190,null,"Installation of an Open Source VoIP Server System, with built in, non-proprietary codec which provides good sound quality and low bandwidth usage. The IP-PBX must have a Gateway Feature to support Telkom lines.     The Telephones are to be configured in their own voice VLAN"]
[]
[1526,18358,4,4,190,1,"Modular Voice over IP Gateway - VoIP phone adapter. Authentication Method -  RADIUS, TACACS+ , GiE, DHCP, DNS, HSRP, CLI, HTTP, SNMP 3, TFTP, Telnet. Voip Protocols - H.323 v4, MGCP, RTP, SCCP, SIP, SRTP. Voice Codecs - G.711, G.729a, T.38. IP Telephony features - automatic fax/modem detection and pass-through, call hold, call transfer, call waiting, caller ID. Rack Mount, 1U. The system must be able to support at least 4 Telkom lines, IP Trunk Ports and up to 20 extensions.  ","No",1,null,{"$f":"I152*J152","v":0}]
[]
[1527,18359,4,4,190,2,"CAT6a UTP Cable ( (Colour: Green)","m",2000,null,{"$f":"I154*J154","v":0}]
[]
[1528,18360,4,4,190,3,"SIP Compartible VoIP Telephone handsets. (25 installed and 3 spare)","No",28,null,0]
[]
[1529,18361,4,4,190,4,"Telephone Console","No",1,null,0]
[]
[1530,18362,4,4,190,5,"Telephone Management System","No",1,null,0]
[]
[1531,18363,4,4,191,6,"Main Telephone DB","No",1,null,0]
[]
[1532,18364,4,4,191,7,"Outdoor Telephone Supporting Structure","No",1,null,0]
[]
[1533,18365,4,4,191,8,"Line Lightning Arresters and Earthing","No",4,null,0]
[]
[1534,18366,4,4,191,9,"Telephone data points on power skirting or wall mounted as specified and as indicated on drawings.(Inclusive of boxes, RJ45 faceplates, Cat 6 cable termination)","No",25,null,0]
[]
[1535,18367,4,4,191,10,"25mm galvanized conduiting and accessories","m",200,null,0]
[]
[1536,18368,4,4,191,null,"Testing and Commissioning"]
[]
[1537,18369,4,4,191,11,"Testing and Commissioning of Installation","No",1,null,0]
[]
[1538,18370,4,4,191,12,"Manuals, Documentation, AS Builts","No",3,null,0]
[]
[1539,18371,4,4,191,13,"Training of Personnel","No",2,null,0]
[{"$nulls":11},{"$f":"SUM(K152:K178)","v":0}]
[1540,0,4,4]
[]
[1541,18372,4,5,193,null,"BILL NO. 5  INTRUDER ALARM SYSTEM"]
[]
[1542,19071,4,5,193,null,"NOTE: Tenderes are advised to study the latest version of the *Guidelines for Electrical Installation requirements for new prototype schools*. The requirements of the Guidelines for Electrical Installation requirements for New Prototype Schools will however take precedence over Standard Quality Specification for General Electrical Installations ( GP/E6/1 Revision 1) and Standard Quality Specification for General Electrical Material and Equipment (GP/E6/2 Revision 1). "]
[]
[1543,18373,4,5,193,null,"Installation of an alarm system with localised distinct specified alarm areas / zones.  "]
[]
[1544,18374,4,5,193,1,"Master Alarm Controller unit","No",1,null,{"$f":"J188*I188","v":0}]
[]
[1545,18375,4,5,193,2,"Alarm LED Zone indicator  /  Mimic Panel","No",2,null,{"$f":"J190*I190","v":0}]
[]
[1546,18376,4,5,193,3,"Full Message hardwired LCD Keyboard","No",18,null,0]
[]
[1547,18377,4,5,193,4,"8 - Zone, hardwired Expander Module","No",7,null,0]
[]
[1548,18378,4,5,193,5,"PIR Motion Detector - Internal","No",220,null,0]
[]
[1549,18379,4,5,193,6,"PIR Motion Detector - External","No",16,null,0]
[]
[1550,18380,4,5,193,7,"Arming Device / 2 or 4 Wireless Button Key","No",15,null,0]
[]
[1551,18381,4,5,193,8,"Wired Panic Button","No",22,null,0]
[]
[1552,18382,4,5,193,9,"Outdoor 15W, Electric Siren, 12VDC, Loud Sounder","No",15,null,0]
[]
[1553,18383,4,5,193,10,"Communication network module. [GSM / GPRS module, TCP/IP module, Serial interface). To link with external security company or SAPS","No",1,null,0]
[]
[1554,18384,4,5,194,11,"Alarm Indicator Light (Exterior, IP66 and mounting accesorries)","m",15,null,0]
[]
[1555,18385,4,5,194,12,"Powerpack, 3.2Amp with Battery Space","No",15,null,0]
[]
[1556,18386,4,5,194,13,"Battery, 7ah 12V","No",13,null,0]
[]
[1557,18387,4,5,194,14,"Battery, 18AH 12V","No",1,null,0]
[]
[1558,18388,4,5,194,15,"4 pair, twisted, screened, 22swg, alarm cable","m",5000,null,0]
[]
[1559,18389,4,5,194,16,"Glue, 50ml Cable Adhesive","No",10,null,0]
[]
[1560,18390,4,5,194,17,"Installation Accessories","No",1,null,0]
[]
[1561,18391,4,5,194,18,"Intruder Alarm Terminal Box. Lockable, Flush mount box with knockouts 600 x 600 x 140mm","No",7,null,0]
[]
[1562,18392,4,5,194,19,"25mm PVC conduiting and accessories","m",1200,null,0]
[]
[1563,18393,4,5,194,null,"Testing and Commissioning"]
[]
[1564,18394,4,5,194,20,"Testing and Commissioning of Installation","No",1,null,0]
[]
[1565,18395,4,5,194,21,"Manuals, Documentation, AS Builts","No",3,null,0]
[]
[1566,18396,4,5,194,22,"Training of Personnel","No",2,null,0]
[{"$nulls":11},{"$f":"SUM(K188:K232)","v":0}]
[1567,0,4,5]
[]
[1568,18397,4,6,196,null,"BILL NO. 6  INTERCOM SYSTEM"]
[]
[1569,19072,4,6,196,null,"NOTE: Tenderes are advised to study the latest version of the *Guidelines for Electrical Installation requirements for new prototype schools*. The requirements of the Guidelines for Electrical Installation requirements for New Prototype Schools will however take precedence over Standard Quality Specification for General Electrical Installations ( GP/E6/1 Revision 1) and Standard Quality Specification for General Electrical Material and Equipment (GP/E6/2 Revision 1). "]
[]
[1570,18398,4,6,196,null,"The complete installation must comply to GDID electrical installation specifications.  Therefore Tenders are advised to study the specifications and drawings before pricing the Bill."]
[]
[1571,18399,4,6,196,null,"Installation of an analogue intercom system.  "]
[]
[1572,18400,4,6,196,1,"90 Way Intercom Controller Master Station. Must support or drive a minimum of 90 speakers.  ","No",1,null,{"$f":"I244*J244","v":0}]
[]
[1573,18401,4,6,196,2,"High quality, wall mount, indoor, intercom module complete with Speaker (10W) & microphone. The microphone must be very sensitive, able to clearly pick audio in a class environment when activated with no feedback","No",98,null,{"$f":"I246*J246","v":0}]
[]
[1574,18402,4,6,196,3,"Outdoor Intercom module complete with Horn Speaker (5-30W) & microphone. (IP66) ","No",18,null,0]
[]
[1575,18403,4,6,196,4,"Program Preset Timer for  School Bell System (hardware unit with lcd display, running bell control software)","No",1,null,0]
[]
[1576,18404,4,6,196,5,"School siren to be located in the admin block. The siren to be activated from three push button located in the strongroom, server room and security room","No",1,null,0]
[]
[1577,18405,4,6,196,6,"Paging console with Gooseneck microphone","No",1,null,0]
[]
[1578,18406,4,6,196,7,"Terminal Box: Lockable, Flush mount with knockouts 300 x 400 x 140mm","No",10,null,0]
[]
[1579,18407,4,6,197,8,"Main Termination Block","No",1,null,0]
[]
[1580,18408,4,6,197,9,"Sub  Termination Blocks","No",10,null,0]
[]
[1581,18409,4,6,197,10,"4 pair, twisted, screened, 22swg cable","m",2500,null,0]
[]
[1582,18410,4,6,197,11,"10 pair, twisted, screened, 22swg cable","m",100,null,0]
[]
[1583,18411,4,6,197,12,"20 pair, twisted, screened, 22swg cable","m",900,null,0]
[]
[1584,18412,4,6,197,13,"25mm PVC conduiting and accessories","m",500,null,0]
[]
[1585,18413,4,6,197,null,"Testing and Commissioning"]
[]
[1586,18414,4,6,197,14,"Testing and Commissioning of Installation","No",1,null,0]
[]
[1587,18415,4,6,197,15,"Manuals, Documentation, AS Builts","No",3,null,0]
[]
[1588,18416,4,6,197,16,"Training of Personnel","No",2,null,0]
[{"$nulls":11},{"$f":"SUM(K244:K276)","v":0}]
[1589,0,4,6]
[]
[1590,18417,4,7,199,null,"BILL NO. 7  SCHOOL HALL POWER AMPLIFIER SYSTEM"]
[]
[1591,19073,4,7,199,null,"NOTE: Tenderes are advised to study the latest version of the *Guidelines for Electrical Installation requirements for new prototype schools*. The requirements of the Guidelines for Electrical Installation requirements for New Prototype Schools will however take precedence over Standard Quality Specification for General Electrical Installations ( GP/E6/1 Revision 1) and Standard Quality Specification for General Electrical Material and Equipment (GP/E6/2 Revision 1). "]
[]
[1592,18418,4,7,199,null,"The complete installation must comply to GDID electrical installation specifications.  Therefore Tenders are advised to study the specifications and drawings before pricing the Bill."]
[]
[1593,18419,4,7,199,null,"Installation of a PA System comprising of an amplifier/s, loudspeakers & microphones (next to the stage control console). All equipment must be secured against theft & vandalism"]
[]
[1594,18420,4,7,199,1,"Audio Feedback Suppressor  (Digital Sound Processor)","No",1,null,{"$f":"J288*I288","v":0}]
[]
[1595,18421,4,7,199,2,"16 Channel Mixer, 4 Bus mixer","No",1,null,{"$f":"J290*I290","v":0}]
[]
[1596,18422,4,7,199,3,"Audio Matrix Processor: 6 Input and 6 Output Digital Audio Matrix Processor","No",1,null,0]
[]
[1597,18423,4,7,199,4,"Professional Stereo Power Amplifier 300W/CH @8-OHM 2-Ch Amp","No",2,null,0]
[]
[1598,18424,4,7,199,5,"High-end Entertainment Loudspeaker: Impedance: 8Ω, Rated power: 300W, Frequency: 45Hz-20KHz, Sensitivity: 99dB/W/M, Angle of Coverage: (H)90°(V)70°, Treble:1.5 \"compression neodymium tweeter x 1, Bass:12 \"bass  x 1, Dimensions:600 x 350 x 380 mm, Weight: 16kg","No",6,null,0]
[]
[1599,18425,4,7,199,6,"Active Line Array Loudspeaker (Stage Monitors)","No",3,null,0]
[]
[1600,18426,4,7,199,7,"CD/MP3/DVD Player with AM/FM Tuner","No",1,null,0]
[]
[1601,18427,4,7,200,8,"8 Channel Power Sequencer ","No",1,null,0]
[]
[1602,18428,4,7,200,9,"Microphone Processor","No",1,null,0]
[]
[1603,18429,4,7,200,10,"Handheld Mics (wired or cable type)","No",6,null,0]
[]
[1604,18430,4,7,200,11,"UHF Wireless Mic","No",2,null,0]
[]
[1605,18431,4,7,200,12,"Ready made speaker cable with jacks (20m)","No",10,null,0]
[]
[1606,18432,4,7,200,13,"Flush Box Microphone Point: Centre of Stage","No",3,null,0]
[]
[1607,18433,4,7,200,14,"Flush Box Microphone Point:Multi Media","No",1,null,0]
[]
[1608,18434,4,7,200,15,"Flush Box Microphone Point: Next to Stage Control Console","No",1,null,0]
[]
[1609,18435,4,7,200,16,"25mm PVC conduiting and accessories","m",300,null,0]
[]
[1610,18436,4,7,200,17,"12m stage lighting truss with mounting fixtures","No",2,null,0]
[]
[1611,18437,4,7,200,18,"DM-X12 DMX controller with joystick - 192 channel","No",1,null,0]
[]
[1612,18438,4,7,200,19,"DMX Cable HQ 5mm black (100mm each)","No",4,null,0]
[]
[1613,18439,4,7,200,20,"100m roll NNS-1492 2,5mm speaker cables","No",4,null,0]
[]
[1614,18440,4,7,200,21,"Track mountable high beam professional cylindrical LED par CAN 16 Channel DMX & sound activated stage lighting 0-100% dimmable c/w 18 x 10W 4-in-1 LED and with electronic control gear)","No",10,null,0]
[]
[1615,18441,4,7,200,null,"Testing and Commissioning"]
[]
[1616,18442,4,7,200,22,"Testing and Commissioning of Installation","No",1,null,0]
[]
[1617,18443,4,7,200,23,"Manuals and Documentation ","No",3,null,0]
[]
[1618,18444,4,7,200,24,"Training of Personnel","No",1,null,0]
[{"$nulls":11},{"$f":"SUM(K288:K336)","v":0}]
[1619,0,4,7]
[]
[1620,18445,4,8,202,null,"BILL NO. 8  OVERHEAD PROJECTORS"]
[]
[1621,19074,4,8,202,null,"NOTE: Tenderes are advised to study the latest version of the *Guidelines for Electrical Installation requirements for new prototype schools*. The requirements of the Guidelines for Electrical Installation requirements for New Prototype Schools will however take precedence over Standard Quality Specification for General Electrical Installations ( GP/E6/1 Revision 1) and Standard Quality Specification for General Electrical Material and Equipment (GP/E6/2 Revision 1). "]
[]
[1622,18446,4,8,202,null,"The complete installation must comply to GDID electrical installation specifications.  Therefore Tenders are advised to study the specifications and drawings before pricing the Bill."]
[]
[1623,18447,4,8,202,null,"Installation of overhead projector points in the School Hall only"]
[]
[1624,18448,4,8,202,1,"Full HD, 1080p, business Projector","No",1,null,{"$f":"J348*I348","v":0}]
[]
[1625,18449,4,8,202,2,"Projector mounting base & all mounting accesories. ","No",1,null,{"$f":"J350*I350","v":0}]
[]
[1626,18450,4,8,202,3,"Lockable galvanized box. To house the Active Extender kits & RJ45 point.   300 x 200 x 100mm. Supply complete with lock / keys","No",2,null,0]
[]
[1627,18451,4,8,202,4,"Wired data points as specified and as indicated on drawings. (Inclusive of boxes, RJ45 faceplates & Cat 6e  termination)","No",3,null,0]
[]
[1628,18452,4,8,202,5,"Active Extender Kit. HDMI Display Port to HDMI over CAT 6e","No",3,null,0]
[]
[1629,18453,4,8,202,6,"Active Extender Kit. VGA Display Port to VGA over CAT 6e","No",3,null,0]
[]
[1630,18454,4,8,202,7,"CAT 6e Cable","No",50,null,0]
[]
[1631,18455,4,8,202,8,"2m cable -. Full HD 1080p HDMI cable","No",3,null,0]
[]
[1632,18456,4,8,202,9,"2m cable -  VGA Cable","No",3,null,0]
[]
[1633,18457,4,8,203,10,"2m cable -  USB A Male to RJ45 serial Data Cable","No",3,null,0]
[]
[1634,18458,4,8,203,11,"25mm galvanized conduiting and accessories","No",50,null,0]
[]
[1635,18459,4,8,203,12,"3 way video- audio splitter Box","No",1,null,0]
[]
[1636,18460,4,8,203,13,"Projector screens GRANDVIEW 196\" 16:10 Ratio CNV series motorised white screen with IR control & 12V trigger, 4,22,2 x 2,638mm","No",1,null,0]
[]
[1637,18962,4,8,203,null,"Testing and Commissioning"]
[]
[1638,18461,4,8,203,14,"Testing and Commissioning of Installation","No",1,null,0]
[]
[1639,18462,4,8,203,15,"Manuals and Documentation ","No",1,null,0]
[]
[1640,18463,4,8,203,16,"Training of Personnel","No",1,null,0]
[{"$nulls":11},{"$f":"SUM(K348:K380)","v":0}]
[1641,0,4,8]
[]
[1642,18464,4,9,205,null,"BILL NO. 9  ACCESS CONTROL"]
[]
[1643,19075,4,9,205,null,"NOTE: Tenderes are advised to study the latest version of the *Guidelines for Electrical Installation requirements for new prototype schools*. The requirements of the Guidelines for Electrical Installation requirements for New Prototype Schools will however take precedence over Standard Quality Specification for General Electrical Installations ( GP/E6/1 Revision 1) and Standard Quality Specification for General Electrical Material and Equipment (GP/E6/2 Revision 1). "]
[]
[1644,18465,4,9,205,null,"The complete installation must comply to GDID electrical installation specifications.  Therefore Tenders are advised to study the specifications and drawings before pricing the Bill."]
[]
[1645,18466,4,9,205,null,"Installation of Electric Door Openers with Two-way Intercom Communication"]
[]
[1646,18467,4,9,205,1,"Heavy Duty Aluminum Commercial Door Closer +45kgs","No",3,null,{"$f":"J392*I392","v":0}]
[]
[1647,18468,4,9,205,2,"12V Electric Door Lock","No",3,null,{"$f":"J394*I394","v":0}]
[]
[1648,18469,4,9,205,3,"Exit Button","No",3,null,0]
[]
[1649,18470,4,9,205,4,"Two-way point to point Intercom (1 master with 3 slaves)","No",1,null,0]
[]
[1650,18471,4,9,205,5,"Mylar cable","m",50,null,0]
[]
[1651,18472,4,9,205,6,"25mm galvanized conduiting and accessories  ","m",15,null,0]
[]
[1652,18473,4,9,205,7,"12v Power Supply and sealed 7Ah rechargable battery","No",1,null,0]
[]
[1653,18474,4,9,205,null,"Testing and Commissioning"]
[]
[1654,18475,4,9,205,8,"Testing and Commissioning of Installation","No",1,null,0]
[]
[1655,18476,4,9,205,9,"Manuals and Documentation","No",1,null,0]
[]
[1656,18477,4,9,205,10,"Training of Personnel","No",1,null,0]
[{"$nulls":11},{"$f":"SUM(K392:K412)","v":0}]
[1657,0,4,9]
[]
[1658,18478,4,10,206,null,"BILL NO. 10  PREVENTIVE MAINTENANCE "]
[]
[1659,19076,4,10,206,null,"NOTE: Tenderes are advised to study the latest version of the *Guidelines for Electrical Installation requirements for new prototype schools*. The requirements of the Guidelines for Electrical Installation requirements for New Prototype Schools will however take precedence over Standard Quality Specification for General Electrical Installations ( GP/E6/1 Revision 1) and Standard Quality Specification for General Electrical Material and Equipment (GP/E6/2 Revision 1). "]
[]
[1660,18479,4,10,206,null,"The complete installation must comply to GDID electrical installation specifications.  Therefore Tenders are advised to study the specifications and drawings before pricing the B"]
[]
[1661,18480,4,10,206,null,"Contractor must vist the school twice a month and perform preventive maintenance on all the installations. A detailed maintenace schedule must be submitted to the Engineer upon  delivery of each installation"]
[]
[1662,18963,4,10,206,1,"10G Fibre Optic Network ","mnths",12,null,{"$f":"J424*I424","v":0}]
[]
[1663,18964,4,10,206,2,"CCTV Surveillance System ","mnths",12,null,{"$f":"J426*I426","v":0}]
[]
[1664,18965,4,10,206,3,"Data Network ","mnths",12,null,0]
[]
[1665,18966,4,10,206,4,"IP Telephone System ","mnths",12,null,0]
[]
[1666,18967,4,10,206,5,"Intruder Alarm System ","mnths",12,null,0]
[]
[1667,18968,4,10,206,6,"Intercom System ","mnths",12,null,0]
[]
[1668,18969,4,10,207,7,"School Hall: Power Amplifier  System ","mnths",12,null,0]
[]
[1669,18970,4,10,207,8,"Overhead Projectors ","mnths",12,null,0]
[]
[1670,18972,4,10,207,9,"Bell Sounder System ","mnths",12,null,0]
[]
[1671,18973,4,10,207,10," Access Control ","mnths",12,null,0]
[{"$nulls":11},{"$f":"SUM(K424:K442)","v":0}]
[1672,0,4,10]
[]
[1673,17546,4,11,209,1,"10G FIBRE OPTIC BACKBONE NETWORK",{"$nulls":4},{"$f":"L65","v":0}]
[]
[1674,17547,4,11,209,2,"CCTV SURVEILLANCE",{"$nulls":4},{"$f":"L111","v":0}]
[]
[1675,17548,4,11,209,3,"DATA NETWORK",{"$nulls":4},{"$f":"L141","v":0}]
[]
[1676,17549,4,11,209,4,"IP TELEPHONE SYSTEM",{"$nulls":4},{"$f":"L179","v":0}]
[]
[1677,17550,4,11,209,5,"INTRUDER ALARM SYSTEM",{"$nulls":4},{"$f":"L233","v":0}]
[]
[1678,17551,4,11,209,6,"INTERCOM SYSTEM",{"$nulls":4},{"$f":"L277","v":0}]
[]
[1679,17552,4,11,209,7,"SCHOOL HALL POWER AMPLIFIER SYSTEM",{"$nulls":4},{"$f":"L337","v":0}]
[]
[1680,17553,4,11,209,8,"OVERHEAD PROJECTORS",{"$nulls":4},{"$f":"L381","v":0}]
[]
[1681,17554,4,11,209,9,"ACCESS CONTROL",{"$nulls":4},{"$f":"L413","v":0}]
[]
[1682,17555,4,11,209,10,"PREVENTIVE MAINTENANCE",{"$nulls":4},{"$f":"L443","v":0}]
[]
[{"$nulls":6},"Bill Total",{"$nulls":4},{"$f":"SUM(L446:L464)","v":0}]

{"sheet":"MECHANICAL INSTALLATION ","index":5,"n_rows":1456,"n_cols":12,"rows_kept":1456}
["COUNTER","ISC","SECTION","BILL","PAGE NO","ITEM NO","DESCRIPTION","UNIT","QUANTITY","RATE","AMOUNT"]
[1683,14961,5,1,210,null,"BILL NO. 1  HVAC SYSTEM"]
[]
[1684,19064,5,1,210,null,"NOTE: Tenderers are referred to The HVAC Tender specification. The supply, delivery, installation and commissioning of equipment as shall be detailed in this schedule. "]
[]
[1685,14962,5,1,210,null,"Unless a specific percentage mark-up for Profit and Attendance is indicated in a rate column, the amount priced by the Contractor for Profit and Attendance shall be deemed to be included "]
[]
[1686,14963,5,1,210,null,"SUPPLEMENTARY PREAMBLES "]
[]
[1687,14965,5,1,210,null,"VENTILATION SYSTEM INSTALLATION "]
[]
[1688,16109,5,1,210,null,"The Contractor shall supply, install, and commission according to tender drawing.The rates shall include labour, all mounting and accessories, including connection to the point of supply.Guarantee and maintenance of efficient and safe working of the installation for 12 months after hand over of the completed building to the client. A COC for electrical installation is to be provided for each installation as per SANS 347 And CoC for all HVAC installed equipment as per SANS 347"]
[]
[1689,16110,5,1,210,1,"Complete in-line Silent Fresh air fan (500l/s), 220V, 50/60Hz, speed controllable, IP44, class F, with thermal protection and complete weather louvre with air filter placed at the inlet side @20-24dBA. To linked to the Air- conditioning command switch.","No",2,null,{"$f":"I14*J14","v":0}]
[]
[1690,16111,5,1,210,2,"Complete in-line Silent Fresh air fan(80l/s),220V,50/60hz, speed controllable,IP44, class F, with thermal protection and complete weather louver with air filter placed at the inlet side @20-24dBA.To linked to the Air-Conditioning command switch.","No",1,null,{"$f":"I16*J16","v":0}]
[]
[1691,16112,5,1,210,3,"Complete 60l/s Ceiling Silent extractor fan,220V,50/60hz, 2.5A speed controllable @20-24dBA with thermal protection.","No",1,null,0]
[]
[1692,16113,5,1,211,null,"HEAT PUMP MID WALL SPLIT UNIT INVERTER"]
[]
[1693,16114,5,1,211,null,"Design, manufacture, works testing, supply and deliver to site, moving into position, erection, connecting up, site testing, witness testing, proving to insurance inspectors, demonstrating to the Employer, commissioning and maintenance of the complete mechanical systems and equipment as shown on the drawings and data sheets"]
[]
[1694,16115,5,1,211,null,"MIDWALL HEAT PUMP SPLIT UNITS"]
[]
[1695,16116,5,1,211,null,"Supply and install inverter type DX heat pump inverter midwall split units complete with fittings and fixtures, including insulated supply and return air plenum boxes,as specified and shown on the drawing"]
[]
[1696,16117,5,1,211,4,"Complete 5.6 kW  Inverter Under ceiling unit serving the Admin Office Block+Remote controller","No",8,null,0]
[]
[1697,16118,5,1,211,5,"Complete 7.25 kW  Inverter Under ceiling unit serving the Admin Office Block+Remote controller","No",2,null,0]
[]
[1698,16119,5,1,211,6,"Complete 2.8 kW  Inverter midwall unit serving the Admin Office Block+Remote controller","No",22,null,0]
[]
[1699,16120,5,1,211,7,"Complete 3.6 kW  Inverter midwall unit serving the Admin Office Block+Remote controller","No",3,null,0]
[]
[1700,16121,5,1,211,8,"Complete 10.5 kW Underceiling Inverter unit,52 dB(A),1,750 x 650 x 220 mm, serving Science Lab +Remote controller","No",18,null,0]
[]
[1701,16122,5,1,211,9,"Complete 2.2 kW  Inverter midwall unit serving the Admin Office Block+Remote controller","No",10,null,0]
[]
[1702,16123,5,1,211,null,"REFRIGERANT PIPING (R 32)"]
[]
[1703,16124,5,1,211,null,"Refrigerant pipes complete with thermal insulation, other fittings and fixtures, brackets, pressure tested and fully charged up with refrigerant in accordance with datasheets and specifications for the above."]
[]
[1704,16125,5,1,211,10,"15.9mm Diameter  ","m",120,null,0]
[]
[1705,16126,5,1,211,11,"12.7mm Diameter ","m",180,null,0]
[]
[1706,16127,5,1,211,12,"9.6mm Diameter  ","m",120,null,0]
[]
[1707,16128,5,1,212,13,"6.7mm Diameter ","m",180,null,0]
[]
[1708,16129,5,1,212,null,"Supply and install cable rack for refrigerant piping c/w joints and fixtures and fittings."]
[]
[1709,16130,5,1,212,14,"200mm Wide","m",6,null,0]
[]
[1710,16131,5,1,212,15,"100mm Wide","m",16,null,0]
[]
[1711,16132,5,1,212,16,"50mm Wide","m",8,null,0]
[]
[1712,16133,5,1,212,null,"Supply and install trunking for refrigerant piping c/w joints and fixtures and fittings."]
[]
[1713,16134,5,1,212,17,"100mm Wide","m",18,null,0]
[]
[1714,16135,5,1,212,null,"Supply PVC condensate pipes c/w joints and fixtures and fittings"]
[]
[1715,16136,5,1,212,18,"50mm Diameter ","m",150,null,0]
[]
[1716,16137,5,1,212,19,"25mm Diameter ","m",180,null,0]
[]
[1717,16138,5,1,212,20,"20mm Diameter ","m",60,null,0]
[]
[1718,16139,5,1,212,null,"CONTROL UNITS"]
[]
[1719,18983,5,1,212,21,"Supply and install remote control units as specified for all DX split air conditioning units. ","No",63,null,0]
[]
[1720,16141,5,1,212,null,"Galvanised sheet metal ducting without internal insulation "]
[]
[1721,16142,5,1,212,22,"Duct of 250mm diameter","m",80,null,0]
[]
[1722,16143,5,1,212,23,"Duct of 320mm diameter","m",60,null,{"$f":"I80*J80","v":0}]
[]
[1723,16144,5,1,212,24,"150mm diameter Flexible duct ","m",120,null,0]
[]
[1724,16145,5,1,212,25,"250mm diameter Flexible duct ","m",90,null,0]
[]
[1725,16146,5,1,212,null,"TERMINALS"]
[]
[1726,16147,5,1,212,26,"20 l/s, Fresh air grille (600x600)","No",24,null,0]
[]
[1727,16148,5,1,212,27,"60 l/s, Fresh air grille (600x600)","No",30,null,0]
[]
[1728,16149,5,1,213,28,"100 l/s, Fresh air grille (600x600)","No",6,null,0]
[]
[1729,16150,5,1,213,29,"Complete Weather Louvre with air filter( 300x250) for 120l/s","No",10,null,0]
[]
[1730,16151,5,1,213,30,"Supply of complete telescopic ventilator","No",3,null,0]
[]
[1731,16152,5,1,213,31,"Supply 350 x 350 Aluminium  Door Grille","No",30,null,0]
[]
[1732,16153,5,1,213,32,"Cable tray 100x50mm","No",20,null,0]
[]
[1733,16154,5,1,213,33,"Complete Weather Louvre with air filter ( 300x250) ","No",2,null,0]
[]
[1734,16155,5,1,213,34,"Supply 350 x 350 Aluminium Door Grille","No",7,null,0]
[]
[1735,16156,5,1,213,35,"Brackets with anchors","No",45,null,0]
[]
[1736,16157,5,1,213,36,"600 x 1200 ceiling grille","No",20,null,0]
[]
[1737,16159,5,1,213,37,"650 x 650 Louvres, 45 degree blades inclination incorporated of air filer and mesh","No",20,null,0]
[]
[1738,16160,5,1,213,null,"ACCESSORIES"]
[]
[1739,16161,5,1,213,38,"Cable tray 100x50mm","m",60,null,0]
[]
[1740,16162,5,1,213,39,"Complete Hangers and rod fitting component","No",48,null,0]
[]
[1741,16163,5,1,213,40,"400mm Diam Radiused bends","No",8,null,0]
[]
[1742,16164,5,1,213,41,"Manual control damper to manually balance system air volumes","No",6,null,0]
[]
[1743,16165,5,1,213,42,"Duct transfer 600L before and after motors","m",4,null,0]
[]
[1744,16166,5,1,213,43,"Spigot Diam 150","m",2,null,0]
[]
[1745,16167,5,1,213,44,"Spigot Diam 250","m",4,null,0]
[]
[1746,16168,5,1,213,45,"Duct stop end","m",4,null,0]
[]
[1747,16169,5,1,213,46,"Brackets with anchors","m",28,null,0]
[]
[1748,16170,5,1,213,47,"Complete galvanized drip tray(600 x 3150)","m",1,null,0]
[]
[1749,16171,5,1,214,null,"ELECTRICAL WORK"]
[]
[1750,16172,5,1,214,48,"Supply and install electrical work including power and control cabling and connections from the Isolator to the unit as Specified for the air conditioning units. Power supply from DB to lockable isolator next to the unit to be provided by Electrical Contractor","Item",1,null,0]
[]
[1751,16174,5,1,214,null,"Locable vandal Proof Cages"]
[]
[1752,16176,5,1,214,null,"Cages to be hot dip galvanised and must be complete with lock to secure the installed condenser"]
[]
[1753,16175,5,1,214,49,"Supply, deliver to site, installation of lockable cages to secure outside condensing units of the air conditioners","Item",1,null,0]
[]
[1754,16177,5,1,214,null,"TEST & COMMISSION"]
[]
[1755,16178,5,1,214,50,"Test and Commission the Entire Air conditioning system","SUM",1,null,{"$f":"I146*J146","v":0}]
[]
[1756,16179,5,1,214,51,"Ditto but in the presence of and to the entire satisfaction of the Consulting Engineer.","SUM",1,null,0]
[]
[1757,19044,5,1,214,null,"Maintenance"]
[]
[1758,19045,5,1,214,52,"Supply, delivery, installation, commissioning and  12 months maintenance of the following complete HVAC equipment with all mounting accessories as shown on the tender drawings: ","Months",12,null,0]
[{"$nulls":11},{"$f":"SUM(K14:K152)","v":0}]
[1759,0,5,1]
[]
[1760,18991,5,2,216,null,"BILL NO. 2  VENTILATION INSTALLATION "]
[]
[1761,19065,5,2,216,null,"NOTE: Tenderers are referred to The HVAC Tender specification. The supply, delivery, installation and commissioning of equipment as shall be detailed in this schedule. "]
[]
[1762,16180,5,2,216,null,"Fresh Air Plant"]
[]
[1763,16181,5,2,216,null,"Rate includes material. delivery & installation labour."]
[]
[1764,16182,5,2,216,null,"3900l/s against 150 Pa, Fresh air centrifugal fan. Fanshall an Index NC 35 according to the backgroundnoise design criterion for ventilation systems. Fan to have soft starter and three speed manual control"]
[]
[1765,16184,5,2,216,1,"(Low,Medium & High) and fire signal deactivation contractor.","No",2,null,0]
[]
[1766,16185,5,2,216,null,"Air filtration Plenum"]
[]
[1767,17402,5,2,216,null,"3050x1850x500 mm  Plenum with access panel, Filter frame and dirty filter manometer"]
[]
[1768,17403,5,2,216,2,"Plenum","Item",1,null,0]
[]
[1769,17404,5,2,216,3,"Manometer gauge","Item",1,null,0]
[]
[1770,17405,5,2,216,4,"Washable filters 600x600x50mm","Item",9,null,0]
[]
[1771,17406,5,2,216,null,"FRESH AIR DUCTWORK"]
[]
[1772,17407,5,2,216,null,"Supply and install ductwork to SMACNA as specified and shown on the drawings including wall boxes, bends, transformations, flexible connections, MEZ flanges etc. as per notes shown on the drawings."]
[]
[1773,17408,5,2,217,null,"Un-insulated Galvanized Sheet Metal supply air ducting complete with support brackets."]
[]
[1774,18994,5,2,217,5,"700x700 ","m",60,null,0]
[]
[1775,18995,5,2,217,6,"600x300","m",25,null,0]
[]
[1776,17411,5,2,217,7,"500x300","m",20,null,0]
[]
[1777,17412,5,2,217,8,"450x300","m",60,null,0]
[]
[1778,17413,5,2,217,9,"300x300","m",35,null,0]
[]
[1779,17414,5,2,217,null,"Flexible ducting"]
[]
[1780,17415,5,2,217,10,"200 Diameter ","m",20,null,0]
[]
[1781,17416,5,2,217,11,"250 Diameter ","m",15,null,0]
[]
[1782,17417,5,2,217,12,"300 Diameter ","m",32,null,0]
[]
[1783,17418,5,2,217,13,"Canvass flexible connection","No",4,null,0]
[]
[1784,17419,5,2,217,null,"Duct Fitings"]
[]
[1785,17420,5,2,217,null,"Transformations"]
[]
[1786,17421,5,2,217,14,"450x300 to 300x300","No",3,null,{"$f":"I208*J208","v":0}]
[]
[1787,17422,5,2,217,15,"700x700-600x300","No",3,null,0]
[]
[1788,17423,5,2,217,16,"600x300- 500x300","No",3,null,0]
[]
[1789,17424,5,2,217,null,"Reducers"]
[]
[1790,17425,5,2,217,17,"450x300 to 300x300","No",3,null,0]
[]
[1791,17426,5,2,217,18,"700x700-600x300","No",3,null,0]
[]
[1792,17427,5,2,217,19,"600x300- 500x300","No",3,null,0]
[]
[1793,17428,5,2,217,null,"Bends"]
[]
[1794,17429,5,2,217,20,"700x700","No",4,null,0]
[]
[1795,17432,5,2,218,null,"INDOOR UNITS COMPLETE AND ALL ACCESSORIES AS SPECIFIED"]
[]
[1796,17433,5,2,218,21,"Complete 10.5 kW Under ceiling Inverter unit,52 dB(A),1,750 x 650 x 220 mm, serving Science Lab +Remote controller","No",4,null,0]
[]
[1797,17434,5,2,218,22,"Complete 2.2 kW  Inverter mid wall unit serving the Admin Office Block+Remote controller","No",1,null,0]
[]
[1798,17435,5,2,218,null,"COPPER PIPING COMPLETE WITH INSULATION WITH ALL ACCESSORIES"]
[]
[1799,17436,5,2,218,23,"Pipe 6.7mm diameter","m",6,null,0]
[]
[1800,17437,5,2,218,24,"Pipe 12mm diameter","m",6,null,0]
[]
[1801,17438,5,2,218,25,"Pipe 9.6mm diameter","m",24,null,0]
[]
[1802,17439,5,2,218,26,"Pipe 15.9mm diameter","m",24,null,0]
[]
[1803,17440,5,2,218,27,"Draining pipe ф 25mm(Galvanised pipe)","m",20,null,0]
[]
[1804,17441,5,2,218,null,"ACCESSORIES"]
[]
[1805,17442,5,2,218,28,"Cable tray 100x50mm","m",20,null,0]
[]
[1806,17443,5,2,218,29,"Complete Weather Louvre with air filter (300x250) ","No",4,null,0]
[]
[1807,17444,5,2,218,30,"Supply 350 x 350 Aluminium Door Grill","No",8,null,0]
[]
[1808,17445,5,2,218,31,"Brackets with anchors","No",10,null,0]
[]
[1809,17446,5,2,218,32,"600 x 1200 ceiling grille","No",20,null,0]
[]
[1810,17447,5,2,218,33,"650 x 650 Louvres, 45 degree blades inclination incorporated of air filer and mesh","No",20,null,0]
[]
[1811,17448,5,2,218,34,"Workshop drawing Commissioning of the full System and equipment submission for approval,COC , Acceptance and signing off ","SUM",1,null,0]
[]
[1812,17449,5,2,218,35,"Electrical Works (associated with HVAC installation as above)","SUM",1,null,0]
[]
[1813,17450,5,2,219,36,"Builder work associated to HVAC installations","SUM",1,null,0]
[]
[1814,17451,5,2,219,null,"Stop-end"]
[]
[1815,17452,5,2,219,37,"500x300","No",2,null,0]
[]
[1816,17453,5,2,219,38,"300x300","No",12,null,0]
[]
[1817,17454,5,2,219,null,"Spigots"]
[]
[1818,17455,5,2,219,39,"200 mm diameter","No",5,null,{"$f":"I272*J272","v":0}]
[]
[1819,17456,5,2,219,40,"250mm diameter","No",5,null,0]
[]
[1820,17457,5,2,219,41,"300mm diameter ","No",20,null,0]
[]
[1821,17458,5,2,219,null,"Shoes"]
[]
[1822,17459,5,2,219,42,"700 x 700 ","No",6,null,0]
[]
[1823,17460,5,2,219,43,"300x300","No",6,null,0]
[]
[1824,17461,5,2,220,null,"DIFFUSERS"]
[]
[1825,17462,5,2,220,null,"Supply and install air diffusers as specified and shown on the drawings"]
[]
[1826,17463,5,2,220,44,"CV01 Size: 300mm dia","No",20,null,0]
[]
[1827,17464,5,2,220,null,"WEATHER LOUVRES"]
[]
[1828,17465,5,2,220,null,"Supply and install weather louvres for fresh air complete as specified and shown on the drawings"]
[]
[1829,17466,5,2,220,45,"[WL01] Size: 1200x 1200mm high","No",4,null,0]
[]
[1830,17467,5,2,220,46,"[WL02] Size: 800x 400mm high","No",1,null,0]
[]
[1831,17468,5,2,220,null,"BALANCING DAMPERS"]
[]
[1832,17469,5,2,220,null,"Supply and install butterfly dampers complete spigot as specified and shown on the drawings"]
[]
[1833,17470,5,2,220,47,"(BD] Size: 300mm dia","No",20,null,0]
[]
[1834,17471,5,2,220,48,"(BD] Size: 200mm dia","No",2,null,0]
[]
[1835,17472,5,2,220,49,"(BD] Size:150mm dia","No",2,null,0]
[]
[1836,17473,5,2,221,null,"FIRE DAMPERS"]
[]
[1837,17474,5,2,221,null,"Supply and install butterfly dampers complete spigot as specified and shown on the drawings"]
[]
[1838,17475,5,2,221,50,"Size: 700x700mm dia","No",2,null,0]
[]
[1839,17476,5,2,221,null,"FRESH AIR FILTERATION"]
[]
[1840,17477,5,2,221,null,"Supply and install Filter panel frame complete with all ancillaries and appurtenances for complete filtration system "]
[]
[1841,17478,5,2,221,51,"Frame  Size: 2400x2400mm with 600mmx600mm panel filter divisions","No",1,null,0]
[]
[1842,17479,5,2,221,null,"Pleated Washable Panel filters Installed in a Filter Plenum Box."]
[]
[1843,17480,5,2,221,52,"600 x 600 x 50mm","No",18,null,0]
[]
[1844,17481,5,2,221,null,"Wall mounted Attenuated Intake Louvre Air Grill with fixed blades installed. Anodise aluminium finish ."]
[]
[1845,17482,5,2,221,53,"WF-1: 2500 x 2500 mm","No",1,null,0]
[]
[1846,17483,5,2,221,null,"Sound Attenuators installed in the Supply Air Ducting Delivering Required Flow at 35 NC."]
[]
[1847,17484,5,2,221,54,"700 x 700 mm Duct Size, 3900 l/s","No",2,null,0]
[]
[1848,17485,5,2,221,null,"Fan Control Panel"]
[]
[1849,17486,5,2,221,55,"Remote on and off, with high med and low speed setting located near stage, Main panel located in plant room with on and off switch, run and trip led lights, soft starter, analogue operation hour recorder, Fire alarm trip contractor","No",2,null,0]
[]
[1850,17487,5,2,221,null,"Smoke control Ventilation Systems"]
[]
[1851,17488,5,2,221,56,"1200x600 normally Ridge smoke ventilator with fusible link operation and burglar bars. Capacity 1006l/s","No",35,null,{"$f":"I338*J338","v":0}]
[]
[1852,17489,5,2,221,null,"Ceiling mounted anodised aluminium, white finish Exhaust Grill."]
[]
[1853,17490,5,2,221,57,"EA-1: 1200 x 600 mm : 532 l/s","No",25,null,0]
[]
[1854,17491,5,2,222,null,"ELECTRICAL WORK"]
[]
[1855,17492,5,2,222,58,"Supply and install electrical work including power and control cabling and connections as specified for the Ventilation and smoke control systems.","Item",1,null,0]
[]
[1856,17493,5,2,222,null,"TEST & COMMISSION"]
[]
[1857,17494,5,2,222,59,"Test and commission the Ventilation system.","Item",1,null,0]
[]
[1858,17495,5,2,222,60,"Ditto but in the presence of and to the entire satisfaction of the Consulting Engineer.","Item",1,null,0]
[]
[1859,18999,5,2,222,null,"MAINTENANCE "]
[]
[1860,19002,5,2,222,61,"Supply, delivery, installation, commissioning and  12 months maintenance of the following complete HVAC equipment with all mounting accessories as shown on the tender drawings: ","Months",12,null,0]
[{"$nulls":11},{"$f":"SUM(K165:K356)","v":0}]
[1861,0,5,2]
[]
[1862,19015,5,3,224,null,"BILL NO. 3  KITCHEN EQUIPMENT "]
[]
[1863,16858,5,3,224,null,"NOTE: Tenderers are referred to The HVAC Tender specification. The supply, delivery, installation and commissioning of equipment as shall be detailed in this schedule. "]
[]
[1864,16859,5,3,224,null,"Kitchen Canopy"]
[]
[1865,16860,5,3,224,null,"In line duct mounted fan installed complete with matching sound attenuators on either side of the fan."]
[]
[1866,16861,5,3,224,1,"Diameter 710 Fan delivering 1980 l/s against 150 pa @ 1440rpm.","No",2,null,0]
[]
[1867,16862,5,3,224,null,"Uninsulated galvanised steel sheet metal supply air ducting complete with support brackets."]
[]
[1868,16863,5,3,224,null,"450mm Diameter Ducting"]
[]
[1869,16865,5,3,224,2,"Duct","m",30,null,0]
[]
[1870,16866,5,3,224,3,"Duct with 45 degree cut-out and Vremin-proof wire mesh","No",7,null,0]
[]
[1871,16867,5,3,224,4,"Canvass flexible","No",7,null,0]
[]
[1872,16868,5,3,224,5,"Bend","No",7,null,0]
[]
[1873,16869,5,3,224,null,"500mm Diameter Ducting"]
[]
[1874,16870,5,3,224,6,"Duct","m",7,null,0]
[]
[1875,16871,5,3,224,7,"Duct with 45 degree cut-out and Vremin-proof wire mesh","No",1,null,0]
[]
[1876,16872,5,3,224,8,"Canvass flexible","No",2,null,0]
[]
[1877,16873,5,3,224,9,"Bend","No",3,null,0]
[]
[1878,16874,5,3,225,null,"Stainless steel Extraction Canopy with support brackets, Filters, Fire Dampers, Drip trays etc.As follows: Refer to detail drawings/working drawings "]
[]
[1879,18619,5,3,225,null,"Nutrition Kitchen/Hall"]
[]
[1880,18620,5,3,225,null,"3100x750 Canopy of 0.9mm 430 stainless steel with a no 4 satin finish. Canopy to have 4x 495l/s inertia filters. Fan capacity as follows:"]
[]
[1881,18621,5,3,225,10,"1980l/s@ 150Pa","No",1,null,0]
[]
[1882,18622,5,3,225,null,"Extraction Canopy fire protection system Supply, install and commission the following Equipment as per the Technical specification"]
[]
[1883,18623,5,3,225,11,"ANSUL Automatic fire suppression system with fusible links","No",1,null,{"$f":"I402*J402","v":0}]
[]
[1884,18624,5,3,225,null,"CONTROLLER FOR KITCHEN CANOPY"]
[]
[1885,18625,5,3,225,null,"Supply and install a stop start controller for Kitchen Canopy as specified "]
[]
[1886,18626,5,3,225,12,"Nutrition Center/Hall","No",1,null,0]
[{"$nulls":11},{"$f":"SUM(K368:K408)","v":0}]
[1887,0,5,3]
[]
[1888,19016,5,4,227,null,"BILL NO. 4  FIRE PROTECTION "]
[]
[1889,19066,5,4,227,null,"NOTE: Tenderers are referred to The Technical specification for the Fire and Domestic water Reticulation. The supply, delivery, installation and commissioning of equipment as shall be detailed in this schedule. "]
[]
[1890,17335,5,4,227,null,"FIRE FIGHTING EQUIPMENT"]
[]
[1891,17336,5,4,227,null,"HOSE REEL"]
[]
[1892,17337,5,4,227,null,"Hose reel assembly with stationary type and rolling arrangement together with 19mm dia x 30 mtrs long hose and 6.25mm Plastic Red nozzle, and 25mm non-return shut-off valve at tap-off , hose reel shackle , HUV resistant hose reel cover etc., as per SANS 1086.  Disc Diameter 575, Valve to be of 25mm BSP CP Hose reels with a wall mounting bracket are to serve each block as indicated to the tender drawing Jet length of 10m@0,2Mpa, 30l/min discharge rate @300kPa. Must be 250mm wall projection"]
[]
[1893,17338,5,4,227,1,"30m Stationary Fire Hose Reel /  fixed type","No",18,null,0]
[]
[1894,17339,5,4,228,null,"CONDUIT PIPE"]
[]
[1895,17340,5,4,228,null,"COMPLETE PIPING AND INSTALLATION ACCESSORIES "]
[]
[1896,17341,5,4,228,null,"Supply, Erection, Testing and Commissioning of fire installation piping carried out of MS class C  Heavy duty pipe as per the relevant requirements of SANS 2001-DP2 or SANS 2001-DP6 and shall have a pressure rating of not less than 1 200 kPAa and above together with fittings, valves and accessories.  Work will include painting for the above ground piping with one coat of primer and two coat of enamel paint of approved colour.Work will include cleaning of pipe, degreasing, etc."]
[]
[1897,17342,5,4,228,2,"25mm NB pipe","m",90,null,0]
[]
[1898,17343,5,4,228,3,"32mm  NB pipe","m",60,null,0]
[]
[1899,17344,5,4,228,4,"50mm NB pipe","m",120,null,0]
[]
[1900,17345,5,4,228,5,"80mm NB pipe","m",60,null,0]
[]
[1901,17346,5,4,228,6,"100mm NB pipe","m",150,null,0]
[]
[1902,17347,5,4,229,null,"FIRE EXTINGUISHERS "]
[]
[1903,17348,5,4,229,null,"Supply, installation, testing and commissioning of approved make DCP and CO2 fire extinguishers, made of high pressure steel.Supply and install in position approved make Fire Extinguisher of 5kg CO2 capacity complete  made of high quality Aluminium with chromium plated gun discharging in 13 sec. Maximum working pressure 174bar,with hose reel horn, to be placed on backing board well anchored hose which should have a minimum of bursting pressure of 200+/-15BarSupply and install in position approved make Fire Extinguisher of 4.5kg  and 9kg capacity complete approved make Dry Chemical Powder Fire Extinguishers  1400kPa working pressure , burst pressure of > 5500 kPa mounted on backing boards, "]
[]
[1904,17349,5,4,229,7,"4.5kg DCP  fire extinguisher ","No",124,null,0]
[]
[1905,17350,5,4,229,8,"9kg DCP  fire extinguisher ","No",2,null,0]
[]
[1906,17351,5,4,229,9,"5kg CO2  fire extinguisher ","No",8,null,0]
[]
[1907,17352,5,4,229,10,"Complete inlet 2 x 65mm male instantaneous coupling double booster connector, rated 1980l/min working at 1200kPa, having a blanking cap and chain.","No",1,null,0]
[]
[1908,17353,5,4,229,11,"Complete 80mm Tamper proof brass hydrant and key, working pressure 16 bar, made in brass","No",1,null,0]
[]
[1909,17354,5,4,229,12,"Fire Standpipe 65mm Diameter with brass quick coupling valve","No",2,null,0]
[]
[1910,17355,5,4,229,13,"Fire Blanket","No",6,null,0]
[]
[1911,17356,5,4,229,null,"ACCESSORIES"]
[]
[1912,17357,5,4,229,14,"Provision for a complete hybrid 20-30A megaphone","No",1,null,0]
[]
[1913,17358,5,4,230,15,"Complete fire motor siren, including installation/220V","No",1,null,0]
[]
[1914,17359,5,4,230,16,"Supply and installation of all fire Signage(photoluminescent and screw type mounting (SABS approved)","No",120,null,{"$f":"I464*J464","v":0}]
[]
[1915,17360,5,4,230,17,"O&M manuals with Complete as built drawings","No",3,null,0]
[]
[1916,17362,5,4,230,18,"Complete Fire stopping elements","SUM",1,null,0]
[]
[1917,17363,5,4,230,19,"Workshop drawings & Equipment Submissions","SUM",1,null,0]
[]
[1918,17364,5,4,230,20,"Commissioning and complete Fire installation testing","SUM",1,null,0]
[{"$nulls":11},{"$f":"SUM(K421:K472)","v":0}]
[1919,0,5,4]
[]
[1920,17367,5,5,232,null,"BILL NO. 5  LP GAS INSTALLATION"]
[]
[1921,17369,5,5,232,null,"NOTE: Tenderers are referred to The Technical specification for the Fire and Domestic water Reticulation. The supply, delivery, installation and commissioning of equipment as shall be detailed in this schedule. "]
[]
[1922,17368,5,5,232,null,"Rate includes material. delivery & installation labour."]
[]
[1923,17370,5,5,232,null,"Nutrition Centre/Dinning Hall"]
[]
[1924,17371,5,5,232,null,"Schedule 40 black steel piping complete with fittings, brackets and welded joints."]
[]
[1925,17372,5,5,232,1,"15mm diameter  nominal bore","m",40,null,0]
[]
[1926,17373,5,5,232,2,"22mm diameter  nominal bore","m",30,null,0]
[]
[1927,17374,5,5,232,3,"25mm diameter nominal bore","m",40,null,0]
[]
[1928,17375,5,5,232,null,"LPG Gas Quality Isolating Valve"]
[]
[1929,17399,5,5,232,4,"10mm diameter nominal bore","No",1,null,0]
[]
[1930,17377,5,5,232,5,"25mm diameter  nominal bore","No",10,null,0]
[]
[1931,17378,5,5,232,6,"Low Pressure regulator","No",1,null,0]
[]
[1932,17379,5,5,232,null,"LPG Gas Quality Flexible Hose Connector"]
[]
[1933,17380,5,5,232,7,"10mm diameter  nominal bore","No",1,null,0]
[]
[1934,17381,5,5,232,8,"25mm diameter nominal bore","No",6,null,0]
[]
[1935,17382,5,5,232,null,"Trunking"]
[]
[1936,17383,5,5,232,9,"100 x 50 Epoxy powder coated trunking.","m",30,null,0]
[]
[1937,17384,5,5,233,null,"Supply and Install 2x2 48kg LPG right and left Cylinders, Manifold and Ancillary Equipment as per Tender Drawing:"]
[]
[1938,17385,5,5,233,10,"2x2 Cylinder Manifold","Item",1,null,0]
[]
[1939,17386,5,5,233,11,"Supply 48kg Cylinders","Item",1,null,0]
[]
[1940,17387,5,5,233,null,"FITTINGS"]
[]
[1941,17388,5,5,233,null,"Reducers"]
[]
[1942,17389,5,5,233,12,"25 -15 mm diameter  nominal bore","No",20,null,0]
[]
[1943,17390,5,5,233,13,"15 -10 mm diameter  nominal bore","No",12,null,0]
[]
[1944,17391,5,5,233,null,"Bends"]
[]
[1945,17400,5,5,233,14,"25 mm diameter  nominal bore","No",20,null,0]
[]
[1946,17401,5,5,233,15,"15 mm diameter  nominal bore","No",10,null,{"$f":"I528*J528","v":0}]
[]
[1947,17394,5,5,233,null,"Tees"]
[]
[1948,17395,5,5,233,16,"25mm diameter  nominal bore","No",12,null,0]
[]
[1949,17396,5,5,233,null,"Valve Box"]
[]
[1950,17397,5,5,233,null,"Isolating valve box including valves, instrumentation, identification labelling, etc"]
[]
[1951,17398,5,5,233,17,"Valve Cabinets with one Diameter 25mm Isolating valve.","No",10,null,0]
[]
[1952,18491,5,5,233,null,"PRESSURE REGULATOR"]
[]
[1953,18492,5,5,233,null,"Supply, deliver, off-load, store on site and install First Stage Pressure regulator  for a maximum gas"]
[]
[1954,18493,5,5,233,18,"Demand of 750 000kJ/hr","No",1,null,0]
[]
[1955,18494,5,5,233,19,"1800x800mm Steel Diamond Steel mesh hot dip galvanised locable cage/enclosure with roof, pad lock, no-unauthorised personnel, no-smoking sign, no celphone sign","Item",1,null,0]
[]
[1956,18495,5,5,234,null,"LABORATORY"]
[]
[1957,18496,5,5,234,null,"The supply, delivery, equipment as per the requirements of SANS 10087-1 for installation and commissioning of equipment as per the requirements of SANS 10087-1 for LPG gas installation"]
[]
[1958,18497,5,5,234,null,"Schedule 40 black steel piping complete with fittings, brackets and welded joints."]
[]
[1959,18498,5,5,234,20,"15mm diameter nominal bore","m",80,null,0]
[]
[1960,18499,5,5,234,21,"25mm diameter  nominal bore","m",60,null,0]
[]
[1961,18500,5,5,234,22,"32mm diameter  nominal bore","m",35,null,0]
[]
[1962,18501,5,5,234,null,"LPG Gas Quality Isolating Valve"]
[]
[1963,18502,5,5,234,23,"15mm diameter  nominal bore","No",35,null,0]
[]
[1964,18503,5,5,234,24,"25mm diameter  nominal bore","No",8,null,0]
[]
[1965,18504,5,5,234,25,"32mm diameter  nominal bore","No",8,null,0]
[]
[1966,18505,5,5,234,26,"Low Pressure regulator","No",2,null,0]
[]
[1967,18506,5,5,234,null,"LPG Gas Quality Flexible Hose Connector"]
[]
[1968,18507,5,5,234,27,"15mm diameter  nominal bore","No",44,null,0]
[]
[1969,18508,5,5,234,28,"10 mm diameter  nominal bore","No",8,null,0]
[]
[1970,18509,5,5,234,null,"Trunking"]
[]
[1971,18510,5,5,234,29,"100 x 50 Epoxy powder coated trunking.","m",90,null,0]
[]
[1972,18511,5,5,234,null,"Supply and Install 2x1 48kg LPG Cylinders left and right banks, Manifold and Ancillary Equipment as per"]
[]
[1973,18512,5,5,234,30,"2 x1 Cylider Manifold","Item",1,null,0]
[]
[1974,18513,5,5,234,31,"Supply 48kg Cylinders","Item",1,null,0]
[]
[1975,18514,5,5,235,null,"Fittings"]
[]
[1976,18515,5,5,235,null,"Reducers"]
[]
[1977,18516,5,5,235,32,"25 -15 mm diameter  nominal bore","No",50,null,0]
[]
[1978,18517,5,5,235,33,"32 -25mm diameter  nominal bore","No",20,null,{"$f":"I592*J592","v":0}]
[]
[1979,18518,5,5,235,null,"Bends"]
[]
[1980,18519,5,5,235,34,"25 mm diameter  nominal bore","No",20,null,0]
[]
[1981,18520,5,5,235,35,"15 mm diameter  nominal bore","No",20,null,0]
[]
[1982,18521,5,5,235,36,"32 mm diameter nominal bore","No",20,null,0]
[]
[1983,18522,5,5,235,null,"Tees"]
[]
[1984,18523,5,5,235,37,"25mm diameter  nominal bore","No",10,null,0]
[]
[1985,18524,5,5,235,null,"Valve Box"]
[]
[1986,18525,5,5,235,null,"Isolating valve box including valves, instrumentation, identification labelling, etc"]
[]
[1987,18526,5,5,235,38,"Valve Cabinets with one Diameter 25mm Isolating valve.","No",4,null,0]
[]
[1988,18527,5,5,235,null,"PRESSURE REGULATOR"]
[]
[1989,18528,5,5,235,null,"Supply, deliver, off-load, store on site and install First Stage  Pressure regulator  for a maximum gas"]
[]
[1990,18529,5,5,235,39,"Demand of 750 000kJ/hr","No",2,null,0]
[]
[1991,18530,5,5,235,40,"900x800mm Steel Diamond Steel mesh hot dip galvanised locable cage/enclosure with roof, pad lock, no-unauthorised personnel, no-smoking sign, no celphone sign","Item",1,null,0]
[]
[1992,18531,5,5,235,41,"Colour coding","SUM",1,null,0]
[]
[1993,18532,5,5,235,null,"Other Accessories"]
[]
[1994,18533,5,5,235,42,"Pigtail pipes","Item",1,null,0]
[]
[1995,18534,5,5,235,43,"Non-return valve","Item",1,null,0]
[]
[1996,18535,5,5,236,44,"Fix all gas cylinders against a rack(s) with individual safety chains for each cylinder.","Item",1,null,0]
[]
[1997,18536,5,5,236,45,"Pressure gauge","Item",1,null,0]
[{"$nulls":11},{"$f":"SUM(K486:K630)","v":0}]
[1998,0,5,5]
[]
[1999,17365,5,6,238,null,"BILL NO. 6  COLD ROOM SYSTEM"]
[]
[2000,17366,5,6,238,null,"NOTE: Supply, install and commission the following: Equipment as per the Technical specification & drawings ME E 070201. All work should conform to the requirements of the Standard Quality Specification for Refrigeration – DID-E M7.Prefabricated Cold room constructed from 100mm Polystyrene insulated panels installed with vapour seals on either sides of the room outside dimensions: Cold Room 3200x2800x2400H. Cold room to be equipped with lighting system. The insulation density must be least 24kg/m³ and for floors at least 32kg/m³. See ME-E 07 02 01 for details"]
[]
[2001,18538,5,6,238,null,"Prefabricated Cold room constructed from 100mm Polystyrene insulated pannels installed with vapour seals on either sides of the room outside dimensions: Cold Room 3200x2800x2400H. Cold room to be equiped with lighting system ."]
[]
[2002,18539,5,6,238,1,"The insulation density must be least 24kg/m³ and for floors at least 32kg/m³. See ME-E 07 02 01 for details","SUM",1,null,0]
[]
[2003,18540,5,6,238,2,"Checker plate cladding 1200mm high on all internal walls:","m2",15,null,0]
[]
[2004,18541,5,6,238,3,"Freezer room 800x2100H with lockable latch and strike which has internal lock release","No",1,null,0]
[]
[2005,18542,5,6,238,4,"Supply and install lock in alarm system","SUM",1,null,0]
[]
[2006,18543,5,6,238,null,"Cold room Refrigeration Equipment complete as specified"]
[]
[2007,18544,5,6,238,5,"Supply and install refrigerating Equipment for a prefabricated cold room with total cooling capacity of 4,4Kw Evaporator coil and weather proof outside condensing unit","No",1,null,0]
[]
[2008,18545,5,6,238,6,"All refrigerant piping, insulated, in cable trunking inside building; in galvanised sheetmetal ducting outside building","m",15,null,0]
[]
[2009,18546,5,6,239,7,"Drain piping","Item",10,null,0]
[]
[2010,18547,5,6,239,8,"Dial temperature gauge","Item",1,null,{"$f":"I656*J656","v":0}]
[]
[2011,18548,5,6,239,9,"Painting and sealing","Item",1,null,0]
[]
[2012,18549,5,6,239,null,"Galvanised shelves"]
[]
[2013,18550,5,6,239,10,"3 tier","Item",2,null,0]
[]
[2014,18551,5,6,239,11,"2 tier","Item",1,null,0]
[]
[2015,18552,5,6,239,12,"Cold room Lighting","Item",1,null,0]
[]
[2016,18553,5,6,239,null,"Electrical Installation"]
[]
[2017,18554,5,6,239,13,"Electrical installation for above equipment from Local isolator to equipment ","SUM",1,null,0]
[{"$nulls":11},{"$f":"SUM(K640:K670)","v":0}]
[2018,0,5,6]
[]
[2019,16772,5,7,241,null,"BILL NO. 7  HOT WATER RETICULATION"]
[]
[2020,16773,5,7,241,null,"NOTE: Tenderers are referred to The Technical specification for the Fire and Domestic water Reticulation. The supply, delivery, installation and commissioning of equipment as shall be detailed in this schedule."]
[]
[2021,16774,5,7,241,null,"COPPER PIPE"]
[]
[2022,16775,5,7,241,null,"Class 0 copper water piping in accordance with SANS 460 installed complete with short lengths, cutting, plain couplings, capillary solder and jointingstrictly in accordance with the Manufacturer's instructions, support brackets etc."]
[]
[2023,16776,5,7,241,null,"Pipe lengths"]
[]
[2024,16777,5,7,241,null,"Including hangers, brackets, welding, mountings, flanges, gaskets, connectors, bolts, nuts, washers, anchors, joining connectors, etc."]
[]
[2025,16778,5,7,241,1," 15mm Diameter","m",195,null,0]
[]
[2026,16779,5,7,241,2," 22mm Diameter","m",455,null,0]
[]
[2027,16780,5,7,241,3," 28mm Diameter","m",30,null,0]
[]
[2028,16781,5,7,241,null,"Bends"]
[]
[2029,16782,5,7,241,null,"Including hangers, brackets, welding, mountings, flanges, gaskets, etc."]
[]
[2030,16783,5,7,241,4," 15mm Diameter","No",90,null,0]
[]
[2031,16784,5,7,241,5,"22mm Diameter ","No",120,null,0]
[]
[2032,16785,5,7,241,6," 28mm Diameter","No",1,null,0]
[]
[2033,16786,5,7,242,null,"Tees"]
[]
[2034,16787,5,7,242,null,"Extra over copper piping for capillary fittings in accordance with SANS - 2 complete with hangers, brackets, soldering ,etc."]
[]
[2035,16788,5,7,242,7," 15-15-15mm Diameter","No",90,null,0]
[]
[2036,16789,5,7,242,8," 22-22-22mm Diameter","No",120,null,0]
[]
[2037,16790,5,7,242,9," 28-28-28mm Diameter","No",1,null,0]
[]
[2038,16791,5,7,242,null,"Reducers"]
[]
[2039,16792,5,7,242,null,"Extra over copper piping for capillary fittings in accordance with SANS - 2 complete with hangers, brackets, soldering , etc."]
[]
[2040,16793,5,7,242,10," 22 - 15mm Diameter","No",25,null,0]
[]
[2041,16794,5,7,242,11," 28 - 22mm Diameter","No",25,null,0]
[]
[2042,16795,5,7,242,null,"Isolating valves"]
[]
[2043,16796,5,7,242,null,"Ball type Isolating Valve complete with couplings to piping, etc., all strictly in accordance with Manufacturer's instructions and complying to SANS 1056 - 3  "]
[]
[2044,16797,5,7,242,12,"15mm Diameter ","No",450,null,{"$f":"I724*J724","v":0}]
[]
[2045,16798,5,7,242,13," 22mm Diameter","No",520,null,0]
[]
[2046,16799,5,7,242,14," 28mm Diameter","No",600,null,0]
[]
[2047,16800,5,7,242,null,"Non return valves"]
[]
[2048,16801,5,7,242,null,"Lift type Non Return Valve complete with couplings to piping, etc., all strictly in accordance with Manufacturer's instructions."]
[]
[2049,16802,5,7,242,15," 22mm Diameter","No",10,null,0]
[]
[2050,16803,5,7,242,null,"Pressure Relief Valves"]
[]
[2051,16804,5,7,242,null,"Specified Valve complete with couplings to piping, etc., all strictly in accordance with Manufacturer's instructions."]
[]
[2052,16805,5,7,242,16," 22mm Diameter","No",15,null,0]
[]
[2053,16806,5,7,243,null,"Air Relief Valves"]
[]
[2054,16807,5,7,243,null,"Specified Valve complete with couplings to piping, etc., all strictly in accordance with Manufacturer's instructions."]
[]
[2055,16808,5,7,243,17," 22mm Diameter","No",15,null,0]
[]
[2056,16809,5,7,243,null,"Vacuum Breaker"]
[]
[2057,16810,5,7,243,null,"Specified Valve complete with couplings to piping, etc., all strictly in accordance with Manufacturer's instructions."]
[]
[2058,16811,5,7,243,18," 22mm Diameter","No",22,null,0]
[]
[2059,16812,5,7,243,null,"Strainers"]
[]
[2060,16813,5,7,243,null,"Specified Strainer complete with couplings to piping, etc., all strictly in accordance with Manufacturer's instructions."]
[]
[2061,16814,5,7,243,19,"22mm Diameter ","No",33,null,0]
[]
[2062,16815,5,7,243,20," 28mm Diameter","No",12,null,0]
[]
[2063,16816,5,7,243,21," 32mm Diameter","No",10,null,0]
[]
[2064,16817,5,7,243,null,"Blender Valves"]
[]
[2065,16819,5,7,243,22,"Specified blender valve complete with couplings to piping, etc., all strictly in accordance with Manufacturer's instructions.","Item",15,null,0]
[]
[2066,16821,5,7,243,null,"Pipe Insulation"]
[]
[2067,16820,5,7,243,null,"25 mm thick snap-on preformed glass fibre insulation a density of 80 kg/m3 covered with cloth wrap."]
[]
[2068,16822,5,7,243,23," 15mm Diameter","m",195,null,0]
[]
[2069,16823,5,7,243,24,"25mm Diameter ","m",450,null,0]
[]
[2070,16824,5,7,243,25,"22mm Diameter ","m",30,null,0]
[]
[2071,16825,5,7,243,26,"28mm Diameter ","m",6,null,0]
[]
[2072,16826,5,7,244,null,"Pipe Insulation (Exposed piping)"]
[]
[2073,16827,5,7,244,null,"25 mm thick snap-on preformed glass fibre insulationwith a density of 80 kg/m3 and covered with 0.5mm thick galvanised sheet metal cladding."]
[]
[2074,16828,5,7,244,27," 25mm Diameter","m",40,null,{"$f":"I784*J784","v":0}]
[]
[2075,16829,5,7,244,28,"22mm Diameter ","m",40,null,0]
[]
[2076,16830,5,7,244,29," 28mm Diameter","m",15,null,0]
[]
[2077,16831,5,7,244,null,"Insulation to fittings (plastered finish) including T's bends, reducers, valves, etc."]
[]
[2078,16832,5,7,244,30," 22mm Diameter","No",108,null,0]
[]
[2079,16833,5,7,244,31,"28mm Diameter ","No",24,null,0]
[]
[2080,16834,5,7,244,null,"Pipe hangers"]
[]
[2081,16835,5,7,244,null,"Complete with angle irons, hangers, rods, chains/rods, brackets, anchors/fasteners, welding, mountings, flanges, gaskets, bolts, nuts, washers, etc."]
[]
[2082,16836,5,7,244,null,"Pipe hangers:(Ceiling or Truss Mounted)"]
[]
[2083,16837,5,7,244,32,"108 to 15mm Diameter Two Pipe Support.","No",52,null,0]
[]
[2084,16838,5,7,244,33," 108 to 15mm Diameter Single Pipe Support.","No",10,null,0]
[]
[2085,16839,5,7,244,null,"Solar Preheater for Electrical Geyser"]
[]
[2086,16840,5,7,244,null,"The Solar hot water heating systems or pre-heaters must be of the split, indirect heating thermo-syphon type complete with expansion tanks"]
[]
[2087,16841,5,7,244,34,"150 Liter","No",5,null,0]
[]
[2088,16842,5,7,244,35,"Adjustable inclined roof Mounting Bracket set at 36 degree to te horizontal and facing North","No",5,null,0]
[]
[2089,16843,5,7,244,null,"Electrical Geyser"]
[]
[2090,16844,5,7,244,36,"50 Litre (2 kW Electrical Element)","No",1,null,0]
[]
[2091,16845,5,7,244,37,"150 Litre (2 kW Electrical Element)","No",10,null,0]
[]
[2092,16846,5,7,245,38,"300 Litre (2 kW Electrical Element)","No",2,null,0]
[]
[2093,16847,5,7,245,39,"300L Geyser drip tray","No",2,null,0]
[]
[2094,16848,5,7,245,40,"150 L Geyser Drip Tray","No",10,null,0]
[]
[2095,16849,5,7,245,41,"50 L Geyser Drip Tray","No",1,null,0]
[]
[2096,16850,5,7,245,null,"Additional thermal insulation for geysers"]
[]
[2097,16851,5,7,245,42,"Thermal Blanket for geyser","No",13,null,0]
[]
[2098,16852,5,7,245,null,"Electrical works"]
[]
[2099,16853,5,7,245,43,"Electrical installation for above equipment from Local isolator to equipment","No",1,null,0]
[]
[2100,16854,5,7,245,null,"Pressure Testing "]
[]
[2101,16855,5,7,245,44,"Pressure testing of Hot water distribution system","SUM",1,null,0]
[]
[2102,16856,5,7,245,null,"Sterilise of the water distribution system"]
[]
[2103,16857,5,7,245,45,"Sterilise the complete installation (Hot water)","SUM",1,null,0]
[{"$nulls":11},{"$f":"SUM(K685:K842)","v":0}]
[2104,0,5,7]
[]
[2105,19017,5,8,247,null,"BILL NO. 8  COLD WATER RETICULATION "]
[]
[2106,16673,5,8,247,null,"NOTE: Tenderers are referred to The Technical specification for the Fire and Domestic water Reticulation. The supply, delivery, installation and commissioning of equipment as shall be detailed in this schedule. "]
[]
[2107,16674,5,8,247,null,"COPPER PIPE"]
[]
[2108,16675,5,8,247,null,"Class 0 copper water piping in accordance with SANS 460 installed complete with short lengths, cutting, plain couplings, capillary solder and jointing strictly in accordance with the specification for Wet service, support brackets and all necessary appurtenances for a complete installation"]
[]
[2109,16676,5,8,247,null,"Pipe lengths:"]
[]
[2110,16677,5,8,247,null,"Including hangers, brackets, jointing, joining connectors, etc. Piping to be extruded complete with colour coding as per Gauteng DID Specifications"]
[]
[2111,16678,5,8,247,1," 15mm Diameter","m",250,null,{"$f":"I858*J858","v":0}]
[]
[2112,16679,5,8,247,2," 22mm Diameter","m",210,null,0]
[]
[2113,16680,5,8,247,3," 28mm Diameter","m",155,null,0]
[]
[2114,16681,5,8,247,4,"35mm Diameter ","m",40,null,0]
[]
[2115,16682,5,8,247,5," 42mm Diameter","m",10,null,0]
[]
[2116,16683,5,8,247,6," 54mm Diameter","m",50,null,0]
[]
[2117,16684,5,8,247,null,"Bends:"]
[]
[2118,16685,5,8,247,null,"Including hangers, brackets, jointing, joining connectors, etc. Piping to be extruded complete with colour coding as per Gauteng DID Specifications"]
[]
[2119,16686,5,8,247,7," 15mm Diameter","No",550,null,0]
[]
[2120,16770,5,8,248,8,"22mm Diameter ","No",150,null,0]
[]
[2121,16688,5,8,248,9," 28mm Diameter","No",165,null,0]
[]
[2122,16689,5,8,248,10," 35mm Diameter","No",90,null,0]
[]
[2123,16690,5,8,248,11,"42mm Diameter ","No",50,null,0]
[]
[2124,16691,5,8,248,12,"54mm Diameter ","No",90,null,0]
[]
[2125,16692,5,8,248,null,"Tees:"]
[]
[2126,16693,5,8,248,null,"Including hangers, brackets, jointing, joining connectors, etc. Piping to be extruded complete with colour coding as per Gauteng DID Specifications"]
[]
[2127,16694,5,8,248,13,"  15mm Diameter","No",510,null,0]
[]
[2128,16695,5,8,248,14," 22mm Diameter ","No",145,null,0]
[]
[2129,16696,5,8,248,15,"28mm Diameter ","No",165,null,0]
[]
[2130,16697,5,8,248,16,"35mm Diameter ","No",90,null,0]
[]
[2131,16698,5,8,248,17," 42mm Diameter ","No",20,null,0]
[]
[2132,16771,5,8,248,18," 54mm Diameter ","No",20,null,0]
[]
[2133,16700,5,8,248,null,"Reducers"]
[]
[2134,16701,5,8,248,null,"Including jointing, joining connectors, etc. Piping to be extruded complete with colour coding as per Gauteng DID Specifications"]
[]
[2135,16702,5,8,248,19," 22x15mm Diameter ","No",160,null,0]
[]
[2136,16703,5,8,248,20,"28x15mm Diameter","No",120,null,0]
[]
[2137,16704,5,8,248,21,"35x15mm Diameter  ","No",125,null,0]
[]
[2138,16705,5,8,248,22,"42x22mm Diameter  ","No",90,null,{"$f":"I912*J912","v":0}]
[]
[2139,16706,5,8,248,23,"54x22mm Diameter ","No",90,null,0]
[]
[2140,16707,5,8,249,null,"Isolating valves:"]
[]
[2141,16708,5,8,249,null,"Ball type Isolating Valve complete with couplings to piping, etc., all strictly in accordance with Manufacturer's instructions and complying to SANS 1056 - 3  "]
[]
[2142,16709,5,8,249,24,"15mm Diameter  ","No",240,null,0]
[]
[2143,16710,5,8,249,25," 22mm Diameter ","No",145,null,0]
[]
[2144,16711,5,8,249,26,"28mm Diameter  ","No",45,null,0]
[]
[2145,16712,5,8,249,27," 35mm Diameter ","No",5,null,0]
[]
[2146,16713,5,8,249,28,"42mm Diameter  ","No",5,null,0]
[]
[2147,16714,5,8,249,29," 54mm Diameter ","No",140,null,0]
[]
[2148,16723,5,8,249,null,"Flexible Connection:"]
[]
[2149,16724,5,8,249,30,"Flexible braided connection 15mm dia [300mm long]","No",95,null,0]
[]
[2150,16725,5,8,249,null,"Pipe hangers:"]
[]
[2151,16726,5,8,249,null,"Complete with angle irons, hangers, rods, chains/rods, brackets, anchors/fasteners, welding, mountings, flanges, gaskets, bolts, nuts, washers, etc."]
[]
[2152,16727,5,8,249,null,"Pipe hangers:(Ceiling or Truss Mounted)"]
[]
[2153,16728,5,8,249,31," 54 to 15mm Diameter  Three Pipe Support.","No",95,null,0]
[]
[2154,16729,5,8,249,null,"Cable tray for  pipe including installation, complete with 41mm galvanised uni-strut type channel and 10mm galvanised threaded rods."]
[]
[2155,16730,5,8,249,32,"300x100","m",300,null,0]
[]
[2156,16731,5,8,249,33,"150x100","m",50,null,0]
[]
[2157,16732,5,8,249,null,"Isolation Valves: Gate type valve"]
[]
[2158,16733,5,8,249,34,"15mm Diameter  ","No",25,null,0]
[]
[2159,16734,5,8,249,35," 22mm Diameter ","No",20,null,0]
[]
[2160,16735,5,8,249,36,"28mm Diameter  ","No",40,null,0]
[]
[2161,16736,5,8,250,37,"35mm Diameter ","No",45,null,0]
[]
[2162,16737,5,8,250,null,"Non Return Valve"]
[]
[2163,16738,5,8,250,38,"22mm Diameter  ","No",15,null,0]
[]
[2164,16739,5,8,250,39,"28mm Diameter  ","No",22,null,0]
[]
[2165,16740,5,8,250,40," 35mm Diameter ","No",20,null,0]
[]
[2166,16741,5,8,250,null,"Pressure Reducing Valve"]
[]
[2167,19019,5,8,250,41,"22mm Diameter ","No",1,null,0]
[]
[2168,19020,5,8,250,42,"28mm Diameter","No",1,null,0]
[]
[2169,16744,5,8,250,43,"  100mm Diameter","No",1,null,0]
[]
[2170,16745,5,8,250,null,"Under ground piping connections to ring Main Connection to site water reticulation PVC Piping "]
[]
[2171,16746,5,8,250,null,"Including  jointing, joining connectors, etc. Piping tobe extruded complete with colour coding as per Gauteng DID Specifications"]
[]
[2172,16747,5,8,250,44,"22mm Diameter  ","m",210,null,{"$f":"I980*J980","v":0}]
[]
[2173,16748,5,8,250,45,"28mm Diameter  ","m",155,null,0]
[]
[2174,16749,5,8,250,46,"35mm Diameter  ","m",20,null,0]
[]
[2175,16750,5,8,250,47,"42mm Diameter ","m",10,null,0]
[]
[2176,16751,5,8,250,null,"Bends:"]
[]
[2177,16752,5,8,250,null,"Including  jointing, joining connectors, etc. as per Gauteng DID Specifications"]
[]
[2178,16753,5,8,250,48,"22mm Diameter ","No",140,null,0]
[]
[2179,16754,5,8,250,49,"28mm Diameter  ","No",165,null,0]
[]
[2180,16755,5,8,250,50,"35mm Diameter  ","No",90,null,0]
[]
[2181,16756,5,8,250,51,"42mm Diameter  ","No",45,null,0]
[]
[2182,16757,5,8,251,null,"Tees:"]
[]
[2183,16758,5,8,251,null,"Including jointing, joining connectors, etc. as per Gauteng DID Specifications"]
[]
[2184,16759,5,8,251,52,"15mm Diameter ","No",510,null,0]
[]
[2185,16760,5,8,251,53,"22mm Diameter ","No",140,null,0]
[]
[2186,16761,5,8,251,54,"28mm Diameter  ","No",165,null,0]
[]
[2187,16762,5,8,251,55,"35mm Diameter  ","No",90,null,0]
[]
[2188,16763,5,8,251,56," 42mm Diameter ","No",45,null,0]
[]
[2189,16764,5,8,251,null,"Pressure Testing"]
[]
[2190,16765,5,8,251,57,"Pressure Testing of water distribution system","SUM",1,null,0]
[]
[2191,16766,5,8,251,null,"Sterilise of the water distribution system"]
[]
[2192,16767,5,8,251,58,"Sterilise the complete installation (Cold water)","SUM",1,null,0]
[]
[2193,16768,5,8,251,null,"Excavation and Back filling"]
[]
[2194,16769,5,8,251,59,"Excavation of Trench to depth of 400mm and backfilling with imported material","m",100,null,0]
[{"$nulls":11},{"$f":"SUM(K858:K1024)","v":0}]
[2195,0,5,8]
[]
[2196,16567,5,9,253,null,"BILL NO. 9  PLUMBING AND DRAINAGE (PROVISIONAL) "]
[]
[2197,16568,5,9,253,null,"NOTE: Tenderers are advised to study the ModelPreambles for \"Specification of materials and method to be used - General Specification for building contracts standard conditions.\" (GP ASC Rev 0) Items, materials or methods to be used names or catalogue numbers are only an indication of the quality required. Items, materials or methods of similar quality may be used with prior approval from the principal agent.Unless otherwise stated herein, all items in this bill shall be deemed to fall into Work Group No 146 and 148 for CPAP purposes."]
[]
[2198,16569,5,9,253,null,"uPVC pressure pipes and fittings "]
[]
[2199,16570,5,9,253,null,"Pipes for water supply shall be of the class described. Pipes of 40mm diameter and smaller shall solvent welded uPVC loose sockets and fittings. Pipes of 50mm diameter and greater shall have sockets and spigots with push-in type integral rubber ring joints. Bends shall be uPVC and all other fittings shall be cast iron, all with similar push-in type joints."]
[]
[2200,16571,5,9,253,null,"Copper pipes "]
[]
[2201,16572,5,9,253,null,"Pipes shall be carbon free and of hard drawn Class O as manufactured by \"Maksal\". Pipes shall not be bent. Fittings to copper pipes shall be \"Cobra Watertech\" type capillary solderfittings. Capillary solder fittings shall comply with ISO 2016. Copper pipes are to be installed in accordance with the latest revision of the code of Practice for Copper Plumbing solderingtechniques. Flux, solder, etc to be strictly in accordance with the manufacturer's requirements with  special attention to copperflux composition "]
[]
[2202,16573,5,9,254,null,"Galvanised steel pipes and fittings"]
[]
[2203,16574,5,9,254,null,"Galvanised steel pipes are to be \"Tosa\" medium class to SABS 62 and fittings are to be manufactured by \"Tupy\" "]
[]
[2204,16575,5,9,254,null,"Reducing fittings "]
[]
[2205,16576,5,9,254,null,"Where fittings have reducing ends or branches they are described as \"reducing\". In the case of pipes with diameter snot exceeding 60 mm only the largest end or branch size is given. Should the contractor wish to use other fittings and bushes or reducers he may do so on the understanding that no claim in this regard will be entertained. In the case of pipes with diameters exceeding 60 mm all sizes are given and no claim for extra bushes, reducers, etc will be entertained"]
[]
[2206,16577,5,9,254,null,"Disinfection of water pipework"]
[]
[2207,16578,5,9,254,null,"All pipework is to be disinfected in accordance with SABS 1"]
[]
[2208,16579,5,9,254,null,"General"]
[]
[2209,16580,5,9,254,null,"Descriptions of pipes laid in and including trenches, inspection chambers, french drains, septic tanks, etc shall be deemed to include excavation, bedding, backfilling, compaction to a minimum of 93% Modified AASHTO density and disposal of  surplus material.Descriptions of copper service pipes and flexible connecting pipes shall include connections to taps, cisterns, etc and to steel pipes.Descriptions of wc pans, slop hoppers, etc shall be deemed to include for joints to soil pipes (pan connectors separately measured)"]
[]
[2210,16581,5,9,254,null,"WASTE UNIONS ETC "]
[]
[2211,16583,5,9,254,null,"Waster Unions "]
[]
[2212,16584,5,9,254,1,"32mm chrome plated basin waste union with backnut, plug and chain.","No",180,null,{"$f":"I1060*J1060","v":0}]
[]
[2213,16585,5,9,254,2,"38mm Urinal waste union with backnut","No",40,null,0]
[]
[2214,16586,5,9,254,3,"50mm laboratory sink standard acid resistant waste pipe with a rubber plug","No",35,null,0]
[]
[2215,16587,5,9,255,4,"50mm laboratory sink standard acid resistant overflow pipe","No",35,null,0]
[]
[2216,16588,5,9,255,null,"TRAPS ETC "]
[]
[2217,16589,5,9,255,null,"Traps "]
[]
[2218,16596,5,9,255,5,"50mm Deep seal \"P\" or \"S\" trap","No",40,null,0]
[]
[2219,16597,5,9,255,6,"32-50mm Butyl rubber deep seal P or S trap","No",160,null,0]
[]
[2220,16598,5,9,255,7,"50-50mm Butyl rubber deep seal P or S trap","No",15,null,0]
[]
[2221,16599,5,9,255,8,"50 x 300mm Butyl rubber combination for double bowl and with two deep seal P traps  ","No",25,null,0]
[]
[2222,16600,5,9,255,9,"32-40mm Chromium plated bottle trap","No",25,null,0]
[]
[2223,16601,5,9,255,10,"40-40mm Chromium plated bottle trap","No",10,null,0]
[]
[2224,16670,5,9,255,11,"110mm dia P-trap right or left outlet","No",60,null,0]
[]
[2225,16603,5,9,255,12,"110mm dia P-trap left or right or rear outlet","No",60,null,0]
[]
[2226,16604,5,9,255,13,"Bottle Traps or other approved ","No",150,null,0]
[]
[2227,16627,5,9,255,14,"32mm '345/40' Chrome plated bottle trap","No",60,null,0]
[]
[2228,16671,5,9,255,null,"Brass "]
[]
[2229,16672,5,9,255,15,"40mm Shower trap including stainless steel grating","No",40,null,0]
[]
[2230,16629,5,9,255,null,"VALVES"]
[]
[2231,16630,5,9,255,null,"Isolation valves"]
[]
[2232,16631,5,9,255,16,"15mm","m",88,null,0]
[]
[2233,16632,5,9,255,17,"22mm","m",160,null,0]
[]
[2234,16633,5,9,255,18,"32mm","m",160,null,{"$f":"I1104*J1104","v":0}]
[]
[2235,16634,5,9,255,null,"SANITARY PLUMBING"]
[]
[2236,16635,5,9,255,null,"uPVC pipes "]
[]
[2237,16636,5,9,255,19,"40mm Pipes ","m",80,null,0]
[]
[2238,16637,5,9,256,20,"50mm Pipes ","m",200,null,0]
[]
[2239,16638,5,9,256,21,"110mm Pipes laid in and including trenches not exceeding 1m deep under surface beds","m",350,null,0]
[]
[2240,16639,5,9,256,null,"Extra over uPVC pipes for uPVC fittings "]
[]
[2241,16640,5,9,256,22,"50-50mm Coupling","No",120,null,0]
[]
[2242,16641,5,9,256,23,"40mm Bend","No",120,null,0]
[]
[2243,16642,5,9,256,24,"50 mm Tee","No",60,null,0]
[]
[2244,16644,5,9,256,25,"50mm Bend","No",88,null,0]
[]
[2245,16645,5,9,256,26,"40mm Acess  bend","No",46,null,0]
[]
[2246,16646,5,9,256,27,"50mm Acess bend","No",125,null,0]
[]
[2247,16647,5,9,256,28,"110mm Acess bend with ventilation horn","No",80,null,0]
[]
[2248,16648,5,9,256,29,"50mm Acess junction","No",65,null,0]
[]
[2249,16649,5,9,256,30,"110mm Acess junction ","No",50,null,0]
[]
[2250,16650,5,9,256,31,"110mm Straight pan connector","No",50,null,0]
[]
[2251,16651,5,9,256,32,"50mm \"G.I. One way\" vent valve ","No",60,null,0]
[]
[2252,16652,5,9,256,33,"100mm \"G.I. One way\" vent valve ","No",24,null,0]
[]
[2253,16653,5,9,256,34,"50 mm Strap-on-boss connector","No",250,null,0]
[]
[2254,16654,5,9,256,null,"Floor drain"]
[]
[2255,16655,5,9,256,35,"A complete 40mm side outlet wet floor drain with 75mm water trap & white ABS plastic grate.","No",880,null,0]
[]
[2256,16656,5,9,256,null,"Sundries "]
[]
[2257,16657,5,9,256,36,"Testing waste pipe system","SUM",1,null,0]
[]
[2258,16658,5,9,256,null,"NON PORTABLE WATER SUPPLIES "]
[]
[2259,16659,5,9,256,null,"Class O copper pipes with capillary couplings "]
[]
[2260,16660,5,9,256,37,"15mm Pipes ","m",95,null,0]
[]
[2261,16661,5,9,257,38,"15mm Pipes chased into brickwork ","m",125,null,0]
[]
[2262,16662,5,9,257,39,"22mm Pipes ","m",125,null,0]
[]
[2263,16663,5,9,257,40,"32mm Pipes","m",125,null,0]
[]
[2264,16664,5,9,257,null,"Extra over class O copper pipes for capillary fittings "]
[]
[2265,16665,5,9,257,41,"15mm Fittings","No",60,null,0]
[]
[2266,16666,5,9,257,42,"22mm Fittings","No",38,null,{"$f":"I1168*J1168","v":0}]
[]
[2267,16667,5,9,257,43,"32mm Fitting","No",60,null,0]
[]
[2268,16668,5,9,257,null,"TESTING"]
[]
[2269,16669,5,9,257,44,"Pressure Testing water pipe system","SUM",1,null,0]
[{"$nulls":11},{"$f":"SUM(K1060:K1174)","v":0}]
[2270,0,5,9]
[]
[2271,19023,5,10,259,null,"BILL NO. 10  WATER SITE RETICULATION "]
[]
[2272,19062,5,10,259,null,"NOTE: Tenderers are referred to The Technical specification for the Fire and Domestic water Reticulation. The supply, delivery, installation and commissioning of equipment as shall be detailed in this schedule. "]
[]
[2273,16466,5,10,259,null,"FIRE WATER"]
[]
[2274,16467,5,10,259,null,"Site reticulation and hydrant "]
[]
[2275,16468,5,10,259,1,"Supply and Install 110mm PVC pipe as per site drawing","m",300,null,0]
[]
[2276,16469,5,10,259,2,"Supply and Install 100 mm non-return valve","No",4,null,0]
[]
[2277,16470,5,10,259,3,"Excavation of Trench and back filling with imported material","m",250,null,0]
[]
[2278,16471,5,10,259,null,"Extra Over  for Fittings"]
[]
[2279,16472,5,10,259,4,"110mm bend","m",50,null,0]
[]
[2280,16473,5,10,259,5,"110mm Tee","m",50,null,0]
[]
[2281,16474,5,10,259,6,"65mm bend","No",50,null,0]
[]
[2282,16475,5,10,259,7,"65mm Tee","No",50,null,0]
[]
[2283,16476,5,10,260,null,"DOMESTIC WATER"]
[]
[2284,16477,5,10,260,null,"Water Supplies"]
[]
[2285,16479,5,10,260,8,"Excavate for main supply line","m",300,null,0]
[]
[2286,16480,5,10,260,9,"Supply and installation 110mm PVC piping main supply line","m",250,null,0]
[]
[2287,16481,5,10,260,10,"Testing of water line","Item",1,null,0]
[]
[2288,16482,5,10,260,null,"Extra Over  for Fittings"]
[]
[2289,16483,5,10,260,11,"110mm bend","No",30,null,0]
[]
[2290,16484,5,10,260,12,"110mm Tee","No",30,null,0]
[]
[2291,16485,5,10,260,13,"65mm bend","No",60,null,0]
[]
[2292,16486,5,10,260,14,"65mm Tee","No",60,null,0]
[]
[2293,16487,5,10,260,null,"FLUSHING & IRRIGATION WATER"]
[]
[2294,16488,5,10,260,null,"Supply, deliver to site and  installation of the Flushing water ring main, consisting of running supply lines to the building entry points and ring main supply and install PVC piping"]
[]
[2295,16489,5,10,260,15,"110mm","m",280,null,0]
[]
[2296,16490,5,10,260,16,"65mm","m",120,null,0]
[]
[2297,16491,5,10,260,17,"50mm","m",55,null,0]
[]
[2298,16492,5,10,260,18,"32mm","m",250,null,{"$f":"I1232*J1232","v":0}]
[]
[2299,16493,5,10,260,19,"28mm","m",90,null,0]
[]
[2300,16494,5,10,260,20,"22mm","m",150,null,0]
[]
[2301,16495,5,10,260,21,"15mm","m",200,null,0]
[]
[2302,16496,5,10,260,22,"12mm","m",100,null,0]
[]
[2303,16497,5,10,260,null,"Extra Over for Fittings"]
[]
[2304,16498,5,10,260,23,"110mm bend","No",20,null,0]
[]
[2305,16499,5,10,261,24,"110mm Tee","No",20,null,0]
[]
[2306,16500,5,10,261,25,"65mm bend","No",15,null,0]
[]
[2307,16501,5,10,261,26,"65mm Tee","No",15,null,0]
[]
[2308,16502,5,10,261,27,"50mm bend","No",15,null,0]
[]
[2309,16503,5,10,261,28,"50mm Tee","No",15,null,0]
[]
[2310,16504,5,10,261,29,"42mm bend","No",25,null,0]
[]
[2311,16505,5,10,261,30,"42mm Tee","No",25,null,0]
[]
[2312,16506,5,10,261,31,"32mm bend","No",25,null,0]
[]
[2313,16508,5,10,261,32,"32mm Tee","No",25,null,0]
[]
[2314,16509,5,10,261,33,"28mm bend","No",25,null,0]
[]
[2315,16510,5,10,261,34,"28mm Tee","No",25,null,0]
[]
[2316,16511,5,10,261,35,"22mm bend","No",25,null,0]
[]
[2317,16512,5,10,261,36,"22mm Tee","No",25,null,0]
[]
[2318,16513,5,10,261,37,"15mm bend","No",25,null,0]
[]
[2319,16514,5,10,261,38,"15mm Tee","No",25,null,0]
[]
[2320,16537,5,10,261,null,"Reducers"]
[]
[2321,16539,5,10,261,39,"110mm-65mm","No",55,null,0]
[]
[2322,16545,5,10,261,40,"65mm- 50","No",55,null,0]
[]
[2323,16546,5,10,261,41,"50mm-42mm","No",55,null,0]
[]
[2324,16547,5,10,261,42,"42mm-32mm","m",55,null,0]
[]
[2325,16548,5,10,261,43,"32mm-28mm","No",35,null,0]
[]
[2326,16549,5,10,261,44,"28mm-22mm","No",35,null,0]
[]
[2327,16550,5,10,261,45,"22mm-15mm","No",35,null,0]
[]
[2328,16551,5,10,262,null,"Connectors"]
[]
[2329,16552,5,10,262,46,"110mm","No",25,null,0]
[]
[2330,16553,5,10,262,47,"65mm","No",25,null,{"$f":"I1296*J1296","v":0}]
[]
[2331,16554,5,10,262,48,"50mm","No",25,null,0]
[]
[2332,16555,5,10,262,49,"42mm","No",25,null,0]
[]
[2333,16556,5,10,262,50,"32mm","No",20,null,0]
[]
[2334,16557,5,10,262,51,"28mm","No",20,null,0]
[]
[2335,16558,5,10,262,52,"22mm","No",20,null,0]
[]
[2336,16559,5,10,262,53,"15mm","No",20,null,0]
[]
[2337,16560,5,10,262,54,"Connection to existing water tank and mains supply","SUM",1,null,0]
[]
[2338,16561,5,10,262,null,"Pressure Testing "]
[]
[2339,16562,5,10,262,55,"Pressure Testing of water distribution system","SUM",1,null,0]
[]
[2340,16563,5,10,262,null,"Sterilise of the water distribution system"]
[]
[2341,16564,5,10,262,56,"Sterilise the complete installation (Cold water)","SUM",1,null,0]
[{"$nulls":11},{"$f":"SUM(K1186:K1318)","v":0}]
[2342,0,5,10]
[]
[2343,19024,5,11,264,null,"BILL NO. 11  PUMP STATIONS "]
[]
[2344,19063,5,11,264,null,"NOTE: Tenderers are referred to The Technical specification for the Fire and Domestic water Reticulation. The supply, delivery, installation and commissioning of equipment as shall be detailed in this schedule. "]
[]
[2345,16240,5,11,264,null,"Dual Booster Pump set complete with control Panel for Irrigation & flushing water."]
[]
[2346,16241,5,11,264,1,"2.4 l/s @ 100m Wg in line variable speed pumps. Irrigation and Flushing Water","No",2,null,0]
[]
[2347,16296,5,11,264,null,"Isolation Valves: Gate type valve"]
[]
[2348,16242,5,11,264,2,"25mm Diameter  ","No",4,null,0]
[]
[2349,16243,5,11,264,3,"65mm Diameter ","No",12,null,0]
[]
[2350,16244,5,11,264,4,"100mm Diameter  ","No",9,null,0]
[]
[2351,16245,5,11,264,null,"Non Return Valve"]
[]
[2352,16247,5,11,264,5," 65mm Diameter ","No",12,null,0]
[]
[2353,16248,5,11,264,6,"100mm Diameter ","No",2,null,0]
[]
[2354,16249,5,11,264,null,"Strainers"]
[]
[2355,16252,5,11,264,7,"65mm Diameter ","No",14,null,0]
[]
[2356,16254,5,11,264,8," 100mm Diameter","No",4,null,0]
[]
[2357,16256,5,11,264,null,"Union"]
[]
[2358,16262,5,11,264,9,"25mm Diameter ","No",8,null,0]
[]
[2359,16263,5,11,264,10,"65mm Diameter ","No",12,null,0]
[]
[2360,16265,5,11,265,11,"100mm Diameter ","No",15,null,0]
[]
[2361,16278,5,11,265,null,"Air Relief Valve"]
[]
[2362,16352,5,11,265,12,"25mm Diameter ","No",12,null,{"$f":"I1360*J1360","v":0}]
[]
[2363,16312,5,11,265,null,"Pressure Relief Valve / Safety Valve"]
[]
[2364,16314,5,11,265,13,"100mm Diameter ","No",1,null,0]
[]
[2365,16317,5,11,265,null,"Ball Float Valve"]
[]
[2366,16319,5,11,265,14," 100mm Diameter","No",3,null,0]
[]
[2367,16322,5,11,265,null,"Pressure Gauge"]
[]
[2368,16328,5,11,265,15,"100mm Diameter  dial Glycerine filled pressure gauge","No",10,null,0]
[]
[2369,16330,5,11,265,null,"Expansion Tank"]
[]
[2370,16359,5,11,265,16,"200 L expansion tank","No",1,null,0]
[]
[2371,16335,5,11,265,null,"Irrigation Water Control panel"]
[]
[2372,16340,5,11,265,17,"Pump control panel with, 24 hr toggles switch, manual pump selection, Main circuit breaker, Active pump indicator LED, Line pressure activation, reservoir level de-activation.","No",1,null,0]
[]
[2373,16343,5,11,265,null,"Interconnecting Piping"]
[]
[2374,16344,5,11,265,null,"Medium class galvanized mild steel piping in accordance with SANS 10400 installed complete with short lengths, cutting, plain couplings band jointing strictly in accordance with the Manufacturer's instructions."]
[]
[2375,16346,5,11,265,null,"Piping"]
[]
[2376,16347,5,11,265,18,"100mm Diameter ","m",46,null,0]
[]
[2377,16348,5,11,265,19,"65mm Diameter ","m",12,null,0]
[]
[2378,16349,5,11,265,null,"Bends"]
[]
[2379,16350,5,11,265,20,"Extra on galvanised mild steel pipework for dia 100","m",12,null,0]
[]
[2380,16351,5,11,265,21,"Extra on galvanised mild steel pipework for dia 65","m",12,null,0]
[]
[2381,16360,5,11,266,null,"Equal Tee's"]
[]
[2382,16361,5,11,266,null,"Extra on galvanised mild steel pipework for galvanised mild steel fittings complete with hangers, brackets, soldering , etc."]
[]
[2383,16362,5,11,266,22,"100mm Diameter ","m",6,null,0]
[]
[2384,16363,5,11,266,23," 60mm Diameter","m",2,null,0]
[]
[2385,16364,5,11,266,null,"Reducers"]
[]
[2386,16366,5,11,266,null,"Extra on galvanised mild steel pipework for galvanised mild steel fittings complete with hangers, brackets, soldering , etc."]
[]
[2387,16371,5,11,266,24,"100 - 75mm Diameter ","No",18,null,0]
[]
[2388,16376,5,11,266,25," 75 - 65mm Diameter","No",2,null,0]
[]
[2389,16378,5,11,266,null,"Pipe hangers:"]
[]
[2390,16379,5,11,266,null,"Complete with angle irons, hangers, rods, chains/rods, brackets, anchors/fasteners, welding, mountings, flanges, gaskets, bolts, nuts, washers, etc."]
[]
[2391,16390,5,11,266,null,"Pipe hangers:(Wall Mounted / Roof Mounted)"]
[]
[2392,16399,5,11,266,26," 42 to 25mm Diameter Single Pipe.","No",42,null,0]
[]
[2393,16406,5,11,266,27,"45 to100mm Diameter Single Pipe.","No",10,null,0]
[]
[2394,16456,5,11,266,null,"Pipe trench excavations, bedding and backfilling:"]
[]
[2395,16457,5,11,266,28,"Excavate in all materials for pipe trenches to depth 1100mm x 600mm wide","m3",135,null,{"$f":"I1426*J1426","v":0}]
[]
[2396,16458,5,11,266,29,"Supply and installation of pipe bedding 50mm thick river sand","m3",2,null,0]
[]
[2397,16463,5,11,266,30,"Underground water survey and prospecting","No",1,null,0]
[{"$nulls":11},{"$f":"SUM(K1327:K1430)","v":0}]
[2398,0,5,11]
[]
[2399,17260,5,12,268,1,"HVAC SYSTEM",{"$nulls":4},{"$f":"L153","v":0}]
[]
[2400,17261,5,12,268,2,"VENTILATION INSTALLATION",{"$nulls":4},{"$f":"L357","v":0}]
[]
[2401,17262,5,12,268,3,"KITCHEN EQUIPMENT",{"$nulls":4},{"$f":"L409","v":0}]
[]
[2402,17263,5,12,268,4,"FIRE PROTECTION ",{"$nulls":4},{"$f":"L473","v":0}]
[]
[2403,17264,5,12,268,5,"LP GAS INSTALLATION",{"$nulls":4},{"$f":"L631","v":0}]
[]
[2404,17265,5,12,268,6,"COLD ROOM  SYSTEM",{"$nulls":4},{"$f":"L671","v":0}]
[]
[2405,17266,5,12,268,7,"HOT WATER GENERATION & DISTRIBUTION",{"$nulls":4},{"$f":"L843","v":0}]
[]
[2406,17267,5,12,268,8,"COLD WATER RETICULATION",{"$nulls":4},{"$f":"L1025","v":0}]
[]
[2407,17268,5,12,268,9,"DRAINAGE",{"$nulls":4},{"$f":"L1175","v":0}]
[]
[2408,17269,5,12,268,10,"WATER SITE RETICULATION",{"$nulls":4},{"$f":"L1319","v":0}]
[]
[2409,17270,5,12,268,11,"PUMP STATIONS",{"$nulls":4},{"$f":"L1431","v":0}]
[]
[{"$nulls":6},"Bill Total",{"$nulls":4},{"$f":"SUM(L1434:L1454)","v":0}]

{"sheet":"EXTERNAL WORKS","index":6,"n_rows":1072,"n_cols":12,"rows_kept":1072}
["COUNTER","ISC","SECTION","BILL","PAGE NO","ITEM NO","DESCRIPTION","UNIT","QUANTITY","RATE","AMOUNT"]
[2410,14200,6,1,269,null,"BILL NO.1  BULK EXCAVATIONS"]
[]
[2411,16389,6,1,269,null,"PREAMBLES"]
[]
[2412,15120,6,1,269,null,"The Tenderer is referred to the relevant Clauses in the separate document Model Preambles for Trades (2008 Edition), the Department of Public Works document No. PW 371 Specification of Materials and Methods to be used and to the Supplementary Preambles which are incorporated hereunder. "]
[]
[2413,16394,6,1,269,null,"Reference to drawings and details:"]
[]
[2414,16395,6,1,269,null,"Where drawings and/ or details have been referred to in the description of items the Tenderers should price for complete detail and specification on such details and/ or drawing. No claims relating to the omissions on the part of tenders will be entertained."]
[]
[2415,14201,6,1,269,null,"EARTHWORKS  (CPAP Work Group No. 104 Unless Otherwise Stated)"]
[]
[2416,14202,6,1,269,null,"Site Clearance"]
[]
[2417,14203,6,1,269,1,"Allow for clearing the site of all shrubs and trees not exceeding 200mm girth, rubbish, debris, vegetation, drains, etc, that may be encountered and roughly level site.","m2",32892,null,{"$f":"J16*I16","v":0}]
[]
[2418,15767,6,1,269,2,"Rip, scarify and compact ground 150mm average to 93% Mod AASHTO density.","m2",592,null,{"$f":"J18*I18","v":0}]
[]
[2419,14204,6,1,269,3,"Excavate in earth average 200mm deep over site to remove topsoil and deposit in spoil heaps on site.","m2",20122,null,0]
[]
[2420,14205,6,1,269,null,"Excavation in earth not exceeding 2 000mm deep to reduce levels:"]
[]
[2421,14206,6,1,269,4,"To reduce level to final levels under floors, etc. ","m3",16853,null,0]
[]
[2422,16425,6,1,270,5,"Trenches.","m3",21,null,0]
[]
[2423,16426,6,1,270,6,"Bases.","m3",66,null,0]
[]
[2424,16235,6,1,270,7,"Holes.","m3",5,null,0]
[]
[2425,14208,6,1,270,null,"Extra over reducing levels, trench and hole excavations in earth for excavation in:"]
[]
[2426,14209,6,1,270,8,"Soft rock.","m3",1679,null,0]
[]
[2427,14210,6,1,270,9,"Hard rock.","m3",704,null,0]
[]
[2428,14211,6,1,270,null,"Extra over all excavations for carting away:"]
[]
[2429,14212,6,1,270,10,"Surplus material from excavations, stock piles e.t.c to a dumping site to be located by the contractor.","m3",14617,null,0]
[]
[2430,16427,6,1,270,null,"Risk of Collapse:"]
[]
[2431,16428,6,1,270,11,"Sides of trenches and holes not exceeding 1 500mm deep.","m2",457,null,0]
[]
[2432,14213,6,1,270,null,"Keeping excavations free of water:"]
[]
[2433,14214,6,1,270,12,"Keeping excavations free of water.","Item",1,null,0]
[]
[2434,17054,6,1,270,null,"SOIL POISONING"]
[]
[2435,16429,6,1,270,null,"SABS approved brand of anti-termite soil poison in accordance with SANS 5859 applied by a Registered Pest Control Company and guaranteed against termite infestation for ten (10) years:"]
[]
[2436,16430,6,1,270,13,"To bottoms and sides of trenches, holes, e.t.c","m2",499,null,0]
[]
[2437,14973,6,1,270,null,"EARTH FILLING, ETC."]
[]
[2438,16431,6,1,270,null,"Earth filing obtained from excavations, prescribed stock piles, e.t.c on site compacted to 95% Mod AASHTO density:"]
[]
[2439,16432,6,1,270,14,"Backfilling to trenches, holes, e.t.c.","m3",7,null,0]
[]
[2440,16441,6,1,270,null,"Rip and Compact in-situ roadbed to 93% Mod AASHTO density:"]
[]
[2441,16442,6,1,270,15,"Over site to form platforms.","m3",999,null,0]
[]
[2442,16443,6,1,271,null,"Crusher run filling to assist in the sub-surface drainage:"]
[]
[2443,16444,6,1,271,16,"Over site in form platforms.","m3",760,null,0]
[]
[2444,14978,6,1,271,null,"G7 material compacted to 95% Mod AASHTO density in 150mm layers:"]
[]
[2445,14979,6,1,271,17,"Over site in form platforms.","m3",1998,null,0]
[]
[2446,16212,6,1,271,null,"G5 material compacted to 95% modified AASHTO density in 150mm layers:"]
[]
[2447,16213,6,1,271,18,"Over site.","m3",2092,null,0]
[]
[2448,14215,6,1,271,null,"Compaction of surfaces:"]
[]
[2449,14217,6,1,271,19,"Compaction of ground surface under platforms etc including scarifying for a depth of 150mm, breaking down oversize material, adding suitable material where necessary and compacting to 90% Mod AASHTO density.","m2",20690,null,0]
[]
[2450,14980,6,1,271,null,"TESTS, ETC."]
[]
[2451,14219,6,1,271,null,"Prescribed Density Tests As Check On Contractors Tests Included In Filling Above"]
[]
[2452,14220,6,1,271,20,"Modified AASHTO density test and deliver the results to the Engineer and Principal Agent within 24 hours of the tests being completed. ","No",103,null,{"$f":"J86*I86","v":0}]
[{"$nulls":11},{"$f":"SUM(K16:K86)","v":0}]
[2453,0,6,1]
[]
[2454,13973,6,2,273,null,"BILL NO.2  WALKWAYS, PARKING AND ASSEMBLY AREA"]
[]
[2455,16391,6,2,273,null,"PREAMBLES"]
[]
[2456,15121,6,2,273,null,"The Tenderer is referred to the relevant Clauses in the separate document Model Preambles for Trades (2008 Edition), the Department of Public Works document No. PW 371 Specification of Materials and Methods to be used and to the Supplementary Preambles which are incorporated hereunder."]
[]
[2457,14017,6,2,273,null,"NOTE: Any defects which may become evident due to bad workmanship or materials within six months of completion shall be made good by the Contractor at his own expense."]
[]
[2458,16392,6,2,273,null,"Reference to drawings and details:"]
[]
[2459,16393,6,2,273,null,"Where drawings and/ or details have been referred to in the description of items the Tenderers should price for complete detail and specification on such details and/ or drawing. No claims relating to the omissions on the part of tenders will be entertained."]
[]
[2460,14994,6,2,273,null,"EARTH FILLING, ETC."]
[]
[2461,15795,6,2,273,null,"Coarse river sand filling supplied by the contractor:"]
[]
[2462,15796,6,2,273,1,"Under surface beds to form sand blinding.","m3",371,null,0]
[]
[2463,14999,6,2,273,null,"Compaction of surfaces:"]
[]
[2464,15000,6,2,273,2,"Compaction of ground surface under walkways, etc. including scarifying for a depth of 150mm, breaking down oversize material, adding suitable material from excavated material where necessary and compacting to 93% Mod AASHTO density.","m2",12355,null,0]
[]
[2465,15768,6,2,274,null,"DAMPPROOFING OF WALLS AND FLOORS"]
[]
[2466,15769,6,2,274,null,"One layer of 250 micron green polyethylene damp proof membrane (as per clause 7.2 of specification SABS-0400), all side overlaps sealed with approved contact adhesive"]
[]
[2467,15770,6,2,274,3,"Under surface beds.","m2",12355,null,0]
[]
[2468,15001,6,2,274,null,"BOND AND INTERLOCKING CONCRETE PAVERS."]
[]
[2469,15002,6,2,274,null,"Plain Precast Cement Concrete (25MPa) Type SA Interlocking Bond Paving Bricks Size 200 x 100 Laid On And Including 50mm Thick Sand Bed With Joints Filled With Sand:"]
[]
[2470,15003,6,2,274,4,"65mm Interlocking block type S-A with compressive strength of 25Mpa in Herringbone pattern 45 degree to kerb including 50mm sand blinding layer approved by Engineer (Including all cutting of blocks and sand infill). ","m2",5317,null,0]
[]
[2471,16230,6,2,274,5,"80mm Interlocking block type S-A with compressive strength of 25Mpa in Herringbone pattern 45 degree to kerb including 25mm bedding layer of thin, clean, silt free commercial coarse river sand approved by Engineer (Including all cutting of blocks and sand infill). ","m2",8274,null,0]
[]
[2472,15061,6,2,274,null,"PRE-CAST CONCRETE KERBS"]
[]
[2473,14147,6,2,274,null,"Pre-cast concrete kerbs (complying with SABS 927) in maximum lengths of 1m lengths, wet presses, placed in position, bedded and jointed in (3:1) cement mortar and flush pointed on exposed faces, including 15MPa/19mm unreinforced concrete haunching at the back of each joint, excavation, backfilling, ramming, etc.:"]
[]
[2474,14148,6,2,274,6,"75mm x 250mm high overall, laid in lengths not exceeding 1000mm on a well rammed earth bottom or base course.","m",23393,null,0]
[]
[2475,15146,6,2,274,7,"75mm x 250mm High Kerbs circular on plan not exceeding 4 000mm radius formed with 330mm lengths of straight kerb.","m",265,null,0]
[]
[2476,15147,6,2,274,8,"10mm x 250mm High Edge Beam Barrier Kerb ","m",468,null,0]
[]
[2477,15055,6,2,275,null,"PAINTWORK"]
[]
[2478,15056,6,2,275,null,"Prepare and apply one coat white reflective road marking paint on pre-cast concrete paving blocks , etc.:"]
[]
[2479,15057,6,2,275,9,"100mm Wide white line","m",384,null,0]
[]
[2480,15058,6,2,275,10,"100mm Wide yellow line","m",120,null,0]
[]
[2481,15059,6,2,275,11,"Paraplegic parking sign in parking area","No",8,null,0]
[]
[2482,15060,6,2,275,12,"Paraplegic ramp markings (Yellow and White) in parking area","m2",67,null,{"$f":"J146*I146","v":0}]
[{"$nulls":11},{"$f":"SUM(K106:K146)","v":0}]
[2483,0,6,2]
[]
[2484,15007,6,3,277,null,"BILL NO.3  LANDSCAPING"]
[]
[2485,16396,6,3,277,null,"PREAMBLES"]
[]
[2486,15122,6,3,277,null,"The Tenderer is referred to the relevant Clauses in the separate document Model Preambles for Trades (2008 Edition), the Department of Public Works document No. PW 371 Specification of Materials and Methods to be used and to the Supplementary Preambles which are incorporated hereunder. "]
[]
[2487,16397,6,3,277,null,"Reference to drawings and details:"]
[]
[2488,16398,6,3,277,null,"Where drawings and/ or details have been referred to in the description of items the Tenderers should price for complete detail and specification on such details and/ or drawing. No claims relating to the omissions on the part of tenders will be entertained."]
[]
[2489,15054,6,3,277,null,"SOFT LANDSCAPING"]
[]
[2490,15021,6,3,277,null,"Ground preparation:"]
[]
[{"$nulls":6},"Trees:"]
[]
[{"$nulls":6},"The tenderer is to allow in his price for watering all newly planted trees twice a week for the first three months."]
[]
[{"$nulls":5},1,"Securinega virosa (White Berry Bush), including planting, fertilizing, staking, mulching and watering, all by a specialist subcontractor or nursery.","No",40,null,0]
[]
[{"$nulls":6},"Shrubs:"]
[]
[{"$nulls":5},2,"Securinega virosa (White Berry Bush), including planting, fertilizing, staking, mulching and watering, all by a specialist subcontractor or nursery.","m2",175,null,0]
[]
[{"$nulls":5},3,"Elegia Tectorum, including planting, fertilizing, staking, mulching and watering, all by a specialist subcontractor or nursery. ","m2",90,null,0]
[]
[{"$nulls":6},"Plants:"]
[]
[2491,15022,6,3,277,4,"Cultivation and preparation of areas to be planted","m3",946,null,0]
[]
[{"$nulls":5},5,"Groundcover plant mix of dietes bicolour, abelia grandiflora, crassula multicava and crassula campfire. ","m2",470,null,0]
[]
[{"$nulls":6},"Groundcover plant mix:"]
[]
[2492,15024,6,3,277,null,"Topsoil supplied by the contractor, including spreading and levelling:"]
[]
[2493,15025,6,3,277,6,"In plant beds, grassed areas and holes for trees, shrubs, etc.","m3",1892,null,0]
[]
[2494,15014,6,3,277,null,"Grassing, ground covers, e.t.c:"]
[]
[2495,15015,6,3,277,7,"Prepare topsoil and lay 50mm thick \"Kikuyu\" glass rolls.","m2",18916,null,0]
[]
[2496,15064,6,3,277,8,"Fertilising grassed areas with suitable fertiliser at a rate of  15.4g/m² after completion of planting","m2",18916,null,0]
[]
[2497,15016,6,3,277,null,"Maintenance:"]
[]
[2498,15017,6,3,277,9,"Allow for maintaining landscaping for a period of 3 months, including watering, weeding, cutting, replacing dead plants, e.t.c.","Item",1,null,0]
[{"$nulls":11},{"$f":"SUM(K168:K196)","v":0}]
[2499,0,6,3]
[]
[2500,13518,6,4,278,null,"BILL NO. 4  FENCING AND ENTRANCE WALL"]
[]
[2501,16400,6,4,278,null,"PREAMBLES"]
[]
[2502,13585,6,4,278,null,"The Tenderer is referred to the relevant Clauses in the separate document Model Preambles for Trades (2008 Edition), the Department of Public Works document No. PW 371 Specification of Materials and Methods to be used and to the Supplementary Preambles which are incorporated hereunder. "]
[]
[2503,16401,6,4,278,null,"Reference to drawings and details:"]
[]
[2504,16402,6,4,278,null,"Where drawings and/ or details have been referred to in the description of items the Tenderers should price for complete detail and specification on such details and/ or drawing. No claims relating to the omissions on the part of tenders will be entertained."]
[]
[2505,14700,6,4,278,null,"CONCRETE, FORMWORK AND REINFORCEMENT"]
[]
[2506,14701,6,4,278,null,"UNREINFORCED CONCRETE CAST AGAINST EXCAVATED SURFACES"]
[]
[2507,14703,6,4,278,null,"10MPa/20mm concrete:"]
[]
[2508,14704,6,4,278,1,"Surface Blinding.","m3",5,null,0]
[]
[2509,15123,6,4,278,null,"REINFORCED CONCRETE CAST AGAINST EXCAVATED SURFACES"]
[]
[2510,14705,6,4,278,null,"25MPa/19mm Concrete:"]
[]
[2511,14735,6,4,278,2,"Strip footings.","m3",7,null,0]
[]
[2512,14736,6,4,278,3,"Bases.","m3",49,null,0]
[]
[2513,14708,6,4,279,null,"TESTS CUBES"]
[]
[2514,14709,6,4,279,null,"Concrete test cubes:"]
[]
[2515,14710,6,4,279,4,"Set of three concrete test cubes size 150mm x 150mm x 150mm overall including testing.","Sets",12,null,{"$f":"J230*I230","v":0}]
[]
[2516,13604,6,4,279,null,"REINFORCEMENT"]
[]
[2517,13605,6,4,279,null,"High Tensile Steel Bar Reinforcement To Structural Concrete Work:"]
[]
[2518,13606,6,4,279,5,"Various sizes.","t",4.91,null,0]
[]
[2519,15125,6,4,279,null,"BRICKWORK IN FOUNDATIONS "]
[]
[2520,13611,6,4,279,null,"Brickwork of NFP bricks (14 MPa nominal compressive strength) in class l mortar:"]
[]
[2521,13612,6,4,279,6,"Piers.","m3",2,null,0]
[]
[2522,13613,6,4,279,7,"One brick wall.","m2",15,null,0]
[]
[2523,13610,6,4,279,null,"BRICKWORK IN SUPERSTRUCTURE"]
[]
[2524,15126,6,4,279,null,"Brickwork of NFP bricks (14 MPa nominal compressive strength) in class I mortar: "]
[]
[2525,15127,6,4,279,8,"Piers.","m3",3,null,0]
[]
[2526,15128,6,4,279,9,"One brick wall.","m2",24,null,0]
[]
[2527,15129,6,4,279,null,"BRICKWORK SUNDRIES"]
[]
[2528,15138,6,4,279,null,"Cement infill of 1:3 liquid cement and sand mixture:"]
[]
[2529,13598,6,4,279,10,"To brick piers.","m3",5,null,0]
[]
[2530,13616,6,4,279,null,"2,5mm Galvanised brick reinforcement: "]
[]
[2531,15786,6,4,279,11,"75mm Wide reinforcement built in horizontally in foundations.","m",21,null,0]
[]
[2532,15785,6,4,279,12,"75mm Wide reinforcement built in horizontally superstructure.","m",53,null,0]
[]
[2533,13617,6,4,280,13,"150mm Wide reinforcement built in horizontally in foundations. ","m",40,null,0]
[]
[2534,15124,6,4,280,14,"150mm Wide reinforcement built in horizontally in superstructure.","m",200,null,0]
[]
[2535,15130,6,4,280,null,"FACE BRICKWORK"]
[]
[2536,13618,6,4,280,null,"Allow The Prime Cost of R8800.00 Per Thousand Face Bricks Delivered to site in stretcher bond pointed with 6mm square deep recessed horizontal and vertical joints: "]
[]
[2537,13619,6,4,280,15,"Extra over brickwork for face brickwork.","m2",9,null,0]
[]
[2538,15131,6,4,280,null,"PLASTERING"]
[]
[2539,13621,6,4,280,null,"Cement plaster on brickwork:"]
[]
[2540,13622,6,4,280,16,"On walls.","m2",24,null,0]
[]
[2541,13623,6,4,280,17,"On narrow widths.","m2",3,null,0]
[]
[2542,15132,6,4,280,null,"PAINTWORK"]
[]
[2543,13624,6,4,280,null,"Prepare And Apply One Coat Universal Undercoat And Two Coats Acrylic PVA Paint On:"]
[]
[2544,13625,6,4,280,18,"On plastered walls. ","m2",24,null,0]
[]
[2545,13626,6,4,280,19,"On narrow widths.","m2",3,null,0]
[]
[2546,15133,6,4,281,null,"FENCING "]
[]
[2547,15134,6,4,281,null,"'ClearVu' fencing system or Equally Approved to match existing:"]
[]
[2548,15135,6,4,281,20,"High density anti-climbing and anti-cut pressed mesh panel fencing 2 400mm high, with 600mm Anti Burrow extension formed of 4mm diameter horizontal and 4mm diameter vertical high tensile wires galvanised with marine fusion bond coating, colour to Architect's specification, with aperture size 76.2mm x 12.7mm and reinforcing V-section ribs, bolted with vandal resistant bolts and clamping plates to 85-4mm taper locking posts 3m high including locking recess mechanism at 3,382m centres with sealed base anchors with posts bedded in 25MPa concrete bases size 400mm x 400mm x 600mm deep, complete installation in accordance with the manufacturer's specifications.","m",888,null,{"$f":"J296*I296","v":0}]
[]
[2549,15136,6,4,281,21,"Extra over for 1000mm x 2400mm high single swing gate comprising 60mm x 60mm square tube frame with welded ClearVu in-fill.","No",1,null,0]
[]
[2550,15137,6,4,281,22,"Extra over for 4000mm x 2400mm high double swing gate comprising 60mm x 60mm square tube frame with welded ClearVu in-fill.","No",1,null,0]
[]
[2551,16433,6,4,281,23,"Extra over for 1000mm high galvanised 'Shark tooth' type spikes rails with marine fusion bond coating, bolted to 50mm wide ClearVu mesh flange bent along fence top, complete installation in accordance with the manufacturer's specifications.","m",888,null,0]
[]
[2552,16434,6,4,281,null,"Two coats bituminous emulsion to metal surfaces applied on both sides over the full flat area:"]
[]
[2553,16435,6,4,281,24,"600mm High Anti Burrow ClearVu extension","m",888,null,0]
[]
[2554,13640,6,4,281,null,"Miscellaneous:"]
[]
[2555,13641,6,4,281,25,"50mm Union padlock with 3 keys, 7mm boron steel shackle, double locking, brass body with satin nickel finish suitable for high security applications and outdoor use. Tested to 240 hours for corrosion resistance and 10 000 opening/closing cycles with 5 pin cylinder.","No",2,null,0]
[]
[2556,13644,6,4,281,null,"Signage:"]
[]
[2557,13645,6,4,281,26,"550mm x 350mm x 3mm Thick aluminium sign with anodised silver engraved text to Architect's detail.","No",1,null,0]
[]
[2558,13646,6,4,282,27,"5mm Black perspex lettering spelling \"THABOTONA PRIMARY SCHOOL\" fixed 5mm off wall with chemical bonding to Architect's specification.","Item",1,null,0]
[{"$nulls":11},{"$f":"SUM(K215:K316)","v":0}]
[2559,0,6,4]
[]
[2560,15486,6,5,284,null,"BILL NO. 5  STORM WATER DRAINAGE"]
[]
[2561,16403,6,5,284,null,"PREAMBLES"]
[]
[2562,15487,6,5,284,null,"The Tenderer is referred to the relevant Clauses in the separate document Model Preambles for Trades (2008 Edition), the Department of Public Works document No. PW 371 Specification of Materials and Methods to be used and to the Supplementary Preambles which are incorporated hereunder."]
[]
[2563,16404,6,5,284,null,"Reference to drawings and details:"]
[]
[2564,16405,6,5,284,null,"Where drawings and/ or details have been referred to in the description of items the Tenderers should price for complete detail and specification on such details and/ or drawing. No claims relating to the omissions on the part of tenders will be entertained."]
[]
[2565,15488,6,5,284,null,"STORMWATER DRAINAGE"]
[]
[2566,15489,6,5,284,null,"Class 75D concrete pipes with interlocking joints, including 650mm wide trenches, 100mm Sand bedding, 150mm selected granular fill compacted to 95% Mod AASHTO and selected backfill to match ground level all compacted to 95% Mod AASHTO density :"]
[]
[2567,15787,6,5,284,1,"300mm Pipes laid in and including trenches not exceeding 1 000mm deep.","m",38,null,0]
[]
[2568,15498,6,5,284,2,"375mm Pipes laid in and including trenches not exceeding 1 000mm deep.","m",14,null,0]
[]
[2569,15499,6,5,284,3,"450mm Pipes laid in and including trenches not exceeding 1 000mm deep.","m",22,null,0]
[]
[2570,15788,6,5,284,4,"300mm Pipes laid in and including trenches exceeding 1 000mm and not exceeding 2 000mm deep. ","m",28,null,0]
[]
[2571,15503,6,5,284,5,"375mm Pipes laid in and including trenches exceeding 1 000mm and not exceeding 2 000mm deep.","m",81,null,0]
[]
[2572,15504,6,5,285,6,"450mm Pipes laid in and including trenches exceeding 1 000mm and not exceeding 2 000mm deep.","m",46,null,0]
[]
[2573,15505,6,5,285,7,"525mm Pipes laid in and including trenches exceeding 1 000mm and not exceeding 2 000mm deep.","m",16,null,0]
[]
[2574,15789,6,5,285,8,"600mm Pipes laid in and including trenches exceeding 1 000mm and not exceeding 2 000mm deep.","m",64,null,0]
[]
[2575,15506,6,5,285,9,"750mm Pipes laid in and including trenches exceeding 1 000mm and not exceeding 2 000mm deep.","m",38,null,0]
[]
[2576,15507,6,5,285,10,"825mm Pipes laid in and including trenches exceeding 1 000mm and not exceeding 2 000mm deep.","m",44,null,0]
[]
[2577,15492,6,5,285,null,"Manhole including excavation, imported backfill compacted to 90% Mod AASHTO, 20MPa 200mm thick concrete base with two layers of mesh Ref 395, 15MPa mass concrete benching for 110mm Diameter pipes to 250mm thick, walls formed of 'ROCLA' or similar approved pre-cast manhole chambers, all manhole joints to be sealed with 'DENSO' sealstrip or similar approved, 4A replacement cover/adaptor slab concrete lid can fit this slab directly (gratings and covers elsewhere): "]
[]
[2578,15493,6,5,285,11,"1830mm x 1500mm Manhole chambers not exceeding 1100mm deep internally.","No",11,null,{"$f":"J356*I356","v":0}]
[]
[2579,15494,6,5,285,12,"1830mm x 1500mm Manhole chambers exceeding 1100mm and not exceeding 1600mm deep internally.","No",2,null,0]
[]
[2580,15508,6,5,285,null,"Grid inlet including excavation, imported backfill compacted to 90% Mod AASHTO, 20MPa 200mm thick concrete base with two layers of mesh Ref 395, 15MPa mass concrete benching for 110mm Diameter pipes to 250mm thick, walls formed of 'ROCLA' or similar approved pre-cast manhole chambers, all manhole joints to be sealed with 'DENSO' sealstrip or similar approved, 4A replacement cover/adaptor slab concrete lid can fit this slab directly (gratings and covers elsewhere): "]
[]
[2581,15509,6,5,285,13,"1830mm x 1500mm Brick catch pit not exceeding 1100mm deep internally.","No",11,null,0]
[]
[2582,15510,6,5,285,14,"1830mm x 1500mm Brick catch pit exceeding 1100mm and not exceeding 1600mm deep internally.","No",2,null,0]
[]
[2583,15495,6,5,286,null,"Cast iron gratings, covers, etc.:"]
[]
[2584,15511,6,5,286,15,"'Saint Gobain' or equally approved 550mm diameter 2A cast iron manhole cover and frame. (SKU: 023634).","No",13,null,0]
[]
[2585,15513,6,5,286,16,"'Saint Gobain' or equally approved 450mm x 600mm PAM cast iron storm water grate and frame. (SKU: 022510).","No",13,null,0]
[]
[2586,15512,6,5,286,17,"Lifting-key for manhole cover (handed to employer).","No",6,null,0]
[]
[2587,15514,6,5,286,null,"STORMWATER CHANNELS"]
[]
[2588,15515,6,5,286,null,"Pre-cast concrete 25Mpa/19 stone open storm water channels having half round shaped waterway formed in top, cast in suitable lengths including, bedding and pointing in (3:1) cement mortar:"]
[]
[2589,15516,6,5,286,18,"'Valstone' or Similar Approved D11 large shallow open-ended channel section, size 660mm wide x 225mm thick with 140mm diameter half round channel waterway (Prod no.: P2-0609).","m",1003,null,0]
[]
[2590,15517,6,5,286,19,"Extra over for angle.","No",31,null,0]
[]
[2591,15518,6,5,286,20,"Extra over for intersections.","No",10,null,0]
[]
[2592,15519,6,5,286,21,"Extra over for junctions.","No",5,null,0]
[]
[2593,15793,6,5,286,null,"In-situ concrete 25Mpa/19 stone open stormwater channels having trapezoidal shaped waterway formed in top, finished smooth on all exposed surfaces in (3:1) untinted cement plaster trowelled smooth and with angles rounded and, cast in suitable lengths, including all formwork, moulds, shallow excavation, 150mm selected gravel filling compacted to 95% Mod AASHTO density  and ramming, laying to falls, forming construction joints at maximum 3m, bedding and pointing in (3:1) cement mortar:"]
[]
[2594,15794,6,5,286,22,"Channel size 1500mm wide x 100mm thick with 500mm deep trapezoidal shaped channel waterway.","m",10,null,0]
[]
[2595,15522,6,5,287,null,"JOINT SEALANTS, ETC."]
[]
[2596,15523,6,5,287,null,"Two-part polysulphide sealing compound including backing cord, bond breaker, primer, e.t.c.:"]
[]
[2597,15526,6,5,287,23,"10mm x 20mm In-between channels including raking out expansion joint filler as necessary.","m",2014,null,0]
[]
[2598,15529,6,5,287,null,"DAMPPROOFING OF WALLS AND FLOORS"]
[]
[2599,15530,6,5,287,null,"One layer 250 micron embossed polyethylene dampproof course (SANS 952-1985 type B) or similar approved:"]
[]
[2600,15531,6,5,287,24,"Under 660mm wide channels, with 150mm turn up against brick walls.","m2",662,null,0]
[]
[2601,15909,6,5,287,null,"HEADWALLS, ETC."]
[]
[2602,15910,6,5,287,null,"Stormwater channel outlets:"]
[]
[2603,15911,6,5,287,25,"Irregular shaped headwall as channel outlet size 4 460mm wide x 2280mm long x 900mm high formed of 150mm 30MPa concrete wingwall resting on reinforced concrete slab overall size 2430mm x 4160mm x 150mm thick, including 400mm diameter encased stormwater pipe (elsewher measured) as per headwall details.","No",2,null,0]
[{"$nulls":11},{"$f":"SUM(K334:K406)","v":0}]
[2604,0,6,5]
[]
[2605,15148,6,6,289,null,"BILL NO. 6  SOIL DRAINAGE"]
[]
[2606,16407,6,6,289,null,"PREAMBLES"]
[]
[2607,15211,6,6,289,null,"The Tenderer is referred to the relevant Clauses in the separate document Model Preambles for Trades (2008 Edition), the Department of Public Works document No. PW 371 Specification of Materials and Methods to be used and to the Supplementary Preambles which are incorporated hereunder. "]
[]
[2608,16408,6,6,289,null,"Reference to drawings and details:"]
[]
[2609,16409,6,6,289,null,"Where drawings and/ or details have been referred to in the description of items the Tenderers should price for complete detail and specification on such details and/ or drawing. No claims relating to the omissions on the part of tenders will be entertained."]
[]
[2610,15149,6,6,289,null,"SOIL DRAINAGE, ETC."]
[]
[2611,15150,6,6,289,null,"Excavations of pipe trenches will be measured in accordance with \"Method B\" and the width of excavations in more difficult material will be determined in accordance with \"Method A\" of the Standard System of Measuring Building Work Six Edition"]
[]
[2612,15151,6,6,289,null,"Heavy duty (Class 34) uPVC sewer and drain pipes, including 650mm wide trenches, 110mm thick sand bedding, imported fill compacted to 95% Mod AASHTO density match ground levels:"]
[]
[2613,15152,6,6,289,1,"110mm Pipes laid in and including trenches not exceeding 1 000mm deep.","m",531,null,{"$f":"J426*I426","v":0}]
[]
[2614,15153,6,6,289,2,"110mm Pipes laid in and including trenches exceeding 1 000mm and not exceeding 2 000mm deep.","m",186,null,0]
[]
[2615,15790,6,6,289,3,"110mm Pipes laid in and including trenches exceeding 2 000mm and not exceeding 3 000mm deep. ","m",8,null,0]
[]
[2616,15158,6,6,290,null,"Extra over 110mm pipes laid in for 25MPa concrete encasing 310mm Diameter around pipe at  maximum 45 degree angles including setting in 45 Degree junction, to maximum depth of 2000mm:"]
[]
[2617,15159,6,6,290,4,"Unreinforced concrete encasing to 110mm horizontal and sloping pipes.","m3",116,null,0]
[]
[2618,15154,6,6,290,null,"Extra over heavy duty (Class 34) uPVC sewer and drain pipes for fittings:"]
[]
[2619,15155,6,6,290,5,"110mm Bend.","No",15,null,0]
[]
[2620,15156,6,6,290,6,"110mm Junction.","No",1,null,0]
[]
[2621,15157,6,6,290,7,"110mm Access rodding eye.","No",16,null,0]
[]
[2622,15212,6,6,290,null,"Gulleys:"]
[]
[2623,15214,6,6,290,8,"190mm x 110mm Gully head and Gate.","No",25,null,0]
[]
[2624,15215,6,6,290,9,"110mm Gulley 'P' trap.","No",25,null,0]
[]
[2625,15216,6,6,290,10,"110mm 45 Degree cast iron rodding eye and cover.","No",16,null,0]
[]
[2626,15217,6,6,290,11,"110mm 45 Degree junction.","No",6,null,0]
[]
[2627,15218,6,6,290,null,"Manhole including excavation, imported backfill compacted to 90% Mod AASHTO, 20MPa 200mm thick concrete base with two layers of mesh Ref 395, 15MPa mass concrete benching for 110mm Diameter pipes to 250mm thick, walls formed of 'ROCLA' or similar approved pre-cast manhole chambers, all manhole joints to be sealed with 'DENSO' sealstrip or similar approved, 4A replacement cover/adaptor slab concrete lid can fit this slab directly (gratings and covers elsewhere):"]
[]
[2628,16449,6,6,290,12,"1 000mm Diameter manhole drops exceeding 500mm and not exceeding 1 000mm deep internally.","No",17,null,0]
[]
[2629,16450,6,6,290,13,"1 000mm Diameter manhole drops exceeding 1 000mm and not exceeding 1 500mm deep internally.","No",6,null,0]
[]
[2630,16451,6,6,290,14,"1 000mm Diameter manhole drops exceeding 2 000mm and not exceeding 2 500mm deep internally.","No",9,null,0]
[]
[2631,15226,6,6,291,null,"Cast iron gratings, covers, etc.:"]
[]
[2632,15227,6,6,291,15,"'Saint Gobain' or Equally Approved 550mm diameter 2A cast iron manhole cover and frame. (SKU: 023634).","No",32,null,0]
[]
[2633,15228,6,6,291,16,"Lifting-key for manhole cover (handed to employer).","No",8,null,0]
[]
[2634,15221,6,6,291,null,"Sundries:"]
[]
[2635,15222,6,6,291,17,"300mm x 300mm x 100mm Pre-cast concrete inspection eye marker slab set in ground.","No",8,null,0]
[]
[2636,15223,6,6,291,18,"100mm Cast iron cleaning eye","No",8,null,0]
[]
[2637,15224,6,6,291,null,"Testing:"]
[]
[2638,15225,6,6,291,19,"Testing drainage pipe system","Item",1,null,0]
[{"$nulls":11},{"$f":"SUM(K426:K476)","v":0}]
[2639,0,6,6]
[]
[2640,15208,6,7,293,null,"BILL NO. 7  WATER RETICULATION"]
[]
[2641,16410,6,7,293,null,"PREAMBLES"]
[]
[2642,15209,6,7,293,null,"The Tenderer is referred to the relevant Clauses in the separate document Model Preambles for Trades (2008 Edition), the Department of Public Works document No. PW 371 Specification of Materials and Methods to be used and to the Supplementary Preambles which are incorporated hereunder. "]
[]
[2643,16411,6,7,293,null,"Reference to drawings and details:"]
[]
[2644,16412,6,7,293,null,"Where drawings and/ or details have been referred to in the description of items the Tenderers should price for complete detail and specification on such details and/ or drawing. No claims relating to the omissions on the part of tenders will be entertained."]
[]
[2645,15185,6,7,293,null,"WATER SUPPLIES IN GROUND"]
[]
[2646,15239,6,7,293,null,"Class N12.5 HDPe type IV pipes, including excavations and filling:"]
[]
[2647,15240,6,7,293,1,"110mm Pipes laid in and including trenches not exceeding 1 000mm deep.","m",859,null,{"$f":"J494*I494","v":0}]
[]
[2648,15241,6,7,293,2,"110mm Pipes laid in and including trenches exceeding 1 000mm not exceeding 2 000mm deep.","m",152,null,0]
[]
[2649,15244,6,7,293,null,"Extra over Class N12.5 HDPe type IV pipes for fittings, bends, junctions, reducing junctions, connectors, etc.: "]
[]
[2650,15242,6,7,293,3,"110mm Fittings.","No",400,null,0]
[]
[2651,15247,6,7,293,null,"Trust block including, setting in position in pipe tranches complete as per Engineers ...:"]
[]
[2652,15248,6,7,293,4,"45 Degree Bend thrust block set in position.","No",16,null,0]
[]
[2653,15249,6,7,293,5,"90 Degree Bend thrust block set in position.","No",4,null,0]
[]
[2654,15250,6,7,294,6,"T-Junction thrust block set in position.","No",3,null,0]
[]
[2655,15251,6,7,294,null,"Air Valve and pipe work complete as per Engineers."]
[]
[2656,15252,6,7,294,7,"Air Valve complete including piping and fittings.","No",2,null,0]
[]
[2657,15203,6,7,294,null,"Manhole chamber including excavation, imported backfill compacted to 90% Mod AASHTO, 20MPa 420mm x 100mm thick concrete footing, 100mm thick 19mm concrete stone filling, 220mm NFX Brickwork in class II mortar, bagging to internal walls, 30MPa 150mm reinforced concrete cover slabs with 40mm diameter pipe vent and setting in manhole cover frame into covers slab (cover and frame elsewhere):"]
[]
[2658,15204,6,7,294,8,"1 580mm x 1 180mm Brick chamber not exceeding 1 100mm deep internally.","No",2,null,0]
[]
[2659,15246,6,7,294,null,"Cast iron gratings, covers, etc.:"]
[]
[2660,15245,6,7,294,9,"'Saint Gobain' or Equally Approved 25.4kg 450mm x 600mm cast iron manhole cover and frame.","No",2,null,0]
[]
[2661,15875,6,7,294,10,"Lifting-key for manhole cover (handed to employer).","No",1,null,0]
[]
[2662,15253,6,7,294,null,"Valves:"]
[]
[2663,15254,6,7,294,11,"50mm Gate valve, two connectors, 200mm x 150mm x 300mm PVC valve box and cover, 100mm crush stone bed to box valve and additional pipe where needed, including excavation, setting in valve and filling around box valve with suitable material.","No",2,null,0]
[]
[2664,15255,6,7,294,12,"50mm Isolation ball Valve, two connectors, 200mm x 150 mm x 300mm PVC valve box and cover, 100mm crush stone bed to box valve and additional pipe where needed, including excavation, setting in valve and filling around box valve with suitable material.","No",2,null,0]
[]
[2665,15256,6,7,294,13,"50mm Non-return valve, two connectors, 200mm x 150mm x 300mm PVC valve box and cover, 100mm crush stone bed to box valve and additional pipe where needed, including excavation, setting in valve and filling around box valve with suitable material.","No",2,null,0]
[]
[2666,15876,6,7,295,null,"TANK FRAME, ETC."]
[]
[2667,15837,6,7,295,null,"EXCAVATION, FILLING, ETC. OTHER THAN BULK"]
[]
[2668,15838,6,7,295,null,"Excavation in earth not exceeding 2 000mm deep:"]
[]
[2669,15839,6,7,295,14,"Reducing levels under floors ","m3",11,null,0]
[]
[2670,15840,6,7,295,15,"Holes","m3",8,null,0]
[]
[2671,15841,6,7,295,null,"Extra over trench and hole excavations in earth for excavation:"]
[]
[2672,15842,6,7,295,16,"Soft rock.","m3",2,null,0]
[]
[2673,15843,6,7,295,17,"Hard rock.","m3",1,null,0]
[]
[2674,15844,6,7,295,null,"Extra over all excavations for carting away:"]
[]
[2675,15845,6,7,295,18,"Surplus material from excavations, stock piles, e.t.c on site to a dumping site to be located by the Contractor.","m3",19,null,{"$f":"J550*I550","v":0}]
[]
[2676,15886,6,7,295,null,"Risk of Collapse:"]
[]
[2677,15887,6,7,295,19,"Sides of trenches and holes not exceeding 1 500mm deep.","m2",17,null,0]
[]
[2678,15846,6,7,295,null,"Keeping excavations free of water:"]
[]
[2679,15847,6,7,295,20,"Keeping excavations free of all water other than subterranean water.","Item",1,null,0]
[]
[2680,15848,6,7,295,null,"EARTH FILLING, ETC."]
[]
[2681,15849,6,7,295,null,"C3 Cement stabilised gravel compacted to 97% Mod AASHTO density:"]
[]
[2682,15850,6,7,295,21,"Over site.","m3",8,null,0]
[]
[2683,15851,6,7,295,null,"Compaction of surfaces:"]
[]
[2684,15852,6,7,295,22,"Compaction of ground surface under walkways, etc. including scarifying for a depth of 150mm, breaking down oversize material, adding suitable material from excavated material where necessary and compacting to 93% Mod AASHTO density.","m2",42,null,0]
[]
[2685,15880,6,7,296,null,"TESTS, ETC."]
[]
[2686,15881,6,7,296,null,"Prescribed Density Tests As Check On Contractors Tests Included In Filling Above"]
[]
[2687,15882,6,7,296,23,"Modified AASHTO density test and deliver the results to the Engineer and Principal Agent within 24 hours of the tests being completed.","No",2,null,0]
[]
[2688,15859,6,7,296,null,"SOIL POISONING"]
[]
[2689,15857,6,7,296,null,"SABS approved brand of anti-termite soil poison in accordance with SANS 5859 applied by a Registered Pest Control Company and guaranteed against termite infestation for ten (10) years:"]
[]
[2690,15858,6,7,296,24,"Under floors, etc.","m2",42,null,0]
[]
[2691,15888,6,7,296,25,"To bottoms and sides of trenches, holes, e.t.c","m2",21,null,0]
[]
[2692,15889,6,7,296,null,"UNREINFORCED CONCRETE CAST AGAINST EXCAVATED SURFACES"]
[]
[2693,15890,6,7,296,null,"10MPa/20mm concrete:"]
[]
[2694,15891,6,7,296,26,"Surface Blinding.","m3",1,null,0]
[]
[2695,15861,6,7,296,null,"REINFORCED CONCRETE CAST ON FORMWORK"]
[]
[2696,15862,6,7,296,null,"30MPa/20mm concrete:"]
[]
[2697,15863,6,7,296,27,"Surface beds on waterproofing including ground beams.","m3",10,null,0]
[]
[2698,15892,6,7,296,28,"Bases.","m3",4,null,0]
[]
[2699,15864,6,7,296,null,"Finishing top surfaces of concrete smooth with a power float:"]
[]
[2700,15865,6,7,296,29,"Surface beds, slabs, etc.","m2",42,null,0]
[]
[2701,15883,6,7,296,null,"TESTS CUBES"]
[]
[2702,15884,6,7,296,null,"Concrete test cubes:"]
[]
[2703,15885,6,7,296,30,"Set of three concrete test cubes size 150mm x 150mm x 150mm overall including testing.","Sets",6,null,0]
[]
[2704,15866,6,7,297,null,"ROUGH FORMWORK"]
[]
[2705,15867,6,7,297,null,"Rough formwork to sides:"]
[]
[2706,15868,6,7,297,31,"Edges, risers, ends and reveals not exceeding 300mm high or wide","m",28,null,{"$f":"J612*I612","v":0}]
[]
[2707,15869,6,7,297,null,"MOVEMENT JOINTS ETC."]
[]
[2708,15870,6,7,297,null,"Saw cut joints ream out to 6mm x 20mm and sealed with 15mm x 6mm sikaflex-pro 2HP sealant on polychord backing strip"]
[]
[2709,15871,6,7,297,32,"3.5mm x 30mm. saw cut joints on top of concrete","m",37,null,0]
[]
[2710,15872,6,7,298,null,"REINFORCEMENT (PROVISIONAL) "]
[]
[2711,15873,6,7,298,null,"Fabric reinforcement:"]
[]
[2712,15874,6,7,298,33,"Type 245 fabric reinforcement in surface beds, slabs etc.","m2",42,null,0]
[]
[2713,15853,6,7,298,null,"DAMPPROOFING OF WALLS AND FLOORS"]
[]
[2714,15854,6,7,298,null,"One layer of 250 micron green polyethylene damp proof membrane (as per clause 7.2 of specification SABS-0400), all side overlaps sealed with approved contact adhesive"]
[]
[2715,15855,6,7,298,34,"Under surface beds.","m2",55,null,0]
[]
[2716,15893,6,7,298,null,"WATER TANKS, ETC."]
[]
[2717,15894,6,7,298,null,"2 x 20000 Litre 'JoJo'or Equally Approved water tanks complete as per engineer's drawing no.: AE2211-C-SAN-202 WATER AND SEWER TYPICAL DETAILS Rev D:"]
[]
[2718,15896,6,7,298,35,"Supply and fit 20kl water tank complete including pipework and fittings.","No",1,null,0]
[]
[2719,15257,6,7,298,null,"Supply and install Booster pumps, Pressure control valve complete, including unions and adaptors:"]
[]
[2720,15258,6,7,298,36,"Centrifugal pump CM210, 2.2kw Booster Pump complete with volume (Q) of 20-120 litres/minute for minimum height of 33m, including concrete plinth, brickwork and cover lid.","No",1,null,0]
[]
[2721,15259,6,7,298,37,"Submersible pump type v400, 5.5kw Pump with HP of 7.5, complete with concrete plinth, brickwork and cover lid.","No",1,null,0]
[]
[2722,15206,6,7,298,null,"Testing:"]
[]
[2723,15207,6,7,298,38,"Allow for testing all drains, and water supplies to the satisfaction of the Principal Agent. All defective work is to be taken out and replaced at the Contractor's expense.","Item",1,null,0]
[{"$nulls":11},{"$f":"SUM(K494:K646)","v":0}]
[2724,0,6,7]
[]
[2725,15435,6,8,300,null,"BILL NO. 8  DRINKING FOUNTAINS"]
[]
[2726,16413,6,8,300,null,"PREAMBLES"]
[]
[2727,15436,6,8,300,null,"The Tenderer is referred to the relevant Clauses in the separate document Model Preambles for Trades (2008 Edition), the Department of Public Works document No. PW 371 Specification of Materials and Methods to be used and to the Supplementary Preambles which are incorporated hereunder."]
[]
[2728,16414,6,8,300,null,"Reference to drawings and details:"]
[]
[2729,16415,6,8,300,null,"Where drawings and/ or details have been referred to in the description of items the Tenderers should price for complete detail and specification on such details and/ or drawing. No claims relating to the omissions on the part of tenders will be entertained."]
[]
[2730,15437,6,8,300,null,"UNREINFORCED CONCRETE, CAST AGAINST EXCAVATED SURFACES "]
[]
[2731,15912,6,8,300,null,"10MPa/20mm concrete:"]
[]
[2732,15913,6,8,300,1,"Surface Blinding.","m3",4,null,0]
[]
[2733,15987,6,8,300,null,"UNREINFORCED CONCRETE, CAST AGAINST PARTIALLY EXCAVATED SURFACES "]
[]
[2734,15988,6,8,300,null,"25MPa/19mm Concrete:"]
[]
[2735,15989,6,8,300,2,"Surface beds on waterproofing.","m3",8,null,0]
[]
[2736,15914,6,8,301,null,"REINFORCED CONCRETE CAST AGAINST EXCAVATED SURFACES"]
[]
[2737,15915,6,8,301,null,"25MPa/19mm Concrete:"]
[]
[2738,15916,6,8,301,3,"Bases.","m3",8,null,{"$f":"J676*I676","v":0}]
[]
[2739,15990,6,8,301,null,"CONCRETE SUNDRIES"]
[]
[2740,15991,6,8,301,null,"Finishing top surfaces of concrete smooth with a power float:"]
[]
[2741,15992,6,8,301,4,"Surface beds, slabs, etc.","m2",60,null,0]
[]
[2742,15921,6,8,301,null,"TESTS CUBES"]
[]
[2743,15922,6,8,301,null,"Concrete test cubes:"]
[]
[2744,15923,6,8,301,5,"Set of three concrete test cubes size 150mm x 150mm x 150mm overall including testing.","Sets",21,null,0]
[]
[2745,15443,6,8,301,null,"REINFORCEMENT (PROVISIONAL) (CPAP Work Group No. 114)"]
[]
[2746,15919,6,8,301,null,"High Tensile Steel Bar Reinforcement To Structural Concrete Work:"]
[]
[2747,15920,6,8,301,6,"Various sizes.","t",0.17,null,0]
[]
[2748,15474,6,8,301,null,"DAMPPROOFING TO WALLS AND FLOORS "]
[]
[2749,15929,6,8,301,null,"One layer of 375 micron embossed polyethylene dampproof course or similar approved:"]
[]
[2750,15930,6,8,301,7,"In walls, under cills, etc.","m2",9,null,0]
[]
[2751,15993,6,8,301,null,"One layer of 250 micron green polyethylene damp proof membrane (as per clause 7.2 of specification SABS-0400), all side overlaps sealed with approved contact adhesive"]
[]
[2752,15994,6,8,301,8,"Under surface beds.","m2",60,null,0]
[]
[2753,15939,6,8,302,null,"JOINT SEALANTS, ETC."]
[]
[2754,15940,6,8,302,null,"Two-part grey polysulphide sealing compound including backing cord, bond breaker, primer, etc."]
[]
[2755,15941,6,8,302,9,"Between timber or metal door or window frames and face brick / plaster reveal.","m",21,null,0]
[]
[2756,15934,6,8,302,null,"PLUMBING AND DRAINAGE"]
[]
[2757,15975,6,8,302,null,"Class 25D Precast RC pipe section with interlocking joints as per architects drawings."]
[]
[2758,15976,6,8,302,10,"1000mm diameter pipes.","m",23,null,0]
[]
[2759,15477,6,8,302,null,"TAPS VALVES, ETC."]
[]
[2760,15478,6,8,302,null,"Taps, Valves, etc.:"]
[]
[2761,15479,6,8,302,11,"'Walcro 109' or equally approved 15mm drinking fountain demand faucet tap (SKU: 003806).","No",38,null,0]
[]
[2762,15978,6,8,302,12,"Cobra Star: 106-15 or Equally Approved bib tap with hot and cold indices. ½” BSP male inlet. SANS 226 TYPE 1.","No",19,null,0]
[]
[2763,15985,6,8,302,null,"Waste unions etc.:"]
[]
[2764,15986,6,8,302,13,"40mm Chromium plated '316CP' sink waste union complete with plug and chain, or similar approved.","No",5,null,0]
[]
[2765,15480,6,8,302,null,"WATER SUPPLIES"]
[]
[2766,15481,6,8,302,null,"Class 1 copper pipes with brass compression fittings:"]
[]
[2767,15482,6,8,302,14,"20mm Pipes cast in precast RC pipe.","m",95,null,0]
[]
[2768,15484,6,8,302,15,"20mm Fittings.","No",190,null,0]
[]
[2769,15935,6,8,302,null,"uPVC Pipes:"]
[]
[2770,15931,6,8,302,16,"100mm Pipes cast in precast RC pipe.","m",24,null,{"$f":"J740*I740","v":0}]
[]
[2771,15933,6,8,302,17,"100mm Fittings.","No",38,null,0]
[]
[2772,15979,6,8,303,null,"WATER SUPPLIES IN GROUND"]
[]
[2773,15980,6,8,303,null,"Class N12.5 HDPe type IV pipes, including excavations and filling:"]
[]
[2774,15981,6,8,303,18,"110mm Pipes laid in and including trenches not exceeding 1 000mm deep.","m",74,null,0]
[]
[2775,15982,6,8,303,19,"110mm Pipes laid in and including trenches exceeding 1 000mm not exceeding 2 000mm deep.","m",40,null,0]
[]
[2776,15983,6,8,303,null,"Extra over Class N12.5 HDPe type IV pipes for fittings, bends, junctions, reducing junctions, connectors, etc.: "]
[]
[2777,15984,6,8,303,20,"110/20mm Fittings.","No",190,null,0]
[{"$nulls":11},{"$f":"SUM(K664:K754)","v":0}]
[2778,0,6,8]
[]
[2779,15288,6,9,305,null,"BILL NO. 9  SOCCER FIELD"]
[]
[2780,16419,6,9,305,null,"PREAMBLES"]
[]
[2781,15289,6,9,305,null,"The Tenderer is referred to the relevant Clauses in the separate document Model Preambles for Trades (2008 Edition), the Department of Public Works document No. PW 371 Specification of Materials and Methods to be used and to the Supplementary Preambles which are incorporated hereunder."]
[]
[2782,16439,6,9,305,null,"SUPPLEMENTARY PREAMBLES"]
[]
[2783,16420,6,9,305,null,"Reference to drawings and details:"]
[]
[2784,16421,6,9,305,null,"Where drawings and/ or details have been referred to in the description of items the Tenderers should price for complete detail and specification on such details and/ or drawing. No claims relating to the omissions on the part of tenders will be entertained."]
[]
[2785,15303,6,9,305,null,"EARTH FILLING, ETC."]
[]
[2786,16445,6,9,305,null,"Crusher run filling to assist in the sub-surface drainage:"]
[]
[2787,16446,6,9,305,1,"Over site to form platforms.","m3",710,null,0]
[]
[2788,15798,6,9,305,null,"Coarse river sand filling supplied by the contractor: "]
[]
[2789,15799,6,9,305,2,"Under surface beds, slabs etc.","m3",473,null,0]
[]
[2790,15310,6,9,305,null,"Compaction of surfaces:"]
[]
[2791,15311,6,9,305,3,"Compaction of ground surface under platforms etc including scarifying for a depth of 150mm, breaking down oversize material, adding suitable material where necessary and compacting to 90% Mod AASHTO density.","m2",4731,null,0]
[]
[2792,15312,6,9,306,null,"TESTS, ETC."]
[]
[2793,15313,6,9,306,null,"Prescribed Density Tests As Check On Contractors Tests Included In Filling Above"]
[]
[2794,15314,6,9,306,4,"Modified AASHTO density test and deliver the results to the Engineer and Principal Agent within 24 hours of the tests being completed. ","No",26,null,0]
[]
[2795,15344,6,9,306,null,"GRASSING, ETC."]
[]
[2796,15335,6,9,306,null,"Grassing, ground covers, etc:"]
[]
[2797,15336,6,9,306,5,"Prepare topsoil and lay 50mm thick \"Kikuyu\" grass rolls.","m2",1829,null,0]
[]
[2798,15337,6,9,306,6,"Fertilising grassed areas with suitable fertiliser at a rate of  15.4g/m² after completion of planting","m2",1829,null,0]
[]
[2799,15338,6,9,306,null,"Maintenance:"]
[]
[2800,15339,6,9,306,7,"Allow for maintaining soccer field for a period of 3 months, including watering, weeding, cutting, replacing, etc.","Item",1,null,0]
[]
[2801,15340,6,9,306,null,"PAINTWORK"]
[]
[2802,15341,6,9,306,null,"Prepare and apply one coat white reflective road marking paint on pre-cast concrete paving blocks , etc.:"]
[]
[2803,15342,6,9,306,8,"100mm Wide white line","m",400,null,{"$f":"J806*I806","v":0}]
[]
[2849,19343,6,9,312,null,"SUNDRIES"]
[]
[2850,19344,6,9,312,null,"Rugby Posts:"]
[]
[2851,19345,6,9,312,9,"10m Mild steel Rugby posts powder coated and painted to the approval of the Architect.","No",2,null,0]
[]
[2852,19346,6,9,312,null,"Soccer Goals:"]
[]
[2853,19347,6,9,312,10,"7.32m wide and 2.44m high with 2mm to 4mm mild steel, hot dip galvanized, to be set in concrete footing with back support net, to the approval of Architect","No",2,null,0]
[]
[]
[{"$nulls":11},{"$f":"SUM(K774:K816)","v":0}]
[2804,0,6,9]
[]
[2805,15345,6,10,308,null,"BILL NO. 10  COMBI COURTS"]
[]
[2806,16422,6,10,308,null,"PREAMBLES"]
[]
[2807,15346,6,10,308,null,"The Tenderer is referred to the relevant Clauses in the separate document Model Preambles for Trades (2008 Edition), the Department of Public Works document No. PW 371 Specification of Materials and Methods to be used and to the Supplementary Preambles which are incorporated hereunder. "]
[]
[2808,16440,6,10,308,null,"NOTE: Any defects which may become evident due to bad workmanship or materials within six months of completion shall be made good by the Contractor at his own expense. --------------------"]
[]
[2809,16423,6,10,308,null,"SUPPLEMENTARY PREAMBLES"]
[]
[2810,16424,6,10,308,null,"Reference to drawings and details:"]
[]
[2811,15818,6,10,308,null,"Where drawings and/ or details have been referred to in the description of items the Tenderers should price for complete detail and specification on such details and/ or drawing. No claims relating to the omissions on the part of tenders will be entertained."]
[]
[2812,15821,6,10,308,null,"EARTH FILLING, ETC."]
[]
[2813,15822,6,10,308,null,"Compaction of surfaces:"]
[]
[2814,15825,6,10,308,1,"Compaction of ground surface under platforms etc including scarifying for a depth of 150mm, breaking down oversize material, adding suitable material where necessary and compacting to 90% Mod AASHTO density.","m2",2687,null,0]
[]
[2815,15826,6,10,308,null,"Earth filling supplied by the contractor under combi courts: "]
[]
[2816,15827,6,10,309,2,"Sub-base course of suitable gravel/crusher run material compacted to 90% Mod AASHTO density","m3",188,null,0]
[]
[2817,15828,6,10,309,3,"Base course of G1 graded 13mm crusher stone material, sprayed with bitumen SS60 compacted to 90% Mod AASHTO density","m3",126,null,0]
[]
[2818,15829,6,10,309,4,"Base course of G1 grade 6.7mm stone material, sprayed with bitumen SS60 emulsion compacted to 90% Mod AASHTO density ","m3",101,null,0]
[]
[2819,15830,6,10,309,null,"TESTS, ETC."]
[]
[2820,15831,6,10,309,null,"Prescribed Density Tests As Check On Contractors Tests Included In Filling Above"]
[]
[2821,15832,6,10,309,5,"Modified AASHTO density test and deliver the results to the Engineer and Principal Agent within 24 hours of the tests being completed. ","No",28,null,0]
[]
[2822,15405,6,10,309,null,"WEED KILLERS, INSECTICIDES, ETC"]
[]
[2823,15406,6,10,309,null,"Combi Court Base to be treated with a SANS 10400 approved weed killer:"]
[]
[2824,15407,6,10,309,6,"On base course","m2",1256,null,0]
[]
[2825,15408,6,10,309,null,"DAMPPROOFING OF WALLS AND FLOORS"]
[]
[2826,15411,6,10,309,null,"One layer 200 micron embossed polyethylene dampproof course (SANS 952-1985 type B) or similar approved:"]
[]
[2827,15409,6,10,309,7,"Under surface bed.","m2",2687,null,0]
[]
[2828,15412,6,10,310,null,"COMBI COURT SURFACING "]
[]
[2829,15421,6,10,310,null,"Welded Mesh:"]
[]
[2830,15422,6,10,310,8,"Bara Mesh","m2",1256,null,0]
[]
[2831,15417,6,10,310,null,"Slurry Surfacing:"]
[]
[2832,15420,6,10,310,9,"Slurry layer to be compacted to 90% Mod AASHTO density ","m2",1256,null,0]
[]
[2833,15393,6,10,310,null,"Reinforced 20Mpa/19mm Concrete cast on/in formwork:"]
[]
[2834,15394,6,10,310,10,"Surface beds cast in panels with smooth top finish (elsewhere measured)","m3",126,null,{"$f":"J880*I880","v":0}]
[]
[2835,15395,6,10,310,null,"Finishing to surfaces of concrete smooth with a power float: "]
[]
[2836,0,6,10,null,11,"Surface beds, slabs, etc.","m2",1256,null,0]
[]
[{"$nulls":6},"30mm Seamless Rubber Cushion Matting:"]
[]
[{"$nulls":5},12,"Glued on power floated concrete ","m2",1256,null,0]
[]
[{"$nulls":6},"Mastic Layers: "]
[]
[{"$nulls":5},13,"Apply 2 x colourless layers and 2 x colour layers to the approval of the Architect and/or Engineer","m2",1256,null,0]
[]
[{"$nulls":6},"PAINTWORK"]
[]
[{"$nulls":6},"Prepare and apply paint lines to international standards with moisture and UV resistant paint:"]
[]
[{"$nulls":5},14,"Interior of the Court with Green","m2",1256,null,0]
[]
[{"$nulls":5},15,"50 - 100mm Wide white line","m",208,null,0]
[]
[{"$nulls":5},16,"50 - 100mm Wide Red line on the Edge","m",208,null,0]
[]
[{"$nulls":5},17,"50 - 100mm Wide Yellow","m",208,null,0]
[]
[{"$nulls":6},"METALWORK"]
[]
[{"$nulls":6},"'Class A' Galvanised Fencing:"]
[]
[{"$nulls":5},18,"3600mm High Chain Link Galvanised Diamond Mesh size 100 x 50 x 2.5mm with vertical wires facing outwards including intermediate posts, corner posts, straining wires, 350 x 350 x 600mm mass concrete base, 450mm wide concrete base, etc. installed complete, and excavations for poles, holes etc. and, all complete, painted with Antique Green Gloss Enamel paint.","m",185,null,0]
[]
[{"$nulls":6},"'Class A' Galvanised Gates:"]
[]
[{"$nulls":5},19,"Single leaf steel gate size 900mm wide x 2100mm high overall, formed of 50mm diameter x 2.5mm parameter framing and one diagonal brace, all scribed and welded at corners and intersections, covered with Galvanised Diamond Mesh, straining wires all as per fencing, including fitting with 30mm diameter x 300mm girth u-shaped cleats and three 24mm diameter x 300mm long eye bolt hinges bolted and welded to adjoining 100mm diameter gate post (elsewhere measured), including 500mm long heavy duty chain spot welded to gate and Union padlock.","No",2,null,0]
[]
[{"$nulls":6},"BOND AND INTERLOCKING CONCRETE PAVERS"]
[]
[{"$nulls":6},"Plain Precast Cement Concrete (25MPa) Type SA Interlocking Bond Paving Bricks Size 200 x 100 x 60mm Thick Laid On And Including 30mm Thick Sand Bed With Joints Filled With Sand:"]
[]
[{"$nulls":5},20,"60mm Interlocking block type S-A with compressive strength of 25Mpa in Herringbone pattern 45 degree to kerb including 25mm bedding layer of thin, clean, silt free commercial coarse river sand approved by Engineer (Include all cutting of blocks and sand infill). ","m2",1430,null,0]
[]
[{"$nulls":6},"PRE-CAST CONCRETE KERBS"]
[]
[{"$nulls":6},"Pre-cast concrete kerbs (complying with SABS 927) in maximum lengths of 1m lengths, wet presses, placed in position, bedded and jointed in (3:1) cement mortar and flush pointed on exposed faces, including 15MPa/19mm unreinforced concrete haunching at the back of each joint, excavation, backfilling, ramming, etc.:"]
[]
[{"$nulls":5},21,"75 x 250mm high overall, laid in lengths not exceeding 1000mm on a well rammed earth bottom or base course.","m",431,null,0]
[]
[{"$nulls":6},"SCHOOL SPECTATOR SEATING AREA "]
[]
[{"$nulls":6},"5m x 5 Tier Standard School Spectator Stand "]
[]
[{"$nulls":5},22,"2mm x 40 mm Square Tubing, Hot dip galvanised finish with treated Pine seating. ","No",15,null,0]
[]
[{"$nulls":6},"SUNDRIES"]
[]
[{"$nulls":6},"Scoreboard:"]
[]
[{"$nulls":5},23,"3m x 1.5m Aluminium structure frame with aluminium plate screen scoreboard, painted with Antique Green Matte Enamel paint background composition and white enamel paint for school name, borders for score boxes and overall frame.","No",2,null,0]
[]
[{"$nulls":6},"Combi Court Posts and Nets:"]
[]
[{"$nulls":5},24,"2x 76mm Removable adjustable square Mild Steel posts powder coated, painted in Antique Green Gloss Enamel paint with Brass Winders mechanism and handle allowing locking for tensioning including high performance 12.8m heavy duty 3.5mmm braided HDPE net twine and features a quad-stitched optic white headband.","No",2,null,{"$f":"J942*I942","v":0}]
[]
[{"$nulls":5},25,"Permanent 76mm square mild steel Netball Goal Post, with solid ring and net included, bolted to the slab. 2 x hoops to accommodate junior & senior players, painted in Antique Green Gloss Enamel paint.","No",4,null,0]
[{"$nulls":11},{"$f":"SUM(K840:K944)","v":0}]
[]
[]
[2837,17273,6,11,312,null,"BILL NO. 11  ATTENUATION POND"]
[]
[2838,17274,6,11,312,null,"PREAMBLES"]
[]
[2839,17275,6,11,312,null,"The Tenderer is referred to the relevant Clauses in the separate document Model Preambles for Trades (2008 Edition), the Department of Public Works document No. PW 371 Specification of Materials and Methods to be used and to the Supplementary Preambles which are incorporated hereunder."]
[]
[2840,17276,6,11,312,null,"SUPPLEMENTARY PREAMBLES"]
[]
[2841,17277,6,11,312,null,"Reference to drawings and details:"]
[]
[2842,17278,6,11,312,null,"Where drawings and/ or details have been referred to in the description of items the Tenderers should price for complete detail and specification on such details and/ or drawing. No claims relating to the omissions on the part of tenders will be entertained."]
[]
[2843,17279,6,11,312,null,"BULK EXCAVATION, FILLING, ETC."]
[]
[2844,17299,6,11,312,null,"Bulk excavations in earth for attenuation dam:"]
[]
[2845,17300,6,11,312,1,"Not exceeding 2m deep.","m3",1544,null,{"$f":"J964*I964","v":0}]
[]
[2846,17280,6,11,312,null,"Extra over bulk excavations in earth for excavation in:"]
[]
[2847,17281,6,11,312,2,"Soft rock.","m3",124,null,0]
[]
[2848,17301,6,11,312,3,"Hard rock.","m3",62,null,0]
[]
[2849,17282,6,11,312,null,"Extra over all excavations for cart away: "]
[]
[2850,17283,6,11,312,4,"Surplus excavated material from excavations and/or stock piles on site to a dumping site identified by the contractor.","m3",1544,null,0]
[]
[2851,17324,6,11,313,null,"Extra over bulk excavations in earth for breaking up and removing:"]
[]
[2852,17325,6,11,313,5,"Brickwork.","m3",10,null,0]
[]
[2853,17326,6,11,313,6,"Unreinforced concrete. ","m3",10,null,0]
[]
[2854,17327,6,11,313,7,"Reinforced concrete.","m3",10,null,0]
[]
[2855,17284,6,11,313,null,"Risk of collapse of excavations:"]
[]
[2856,17285,6,11,313,8,"Sides of bulk excavations not exceeding 1.5m deep.","m2",212,null,0]
[]
[2857,17303,6,11,313,9,"Keeping excavations free of water.","Item",1,null,0]
[]
[2858,17304,6,11,314,null,"De-watering of seepage water and water from other subterranean sources in excavations: "]
[]
[2859,17305,6,11,314,10,"Provide water pump for de-watering of water including maintenance and removal.","No",1,null,0]
[]
[2860,17306,6,11,314,11,"Provide necessary hoses for the above, including couplings, etc.","m",100,null,0]
[]
[2861,17307,6,11,314,12,"Allow for pumping (One pump).","Item",1,null,0]
[]
[2862,17308,6,11,314,null,"FILLING, ETC"]
[]
[2863,17311,6,11,314,null,"Filling supplied by the contractor under attenuation pond, etc."]
[]
[2864,17312,6,11,314,13,"G7 Gravel-soil material compacted to 93% Mod AASHTO density.","m3",53,null,0]
[]
[2865,17320,6,11,314,null,"Earth filling obtained from the excavations and/or prescribed stock piles on site, compacted to 93% Mod AASHTO density:"]
[]
[2866,17321,6,11,314,14,"In landscape mounds, berms, etc.","m3",29,null,{"$f":"J1006*I1006","v":0}]
[]
[2867,17309,6,11,314,null,"Compaction of surfaces:"]
[]
[2868,17310,6,11,314,15,"Compaction of natural or excavated ground surface under floors etc, including scarifying for a depth of 150mm, breaking down oversize materials, adding suitable material where necessary and compacting to 93% Mod AASHTO density.","m2",823,null,0]
[]
[2869,17287,6,11,314,null,"TESTS, ETC."]
[]
[2870,17288,6,11,314,null,"Prescribed tests to determine degree of compaction or other properties of ground or filling:"]
[]
[2871,17289,6,11,314,16,"Modified AASHTO density test and deliver the results to the Engineer and Principal Agent within 24 hours of the tests being completed. ","No",5,null,0]
[]
[2872,17290,6,11,315,null,"GABIONS AND INTERLOCKING BLOCK RETAINING STRUCTURES"]
[]
[2873,17291,6,11,315,null,"Gabions of galvanised wire boxes laced together and filled with broken stone:"]
[]
[2874,17313,6,11,315,17,"500mm Thick retaining wall of 1 x 1 x 0.5m boxes properly bonded (Total height not exceeding 5m).","m3",137,null,0]
[]
[2875,17293,6,11,315,18,"300mm Thick retaining wall of 1 x 1 x 0.3m boxes properly bonded (Total height not exceeding 5m).","m3",6,null,0]
[]
[2876,17314,6,11,315,19,"300mm Thick base protection of 1 x 1 x 0.3m reno mattresses on flat.","m3",14,null,0]
[]
[2877,17296,6,11,315,null,"FILTER FABRIC"]
[]
[2878,17297,6,11,315,null,"Tyre A4/U24 Geotextile filter fabric blanket:"]
[]
[2879,17298,6,11,315,20,"Under stone filled gabion mattresses, including preparing ground surface under.","m2",862,null,0]
[]
[2880,17315,6,11,315,21,"Vertically behind stone filled gabion retaining walls.","m2",177,null,0]
[]
[2881,17316,6,11,315,null,"MANHOLE"]
[]
[2882,17317,6,11,315,22,"540 x 540mm Brick inspection chamber 950mm deep internally with 200 x 200mm opening to top of concrete reducer slab.","No",1,null,0]
[]
[2883,17318,6,11,315,null,"SPILLWAY"]
[]
[2884,17319,6,11,315,23,"Grassed 'Armoflex 140' lining laid sloping.","m2",59,null,0]
[]
[2885,17322,6,11,315,null,"CONCRETE CHANNELS, ETC"]
[]
[2886,17323,6,11,315,24,"30mm Wide x 500mm deep trapezoidal concrete channel with 100mm thick walls , comprising 25MPa concrete cast in 1m sections , 193 mesh reinforcement and finished smooth on exposed surfaces including necessary excavation and formwork.","m",3,null,0]
[{"$nulls":11},{"$f":"SUM(K964:K1046)","v":0}]
[2887,0,6,11]
[]
[2888,14199,6,12,317,1,"BULK EARTHWORKS",{"$nulls":4},{"$f":"L87","v":0}]
[]
[2889,13972,6,12,317,2,"WALKWAYS, PARKING AND ASSEMBLY AREA",{"$nulls":4},{"$f":"L147","v":0}]
[]
[2890,13454,6,12,317,3,"LANDSCAPING",{"$nulls":4},{"$f":"L197","v":0}]
[]
[2891,13517,6,12,317,4,"FENCING AND ENTRANCE WALLS",{"$nulls":4},{"$f":"L317","v":0}]
[]
[2892,13648,6,12,317,5,"STORMWATER DRAINAGE",{"$nulls":4},{"$f":"L407","v":0}]
[]
[2893,15142,6,12,317,6,"SOIL DRAINAGE",{"$nulls":4},{"$f":"L477","v":0}]
[]
[2894,15143,6,12,317,7,"WATER RETICULATION",{"$nulls":4},{"$f":"L647","v":0}]
[]
[2895,15268,6,12,317,8,"DRINKING FOUNTAINS",{"$nulls":4},{"$f":"L755","v":0}]
[]
[2896,13735,6,12,317,9,"SOCCER FIELD",{"$nulls":4},{"$f":"L819","v":0}]
[]
[2897,15260,6,12,317,10,"COMBI COURTS",{"$nulls":4},{"$f":"L945","v":0}]
[]
[2898,17272,6,12,317,11,"ATTENUATION POND",{"$nulls":4},{"$f":"L1047","v":0}]
[]
[{"$nulls":6},"Bill Total",{"$nulls":4},{"$f":"SUM(L1050:L1070)","v":0}]

{"sheet":"PROVISIONAL SUMS AND ALLOWANCES","index":7,"n_rows":151,"n_cols":11,"rows_kept":151}
["COUNTER","ISC","SECTION","BILL","PAGE NO","ITEM NO","DESCRIPTION","UNIT","QUANTITY","RATE","AMOUNT"]
[2899,14739,7,1,318,null,"BILL NO. 1  PROVISIONAL SUMS AND ALLOWANCES  "]
[]
[2900,19105,7,1,318,null,"SUPPLEMENTARY PREAMBLES"]
[]
[2901,16937,7,1,318,null,"General:"]
[]
[2902,16938,7,1,318,null,"Unless otherwise described, all prime cost amounts and provisional sums shall be nett. No provision for 5 percent cash discount shall be included for the main Prime cost amounts and provisional sums exclude value added tax. In the event of a prime cost amount or provisional sum being omitted the items \"Allow for profit\"... and \"allow for attendance\" applicable, shall be omitted together with the prime cost amount or provisional sum and no claim whatsoever will be entertained in this regard. The principal agent shall be entitled to nominate or select any further specialist and other to execute work or supply and fix any goods whether or not a provisional sum is included in the bills of quantities and such specialists and other will then be deemed to be \"selected subcontractors\" as the case may be. Where profit stated, the contractor may allow for profit if required"]
[]
[2903,16939,7,1,318,null,"Attendance upon nominated/selected subcontractors:"]
[]
[2904,16940,7,1,318,null,"The item \"Allow for attendance....\" which follows each provisional sum for nominated/selected subcontractors work, shall be deemed to cover all the contractors costs incurred in providing free of charge to the subcontractor the service as set out in the relevant clause in the preliminaries"]
[]
[2905,16941,7,1,319,null,"Taking delivery:"]
[]
[2906,16942,7,1,319,null,"Taking delivery of goods or articles by the contractor on site shall mean getting in, unpacking, checking that the quantity is correct and that the goods are complete and undamaged, submitting a report thereof to the interested parties and issuing vouchers for the receipt of such goods.The contractor is to store the goods and will be held responsible for the safety thereof and indemnify the employer against any damage or loss which may occur."]
[]
[2907,16943,7,1,319,null,"Works executed under a seperate/direct contract:"]
[]
[2908,16944,7,1,319,null,"The contractor shall permit access to the site and to the places where the work is to be carried out and provide every facility to enable the specialist to carry out his work in a workmanlike manner and in propper order and sequence."]
[]
[2909,16945,7,1,319,null,"Co-ordination:"]
[]
[2910,16946,7,1,319,null,"The contractor shall obtain all necessary particulars of the subcontractors work timeously and the contractor will be responsible for the programming and coordination of the works."]
[]
[2911,16947,7,1,319,null,"Number of nominated/selected subcontractors:"]
[]
[2912,16948,7,1,319,null,"The contractors attention is drawn to the fact that the indicated individual provisional sums may consist of numerous specialist, all of which will become nominated/selected subcontractors.The contractor must therefore allow in his tender for any cost implication this may bring about, as no claims in this regard will be entertained."]
[]
[2913,16954,7,1,319,null,"The contractor shall obtain all necessary particulars of the subcontractors work timeously and the contractor will be responsible for the programming and coordination of the works"]
[]
[2914,16949,7,1,320,null,"PROVISIONAL SUMS FOR NOMINATED/SELECTED SUB-CONTRACTORS"]
[]
[2915,17023,7,1,320,null,"Eskom Upgrade "]
[]
[2916,17024,7,1,320,1,"Provide the sum of R300 000.00 (Three Hundred Thousand Rand) for Eskom Upgrade, the amount to be used at the discretion of the Principal Agent or deducted in whole or in part if not required","Item",1,null,{"$f":"J36*I36","v":0}]
[]
[2917,17027,7,1,320,2,"Profit","Item",1,null,{"$f":"J38*I38","v":0}]
[]
[2918,17028,7,1,320,3,"Attendance","Item",1,null,0]
[]
[2919,17080,7,1,320,null,"Electrical Generator"]
[]
[2920,17081,7,1,320,4,"Provide the sum of R1 200 000.00 (One Million Two Hundred Thousand Rand) for Electrical Generator, the amount to be used at the discretion of the Principal Agent or deducted in whole or in part if not required","Item",1,null,0]
[]
[2921,17082,7,1,320,5,"Profit","Item",1,null,0]
[]
[2922,17083,7,1,320,6,"Attendance","Item",1,null,0]
[]
[2923,17015,7,1,320,null,"Vegetable Garden "]
[]
[2924,17016,7,1,320,7,"Provide the sum of R80 000.00 (Eighty Thousand Rand) for establishment of school garden, the amount to be used at the discretion of the Principal Agent or deducted in whole or in part if not required.","Item",1,null,0]
[]
[2925,17017,7,1,320,8,"Profit","Item",1,null,0]
[]
[2926,17018,7,1,320,9,"Attendance","Item",1,null,0]
[]
[2927,16959,7,1,320,null,"Rehabilitation of existing site:"]
[]
[2928,16960,7,1,320,10,"Provide the sum of R2 800 000.00 (Two Million, Eight Hundred Thousand Rand) for rehabilitation of existing site in accordance to owner's specification complete, to be used at the discretion of the Principal Agent and deducted in whole or in part if not required","Item",1,null,0]
[]
[2929,16961,7,1,320,11,"Profit","Item",1,null,0]
[]
[2930,16962,7,1,320,12,"Attendance","Item",1,null,0]
[]
[2931,16963,7,1,321,null,"Rainwater Harvesting:"]
[]
[2932,16964,7,1,321,13,"Provide the sum of R500 000.00 (Five Hundred Thousand Rand) for rainwater harvesting supplied and installed complete, to be used at the discretion of the Principal Agent and deducted in whole or in part if not required.","Item",1,null,0]
[]
[2933,16965,7,1,321,14,"Profit","Item",1,null,0]
[]
[2934,16966,7,1,321,15,"Attendance","Item",1,null,0]
[]
[2935,16967,7,1,321,null,"Prestressed Steel Tank:"]
[]
[2936,16968,7,1,321,16,"Provide the sum of R800 000.00 (Eight Hundred Thousand Rand) for Prestressed steel tank supplied and installed complete, to be used at the discretion of the Principal Agent and deducted in whole or in part if not required.","Item",1,null,0]
[]
[2937,16969,7,1,321,17,"Profit","Item",1,null,0]
[]
[2938,16970,7,1,321,18,"Attendance","Item",1,null,0]
[]
[2939,17010,7,1,321,null,"Play Area:"]
[]
[2940,17011,7,1,321,19,"Provide the sum of R250 000.00 (Two Hundred and Fifty Thousand Rand) for Play Area and Equipment complete, to be used at the discretion of the Principal Agent and deducted in whole or in part if not required. ","Item",1,null,0]
[]
[2941,17012,7,1,321,20,"Profit","Item",1,null,0]
[]
[2942,17013,7,1,321,21,"Attendance","Item",1,null,0]
[]
[2943,19026,7,1,321,null,"Kitchen Equipment"]
[]
[2944,19030,7,1,321,22,"Provide the sum of R500 000.00 (Five Hundred Thousand Rand) for Kitchen Equipment supplied and installed complete, to be used at the discretion of the Principal Agent and deducted in whole or in part if not required. ","Item",1,null,0]
[]
[2945,19031,7,1,321,23,"Profit","Item",1,null,0]
[]
[2946,19032,7,1,321,24,"Attendance","Item",1,null,0]
[]
[2947,19027,7,1,322,null,"Borehole "]
[]
[2948,19034,7,1,322,25,"Provide the sum of R800 000.00 (Eight Hundred Thousand Rand) for Borehole supplied and installed complete, to be used at the discretion of the Principal Agent and deducted in whole or in part if not required. ","Item",1,null,0]
[]
[2949,19035,7,1,322,26,"Profit ","Item",1,null,{"$f":"J102*I102","v":0}]
[]
[2950,19036,7,1,322,27,"Attendance","Item",1,null,0]
[]
[2951,19029,7,1,322,null,"Irrigation"]
[]
[2952,19038,7,1,322,28,"Provide the sum of R450 000.00 (Four Hundred and Fifty Thousand Rand) for Irrigation system supplied and installed complete, to be used at the discretion of the Principal Agent and deducted in whole or in part if not required. ","Item",1,null,0]
[]
[2953,19039,7,1,322,29,"Profit","Item",1,null,0]
[]
[2954,19040,7,1,322,30,"Attendance","Item",1,null,0]
[]
[2955,19083,7,1,322,null,"Concrete benches"]
[]
[2956,19084,7,1,322,31,"Provide the sum of R500 000.00 (Five Hundred Thousand Rand) precast concrete benches  supplied and installed complete, to be used at the discretion of the Principal Agent and deducted in whole or in part if not required. ","Item",1,null,0]
[]
[2957,19085,7,1,322,32,"Profit","Item",1,null,0]
[]
[2958,19086,7,1,322,33,"Attendance","Item",1,null,0]
[]
[2955,19083,7,1,322,null,"Walkways and parking cover structure:"]
[]
[2956,19084,7,1,322,34,"Provide the sum of R850 000.00 (Eight Hundred and Fifty Thousand Rand) for walkways and parking covering and structure, the amount to be used at the discretion of the Principal Agent or deducted in whole or in part if not required. ","Item",1,null,{"$f":"J124*I124","v":0}]
[]
[2957,19085,7,1,322,35,"Profit","Item",1,null,{"$f":"J126*I126","v":0}]
[]
[2958,19086,7,1,322,36,"Attendance","Item",1,null,{"$f":"J128*I128","v":0}]
[]
[2959,14740,7,1,323,null,"COMMUNITY ENGAGEMENT"]
[]
[2960,19088,7,1,323,null,"Community Liason Officer"]
[]
[2961,19089,7,1,323,37,"Provide the sum of R168 000.00 (One Hundred and Sixty Eight Thousand Rand) for Community Liason Officer, to be used at the discretion of the Principal Agent and deducted in whole or in part if not required. ","Item",1,null,0]
[]
[2962,19090,7,1,323,38,"Profit","Item",1,null,0]
[]
[2963,19091,7,1,323,39,"Attendance","Item",1,null,0]
[]
[2964,17007,7,1,323,null,"BUDGETARY ALLOWANCES"]
[]
[2965,16971,7,1,323,null,"Builders Work:"]
[]
[2966,16972,7,1,323,40,"Provide the sum of R300 000.00 (Three Hundred Thousand Rand) for Builders work complete, to be used at the discretion of the Principal Agent and deducted in whole or in part if not required.","Item",1,null,0]
[]
[2967,16973,7,1,323,41,"Profit","Item",1,null,0]
[]
[2968,16974,7,1,323,42,"Attendance","Item",1,null,0]
[]
[]
[{"$nulls":6},"Bill Total",{"$nulls":3},{"$f":"SUM(K36:K148)","v":0}]